{"text_format":"1","workbook":"xlsx","n_sheets":7,"sheets":["UserInstruction","NamingRules","IRI","IRI(<2024)","ALR","IRI Example","ALR Example"],"not_rendered":{"charts":0,"images":14,"macros":1,"external_links":0,"defined_names":45,"comments":4,"pivot_tables":0},"unopened":[],"bounds":{"document_bytes":16777216,"sheet_cells":100000,"rows_first":2000,"rows_last":500,"rows_between":2000,"halvings":0,"cell_chars":16384,"cell_head_chars":4096},"cells_cut":0,"cells_raw":0,"read":"whole","date_system":"1900"}

{"sheet":"UserInstruction","index":0,"n_rows":95,"n_cols":6,"rows_kept":95,"cut":false,"hidden":false,"merged":[[2,5,4,8]]}
[]
[]
[null,null,null,null,null,"Excel Program for  IRI & ALR Reporting"]
[]
[]
[]
["FAMILIARIZE YOURSELF WITH THE FOLLOWING INSTRUCTIONS PRIOR TO USING THE PROGRAM."]
["1. Macro and ProVAL"]
["This spreadsheet has a macro to calculate the bonus/penalty adjustments for Ride Quality and ALR."]
["This program is designed to use ProVAL 4.0 version data. If you're using older versions it is suggested you update your ProVAL."]
["It is recommended that under File - Properties you select the Read Only option."]
["2. Steps for Ride Quality Reporting - Verify which Payment Adjustment Structure Applies to your project (IRI or IRI(<2024))"]
["The following provides guidance on how to produce an IRI report."]
["  a) while doing ride quality analysis in ProVAL,as in the screen shot shown below, copy IRI table to the clipboard without column names."]
[]
[]
[]
[]
[]
[]
[]
[]
[]
[]
[]
[]
[]
[]
[]
[]
[]
[]
[]
["  b) Click cell B11 on worksheet \"IRI\", and paste data in the clipboard."]
["  c) Make sure all fields under Excluded Areas(column H) and Construction type (column I) are filled out."]
["  d) Complete report header information (contract No. etc…). Add comments if needed."]
["  e) Click \"Complete and Format Form\" button located near the top right corner of the form. Wait for the analysis to complete."]
["  f) Check form and make sure the information entered is correct and check calculation if you wish."]
["  g) If for any reason you need to revise information under H \"Excluded Area\" or I \"Type of Construction\" you may do so and hit refresh to redo the analysis."]
["   if a sublot encompasses two construction types, select the construction type with higher number (e.g. both SI and SII types are in one sublot,"]
["   chose SII for that sublot)."]
["  h) If you would like to preview the print out of the form, click \"Print Preview\" button."]
["  i) If you're only doing IRI reporting, you can exit now and Excel will remind you to save (since this template is read-only). "]
[]
["3. Steps for Areas of Localized Roughness Reporting"]
["The following provides instructions on how to produce ALR report."]
["  a) while doing Smooth Assurance analysis in ProVal 4.0,as in the screen shot shown below, copy table to the clipboard without column names."]
[]
[]
[]
[]
[]
[]
[]
[]
[]
[]
[]
[]
[]
[]
[]
[]
[]
["  b) Click cell A10 on the ALR worksheet, and paste data in there from the clipboard."]
["  c) Make sure all fields under column E,F,G and the report header are completed"]
["  d) Check report header information (contract No. etc…). Add comments if needed."]
["  e) Check form and make sure the information entered is correct and check calculation if you wish."]
["  f) click \"Format and Print Preview\" button locates near the top right corner of the form to see a print preview."]
["  h) This template is read-only. YOU MUST SAVE YOUR WORK AS A SEPARATE FILE PRIOR TO EXIT. You'll be prompted when closing the excel workbook."]
["  i) You can exit now and Excel will remind you to save (since this template is read-only). "]
[]
["4. Report Submissions"]
["On day of testing submit the unfiltered profile data in .erd or .ppf format.  Also submit to the Consultant paper reports for Ride Quality"]
["and ALR (short continuous analysis) that are generated by either ProVAL or the software associated with the inertial profiler."]
["After remedial work, if required, retest and re-submit the profile data and smoothness reports."]
["Within five days of testing submit the payment adjustment spreadsheet to the Consultant in .xlsx and .pdf formats and paper copies for Ride Quality and"]
["ALR as generated by ProVAL (if not already submitted earlier)."]
["The Consultant is to review the spreadsheets for accuracy and is to forward the electronic profile data and EXCEL spreadsheets (.xlsx format) to"]
["Technical Standards Branch - tec.constructqa@gov.ab.ca.  The spreadsheet (.pdf) is also to be forwarded to the Project Sponsor or Administrator."]
["     Note that for interim saves, the spreadsheet can be saved in \".xlsm\" format in order to retain the \"payment adjustment\" Macro functionality."]
[]
["5. Reporting Problems"]
[" This Excel is tested under Windows XP operating system and Microsoft Excel 2010 environment. This program may not function properly on other systems."]
["To report any problem with the template, contact the Construction section of TSB at tec.constructqa@gov.ab.ca"]
[]
["Disclaimer:","Alberta Transportation does not warrant the functions contained in this Template will meet your requirements or that the "]
[null,"operation of the program will be uninterrupted or error-free."]
[null,"It is the user's sole responsibility to check the correctness and accuracy of the data and contents contained in the  report."]
[null,"In no event will Alberta Transportation or its staff be liable for any loss,expense,damage, of any type or nature arising out of the use of ,"]
[null,"or liability to use this excel program, including, but not limited to any lost profit, lost of productivity or any other incidental or consequential damage."]
[]
[]
[]
["Revised on",null,"2024-10-01"]

{"sheet":"NamingRules","index":1,"n_rows":19,"n_cols":1,"rows_kept":19,"cut":false,"hidden":false,"merged":[]}
["Naming Convention"]
["The following naming rules apply to this EXCEL file and all other files (Erd, Ppf…) submitted to AT."]
["Report files shall be named in the following standardized format:"]
["CN(_RT)_HwyN_CS1(_CS2)_Lane_TTN"]
["1.  CN: contract number for the project as shown on the cover page of the contract document. It shall contain only numbers and no slash;"]
["2.  RT: roadway type in abbreviation, use UAR for Urban Approach Roads, PAR for Park Access Roads. The preceding underscore and RT shall be omitted and deleted when testing a Highway."]
["3.  HwyN: highway number on which roughness test was performed. It shall contain a three-digit number (with leading zeros) followed by a letter if required;"]
["4. CS1: control section number where roughness test started, in two digits, include leading zero;"]
["5.  CS2: control section number where roughness test ended, in two digits, include leading zero. If IP roughness test starts and ends in the same control section, the CS2 and preceding underscore shall be omitted and deleted;"]
["6.  Lane: location details for the lane tested, which indicates right/left location and sequence number in relation to the yellow line. (L1/R1, etc)"]
["Left/right is defined as left/right side with respect to the yellow line as viewed up chainage (increasing chainage). The lane immediately left/right to the yellow line is the first lane and for lanes further from the yellowline, the sequence number increases accordingly. "]
["7.  TTN: roughness test type and test number. Omit this if it's initial test,  “R” for re-test and “V” for verification test. Succeed test type abbreviation with a one-digit number to indicate test number of occurrence. Use 1 for 1st time, and increase number accordingly for subsequent tests."]
[]
["The following provides typical examples of naming ERD files:"]
["1.       A verification test was performed on Hwy 18 from Control Section 10 to 12 eastbound driving lane for the construction of Contract 131088. The stationing number increases eastbound. The roughness data from IP shall be named as follows:"]
["131088_018_10_12_R1_V1.xlsx or erd or ppf"]
[]
["2.       A roughness test was performed by the Contractor on Hwy 16 from Control Section 26 to 24 westbound passing lane for the construction of Contract 131099. The stationing number increases eastbound. The roughness data from IP shall be named as follows:"]
["131099_016_26_24_L1.xlsx or erd or ppf"]

{"sheet":"IRI","index":2,"n_rows":1000,"n_cols":20,"rows_kept":1000,"cut":false,"hidden":false,"merged":[[14,13,15,20]]}
[null,null,null,null,null,"Contract No:",null,"Type of Test:"]
[null,null,null,null,null,"Hwy Number:",null,"Contractor:"]
[null,null,null,null,null,"Control Section:",null,"IP Operator:"]
[null,null,null,null,null,"Lane:",null,"Test Date:\n(yyyy-mm-dd)"]
[null,null,null,null,null,"Direction:",null,"Comments:"]
["VERIFY CONTRACT SPECIFICATION AMENDMENTS - THIS SHEET IS FOR CONTRACTS WITH SPECIFICATION AMENDMENT AMC_S279/S280 ISSUED SEPTEMBER 2024 (MAX BONUS $250/REJECT -$600)",null,null,null,null,null,null,null,null,null,null,null,null,null,null,"for Type of Test(F5)","for column H","for column I","direction"]
["Ride Quality Bonus/Penalty Summary",null,null,null,null,null,null,null,null,null,null,null,null,null,null,"Acceptance","yes","SI","WB","L1"]
["Appendix B20.a",null,null,null,null,null,null,"Excluded Area?","Type of Cons.","Sublot Payment","SI",null,null,null,null,"Verification","no","SII","EB","L2"]
["Sublot","Station (km)",null,"Length","IRI (m/km)",null,"MIRI","Yes or No?","SI,SII,or SIII","Assessment","SII",null,null,null,null,null,{"$f":"\"\"","v":""},"SIII","SB","L3"]
["Number","Start","End","(m)","Left","Right","(m/km)",null,null,"($)","SIII",null,null,null,null,null,null,null,"NB","L4"]
[null,null,null,null,null,null,{"$f":"ROUND(AVERAGE(E11:F11),2)","v":{"$error":"#DIV/0!"}},"no",null,{"$f":"IF(I11=\"SI\",IF(H11=\"yes\",\"Excluded Area\",IF(G11<0.55,250,IF(G11<0.71,150,IF(G11<1.01,0,IF(G11<1.51,(800-900*G11),-600))))),IF(I11=\"SII\",IF(H11=\"yes\",\"Excluded Area\",IF(G11<0.55,250,IF(G11<0.81,150, IF(G11<1.16,0, IF(G11<1.51,(1380-1230*G11),-600))))),IF(H11=\"yes\",\"Excluded Area\",IF(G11<0.55,250,IF(G11<0.81,150, IF(G11<1.51,0, IF(G11<=1.8,(730-540*G11),-600)))))))","v":{"$error":"#DIV/0!"}},null,{"$f":"IF(J11=-600,\"Refer to Note (1) of Table 3.50 C1 or 3.53 C1\",\" \")","v":{"$error":"#DIV/0!"}},null,null,null,null,null,null,null,"R1"]
[null,null,null,null,null,null,{"$f":"ROUND(AVERAGE(E12:F12),2)","v":{"$error":"#DIV/0!"}},"no",null,{"$f":"IF(I12=\"SI\",IF(H12=\"yes\",\"Excluded Area\",IF(G12<0.55,250,IF(G12<0.71,150,IF(G12<1.01,0,IF(G12<1.51,(800-900*G12),-600))))),IF(I12=\"SII\",IF(H12=\"yes\",\"Excluded Area\",IF(G12<0.55,250,IF(G12<0.81,150, IF(G12<1.16,0, IF(G12<1.51,(1380-1230*G12),-600))))),IF(H12=\"yes\",\"Excluded Area\",IF(G12<0.55,250,IF(G12<0.81,150, IF(G12<1.51,0, IF(G12<=1.8,(730-540*G12),-600)))))))","v":{"$error":"#DIV/0!"}},null,{"$error":"#DIV/0!"},null,null,null,null,null,null,null,"R2"]
[null,null,null,null,null,null,{"$error":"#DIV/0!"},"no",null,{"$error":"#DIV/0!"},null,{"$error":"#DIV/0!"},null,null,null,null,null,null,null,"R3"]
[null,null,null,null,null,null,{"$error":"#DIV/0!"},"no",null,{"$error":"#DIV/0!"},null,{"$error":"#DIV/0!"},null,null,null,null,null,null,null,"R4"]
[null,null,null,null,null,null,{"$error":"#DIV/0!"},"no",null,{"$error":"#DIV/0!"},null,{"$error":"#DIV/0!"},null,"THIS SUBLOT ASSESSMENT TABLE IS FOR CONTRACTS THAT CONTAIN SPECIFICATION AMENDMENT AMC_S279/280 ONLY USE TAB \"IRI(<2024)' FOR ALL OTHER CONTRACTS"]
[null,null,null,null,null,null,{"$error":"#DIV/0!"},"no",null,{"$error":"#DIV/0!"},null,{"$error":"#DIV/0!"}]
[null,null,null,null,null,null,{"$error":"#DIV/0!"},"no",null,{"$error":"#DIV/0!"},null,{"$error":"#DIV/0!"}]
[null,null,null,null,null,null,{"$error":"#DIV/0!"},"no",null,{"$error":"#DIV/0!"},null,{"$error":"#DIV/0!"}]
[null,null,null,null,null,null,{"$error":"#DIV/0!"},"no",null,{"$error":"#DIV/0!"},null,{"$error":"#DIV/0!"}]
[null,null,null,null,null,null,{"$error":"#DIV/0!"},"no",null,{"$error":"#DIV/0!"},null,{"$error":"#DIV/0!"}]
[null,null,null,null,null,null,{"$error":"#DIV/0!"},"no",null,{"$error":"#DIV/0!"},null,{"$error":"#DIV/0!"}]
[null,null,null,null,null,null,{"$error":"#DIV/0!"},"no",null,{"$error":"#DIV/0!"},null,{"$error":"#DIV/0!"}]
[null,null,null,null,null,null,{"$error":"#DIV/0!"},"no",null,{"$error":"#DIV/0!"},null,{"$error":"#DIV/0!"}]
[null,null,null,null,null,null,{"$error":"#DIV/0!"},"no",null,{"$error":"#DIV/0!"},null,{"$error":"#DIV/0!"}]
[null,null,null,null,null,null,{"$error":"#DIV/0!"},"no",null,{"$error":"#DIV/0!"},null,{"$error":"#DIV/0!"}]
[null,null,null,null,null,null,{"$error":"#DIV/0!"},"no",null,{"$error":"#DIV/0!"},null,{"$error":"#DIV/0!"}]
[null,null,null,null,null,null,{"$error":"#DIV/0!"},"no",null,{"$error":"#DIV/0!"},null,{"$error":"#DIV/0!"}]
[null,null,null,null,null,null,{"$error":"#DIV/0!"},"no",null,{"$error":"#DIV/0!"},null,{"$error":"#DIV/0!"}]
[null,null,null,null,null,null,{"$error":"#DIV/0!"},"no",null,{"$error":"#DIV/0!"},null,{"$error":"#DIV/0!"}]
[null,null,null,null,null,null,{"$error":"#DIV/0!"},"no",null,{"$error":"#DIV/0!"},null,{"$error":"#DIV/0!"}]
[null,null,null,null,null,null,{"$error":"#DIV/0!"},"no",null,{"$error":"#DIV/0!"},null,{"$error":"#DIV/0!"}]
[null,null,null,null,null,null,{"$error":"#DIV/0!"},"no",null,{"$error":"#DIV/0!"},null,{"$error":"#DIV/0!"}]
[null,null,null,null,null,null,{"$error":"#DIV/0!"},"no",null,{"$error":"#DIV/0!"},null,{"$error":"#DIV/0!"}]
[null,null,null,null,null,null,{"$error":"#DIV/0!"},"no",null,{"$error":"#DIV/0!"},null,{"$error":"#DIV/0!"}]
[null,null,null,null,null,null,{"$error":"#DIV/0!"},"no",null,{"$error":"#DIV/0!"},null,{"$error":"#DIV/0!"}]
[null,null,null,null,null,null,{"$error":"#DIV/0!"},"no",null,{"$error":"#DIV/0!"},null,{"$error":"#DIV/0!"}]
[null,null,null,null,null,null,{"$error":"#DIV/0!"},"no",null,{"$error":"#DIV/0!"},null,{"$error":"#DIV/0!"},null,null,null,"Note, reject sublots are identified in this spreadsheet with a payment assessment of -$600."]
[null,null,null,null,null,null,{"$error":"#DIV/0!"},"no",null,{"$error":"#DIV/0!"},null,{"$error":"#DIV/0!"},null,null,null,"Consultant is to review whether remedial work is required (and sublot retested) or if sublot can be accepted with -$600 assessment."]
[null,null,null,null,null,null,{"$error":"#DIV/0!"},"no",null,{"$error":"#DIV/0!"},null,{"$error":"#DIV/0!"}]
[null,null,null,null,null,null,{"$error":"#DIV/0!"},"no",null,{"$error":"#DIV/0!"},null,{"$error":"#DIV/0!"}]
[null,null,null,null,null,null,{"$error":"#DIV/0!"},"no",null,{"$error":"#DIV/0!"},null,{"$error":"#DIV/0!"}]
[null,null,null,null,null,null,{"$error":"#DIV/0!"},"no",null,{"$error":"#DIV/0!"},null,{"$error":"#DIV/0!"}]
[null,null,null,null,null,null,{"$error":"#DIV/0!"},"no",null,{"$error":"#DIV/0!"},null,{"$error":"#DIV/0!"}]
[null,null,null,null,null,null,{"$error":"#DIV/0!"},"no",null,{"$error":"#DIV/0!"},null,{"$error":"#DIV/0!"}]
[null,null,null,null,null,null,{"$error":"#DIV/0!"},"no",null,{"$error":"#DIV/0!"},null,{"$error":"#DIV/0!"}]
[null,null,null,null,null,null,{"$error":"#DIV/0!"},"no",null,{"$error":"#DIV/0!"},null,{"$error":"#DIV/0!"}]
[null,null,null,null,null,null,{"$error":"#DIV/0!"},"no",null,{"$error":"#DIV/0!"},null,{"$error":"#DIV/0!"}]
[null,null,null,null,null,null,{"$error":"#DIV/0!"},"no",null,{"$error":"#DIV/0!"},null,{"$error":"#DIV/0!"}]
[null,null,null,null,null,null,{"$error":"#DIV/0!"},"no",null,{"$f":"IF(I49=\"SI\",IF(H49=\"yes\",\"Excluded Area\",IF(G49<0.55,250,IF(G49<0.71,150,IF(G49<1.01,0,IF(G49<1.51,(800-900*G49),-600))))),IF(I49=\"SII\",IF(H49=\"yes\",\"Excluded Area\",IF(G49<0.55,250,IF(G49<0.81,150, IF(G49<1.16,0, IF(G49<1.51,(1380-1230*G49),-600))))),IF(H49=\"yes\",\"Excluded Area\",IF(G49<0.55,250,IF(G49<0.81,150, IF(G49<1.51,0, IF(G49<=1.8,(730-540*G49),-600)))))))","v":{"$error":"#DIV/0!"}},null,{"$error":"#DIV/0!"}]
[null,null,null,null,null,null,{"$error":"#DIV/0!"},"no",null,{"$error":"#DIV/0!"},null,{"$error":"#DIV/0!"}]
[null,null,null,null,null,null,{"$error":"#DIV/0!"},"no",null,{"$error":"#DIV/0!"},null,{"$error":"#DIV/0!"}]
[null,null,null,null,null,null,{"$error":"#DIV/0!"},"no",null,{"$error":"#DIV/0!"},null,{"$error":"#DIV/0!"}]
[null,null,null,null,null,null,{"$error":"#DIV/0!"},"no",null,{"$error":"#DIV/0!"},null,{"$error":"#DIV/0!"}]
[null,null,null,null,null,null,{"$error":"#DIV/0!"},"no",null,{"$error":"#DIV/0!"},null,{"$error":"#DIV/0!"}]
[null,null,null,null,null,null,{"$error":"#DIV/0!"},"no",null,{"$error":"#DIV/0!"},null,{"$error":"#DIV/0!"}]
[null,null,null,null,null,null,{"$error":"#DIV/0!"},"no",null,{"$error":"#DIV/0!"},null,{"$error":"#DIV/0!"}]
[null,null,null,null,null,null,{"$error":"#DIV/0!"},"no",null,{"$error":"#DIV/0!"},null,{"$error":"#DIV/0!"}]
[null,null,null,null,null,null,{"$error":"#DIV/0!"},"no",null,{"$error":"#DIV/0!"},null,{"$error":"#DIV/0!"}]
[null,null,null,null,null,null,{"$error":"#DIV/0!"},"no",null,{"$error":"#DIV/0!"},null,{"$error":"#DIV/0!"}]
[null,null,null,null,null,null,{"$error":"#DIV/0!"},"no",null,{"$error":"#DIV/0!"},null,{"$error":"#DIV/0!"}]
[null,null,null,null,null,null,{"$error":"#DIV/0!"},"no",null,{"$error":"#DIV/0!"},null,{"$error":"#DIV/0!"}]
[null,null,null,null,null,null,{"$error":"#DIV/0!"},"no",null,{"$error":"#DIV/0!"},null,{"$error":"#DIV/0!"}]
[null,null,null,null,null,null,{"$error":"#DIV/0!"},"no",null,{"$error":"#DIV/0!"},null,{"$error":"#DIV/0!"}]
[null,null,null,null,null,null,{"$error":"#DIV/0!"},"no",null,{"$error":"#DIV/0!"},null,{"$error":"#DIV/0!"}]
[null,null,null,null,null,null,{"$error":"#DIV/0!"},"no",null,{"$error":"#DIV/0!"},null,{"$error":"#DIV/0!"}]
[null,null,null,null,null,null,{"$error":"#DIV/0!"},"no",null,{"$error":"#DIV/0!"},null,{"$error":"#DIV/0!"}]
[null,null,null,null,null,null,{"$error":"#DIV/0!"},"no",null,{"$error":"#DIV/0!"},null,{"$error":"#DIV/0!"}]
[null,null,null,null,null,null,{"$error":"#DIV/0!"},"no",null,{"$error":"#DIV/0!"},null,{"$error":"#DIV/0!"}]
[null,null,null,null,null,null,{"$error":"#DIV/0!"},"no",null,{"$error":"#DIV/0!"},null,{"$error":"#DIV/0!"}]
[null,null,null,null,null,null,{"$error":"#DIV/0!"},"no",null,{"$error":"#DIV/0!"},null,{"$error":"#DIV/0!"}]
[null,null,null,null,null,null,{"$error":"#DIV/0!"},"no",null,{"$error":"#DIV/0!"},null,{"$error":"#DIV/0!"}]
[null,null,null,null,null,null,{"$error":"#DIV/0!"},"no",null,{"$error":"#DIV/0!"},null,{"$error":"#DIV/0!"}]
[null,null,null,null,null,null,{"$error":"#DIV/0!"},"no",null,{"$error":"#DIV/0!"},null,{"$error":"#DIV/0!"}]
[null,null,null,null,null,null,{"$error":"#DIV/0!"},"no",null,{"$error":"#DIV/0!"},null,{"$error":"#DIV/0!"}]
[null,null,null,null,null,null,{"$error":"#DIV/0!"},"no",null,{"$error":"#DIV/0!"},null,{"$f":"IF(J75=-600,\"Refer to Note (1) of Table 3.50 C1 or 3.53 C1\",\" \")","v":{"$error":"#DIV/0!"}}]
[null,null,null,null,null,null,{"$f":"ROUND(AVERAGE(E76:F76),2)","v":{"$error":"#DIV/0!"}},"no",null,{"$f":"IF(I76=\"SI\",IF(H76=\"yes\",\"Excluded Area\",IF(G76<0.55,250,IF(G76<0.71,150,IF(G76<1.01,0,IF(G76<1.51,(800-900*G76),-600))))),IF(I76=\"SII\",IF(H76=\"yes\",\"Excluded Area\",IF(G76<0.55,250,IF(G76<0.81,150, IF(G76<1.16,0, IF(G76<1.51,(1380-1230*G76),-600))))),IF(H76=\"yes\",\"Excluded Area\",IF(G76<0.55,250,IF(G76<0.81,150, IF(G76<1.51,0, IF(G76<=1.8,(730-540*G76),-600)))))))","v":{"$error":"#DIV/0!"}},null,{"$error":"#DIV/0!"}]
[null,null,null,null,null,null,{"$error":"#DIV/0!"},"no",null,{"$error":"#DIV/0!"},null,{"$error":"#DIV/0!"}]
[null,null,null,null,null,null,{"$error":"#DIV/0!"},"no",null,{"$error":"#DIV/0!"},null,{"$error":"#DIV/0!"}]
[null,null,null,null,null,null,{"$error":"#DIV/0!"},"no",null,{"$error":"#DIV/0!"},null,{"$error":"#DIV/0!"}]
[null,null,null,null,null,null,{"$error":"#DIV/0!"},"no",null,{"$error":"#DIV/0!"},null,{"$error":"#DIV/0!"}]
[null,null,null,null,null,null,{"$error":"#DIV/0!"},"no",null,{"$error":"#DIV/0!"},null,{"$error":"#DIV/0!"}]
[null,null,null,null,null,null,{"$error":"#DIV/0!"},"no",null,{"$error":"#DIV/0!"},null,{"$error":"#DIV/0!"}]
[null,null,null,null,null,null,{"$error":"#DIV/0!"},"no",null,{"$error":"#DIV/0!"},null,{"$error":"#DIV/0!"}]
[null,null,null,null,null,null,{"$error":"#DIV/0!"},"no",null,{"$error":"#DIV/0!"},null,{"$error":"#DIV/0!"}]
[null,null,null,null,null,null,{"$error":"#DIV/0!"},"no",null,{"$error":"#DIV/0!"},null,{"$error":"#DIV/0!"}]
[null,null,null,null,null,null,{"$error":"#DIV/0!"},"no",null,{"$error":"#DIV/0!"},null,{"$error":"#DIV/0!"}]
[null,null,null,null,null,null,{"$error":"#DIV/0!"},"no",null,{"$error":"#DIV/0!"},null,{"$error":"#DIV/0!"}]
[null,null,null,null,null,null,{"$error":"#DIV/0!"},"no",null,{"$error":"#DIV/0!"},null,{"$error":"#DIV/0!"}]
[null,null,null,null,null,null,{"$error":"#DIV/0!"},"no",null,{"$error":"#DIV/0!"},null,{"$error":"#DIV/0!"}]
[null,null,null,null,null,null,{"$error":"#DIV/0!"},"no",null,{"$error":"#DIV/0!"},null,{"$error":"#DIV/0!"}]
[null,null,null,null,null,null,{"$error":"#DIV/0!"},"no",null,{"$error":"#DIV/0!"},null,{"$error":"#DIV/0!"}]
[null,null,null,null,null,null,{"$error":"#DIV/0!"},"no",null,{"$error":"#DIV/0!"},null,{"$error":"#DIV/0!"}]
[null,null,null,null,null,null,{"$error":"#DIV/0!"},"no",null,{"$error":"#DIV/0!"},null,{"$error":"#DIV/0!"}]
[null,null,null,null,null,null,{"$error":"#DIV/0!"},"no",null,{"$error":"#DIV/0!"},null,{"$error":"#DIV/0!"}]
[null,null,null,null,null,null,{"$error":"#DIV/0!"},"no",null,{"$error":"#DIV/0!"},null,{"$error":"#DIV/0!"}]
[null,null,null,null,null,null,{"$error":"#DIV/0!"},"no",null,{"$error":"#DIV/0!"},null,{"$error":"#DIV/0!"}]
[null,null,null,null,null,null,{"$error":"#DIV/0!"},"no",null,{"$error":"#DIV/0!"},null,{"$error":"#DIV/0!"}]
[null,null,null,null,null,null,{"$error":"#DIV/0!"},"no",null,{"$error":"#DIV/0!"},null,{"$error":"#DIV/0!"}]
[null,null,null,null,null,null,{"$error":"#DIV/0!"},"no",null,{"$error":"#DIV/0!"},null,{"$error":"#DIV/0!"}]
[null,null,null,null,null,null,{"$error":"#DIV/0!"},"no",null,{"$error":"#DIV/0!"},null,{"$error":"#DIV/0!"}]
[null,null,null,null,null,null,{"$error":"#DIV/0!"},"no",null,{"$error":"#DIV/0!"},null,{"$error":"#DIV/0!"}]
[null,null,null,null,null,null,{"$error":"#DIV/0!"},"no",null,{"$error":"#DIV/0!"},null,{"$error":"#DIV/0!"}]
[null,null,null,null,null,null,{"$error":"#DIV/0!"},"no",null,{"$error":"#DIV/0!"},null,{"$error":"#DIV/0!"}]
[null,null,null,null,null,null,{"$error":"#DIV/0!"},"no",null,{"$error":"#DIV/0!"},null,{"$error":"#DIV/0!"}]
[null,null,null,null,null,null,{"$error":"#DIV/0!"},"no",null,{"$error":"#DIV/0!"},null,{"$error":"#DIV/0!"}]
[null,null,null,null,null,null,{"$error":"#DIV/0!"},"no",null,{"$error":"#DIV/0!"},null,{"$error":"#DIV/0!"}]
[null,null,null,null,null,null,{"$error":"#DIV/0!"},"no",null,{"$error":"#DIV/0!"},null,{"$error":"#DIV/0!"}]
[null,null,null,null,null,null,{"$error":"#DIV/0!"},"no",null,{"$error":"#DIV/0!"},null,{"$error":"#DIV/0!"}]
[null,null,null,null,null,null,{"$error":"#DIV/0!"},"no",null,{"$error":"#DIV/0!"},null,{"$error":"#DIV/0!"}]
[null,null,null,null,null,null,{"$error":"#DIV/0!"},"no",null,{"$error":"#DIV/0!"},null,{"$error":"#DIV/0!"}]
[null,null,null,null,null,null,{"$error":"#DIV/0!"},"no",null,{"$error":"#DIV/0!"},null,{"$error":"#DIV/0!"}]
[null,null,null,null,null,null,{"$error":"#DIV/0!"},"no",null,{"$error":"#DIV/0!"},null,{"$error":"#DIV/0!"}]
[null,null,null,null,null,null,{"$error":"#DIV/0!"},"no",null,{"$error":"#DIV/0!"},null,{"$error":"#DIV/0!"}]
[null,null,null,null,null,null,{"$error":"#DIV/0!"},"no",null,{"$error":"#DIV/0!"},null,{"$error":"#DIV/0!"}]
[null,null,null,null,null,null,{"$error":"#DIV/0!"},"no",null,{"$error":"#DIV/0!"},null,{"$error":"#DIV/0!"}]
[null,null,null,null,null,null,{"$error":"#DIV/0!"},"no",null,{"$error":"#DIV/0!"},null,{"$error":"#DIV/0!"}]
[null,null,null,null,null,null,{"$error":"#DIV/0!"},"no",null,{"$error":"#DIV/0!"},null,{"$error":"#DIV/0!"}]
[null,null,null,null,null,null,{"$error":"#DIV/0!"},"no",null,{"$error":"#DIV/0!"},null,{"$error":"#DIV/0!"}]
[null,null,null,null,null,null,{"$error":"#DIV/0!"},"no",null,{"$error":"#DIV/0!"},null,{"$error":"#DIV/0!"}]
[null,null,null,null,null,null,{"$error":"#DIV/0!"},"no",null,{"$error":"#DIV/0!"},null,{"$error":"#DIV/0!"}]
[null,null,null,null,null,null,{"$error":"#DIV/0!"},"no",null,{"$error":"#DIV/0!"},null,{"$error":"#DIV/0!"}]
[null,null,null,null,null,null,{"$error":"#DIV/0!"},"no",null,{"$error":"#DIV/0!"},null,{"$error":"#DIV/0!"}]
[null,null,null,null,null,null,{"$error":"#DIV/0!"},"no",null,{"$error":"#DIV/0!"},null,{"$error":"#DIV/0!"}]
[null,null,null,null,null,null,{"$error":"#DIV/0!"},"no",null,{"$error":"#DIV/0!"},null,{"$error":"#DIV/0!"}]
[null,null,null,null,null,null,{"$error":"#DIV/0!"},"no",null,{"$error":"#DIV/0!"},null,{"$error":"#DIV/0!"}]
[null,null,null,null,null,null,{"$error":"#DIV/0!"},"no",null,{"$error":"#DIV/0!"},null,{"$error":"#DIV/0!"}]
[null,null,null,null,null,null,{"$error":"#DIV/0!"},"no",null,{"$error":"#DIV/0!"},null,{"$error":"#DIV/0!"}]
[null,null,null,null,null,null,{"$error":"#DIV/0!"},"no",null,{"$error":"#DIV/0!"},null,{"$error":"#DIV/0!"}]
[null,null,null,null,null,null,{"$error":"#DIV/0!"},"no",null,{"$error":"#DIV/0!"},null,{"$error":"#DIV/0!"}]
[null,null,null,null,null,null,{"$error":"#DIV/0!"},"no",null,{"$error":"#DIV/0!"},null,{"$error":"#DIV/0!"}]
[null,null,null,null,null,null,{"$error":"#DIV/0!"},"no",null,{"$error":"#DIV/0!"},null,{"$error":"#DIV/0!"}]
[null,null,null,null,null,null,{"$error":"#DIV/0!"},"no",null,{"$error":"#DIV/0!"},null,{"$error":"#DIV/0!"}]
[null,null,null,null,null,null,{"$error":"#DIV/0!"},"no",null,{"$error":"#DIV/0!"},null,{"$error":"#DIV/0!"}]
[null,null,null,null,null,null,{"$error":"#DIV/0!"},"no",null,{"$error":"#DIV/0!"},null,{"$error":"#DIV/0!"}]
[null,null,null,null,null,null,{"$error":"#DIV/0!"},"no",null,{"$error":"#DIV/0!"},null,{"$error":"#DIV/0!"}]
[null,null,null,null,null,null,{"$error":"#DIV/0!"},"no",null,{"$error":"#DIV/0!"},null,{"$error":"#DIV/0!"}]
[null,null,null,null,null,null,{"$error":"#DIV/0!"},"no",null,{"$error":"#DIV/0!"},null,{"$error":"#DIV/0!"}]
[null,null,null,null,null,null,{"$error":"#DIV/0!"},"no",null,{"$error":"#DIV/0!"},null,{"$error":"#DIV/0!"}]
[null,null,null,null,null,null,{"$error":"#DIV/0!"},"no",null,{"$error":"#DIV/0!"},null,{"$f":"IF(J139=-600,\"Refer to Note (1) of Table 3.50 C1 or 3.53 C1\",\" \")","v":{"$error":"#DIV/0!"}}]
[null,null,null,null,null,null,{"$f":"ROUND(AVERAGE(E140:F140),2)","v":{"$error":"#DIV/0!"}},"no",null,{"$f":"IF(I140=\"SI\",IF(H140=\"yes\",\"Excluded Area\",IF(G140<0.55,250,IF(G140<0.71,150,IF(G140<1.01,0,IF(G140<1.51,(800-900*G140),-600))))),IF(I140=\"SII\",IF(H140=\"yes\",\"Excluded Area\",IF(G140<0.55,250,IF(G140<0.81,150, IF(G140<1.16,0, IF(G140<1.51,(1380-1230*G140),-600))))),IF(H140=\"yes\",\"Excluded Area\",IF(G140<0.55,250,IF(G140<0.81,150, IF(G140<1.51,0, IF(G140<=1.8,(730-540*G140),-600)))))))","v":{"$error":"#DIV/0!"}},null,{"$error":"#DIV/0!"}]
[null,null,null,null,null,null,{"$error":"#DIV/0!"},"no",null,{"$error":"#DIV/0!"},null,{"$error":"#DIV/0!"}]
[null,null,null,null,null,null,{"$error":"#DIV/0!"},"no",null,{"$error":"#DIV/0!"},null,{"$error":"#DIV/0!"}]
[null,null,null,null,null,null,{"$error":"#DIV/0!"},"no",null,{"$error":"#DIV/0!"},null,{"$error":"#DIV/0!"}]
[null,null,null,null,null,null,{"$error":"#DIV/0!"},"no",null,{"$error":"#DIV/0!"},null,{"$error":"#DIV/0!"}]
[null,null,null,null,null,null,{"$error":"#DIV/0!"},"no",null,{"$error":"#DIV/0!"},null,{"$error":"#DIV/0!"}]
[null,null,null,null,null,null,{"$error":"#DIV/0!"},"no",null,{"$error":"#DIV/0!"},null,{"$error":"#DIV/0!"}]
[null,null,null,null,null,null,{"$error":"#DIV/0!"},"no",null,{"$error":"#DIV/0!"},null,{"$error":"#DIV/0!"}]
[null,null,null,null,null,null,{"$error":"#DIV/0!"},"no",null,{"$error":"#DIV/0!"},null,{"$error":"#DIV/0!"}]
[null,null,null,null,null,null,{"$error":"#DIV/0!"},"no",null,{"$error":"#DIV/0!"},null,{"$error":"#DIV/0!"}]
[null,null,null,null,null,null,{"$error":"#DIV/0!"},"no",null,{"$error":"#DIV/0!"},null,{"$error":"#DIV/0!"}]
[null,null,null,null,null,null,{"$error":"#DIV/0!"},"no",null,{"$error":"#DIV/0!"},null,{"$error":"#DIV/0!"}]
[null,null,null,null,null,null,{"$error":"#DIV/0!"},"no",null,{"$error":"#DIV/0!"},null,{"$error":"#DIV/0!"}]
[null,null,null,null,null,null,{"$error":"#DIV/0!"},"no",null,{"$error":"#DIV/0!"},null,{"$error":"#DIV/0!"}]
[null,null,null,null,null,null,{"$error":"#DIV/0!"},"no",null,{"$error":"#DIV/0!"},null,{"$error":"#DIV/0!"}]
[null,null,null,null,null,null,{"$error":"#DIV/0!"},"no",null,{"$error":"#DIV/0!"},null,{"$error":"#DIV/0!"}]
[null,null,null,null,null,null,{"$error":"#DIV/0!"},"no",null,{"$error":"#DIV/0!"},null,{"$error":"#DIV/0!"}]
[null,null,null,null,null,null,{"$error":"#DIV/0!"},"no",null,{"$error":"#DIV/0!"},null,{"$error":"#DIV/0!"}]
[null,null,null,null,null,null,{"$error":"#DIV/0!"},"no",null,{"$error":"#DIV/0!"},null,{"$error":"#DIV/0!"}]
[null,null,null,null,null,null,{"$error":"#DIV/0!"},"no",null,{"$error":"#DIV/0!"},null,{"$error":"#DIV/0!"}]
[null,null,null,null,null,null,{"$error":"#DIV/0!"},"no",null,{"$error":"#DIV/0!"},null,{"$error":"#DIV/0!"}]
[null,null,null,null,null,null,{"$error":"#DIV/0!"},"no",null,{"$error":"#DIV/0!"},null,{"$error":"#DIV/0!"}]
[null,null,null,null,null,null,{"$error":"#DIV/0!"},"no",null,{"$error":"#DIV/0!"},null,{"$error":"#DIV/0!"}]
[null,null,null,null,null,null,{"$error":"#DIV/0!"},"no",null,{"$error":"#DIV/0!"},null,{"$error":"#DIV/0!"}]
[null,null,null,null,null,null,{"$error":"#DIV/0!"},"no",null,{"$error":"#DIV/0!"},null,{"$error":"#DIV/0!"}]
[null,null,null,null,null,null,{"$error":"#DIV/0!"},"no",null,{"$error":"#DIV/0!"},null,{"$error":"#DIV/0!"}]
[null,null,null,null,null,null,{"$error":"#DIV/0!"},"no",null,{"$error":"#DIV/0!"},null,{"$error":"#DIV/0!"}]
[null,null,null,null,null,null,{"$error":"#DIV/0!"},"no",null,{"$error":"#DIV/0!"},null,{"$error":"#DIV/0!"}]
[null,null,null,null,null,null,{"$error":"#DIV/0!"},"no",null,{"$error":"#DIV/0!"},null,{"$error":"#DIV/0!"}]
[null,null,null,null,null,null,{"$error":"#DIV/0!"},"no",null,{"$error":"#DIV/0!"},null,{"$error":"#DIV/0!"}]
[null,null,null,null,null,null,{"$error":"#DIV/0!"},"no",null,{"$error":"#DIV/0!"},null,{"$error":"#DIV/0!"}]
[null,null,null,null,null,null,{"$error":"#DIV/0!"},"no",null,{"$error":"#DIV/0!"},null,{"$error":"#DIV/0!"}]
[null,null,null,null,null,null,{"$error":"#DIV/0!"},"no",null,{"$error":"#DIV/0!"},null,{"$error":"#DIV/0!"}]
[null,null,null,null,null,null,{"$error":"#DIV/0!"},"no",null,{"$error":"#DIV/0!"},null,{"$error":"#DIV/0!"}]
[null,null,null,null,null,null,{"$error":"#DIV/0!"},"no",null,{"$error":"#DIV/0!"},null,{"$error":"#DIV/0!"}]
[null,null,null,null,null,null,{"$error":"#DIV/0!"},"no",null,{"$error":"#DIV/0!"},null,{"$error":"#DIV/0!"}]
[null,null,null,null,null,null,{"$error":"#DIV/0!"},"no",null,{"$error":"#DIV/0!"},null,{"$error":"#DIV/0!"}]
[null,null,null,null,null,null,{"$error":"#DIV/0!"},"no",null,{"$error":"#DIV/0!"},null,{"$error":"#DIV/0!"}]
[null,null,null,null,null,null,{"$error":"#DIV/0!"},"no",null,{"$error":"#DIV/0!"},null,{"$error":"#DIV/0!"}]
[null,null,null,null,null,null,{"$error":"#DIV/0!"},"no",null,{"$error":"#DIV/0!"},null,{"$error":"#DIV/0!"}]
[null,null,null,null,null,null,{"$error":"#DIV/0!"},"no",null,{"$error":"#DIV/0!"},null,{"$error":"#DIV/0!"}]
[null,null,null,null,null,null,{"$error":"#DIV/0!"},"no",null,{"$error":"#DIV/0!"},null,{"$error":"#DIV/0!"}]
[null,null,null,null,null,null,{"$error":"#DIV/0!"},"no",null,{"$error":"#DIV/0!"},null,{"$error":"#DIV/0!"}]
[null,null,null,null,null,null,{"$error":"#DIV/0!"},"no",null,{"$error":"#DIV/0!"},null,{"$error":"#DIV/0!"}]
[null,null,null,null,null,null,{"$error":"#DIV/0!"},"no",null,{"$error":"#DIV/0!"},null,{"$error":"#DIV/0!"}]
[null,null,null,null,null,null,{"$error":"#DIV/0!"},"no",null,{"$error":"#DIV/0!"},null,{"$error":"#DIV/0!"}]
[null,null,null,null,null,null,{"$error":"#DIV/0!"},"no",null,{"$error":"#DIV/0!"},null,{"$error":"#DIV/0!"}]
[null,null,null,null,null,null,{"$error":"#DIV/0!"},"no",null,{"$error":"#DIV/0!"},null,{"$error":"#DIV/0!"}]
[null,null,null,null,null,null,{"$error":"#DIV/0!"},"no",null,{"$error":"#DIV/0!"},null,{"$error":"#DIV/0!"}]
[null,null,null,null,null,null,{"$error":"#DIV/0!"},"no",null,{"$error":"#DIV/0!"},null,{"$error":"#DIV/0!"}]
[null,null,null,null,null,null,{"$error":"#DIV/0!"},"no",null,{"$error":"#DIV/0!"},null,{"$error":"#DIV/0!"}]
[null,null,null,null,null,null,{"$error":"#DIV/0!"},"no",null,{"$error":"#DIV/0!"},null,{"$error":"#DIV/0!"}]
[null,null,null,null,null,null,{"$error":"#DIV/0!"},"no",null,{"$error":"#DIV/0!"},null,{"$error":"#DIV/0!"}]
[null,null,null,null,null,null,{"$error":"#DIV/0!"},"no",null,{"$error":"#DIV/0!"},null,{"$error":"#DIV/0!"}]
[null,null,null,null,null,null,{"$error":"#DIV/0!"},"no",null,{"$error":"#DIV/0!"},null,{"$error":"#DIV/0!"}]
[null,null,null,null,null,null,{"$error":"#DIV/0!"},"no",null,{"$error":"#DIV/0!"},null,{"$error":"#DIV/0!"}]
[null,null,null,null,null,null,{"$error":"#DIV/0!"},"no",null,{"$error":"#DIV/0!"},null,{"$error":"#DIV/0!"}]
[null,null,null,null,null,null,{"$error":"#DIV/0!"},"no",null,{"$error":"#DIV/0!"},null,{"$error":"#DIV/0!"}]
[null,null,null,null,null,null,{"$error":"#DIV/0!"},"no",null,{"$error":"#DIV/0!"},null,{"$error":"#DIV/0!"}]
[null,null,null,null,null,null,{"$error":"#DIV/0!"},"no",null,{"$error":"#DIV/0!"},null,{"$error":"#DIV/0!"}]
[null,null,null,null,null,null,{"$error":"#DIV/0!"},"no",null,{"$error":"#DIV/0!"},null,{"$error":"#DIV/0!"}]
[null,null,null,null,null,null,{"$error":"#DIV/0!"},"no",null,{"$error":"#DIV/0!"},null,{"$error":"#DIV/0!"}]
[null,null,null,null,null,null,{"$error":"#DIV/0!"},"no",null,{"$error":"#DIV/0!"},null,{"$error":"#DIV/0!"}]
[null,null,null,null,null,null,{"$error":"#DIV/0!"},"no",null,{"$error":"#DIV/0!"},null,{"$f":"IF(J203=-600,\"Refer to Note (1) of Table 3.50 C1 or 3.53 C1\",\" \")","v":{"$error":"#DIV/0!"}}]
[null,null,null,null,null,null,{"$f":"ROUND(AVERAGE(E204:F204),2)","v":{"$error":"#DIV/0!"}},"no",null,{"$f":"IF(I204=\"SI\",IF(H204=\"yes\",\"Excluded Area\",IF(G204<0.55,250,IF(G204<0.71,150,IF(G204<1.01,0,IF(G204<1.51,(800-900*G204),-600))))),IF(I204=\"SII\",IF(H204=\"yes\",\"Excluded Area\",IF(G204<0.55,250,IF(G204<0.81,150, IF(G204<1.16,0, IF(G204<1.51,(1380-1230*G204),-600))))),IF(H204=\"yes\",\"Excluded Area\",IF(G204<0.55,250,IF(G204<0.81,150, IF(G204<1.51,0, IF(G204<=1.8,(730-540*G204),-600)))))))","v":{"$error":"#DIV/0!"}},null,{"$error":"#DIV/0!"}]
[null,null,null,null,null,null,{"$error":"#DIV/0!"},"no",null,{"$error":"#DIV/0!"},null,{"$error":"#DIV/0!"}]
[null,null,null,null,null,null,{"$error":"#DIV/0!"},"no",null,{"$error":"#DIV/0!"},null,{"$error":"#DIV/0!"}]
[null,null,null,null,null,null,{"$error":"#DIV/0!"},"no",null,{"$error":"#DIV/0!"},null,{"$error":"#DIV/0!"}]
[null,null,null,null,null,null,{"$error":"#DIV/0!"},"no",null,{"$error":"#DIV/0!"},null,{"$error":"#DIV/0!"}]
[null,null,null,null,null,null,{"$error":"#DIV/0!"},"no",null,{"$error":"#DIV/0!"},null,{"$error":"#DIV/0!"}]
[null,null,null,null,null,null,{"$error":"#DIV/0!"},"no",null,{"$error":"#DIV/0!"},null,{"$error":"#DIV/0!"}]
[null,null,null,null,null,null,{"$error":"#DIV/0!"},"no",null,{"$error":"#DIV/0!"},null,{"$error":"#DIV/0!"}]
[null,null,null,null,null,null,{"$error":"#DIV/0!"},"no",null,{"$error":"#DIV/0!"},null,{"$error":"#DIV/0!"}]
[null,null,null,null,null,null,{"$error":"#DIV/0!"},"no",null,{"$error":"#DIV/0!"},null,{"$error":"#DIV/0!"}]
[null,null,null,null,null,null,{"$error":"#DIV/0!"},"no",null,{"$error":"#DIV/0!"},null,{"$error":"#DIV/0!"}]
[null,null,null,null,null,null,{"$error":"#DIV/0!"},"no",null,{"$error":"#DIV/0!"},null,{"$error":"#DIV/0!"}]
[null,null,null,null,null,null,{"$error":"#DIV/0!"},"no",null,{"$error":"#DIV/0!"},null,{"$error":"#DIV/0!"}]
[null,null,null,null,null,null,{"$error":"#DIV/0!"},"no",null,{"$error":"#DIV/0!"},null,{"$error":"#DIV/0!"}]
[null,null,null,null,null,null,{"$error":"#DIV/0!"},"no",null,{"$error":"#DIV/0!"},null,{"$error":"#DIV/0!"}]
[null,null,null,null,null,null,{"$error":"#DIV/0!"},"no",null,{"$error":"#DIV/0!"},null,{"$error":"#DIV/0!"}]
[null,null,null,null,null,null,{"$error":"#DIV/0!"},"no",null,{"$error":"#DIV/0!"},null,{"$error":"#DIV/0!"}]
[null,null,null,null,null,null,{"$error":"#DIV/0!"},"no",null,{"$error":"#DIV/0!"},null,{"$error":"#DIV/0!"}]
[null,null,null,null,null,null,{"$error":"#DIV/0!"},"no",null,{"$error":"#DIV/0!"},null,{"$error":"#DIV/0!"}]
[null,null,null,null,null,null,{"$error":"#DIV/0!"},"no",null,{"$error":"#DIV/0!"},null,{"$error":"#DIV/0!"}]
[null,null,null,null,null,null,{"$error":"#DIV/0!"},"no",null,{"$error":"#DIV/0!"},null,{"$error":"#DIV/0!"}]
[null,null,null,null,null,null,{"$error":"#DIV/0!"},"no",null,{"$error":"#DIV/0!"},null,{"$error":"#DIV/0!"}]
[null,null,null,null,null,null,{"$error":"#DIV/0!"},"no",null,{"$error":"#DIV/0!"},null,{"$error":"#DIV/0!"}]
[null,null,null,null,null,null,{"$error":"#DIV/0!"},"no",null,{"$error":"#DIV/0!"},null,{"$error":"#DIV/0!"}]
[null,null,null,null,null,null,{"$error":"#DIV/0!"},"no",null,{"$error":"#DIV/0!"},null,{"$error":"#DIV/0!"}]
[null,null,null,null,null,null,{"$error":"#DIV/0!"},"no",null,{"$error":"#DIV/0!"},null,{"$error":"#DIV/0!"}]
[null,null,null,null,null,null,{"$error":"#DIV/0!"},"no",null,{"$error":"#DIV/0!"},null,{"$error":"#DIV/0!"}]
[null,null,null,null,null,null,{"$error":"#DIV/0!"},"no",null,{"$error":"#DIV/0!"},null,{"$error":"#DIV/0!"}]
[null,null,null,null,null,null,{"$error":"#DIV/0!"},"no",null,{"$error":"#DIV/0!"},null,{"$error":"#DIV/0!"}]
[null,null,null,null,null,null,{"$error":"#DIV/0!"},"no",null,{"$error":"#DIV/0!"},null,{"$error":"#DIV/0!"}]
[null,null,null,null,null,null,{"$error":"#DIV/0!"},"no",null,{"$error":"#DIV/0!"},null,{"$error":"#DIV/0!"}]
[null,null,null,null,null,null,{"$error":"#DIV/0!"},"no",null,{"$error":"#DIV/0!"},null,{"$error":"#DIV/0!"}]
[null,null,null,null,null,null,{"$error":"#DIV/0!"},"no",null,{"$error":"#DIV/0!"},null,{"$error":"#DIV/0!"}]
[null,null,null,null,null,null,{"$error":"#DIV/0!"},"no",null,{"$error":"#DIV/0!"},null,{"$error":"#DIV/0!"}]
[null,null,null,null,null,null,{"$error":"#DIV/0!"},"no",null,{"$error":"#DIV/0!"},null,{"$error":"#DIV/0!"}]
[null,null,null,null,null,null,{"$error":"#DIV/0!"},"no",null,{"$error":"#DIV/0!"},null,{"$error":"#DIV/0!"}]
[null,null,null,null,null,null,{"$error":"#DIV/0!"},"no",null,{"$error":"#DIV/0!"},null,{"$error":"#DIV/0!"}]
[null,null,null,null,null,null,{"$error":"#DIV/0!"},"no",null,{"$error":"#DIV/0!"},null,{"$error":"#DIV/0!"}]
[null,null,null,null,null,null,{"$error":"#DIV/0!"},"no",null,{"$error":"#DIV/0!"},null,{"$error":"#DIV/0!"}]
[null,null,null,null,null,null,{"$error":"#DIV/0!"},"no",null,{"$error":"#DIV/0!"},null,{"$error":"#DIV/0!"}]
[null,null,null,null,null,null,{"$error":"#DIV/0!"},"no",null,{"$error":"#DIV/0!"},null,{"$error":"#DIV/0!"}]
[null,null,null,null,null,null,{"$error":"#DIV/0!"},"no",null,{"$error":"#DIV/0!"},null,{"$error":"#DIV/0!"}]
[null,null,null,null,null,null,{"$error":"#DIV/0!"},"no",null,{"$error":"#DIV/0!"},null,{"$error":"#DIV/0!"}]
[null,null,null,null,null,null,{"$error":"#DIV/0!"},"no",null,{"$error":"#DIV/0!"},null,{"$error":"#DIV/0!"}]
[null,null,null,null,null,null,{"$error":"#DIV/0!"},"no",null,{"$error":"#DIV/0!"},null,{"$error":"#DIV/0!"}]
[null,null,null,null,null,null,{"$error":"#DIV/0!"},"no",null,{"$error":"#DIV/0!"},null,{"$error":"#DIV/0!"}]
[null,null,null,null,null,null,{"$error":"#DIV/0!"},"no",null,{"$error":"#DIV/0!"},null,{"$error":"#DIV/0!"}]
[null,null,null,null,null,null,{"$error":"#DIV/0!"},"no",null,{"$error":"#DIV/0!"},null,{"$error":"#DIV/0!"}]
[null,null,null,null,null,null,{"$error":"#DIV/0!"},"no",null,{"$error":"#DIV/0!"},null,{"$error":"#DIV/0!"}]
[null,null,null,null,null,null,{"$error":"#DIV/0!"},"no",null,{"$error":"#DIV/0!"},null,{"$error":"#DIV/0!"}]
[null,null,null,null,null,null,{"$error":"#DIV/0!"},"no",null,{"$error":"#DIV/0!"},null,{"$error":"#DIV/0!"}]
[null,null,null,null,null,null,{"$error":"#DIV/0!"},"no",null,{"$error":"#DIV/0!"},null,{"$error":"#DIV/0!"}]
[null,null,null,null,null,null,{"$error":"#DIV/0!"},"no",null,{"$error":"#DIV/0!"},null,{"$error":"#DIV/0!"}]
[null,null,null,null,null,null,{"$error":"#DIV/0!"},"no",null,{"$error":"#DIV/0!"},null,{"$error":"#DIV/0!"}]
[null,null,null,null,null,null,{"$error":"#DIV/0!"},"no",null,{"$error":"#DIV/0!"},null,{"$error":"#DIV/0!"}]
[null,null,null,null,null,null,{"$error":"#DIV/0!"},"no",null,{"$error":"#DIV/0!"},null,{"$error":"#DIV/0!"}]
[null,null,null,null,null,null,{"$error":"#DIV/0!"},"no",null,{"$error":"#DIV/0!"},null,{"$error":"#DIV/0!"}]
[null,null,null,null,null,null,{"$error":"#DIV/0!"},"no",null,{"$error":"#DIV/0!"},null,{"$error":"#DIV/0!"}]
[null,null,null,null,null,null,{"$error":"#DIV/0!"},"no",null,{"$error":"#DIV/0!"},null,{"$error":"#DIV/0!"}]
[null,null,null,null,null,null,{"$error":"#DIV/0!"},"no",null,{"$error":"#DIV/0!"},null,{"$error":"#DIV/0!"}]
[null,null,null,null,null,null,{"$error":"#DIV/0!"},"no",null,{"$error":"#DIV/0!"},null,{"$error":"#DIV/0!"}]
[null,null,null,null,null,null,{"$error":"#DIV/0!"},"no",null,{"$error":"#DIV/0!"},null,{"$error":"#DIV/0!"}]
[null,null,null,null,null,null,{"$error":"#DIV/0!"},"no",null,{"$error":"#DIV/0!"},null,{"$error":"#DIV/0!"}]
[null,null,null,null,null,null,{"$error":"#DIV/0!"},"no",null,{"$error":"#DIV/0!"},null,{"$f":"IF(J267=-600,\"Refer to Note (1) of Table 3.50 C1 or 3.53 C1\",\" \")","v":{"$error":"#DIV/0!"}}]
[null,null,null,null,null,null,{"$f":"ROUND(AVERAGE(E268:F268),2)","v":{"$error":"#DIV/0!"}},"no",null,{"$f":"IF(I268=\"SI\",IF(H268=\"yes\",\"Excluded Area\",IF(G268<0.55,250,IF(G268<0.71,150,IF(G268<1.01,0,IF(G268<1.51,(800-900*G268),-600))))),IF(I268=\"SII\",IF(H268=\"yes\",\"Excluded Area\",IF(G268<0.55,250,IF(G268<0.81,150, IF(G268<1.16,0, IF(G268<1.51,(1380-1230*G268),-600))))),IF(H268=\"yes\",\"Excluded Area\",IF(G268<0.55,250,IF(G268<0.81,150, IF(G268<1.51,0, IF(G268<=1.8,(730-540*G268),-600)))))))","v":{"$error":"#DIV/0!"}},null,{"$error":"#DIV/0!"}]
[null,null,null,null,null,null,{"$error":"#DIV/0!"},"no",null,{"$error":"#DIV/0!"},null,{"$error":"#DIV/0!"}]
[null,null,null,null,null,null,{"$error":"#DIV/0!"},"no",null,{"$error":"#DIV/0!"},null,{"$error":"#DIV/0!"}]
[null,null,null,null,null,null,{"$error":"#DIV/0!"},"no",null,{"$error":"#DIV/0!"},null,{"$error":"#DIV/0!"}]
[null,null,null,null,null,null,{"$error":"#DIV/0!"},"no",null,{"$error":"#DIV/0!"},null,{"$error":"#DIV/0!"}]
[null,null,null,null,null,null,{"$error":"#DIV/0!"},"no",null,{"$error":"#DIV/0!"},null,{"$error":"#DIV/0!"}]
[null,null,null,null,null,null,{"$error":"#DIV/0!"},"no",null,{"$error":"#DIV/0!"},null,{"$error":"#DIV/0!"}]
[null,null,null,null,null,null,{"$error":"#DIV/0!"},"no",null,{"$error":"#DIV/0!"},null,{"$error":"#DIV/0!"}]
[null,null,null,null,null,null,{"$error":"#DIV/0!"},"no",null,{"$error":"#DIV/0!"},null,{"$error":"#DIV/0!"}]
[null,null,null,null,null,null,{"$error":"#DIV/0!"},"no",null,{"$error":"#DIV/0!"},null,{"$error":"#DIV/0!"}]
[null,null,null,null,null,null,{"$error":"#DIV/0!"},"no",null,{"$error":"#DIV/0!"},null,{"$error":"#DIV/0!"}]
[null,null,null,null,null,null,{"$error":"#DIV/0!"},"no",null,{"$error":"#DIV/0!"},null,{"$error":"#DIV/0!"}]
[null,null,null,null,null,null,{"$error":"#DIV/0!"},"no",null,{"$error":"#DIV/0!"},null,{"$error":"#DIV/0!"}]
[null,null,null,null,null,null,{"$error":"#DIV/0!"},"no",null,{"$error":"#DIV/0!"},null,{"$error":"#DIV/0!"}]
[null,null,null,null,null,null,{"$error":"#DIV/0!"},"no",null,{"$error":"#DIV/0!"},null,{"$error":"#DIV/0!"}]
[null,null,null,null,null,null,{"$error":"#DIV/0!"},"no",null,{"$error":"#DIV/0!"},null,{"$error":"#DIV/0!"}]
[null,null,null,null,null,null,{"$error":"#DIV/0!"},"no",null,{"$error":"#DIV/0!"},null,{"$error":"#DIV/0!"}]
[null,null,null,null,null,null,{"$error":"#DIV/0!"},"no",null,{"$error":"#DIV/0!"},null,{"$error":"#DIV/0!"}]
[null,null,null,null,null,null,{"$error":"#DIV/0!"},"no",null,{"$error":"#DIV/0!"},null,{"$error":"#DIV/0!"}]
[null,null,null,null,null,null,{"$error":"#DIV/0!"},"no",null,{"$error":"#DIV/0!"},null,{"$error":"#DIV/0!"}]
[null,null,null,null,null,null,{"$error":"#DIV/0!"},"no",null,{"$error":"#DIV/0!"},null,{"$error":"#DIV/0!"}]
[null,null,null,null,null,null,{"$error":"#DIV/0!"},"no",null,{"$error":"#DIV/0!"},null,{"$error":"#DIV/0!"}]
[null,null,null,null,null,null,{"$error":"#DIV/0!"},"no",null,{"$error":"#DIV/0!"},null,{"$error":"#DIV/0!"}]
[null,null,null,null,null,null,{"$error":"#DIV/0!"},"no",null,{"$error":"#DIV/0!"},null,{"$error":"#DIV/0!"}]
[null,null,null,null,null,null,{"$error":"#DIV/0!"},"no",null,{"$error":"#DIV/0!"},null,{"$error":"#DIV/0!"}]
[null,null,null,null,null,null,{"$error":"#DIV/0!"},"no",null,{"$error":"#DIV/0!"},null,{"$error":"#DIV/0!"}]
[null,null,null,null,null,null,{"$error":"#DIV/0!"},"no",null,{"$error":"#DIV/0!"},null,{"$error":"#DIV/0!"}]
[null,null,null,null,null,null,{"$error":"#DIV/0!"},"no",null,{"$error":"#DIV/0!"},null,{"$error":"#DIV/0!"}]
[null,null,null,null,null,null,{"$error":"#DIV/0!"},"no",null,{"$error":"#DIV/0!"},null,{"$error":"#DIV/0!"}]
[null,null,null,null,null,null,{"$error":"#DIV/0!"},"no",null,{"$error":"#DIV/0!"},null,{"$error":"#DIV/0!"}]
[null,null,null,null,null,null,{"$error":"#DIV/0!"},"no",null,{"$error":"#DIV/0!"},null,{"$error":"#DIV/0!"}]
[null,null,null,null,null,null,{"$error":"#DIV/0!"},"no",null,{"$error":"#DIV/0!"},null,{"$error":"#DIV/0!"}]
[null,null,null,null,null,null,{"$error":"#DIV/0!"},"no",null,{"$error":"#DIV/0!"},null,{"$error":"#DIV/0!"}]
[null,null,null,null,null,null,{"$error":"#DIV/0!"},"no",null,{"$error":"#DIV/0!"},null,{"$error":"#DIV/0!"}]
[null,null,null,null,null,null,{"$error":"#DIV/0!"},"no",null,{"$error":"#DIV/0!"},null,{"$error":"#DIV/0!"}]
[null,null,null,null,null,null,{"$error":"#DIV/0!"},"no",null,{"$error":"#DIV/0!"},null,{"$error":"#DIV/0!"}]
[null,null,null,null,null,null,{"$error":"#DIV/0!"},"no",null,{"$error":"#DIV/0!"},null,{"$error":"#DIV/0!"}]
[null,null,null,null,null,null,{"$error":"#DIV/0!"},"no",null,{"$error":"#DIV/0!"},null,{"$error":"#DIV/0!"}]
[null,null,null,null,null,null,{"$error":"#DIV/0!"},"no",null,{"$error":"#DIV/0!"},null,{"$error":"#DIV/0!"}]
[null,null,null,null,null,null,{"$error":"#DIV/0!"},"no",null,{"$error":"#DIV/0!"},null,{"$error":"#DIV/0!"}]
[null,null,null,null,null,null,{"$error":"#DIV/0!"},"no",null,{"$error":"#DIV/0!"},null,{"$error":"#DIV/0!"}]
[null,null,null,null,null,null,{"$error":"#DIV/0!"},"no",null,{"$error":"#DIV/0!"},null,{"$error":"#DIV/0!"}]
[null,null,null,null,null,null,{"$error":"#DIV/0!"},"no",null,{"$error":"#DIV/0!"},null,{"$error":"#DIV/0!"}]
[null,null,null,null,null,null,{"$error":"#DIV/0!"},"no",null,{"$error":"#DIV/0!"},null,{"$error":"#DIV/0!"}]
[null,null,null,null,null,null,{"$error":"#DIV/0!"},"no",null,{"$error":"#DIV/0!"},null,{"$error":"#DIV/0!"}]
[null,null,null,null,null,null,{"$error":"#DIV/0!"},"no",null,{"$error":"#DIV/0!"},null,{"$error":"#DIV/0!"}]
[null,null,null,null,null,null,{"$error":"#DIV/0!"},"no",null,{"$error":"#DIV/0!"},null,{"$error":"#DIV/0!"}]
[null,null,null,null,null,null,{"$error":"#DIV/0!"},"no",null,{"$error":"#DIV/0!"},null,{"$error":"#DIV/0!"}]
[null,null,null,null,null,null,{"$error":"#DIV/0!"},"no",null,{"$error":"#DIV/0!"},null,{"$error":"#DIV/0!"}]
[null,null,null,null,null,null,{"$error":"#DIV/0!"},"no",null,{"$error":"#DIV/0!"},null,{"$error":"#DIV/0!"}]
[null,null,null,null,null,null,{"$error":"#DIV/0!"},"no",null,{"$error":"#DIV/0!"},null,{"$error":"#DIV/0!"}]
[null,null,null,null,null,null,{"$error":"#DIV/0!"},"no",null,{"$error":"#DIV/0!"},null,{"$error":"#DIV/0!"}]
[null,null,null,null,null,null,{"$error":"#DIV/0!"},"no",null,{"$error":"#DIV/0!"},null,{"$error":"#DIV/0!"}]
[null,null,null,null,null,null,{"$error":"#DIV/0!"},"no",null,{"$error":"#DIV/0!"},null,{"$error":"#DIV/0!"}]
[null,null,null,null,null,null,{"$error":"#DIV/0!"},"no",null,{"$error":"#DIV/0!"},null,{"$error":"#DIV/0!"}]
[null,null,null,null,null,null,{"$error":"#DIV/0!"},"no",null,{"$error":"#DIV/0!"},null,{"$error":"#DIV/0!"}]
[null,null,null,null,null,null,{"$error":"#DIV/0!"},"no",null,{"$error":"#DIV/0!"},null,{"$error":"#DIV/0!"}]
[null,null,null,null,null,null,{"$error":"#DIV/0!"},"no",null,{"$error":"#DIV/0!"},null,{"$error":"#DIV/0!"}]
[null,null,null,null,null,null,{"$error":"#DIV/0!"},"no",null,{"$error":"#DIV/0!"},null,{"$error":"#DIV/0!"}]
[null,null,null,null,null,null,{"$error":"#DIV/0!"},"no",null,{"$error":"#DIV/0!"},null,{"$error":"#DIV/0!"}]
[null,null,null,null,null,null,{"$error":"#DIV/0!"},"no",null,{"$error":"#DIV/0!"},null,{"$error":"#DIV/0!"}]
[null,null,null,null,null,null,{"$error":"#DIV/0!"},"no",null,{"$error":"#DIV/0!"},null,{"$error":"#DIV/0!"}]
[null,null,null,null,null,null,{"$error":"#DIV/0!"},"no",null,{"$error":"#DIV/0!"},null,{"$error":"#DIV/0!"}]
[null,null,null,null,null,null,{"$error":"#DIV/0!"},"no",null,{"$error":"#DIV/0!"},null,{"$f":"IF(J331=-600,\"Refer to Note (1) of Table 3.50 C1 or 3.53 C1\",\" \")","v":{"$error":"#DIV/0!"}}]
[null,null,null,null,null,null,{"$f":"ROUND(AVERAGE(E332:F332),2)","v":{"$error":"#DIV/0!"}},"no",null,{"$f":"IF(I332=\"SI\",IF(H332=\"yes\",\"Excluded Area\",IF(G332<0.55,250,IF(G332<0.71,150,IF(G332<1.01,0,IF(G332<1.51,(800-900*G332),-600))))),IF(I332=\"SII\",IF(H332=\"yes\",\"Excluded Area\",IF(G332<0.55,250,IF(G332<0.81,150, IF(G332<1.16,0, IF(G332<1.51,(1380-1230*G332),-600))))),IF(H332=\"yes\",\"Excluded Area\",IF(G332<0.55,250,IF(G332<0.81,150, IF(G332<1.51,0, IF(G332<=1.8,(730-540*G332),-600)))))))","v":{"$error":"#DIV/0!"}},null,{"$error":"#DIV/0!"}]
[null,null,null,null,null,null,{"$error":"#DIV/0!"},"no",null,{"$error":"#DIV/0!"},null,{"$error":"#DIV/0!"}]
[null,null,null,null,null,null,{"$error":"#DIV/0!"},"no",null,{"$error":"#DIV/0!"},null,{"$error":"#DIV/0!"}]
[null,null,null,null,null,null,{"$error":"#DIV/0!"},"no",null,{"$error":"#DIV/0!"},null,{"$error":"#DIV/0!"}]
[null,null,null,null,null,null,{"$error":"#DIV/0!"},"no",null,{"$error":"#DIV/0!"},null,{"$error":"#DIV/0!"}]
[null,null,null,null,null,null,{"$error":"#DIV/0!"},"no",null,{"$error":"#DIV/0!"},null,{"$error":"#DIV/0!"}]
[null,null,null,null,null,null,{"$error":"#DIV/0!"},"no",null,{"$error":"#DIV/0!"},null,{"$error":"#DIV/0!"}]
[null,null,null,null,null,null,{"$error":"#DIV/0!"},"no",null,{"$error":"#DIV/0!"},null,{"$error":"#DIV/0!"}]
[null,null,null,null,null,null,{"$error":"#DIV/0!"},"no",null,{"$error":"#DIV/0!"},null,{"$error":"#DIV/0!"}]
[null,null,null,null,null,null,{"$error":"#DIV/0!"},"no",null,{"$error":"#DIV/0!"},null,{"$error":"#DIV/0!"}]
[null,null,null,null,null,null,{"$error":"#DIV/0!"},"no",null,{"$error":"#DIV/0!"},null,{"$error":"#DIV/0!"}]
[null,null,null,null,null,null,{"$error":"#DIV/0!"},"no",null,{"$error":"#DIV/0!"},null,{"$error":"#DIV/0!"}]
[null,null,null,null,null,null,{"$error":"#DIV/0!"},"no",null,{"$error":"#DIV/0!"},null,{"$error":"#DIV/0!"}]
[null,null,null,null,null,null,{"$error":"#DIV/0!"},"no",null,{"$error":"#DIV/0!"},null,{"$error":"#DIV/0!"}]
[null,null,null,null,null,null,{"$error":"#DIV/0!"},"no",null,{"$error":"#DIV/0!"},null,{"$error":"#DIV/0!"}]
[null,null,null,null,null,null,{"$error":"#DIV/0!"},"no",null,{"$error":"#DIV/0!"},null,{"$error":"#DIV/0!"}]
[null,null,null,null,null,null,{"$error":"#DIV/0!"},"no",null,{"$error":"#DIV/0!"},null,{"$error":"#DIV/0!"}]
[null,null,null,null,null,null,{"$error":"#DIV/0!"},"no",null,{"$error":"#DIV/0!"},null,{"$error":"#DIV/0!"}]
[null,null,null,null,null,null,{"$error":"#DIV/0!"},"no",null,{"$error":"#DIV/0!"},null,{"$error":"#DIV/0!"}]
[null,null,null,null,null,null,{"$error":"#DIV/0!"},"no",null,{"$error":"#DIV/0!"},null,{"$error":"#DIV/0!"}]
[null,null,null,null,null,null,{"$error":"#DIV/0!"},"no",null,{"$error":"#DIV/0!"},null,{"$error":"#DIV/0!"}]
[null,null,null,null,null,null,{"$error":"#DIV/0!"},"no",null,{"$error":"#DIV/0!"},null,{"$error":"#DIV/0!"}]
[null,null,null,null,null,null,{"$error":"#DIV/0!"},"no",null,{"$error":"#DIV/0!"},null,{"$error":"#DIV/0!"}]
[null,null,null,null,null,null,{"$error":"#DIV/0!"},"no",null,{"$error":"#DIV/0!"},null,{"$error":"#DIV/0!"}]
[null,null,null,null,null,null,{"$error":"#DIV/0!"},"no",null,{"$error":"#DIV/0!"},null,{"$error":"#DIV/0!"}]
[null,null,null,null,null,null,{"$error":"#DIV/0!"},"no",null,{"$error":"#DIV/0!"},null,{"$error":"#DIV/0!"}]
[null,null,null,null,null,null,{"$error":"#DIV/0!"},"no",null,{"$error":"#DIV/0!"},null,{"$error":"#DIV/0!"}]
[null,null,null,null,null,null,{"$error":"#DIV/0!"},"no",null,{"$error":"#DIV/0!"},null,{"$error":"#DIV/0!"}]
[null,null,null,null,null,null,{"$error":"#DIV/0!"},"no",null,{"$error":"#DIV/0!"},null,{"$error":"#DIV/0!"}]
[null,null,null,null,null,null,{"$error":"#DIV/0!"},"no",null,{"$error":"#DIV/0!"},null,{"$error":"#DIV/0!"}]
[null,null,null,null,null,null,{"$error":"#DIV/0!"},"no",null,{"$error":"#DIV/0!"},null,{"$error":"#DIV/0!"}]
[null,null,null,null,null,null,{"$error":"#DIV/0!"},"no",null,{"$error":"#DIV/0!"},null,{"$error":"#DIV/0!"}]
[null,null,null,null,null,null,{"$error":"#DIV/0!"},"no",null,{"$error":"#DIV/0!"},null,{"$error":"#DIV/0!"}]
[null,null,null,null,null,null,{"$error":"#DIV/0!"},"no",null,{"$error":"#DIV/0!"},null,{"$error":"#DIV/0!"}]
[null,null,null,null,null,null,{"$error":"#DIV/0!"},"no",null,{"$error":"#DIV/0!"},null,{"$error":"#DIV/0!"}]
[null,null,null,null,null,null,{"$error":"#DIV/0!"},"no",null,{"$error":"#DIV/0!"},null,{"$error":"#DIV/0!"}]
[null,null,null,null,null,null,{"$error":"#DIV/0!"},"no",null,{"$error":"#DIV/0!"},null,{"$error":"#DIV/0!"}]
[null,null,null,null,null,null,{"$error":"#DIV/0!"},"no",null,{"$error":"#DIV/0!"},null,{"$error":"#DIV/0!"}]
[null,null,null,null,null,null,{"$error":"#DIV/0!"},"no",null,{"$error":"#DIV/0!"},null,{"$error":"#DIV/0!"}]
[null,null,null,null,null,null,{"$error":"#DIV/0!"},"no",null,{"$error":"#DIV/0!"},null,{"$error":"#DIV/0!"}]
[null,null,null,null,null,null,{"$error":"#DIV/0!"},"no",null,{"$error":"#DIV/0!"},null,{"$error":"#DIV/0!"}]
[null,null,null,null,null,null,{"$error":"#DIV/0!"},"no",null,{"$error":"#DIV/0!"},null,{"$error":"#DIV/0!"}]
[null,null,null,null,null,null,{"$error":"#DIV/0!"},"no",null,{"$error":"#DIV/0!"},null,{"$error":"#DIV/0!"}]
[null,null,null,null,null,null,{"$error":"#DIV/0!"},"no",null,{"$error":"#DIV/0!"},null,{"$error":"#DIV/0!"}]
[null,null,null,null,null,null,{"$error":"#DIV/0!"},"no",null,{"$error":"#DIV/0!"},null,{"$error":"#DIV/0!"}]
[null,null,null,null,null,null,{"$error":"#DIV/0!"},"no",null,{"$error":"#DIV/0!"},null,{"$error":"#DIV/0!"}]
[null,null,null,null,null,null,{"$error":"#DIV/0!"},"no",null,{"$error":"#DIV/0!"},null,{"$error":"#DIV/0!"}]
[null,null,null,null,null,null,{"$error":"#DIV/0!"},"no",null,{"$error":"#DIV/0!"},null,{"$error":"#DIV/0!"}]
[null,null,null,null,null,null,{"$error":"#DIV/0!"},"no",null,{"$error":"#DIV/0!"},null,{"$error":"#DIV/0!"}]
[null,null,null,null,null,null,{"$error":"#DIV/0!"},"no",null,{"$error":"#DIV/0!"},null,{"$error":"#DIV/0!"}]
[null,null,null,null,null,null,{"$error":"#DIV/0!"},"no",null,{"$error":"#DIV/0!"},null,{"$error":"#DIV/0!"}]
[null,null,null,null,null,null,{"$error":"#DIV/0!"},"no",null,{"$error":"#DIV/0!"},null,{"$error":"#DIV/0!"}]
[null,null,null,null,null,null,{"$error":"#DIV/0!"},"no",null,{"$error":"#DIV/0!"},null,{"$error":"#DIV/0!"}]
[null,null,null,null,null,null,{"$error":"#DIV/0!"},"no",null,{"$error":"#DIV/0!"},null,{"$error":"#DIV/0!"}]
[null,null,null,null,null,null,{"$error":"#DIV/0!"},"no",null,{"$error":"#DIV/0!"},null,{"$error":"#DIV/0!"}]
[null,null,null,null,null,null,{"$error":"#DIV/0!"},"no",null,{"$error":"#DIV/0!"},null,{"$error":"#DIV/0!"}]
[null,null,null,null,null,null,{"$error":"#DIV/0!"},"no",null,{"$error":"#DIV/0!"},null,{"$error":"#DIV/0!"}]
[null,null,null,null,null,null,{"$error":"#DIV/0!"},"no",null,{"$error":"#DIV/0!"},null,{"$error":"#DIV/0!"}]
[null,null,null,null,null,null,{"$error":"#DIV/0!"},"no",null,{"$error":"#DIV/0!"},null,{"$error":"#DIV/0!"}]
[null,null,null,null,null,null,{"$error":"#DIV/0!"},"no",null,{"$error":"#DIV/0!"},null,{"$error":"#DIV/0!"}]
[null,null,null,null,null,null,{"$error":"#DIV/0!"},"no",null,{"$error":"#DIV/0!"},null,{"$error":"#DIV/0!"}]
[null,null,null,null,null,null,{"$error":"#DIV/0!"},"no",null,{"$error":"#DIV/0!"},null,{"$error":"#DIV/0!"}]
[null,null,null,null,null,null,{"$error":"#DIV/0!"},"no",null,{"$error":"#DIV/0!"},null,{"$error":"#DIV/0!"}]
[null,null,null,null,null,null,{"$error":"#DIV/0!"},"no",null,{"$error":"#DIV/0!"},null,{"$f":"IF(J395=-600,\"Refer to Note (1) of Table 3.50 C1 or 3.53 C1\",\" \")","v":{"$error":"#DIV/0!"}}]
[null,null,null,null,null,null,{"$f":"ROUND(AVERAGE(E396:F396),2)","v":{"$error":"#DIV/0!"}},"no",null,{"$f":"IF(I396=\"SI\",IF(H396=\"yes\",\"Excluded Area\",IF(G396<0.55,250,IF(G396<0.71,150,IF(G396<1.01,0,IF(G396<1.51,(800-900*G396),-600))))),IF(I396=\"SII\",IF(H396=\"yes\",\"Excluded Area\",IF(G396<0.55,250,IF(G396<0.81,150, IF(G396<1.16,0, IF(G396<1.51,(1380-1230*G396),-600))))),IF(H396=\"yes\",\"Excluded Area\",IF(G396<0.55,250,IF(G396<0.81,150, IF(G396<1.51,0, IF(G396<=1.8,(730-540*G396),-600)))))))","v":{"$error":"#DIV/0!"}},null,{"$error":"#DIV/0!"}]
[null,null,null,null,null,null,{"$error":"#DIV/0!"},"no",null,{"$error":"#DIV/0!"},null,{"$error":"#DIV/0!"}]
[null,null,null,null,null,null,{"$error":"#DIV/0!"},"no",null,{"$error":"#DIV/0!"},null,{"$error":"#DIV/0!"}]
[null,null,null,null,null,null,{"$error":"#DIV/0!"},"no",null,{"$error":"#DIV/0!"},null,{"$error":"#DIV/0!"}]
[null,null,null,null,null,null,{"$error":"#DIV/0!"},"no",null,{"$error":"#DIV/0!"},null,{"$error":"#DIV/0!"}]
[null,null,null,null,null,null,{"$error":"#DIV/0!"},"no",null,{"$error":"#DIV/0!"},null,{"$error":"#DIV/0!"}]
[null,null,null,null,null,null,{"$error":"#DIV/0!"},"no",null,{"$error":"#DIV/0!"},null,{"$error":"#DIV/0!"}]
[null,null,null,null,null,null,{"$error":"#DIV/0!"},"no",null,{"$error":"#DIV/0!"},null,{"$error":"#DIV/0!"}]
[null,null,null,null,null,null,{"$error":"#DIV/0!"},"no",null,{"$error":"#DIV/0!"},null,{"$error":"#DIV/0!"}]
[null,null,null,null,null,null,{"$error":"#DIV/0!"},"no",null,{"$error":"#DIV/0!"},null,{"$error":"#DIV/0!"}]
[null,null,null,null,null,null,{"$error":"#DIV/0!"},"no",null,{"$error":"#DIV/0!"},null,{"$error":"#DIV/0!"}]
[null,null,null,null,null,null,{"$error":"#DIV/0!"},"no",null,{"$error":"#DIV/0!"},null,{"$error":"#DIV/0!"}]
[null,null,null,null,null,null,{"$error":"#DIV/0!"},"no",null,{"$error":"#DIV/0!"},null,{"$error":"#DIV/0!"}]
[null,null,null,null,null,null,{"$error":"#DIV/0!"},"no",null,{"$error":"#DIV/0!"},null,{"$error":"#DIV/0!"}]
[null,null,null,null,null,null,{"$error":"#DIV/0!"},"no",null,{"$error":"#DIV/0!"},null,{"$error":"#DIV/0!"}]
[null,null,null,null,null,null,{"$error":"#DIV/0!"},"no",null,{"$error":"#DIV/0!"},null,{"$error":"#DIV/0!"}]
[null,null,null,null,null,null,{"$error":"#DIV/0!"},"no",null,{"$error":"#DIV/0!"},null,{"$error":"#DIV/0!"}]
[null,null,null,null,null,null,{"$error":"#DIV/0!"},"no",null,{"$error":"#DIV/0!"},null,{"$error":"#DIV/0!"}]
[null,null,null,null,null,null,{"$error":"#DIV/0!"},"no",null,{"$error":"#DIV/0!"},null,{"$error":"#DIV/0!"}]
[null,null,null,null,null,null,{"$error":"#DIV/0!"},"no",null,{"$error":"#DIV/0!"},null,{"$error":"#DIV/0!"}]
[null,null,null,null,null,null,{"$error":"#DIV/0!"},"no",null,{"$error":"#DIV/0!"},null,{"$error":"#DIV/0!"}]
[null,null,null,null,null,null,{"$error":"#DIV/0!"},"no",null,{"$error":"#DIV/0!"},null,{"$error":"#DIV/0!"}]
[null,null,null,null,null,null,{"$error":"#DIV/0!"},"no",null,{"$error":"#DIV/0!"},null,{"$error":"#DIV/0!"}]
[null,null,null,null,null,null,{"$error":"#DIV/0!"},"no",null,{"$error":"#DIV/0!"},null,{"$error":"#DIV/0!"}]
[null,null,null,null,null,null,{"$error":"#DIV/0!"},"no",null,{"$error":"#DIV/0!"},null,{"$error":"#DIV/0!"}]
[null,null,null,null,null,null,{"$error":"#DIV/0!"},"no",null,{"$error":"#DIV/0!"},null,{"$error":"#DIV/0!"}]
[null,null,null,null,null,null,{"$error":"#DIV/0!"},"no",null,{"$error":"#DIV/0!"},null,{"$error":"#DIV/0!"}]
[null,null,null,null,null,null,{"$error":"#DIV/0!"},"no",null,{"$error":"#DIV/0!"},null,{"$error":"#DIV/0!"}]
[null,null,null,null,null,null,{"$error":"#DIV/0!"},"no",null,{"$error":"#DIV/0!"},null,{"$error":"#DIV/0!"}]
[null,null,null,null,null,null,{"$error":"#DIV/0!"},"no",null,{"$error":"#DIV/0!"},null,{"$error":"#DIV/0!"}]
[null,null,null,null,null,null,{"$error":"#DIV/0!"},"no",null,{"$error":"#DIV/0!"},null,{"$error":"#DIV/0!"}]
[null,null,null,null,null,null,{"$error":"#DIV/0!"},"no",null,{"$error":"#DIV/0!"},null,{"$error":"#DIV/0!"}]
[null,null,null,null,null,null,{"$error":"#DIV/0!"},"no",null,{"$error":"#DIV/0!"},null,{"$error":"#DIV/0!"}]
[null,null,null,null,null,null,{"$error":"#DIV/0!"},"no",null,{"$error":"#DIV/0!"},null,{"$error":"#DIV/0!"}]
[null,null,null,null,null,null,{"$error":"#DIV/0!"},"no",null,{"$error":"#DIV/0!"},null,{"$error":"#DIV/0!"}]
[null,null,null,null,null,null,{"$error":"#DIV/0!"},"no",null,{"$error":"#DIV/0!"},null,{"$error":"#DIV/0!"}]
[null,null,null,null,null,null,{"$error":"#DIV/0!"},"no",null,{"$error":"#DIV/0!"},null,{"$error":"#DIV/0!"}]
[null,null,null,null,null,null,{"$error":"#DIV/0!"},"no",null,{"$error":"#DIV/0!"},null,{"$error":"#DIV/0!"}]
[null,null,null,null,null,null,{"$error":"#DIV/0!"},"no",null,{"$error":"#DIV/0!"},null,{"$error":"#DIV/0!"}]
[null,null,null,null,null,null,{"$error":"#DIV/0!"},"no",null,{"$error":"#DIV/0!"},null,{"$error":"#DIV/0!"}]
[null,null,null,null,null,null,{"$error":"#DIV/0!"},"no",null,{"$error":"#DIV/0!"},null,{"$error":"#DIV/0!"}]
[null,null,null,null,null,null,{"$error":"#DIV/0!"},"no",null,{"$error":"#DIV/0!"},null,{"$error":"#DIV/0!"}]
[null,null,null,null,null,null,{"$error":"#DIV/0!"},"no",null,{"$error":"#DIV/0!"},null,{"$error":"#DIV/0!"}]
[null,null,null,null,null,null,{"$error":"#DIV/0!"},"no",null,{"$error":"#DIV/0!"},null,{"$error":"#DIV/0!"}]
[null,null,null,null,null,null,{"$error":"#DIV/0!"},"no",null,{"$error":"#DIV/0!"},null,{"$error":"#DIV/0!"}]
[null,null,null,null,null,null,{"$error":"#DIV/0!"},"no",null,{"$error":"#DIV/0!"},null,{"$error":"#DIV/0!"}]
[null,null,null,null,null,null,{"$error":"#DIV/0!"},"no",null,{"$error":"#DIV/0!"},null,{"$error":"#DIV/0!"}]
[null,null,null,null,null,null,{"$error":"#DIV/0!"},"no",null,{"$error":"#DIV/0!"},null,{"$error":"#DIV/0!"}]
[null,null,null,null,null,null,{"$error":"#DIV/0!"},"no",null,{"$error":"#DIV/0!"},null,{"$error":"#DIV/0!"}]
[null,null,null,null,null,null,{"$error":"#DIV/0!"},"no",null,{"$error":"#DIV/0!"},null,{"$error":"#DIV/0!"}]
[null,null,null,null,null,null,{"$error":"#DIV/0!"},"no",null,{"$error":"#DIV/0!"},null,{"$error":"#DIV/0!"}]
[null,null,null,null,null,null,{"$error":"#DIV/0!"},"no",null,{"$error":"#DIV/0!"},null,{"$error":"#DIV/0!"}]
[null,null,null,null,null,null,{"$error":"#DIV/0!"},"no",null,{"$error":"#DIV/0!"},null,{"$error":"#DIV/0!"}]
[null,null,null,null,null,null,{"$error":"#DIV/0!"},"no",null,{"$error":"#DIV/0!"},null,{"$error":"#DIV/0!"}]
[null,null,null,null,null,null,{"$error":"#DIV/0!"},"no",null,{"$error":"#DIV/0!"},null,{"$error":"#DIV/0!"}]
[null,null,null,null,null,null,{"$error":"#DIV/0!"},"no",null,{"$error":"#DIV/0!"},null,{"$error":"#DIV/0!"}]
[null,null,null,null,null,null,{"$error":"#DIV/0!"},"no",null,{"$error":"#DIV/0!"},null,{"$error":"#DIV/0!"}]
[null,null,null,null,null,null,{"$error":"#DIV/0!"},"no",null,{"$error":"#DIV/0!"},null,{"$error":"#DIV/0!"}]
[null,null,null,null,null,null,{"$error":"#DIV/0!"},"no",null,{"$error":"#DIV/0!"},null,{"$error":"#DIV/0!"}]
[null,null,null,null,null,null,{"$error":"#DIV/0!"},"no",null,{"$error":"#DIV/0!"},null,{"$error":"#DIV/0!"}]
[null,null,null,null,null,null,{"$error":"#DIV/0!"},"no",null,{"$error":"#DIV/0!"},null,{"$error":"#DIV/0!"}]
[null,null,null,null,null,null,{"$error":"#DIV/0!"},"no",null,{"$error":"#DIV/0!"},null,{"$error":"#DIV/0!"}]
[null,null,null,null,null,null,{"$error":"#DIV/0!"},"no",null,{"$error":"#DIV/0!"},null,{"$error":"#DIV/0!"}]
[null,null,null,null,null,null,{"$error":"#DIV/0!"},"no",null,{"$error":"#DIV/0!"},null,{"$f":"IF(J459=-600,\"Refer to Note (1) of Table 3.50 C1 or 3.53 C1\",\" \")","v":{"$error":"#DIV/0!"}}]
[null,null,null,null,null,null,{"$f":"ROUND(AVERAGE(E460:F460),2)","v":{"$error":"#DIV/0!"}},"no",null,{"$f":"IF(I460=\"SI\",IF(H460=\"yes\",\"Excluded Area\",IF(G460<0.55,250,IF(G460<0.71,150,IF(G460<1.01,0,IF(G460<1.51,(800-900*G460),-600))))),IF(I460=\"SII\",IF(H460=\"yes\",\"Excluded Area\",IF(G460<0.55,250,IF(G460<0.81,150, IF(G460<1.16,0, IF(G460<1.51,(1380-1230*G460),-600))))),IF(H460=\"yes\",\"Excluded Area\",IF(G460<0.55,250,IF(G460<0.81,150, IF(G460<1.51,0, IF(G460<=1.8,(730-540*G460),-600)))))))","v":{"$error":"#DIV/0!"}},null,{"$error":"#DIV/0!"}]
[null,null,null,null,null,null,{"$error":"#DIV/0!"},"no",null,{"$error":"#DIV/0!"},null,{"$error":"#DIV/0!"}]
[null,null,null,null,null,null,{"$error":"#DIV/0!"},"no",null,{"$error":"#DIV/0!"},null,{"$error":"#DIV/0!"}]
[null,null,null,null,null,null,{"$error":"#DIV/0!"},"no",null,{"$error":"#DIV/0!"},null,{"$error":"#DIV/0!"}]
[null,null,null,null,null,null,{"$error":"#DIV/0!"},"no",null,{"$error":"#DIV/0!"},null,{"$error":"#DIV/0!"}]
[null,null,null,null,null,null,{"$error":"#DIV/0!"},"no",null,{"$error":"#DIV/0!"},null,{"$error":"#DIV/0!"}]
[null,null,null,null,null,null,{"$error":"#DIV/0!"},"no",null,{"$error":"#DIV/0!"},null,{"$error":"#DIV/0!"}]
[null,null,null,null,null,null,{"$error":"#DIV/0!"},"no",null,{"$error":"#DIV/0!"},null,{"$error":"#DIV/0!"}]
[null,null,null,null,null,null,{"$error":"#DIV/0!"},"no",null,{"$error":"#DIV/0!"},null,{"$error":"#DIV/0!"}]
[null,null,null,null,null,null,{"$error":"#DIV/0!"},"no",null,{"$error":"#DIV/0!"},null,{"$error":"#DIV/0!"}]
[null,null,null,null,null,null,{"$error":"#DIV/0!"},"no",null,{"$error":"#DIV/0!"},null,{"$error":"#DIV/0!"}]
[null,null,null,null,null,null,{"$error":"#DIV/0!"},"no",null,{"$error":"#DIV/0!"},null,{"$error":"#DIV/0!"}]
[null,null,null,null,null,null,{"$error":"#DIV/0!"},"no",null,{"$error":"#DIV/0!"},null,{"$error":"#DIV/0!"}]
[null,null,null,null,null,null,{"$error":"#DIV/0!"},"no",null,{"$error":"#DIV/0!"},null,{"$error":"#DIV/0!"}]
[null,null,null,null,null,null,{"$error":"#DIV/0!"},"no",null,{"$error":"#DIV/0!"},null,{"$error":"#DIV/0!"}]
[null,null,null,null,null,null,{"$error":"#DIV/0!"},"no",null,{"$error":"#DIV/0!"},null,{"$error":"#DIV/0!"}]
[null,null,null,null,null,null,{"$error":"#DIV/0!"},"no",null,{"$error":"#DIV/0!"},null,{"$error":"#DIV/0!"}]
[null,null,null,null,null,null,{"$error":"#DIV/0!"},"no",null,{"$error":"#DIV/0!"},null,{"$error":"#DIV/0!"}]
[null,null,null,null,null,null,{"$error":"#DIV/0!"},"no",null,{"$error":"#DIV/0!"},null,{"$error":"#DIV/0!"}]
[null,null,null,null,null,null,{"$error":"#DIV/0!"},"no",null,{"$error":"#DIV/0!"},null,{"$error":"#DIV/0!"}]
[null,null,null,null,null,null,{"$error":"#DIV/0!"},"no",null,{"$error":"#DIV/0!"},null,{"$error":"#DIV/0!"}]
[null,null,null,null,null,null,{"$error":"#DIV/0!"},"no",null,{"$error":"#DIV/0!"},null,{"$error":"#DIV/0!"}]
[null,null,null,null,null,null,{"$error":"#DIV/0!"},"no",null,{"$error":"#DIV/0!"},null,{"$error":"#DIV/0!"}]
[null,null,null,null,null,null,{"$error":"#DIV/0!"},"no",null,{"$error":"#DIV/0!"},null,{"$error":"#DIV/0!"}]
[null,null,null,null,null,null,{"$error":"#DIV/0!"},"no",null,{"$error":"#DIV/0!"},null,{"$error":"#DIV/0!"}]
[null,null,null,null,null,null,{"$error":"#DIV/0!"},"no",null,{"$error":"#DIV/0!"},null,{"$error":"#DIV/0!"}]
[null,null,null,null,null,null,{"$error":"#DIV/0!"},"no",null,{"$error":"#DIV/0!"},null,{"$error":"#DIV/0!"}]
[null,null,null,null,null,null,{"$error":"#DIV/0!"},"no",null,{"$error":"#DIV/0!"},null,{"$error":"#DIV/0!"}]
[null,null,null,null,null,null,{"$error":"#DIV/0!"},"no",null,{"$error":"#DIV/0!"},null,{"$error":"#DIV/0!"}]
[null,null,null,null,null,null,{"$error":"#DIV/0!"},"no",null,{"$error":"#DIV/0!"},null,{"$error":"#DIV/0!"}]
[null,null,null,null,null,null,{"$error":"#DIV/0!"},"no",null,{"$error":"#DIV/0!"},null,{"$error":"#DIV/0!"}]
[null,null,null,null,null,null,{"$error":"#DIV/0!"},"no",null,{"$error":"#DIV/0!"},null,{"$error":"#DIV/0!"}]
[null,null,null,null,null,null,{"$error":"#DIV/0!"},"no",null,{"$error":"#DIV/0!"},null,{"$error":"#DIV/0!"}]
[null,null,null,null,null,null,{"$error":"#DIV/0!"},"no",null,{"$error":"#DIV/0!"},null,{"$error":"#DIV/0!"}]
[null,null,null,null,null,null,{"$error":"#DIV/0!"},"no",null,{"$error":"#DIV/0!"},null,{"$error":"#DIV/0!"}]
[null,null,null,null,null,null,{"$error":"#DIV/0!"},"no",null,{"$error":"#DIV/0!"},null,{"$error":"#DIV/0!"}]
[null,null,null,null,null,null,{"$error":"#DIV/0!"},"no",null,{"$error":"#DIV/0!"},null,{"$error":"#DIV/0!"}]
[null,null,null,null,null,null,{"$error":"#DIV/0!"},"no",null,{"$error":"#DIV/0!"},null,{"$error":"#DIV/0!"}]
[null,null,null,null,null,null,{"$error":"#DIV/0!"},"no",null,{"$error":"#DIV/0!"},null,{"$error":"#DIV/0!"}]
[null,null,null,null,null,null,{"$error":"#DIV/0!"},"no",null,{"$error":"#DIV/0!"},null,{"$error":"#DIV/0!"}]
[null,null,null,null,null,null,{"$error":"#DIV/0!"},"no",null,{"$error":"#DIV/0!"},null,{"$error":"#DIV/0!"}]
[null,null,null,null,null,null,{"$error":"#DIV/0!"},"no",null,{"$error":"#DIV/0!"},null,{"$error":"#DIV/0!"}]
[null,null,null,null,null,null,{"$error":"#DIV/0!"},"no",null,{"$error":"#DIV/0!"},null,{"$error":"#DIV/0!"}]
[null,null,null,null,null,null,{"$error":"#DIV/0!"},"no",null,{"$error":"#DIV/0!"},null,{"$error":"#DIV/0!"}]
[null,null,null,null,null,null,{"$error":"#DIV/0!"},"no",null,{"$error":"#DIV/0!"},null,{"$error":"#DIV/0!"}]
[null,null,null,null,null,null,{"$error":"#DIV/0!"},"no",null,{"$error":"#DIV/0!"},null,{"$error":"#DIV/0!"}]
[null,null,null,null,null,null,{"$error":"#DIV/0!"},"no",null,{"$error":"#DIV/0!"},null,{"$error":"#DIV/0!"}]
[null,null,null,null,null,null,{"$error":"#DIV/0!"},"no",null,{"$error":"#DIV/0!"},null,{"$error":"#DIV/0!"}]
[null,null,null,null,null,null,{"$error":"#DIV/0!"},"no",null,{"$error":"#DIV/0!"},null,{"$error":"#DIV/0!"}]
[null,null,null,null,null,null,{"$error":"#DIV/0!"},"no",null,{"$error":"#DIV/0!"},null,{"$error":"#DIV/0!"}]
[null,null,null,null,null,null,{"$error":"#DIV/0!"},"no",null,{"$error":"#DIV/0!"},null,{"$error":"#DIV/0!"}]
[null,null,null,null,null,null,{"$error":"#DIV/0!"},"no",null,{"$error":"#DIV/0!"},null,{"$error":"#DIV/0!"}]
[null,null,null,null,null,null,{"$error":"#DIV/0!"},"no",null,{"$error":"#DIV/0!"},null,{"$error":"#DIV/0!"}]
[null,null,null,null,null,null,{"$error":"#DIV/0!"},"no",null,{"$error":"#DIV/0!"},null,{"$error":"#DIV/0!"}]
[null,null,null,null,null,null,{"$error":"#DIV/0!"},"no",null,{"$error":"#DIV/0!"},null,{"$error":"#DIV/0!"}]
[null,null,null,null,null,null,{"$error":"#DIV/0!"},"no",null,{"$error":"#DIV/0!"},null,{"$error":"#DIV/0!"}]
[null,null,null,null,null,null,{"$error":"#DIV/0!"},"no",null,{"$error":"#DIV/0!"},null,{"$error":"#DIV/0!"}]
[null,null,null,null,null,null,{"$error":"#DIV/0!"},"no",null,{"$error":"#DIV/0!"},null,{"$error":"#DIV/0!"}]
[null,null,null,null,null,null,{"$error":"#DIV/0!"},"no",null,{"$error":"#DIV/0!"},null,{"$error":"#DIV/0!"}]
[null,null,null,null,null,null,{"$error":"#DIV/0!"},"no",null,{"$error":"#DIV/0!"},null,{"$error":"#DIV/0!"}]
[null,null,null,null,null,null,{"$error":"#DIV/0!"},"no",null,{"$error":"#DIV/0!"},null,{"$error":"#DIV/0!"}]
[null,null,null,null,null,null,{"$error":"#DIV/0!"},"no",null,{"$error":"#DIV/0!"},null,{"$error":"#DIV/0!"}]
[null,null,null,null,null,null,{"$error":"#DIV/0!"},"no",null,{"$error":"#DIV/0!"},null,{"$error":"#DIV/0!"}]
[null,null,null,null,null,null,{"$error":"#DIV/0!"},"no",null,{"$error":"#DIV/0!"},null,{"$f":"IF(J523=-600,\"Refer to Note (1) of Table 3.50 C1 or 3.53 C1\",\" \")","v":{"$error":"#DIV/0!"}}]
[null,null,null,null,null,null,{"$f":"ROUND(AVERAGE(E524:F524),2)","v":{"$error":"#DIV/0!"}},"no",null,{"$f":"IF(I524=\"SI\",IF(H524=\"yes\",\"Excluded Area\",IF(G524<0.55,250,IF(G524<0.71,150,IF(G524<1.01,0,IF(G524<1.51,(800-900*G524),-600))))),IF(I524=\"SII\",IF(H524=\"yes\",\"Excluded Area\",IF(G524<0.55,250,IF(G524<0.81,150, IF(G524<1.16,0, IF(G524<1.51,(1380-1230*G524),-600))))),IF(H524=\"yes\",\"Excluded Area\",IF(G524<0.55,250,IF(G524<0.81,150, IF(G524<1.51,0, IF(G524<=1.8,(730-540*G524),-600)))))))","v":{"$error":"#DIV/0!"}},null,{"$error":"#DIV/0!"}]
[null,null,null,null,null,null,{"$error":"#DIV/0!"},"no",null,{"$error":"#DIV/0!"},null,{"$error":"#DIV/0!"}]
[null,null,null,null,null,null,{"$error":"#DIV/0!"},"no",null,{"$error":"#DIV/0!"},null,{"$error":"#DIV/0!"}]
[null,null,null,null,null,null,{"$error":"#DIV/0!"},"no",null,{"$error":"#DIV/0!"},null,{"$error":"#DIV/0!"}]
[null,null,null,null,null,null,{"$error":"#DIV/0!"},"no",null,{"$error":"#DIV/0!"},null,{"$error":"#DIV/0!"}]
[null,null,null,null,null,null,{"$error":"#DIV/0!"},"no",null,{"$error":"#DIV/0!"},null,{"$error":"#DIV/0!"}]
[null,null,null,null,null,null,{"$error":"#DIV/0!"},"no",null,{"$error":"#DIV/0!"},null,{"$error":"#DIV/0!"}]
[null,null,null,null,null,null,{"$error":"#DIV/0!"},"no",null,{"$error":"#DIV/0!"},null,{"$error":"#DIV/0!"}]
[null,null,null,null,null,null,{"$error":"#DIV/0!"},"no",null,{"$error":"#DIV/0!"},null,{"$error":"#DIV/0!"}]
[null,null,null,null,null,null,{"$error":"#DIV/0!"},"no",null,{"$error":"#DIV/0!"},null,{"$error":"#DIV/0!"}]
[null,null,null,null,null,null,{"$error":"#DIV/0!"},"no",null,{"$error":"#DIV/0!"},null,{"$error":"#DIV/0!"}]
[null,null,null,null,null,null,{"$error":"#DIV/0!"},"no",null,{"$error":"#DIV/0!"},null,{"$error":"#DIV/0!"}]
[null,null,null,null,null,null,{"$error":"#DIV/0!"},"no",null,{"$error":"#DIV/0!"},null,{"$error":"#DIV/0!"}]
[null,null,null,null,null,null,{"$error":"#DIV/0!"},"no",null,{"$error":"#DIV/0!"},null,{"$error":"#DIV/0!"}]
[null,null,null,null,null,null,{"$error":"#DIV/0!"},"no",null,{"$error":"#DIV/0!"},null,{"$error":"#DIV/0!"}]
[null,null,null,null,null,null,{"$error":"#DIV/0!"},"no",null,{"$error":"#DIV/0!"},null,{"$error":"#DIV/0!"}]
[null,null,null,null,null,null,{"$error":"#DIV/0!"},"no",null,{"$error":"#DIV/0!"},null,{"$error":"#DIV/0!"}]
[null,null,null,null,null,null,{"$error":"#DIV/0!"},"no",null,{"$error":"#DIV/0!"},null,{"$error":"#DIV/0!"}]
[null,null,null,null,null,null,{"$error":"#DIV/0!"},"no",null,{"$error":"#DIV/0!"},null,{"$error":"#DIV/0!"}]
[null,null,null,null,null,null,{"$error":"#DIV/0!"},"no",null,{"$error":"#DIV/0!"},null,{"$error":"#DIV/0!"}]
[null,null,null,null,null,null,{"$error":"#DIV/0!"},"no",null,{"$error":"#DIV/0!"},null,{"$error":"#DIV/0!"}]
[null,null,null,null,null,null,{"$error":"#DIV/0!"},"no",null,{"$error":"#DIV/0!"},null,{"$error":"#DIV/0!"}]
[null,null,null,null,null,null,{"$error":"#DIV/0!"},"no",null,{"$error":"#DIV/0!"},null,{"$error":"#DIV/0!"}]
[null,null,null,null,null,null,{"$error":"#DIV/0!"},"no",null,{"$error":"#DIV/0!"},null,{"$error":"#DIV/0!"}]
[null,null,null,null,null,null,{"$error":"#DIV/0!"},"no",null,{"$error":"#DIV/0!"},null,{"$error":"#DIV/0!"}]
[null,null,null,null,null,null,{"$error":"#DIV/0!"},"no",null,{"$error":"#DIV/0!"},null,{"$error":"#DIV/0!"}]
[null,null,null,null,null,null,{"$error":"#DIV/0!"},"no",null,{"$error":"#DIV/0!"},null,{"$error":"#DIV/0!"}]
[null,null,null,null,null,null,{"$error":"#DIV/0!"},"no",null,{"$error":"#DIV/0!"},null,{"$error":"#DIV/0!"}]
[null,null,null,null,null,null,{"$error":"#DIV/0!"},"no",null,{"$error":"#DIV/0!"},null,{"$error":"#DIV/0!"}]
[null,null,null,null,null,null,{"$error":"#DIV/0!"},"no",null,{"$error":"#DIV/0!"},null,{"$error":"#DIV/0!"}]
[null,null,null,null,null,null,{"$error":"#DIV/0!"},"no",null,{"$error":"#DIV/0!"},null,{"$error":"#DIV/0!"}]
[null,null,null,null,null,null,{"$error":"#DIV/0!"},"no",null,{"$error":"#DIV/0!"},null,{"$error":"#DIV/0!"}]
[null,null,null,null,null,null,{"$error":"#DIV/0!"},"no",null,{"$error":"#DIV/0!"},null,{"$error":"#DIV/0!"}]
[null,null,null,null,null,null,{"$error":"#DIV/0!"},"no",null,{"$error":"#DIV/0!"},null,{"$error":"#DIV/0!"}]
[null,null,null,null,null,null,{"$error":"#DIV/0!"},"no",null,{"$error":"#DIV/0!"},null,{"$error":"#DIV/0!"}]
[null,null,null,null,null,null,{"$error":"#DIV/0!"},"no",null,{"$error":"#DIV/0!"},null,{"$error":"#DIV/0!"}]
[null,null,null,null,null,null,{"$error":"#DIV/0!"},"no",null,{"$error":"#DIV/0!"},null,{"$error":"#DIV/0!"}]
[null,null,null,null,null,null,{"$error":"#DIV/0!"},"no",null,{"$error":"#DIV/0!"},null,{"$error":"#DIV/0!"}]
[null,null,null,null,null,null,{"$error":"#DIV/0!"},"no",null,{"$error":"#DIV/0!"},null,{"$error":"#DIV/0!"}]
[null,null,null,null,null,null,{"$error":"#DIV/0!"},"no",null,{"$error":"#DIV/0!"},null,{"$error":"#DIV/0!"}]
[null,null,null,null,null,null,{"$error":"#DIV/0!"},"no",null,{"$error":"#DIV/0!"},null,{"$error":"#DIV/0!"}]
[null,null,null,null,null,null,{"$error":"#DIV/0!"},"no",null,{"$error":"#DIV/0!"},null,{"$error":"#DIV/0!"}]
[null,null,null,null,null,null,{"$error":"#DIV/0!"},"no",null,{"$error":"#DIV/0!"},null,{"$error":"#DIV/0!"}]
[null,null,null,null,null,null,{"$error":"#DIV/0!"},"no",null,{"$error":"#DIV/0!"},null,{"$error":"#DIV/0!"}]
[null,null,null,null,null,null,{"$error":"#DIV/0!"},"no",null,{"$error":"#DIV/0!"},null,{"$error":"#DIV/0!"}]
[null,null,null,null,null,null,{"$error":"#DIV/0!"},"no",null,{"$error":"#DIV/0!"},null,{"$error":"#DIV/0!"}]
[null,null,null,null,null,null,{"$error":"#DIV/0!"},"no",null,{"$error":"#DIV/0!"},null,{"$error":"#DIV/0!"}]
[null,null,null,null,null,null,{"$error":"#DIV/0!"},"no",null,{"$error":"#DIV/0!"},null,{"$error":"#DIV/0!"}]
[null,null,null,null,null,null,{"$error":"#DIV/0!"},"no",null,{"$error":"#DIV/0!"},null,{"$error":"#DIV/0!"}]
[null,null,null,null,null,null,{"$error":"#DIV/0!"},"no",null,{"$error":"#DIV/0!"},null,{"$error":"#DIV/0!"}]
[null,null,null,null,null,null,{"$error":"#DIV/0!"},"no",null,{"$error":"#DIV/0!"},null,{"$error":"#DIV/0!"}]
[null,null,null,null,null,null,{"$error":"#DIV/0!"},"no",null,{"$error":"#DIV/0!"},null,{"$error":"#DIV/0!"}]
[null,null,null,null,null,null,{"$error":"#DIV/0!"},"no",null,{"$error":"#DIV/0!"},null,{"$error":"#DIV/0!"}]
[null,null,null,null,null,null,{"$error":"#DIV/0!"},"no",null,{"$error":"#DIV/0!"},null,{"$error":"#DIV/0!"}]
[null,null,null,null,null,null,{"$error":"#DIV/0!"},"no",null,{"$error":"#DIV/0!"},null,{"$error":"#DIV/0!"}]
[null,null,null,null,null,null,{"$error":"#DIV/0!"},"no",null,{"$error":"#DIV/0!"},null,{"$error":"#DIV/0!"}]
[null,null,null,null,null,null,{"$error":"#DIV/0!"},"no",null,{"$error":"#DIV/0!"},null,{"$error":"#DIV/0!"}]
[null,null,null,null,null,null,{"$error":"#DIV/0!"},"no",null,{"$error":"#DIV/0!"},null,{"$error":"#DIV/0!"}]
[null,null,null,null,null,null,{"$error":"#DIV/0!"},"no",null,{"$error":"#DIV/0!"},null,{"$error":"#DIV/0!"}]
[null,null,null,null,null,null,{"$error":"#DIV/0!"},"no",null,{"$error":"#DIV/0!"},null,{"$error":"#DIV/0!"}]
[null,null,null,null,null,null,{"$error":"#DIV/0!"},"no",null,{"$error":"#DIV/0!"},null,{"$error":"#DIV/0!"}]
[null,null,null,null,null,null,{"$error":"#DIV/0!"},"no",null,{"$error":"#DIV/0!"},null,{"$error":"#DIV/0!"}]
[null,null,null,null,null,null,{"$error":"#DIV/0!"},"no",null,{"$error":"#DIV/0!"},null,{"$error":"#DIV/0!"}]
[null,null,null,null,null,null,{"$error":"#DIV/0!"},"no",null,{"$error":"#DIV/0!"},null,{"$f":"IF(J587=-600,\"Refer to Note (1) of Table 3.50 C1 or 3.53 C1\",\" \")","v":{"$error":"#DIV/0!"}}]
[null,null,null,null,null,null,{"$f":"ROUND(AVERAGE(E588:F588),2)","v":{"$error":"#DIV/0!"}},"no",null,{"$f":"IF(I588=\"SI\",IF(H588=\"yes\",\"Excluded Area\",IF(G588<0.55,250,IF(G588<0.71,150,IF(G588<1.01,0,IF(G588<1.51,(800-900*G588),-600))))),IF(I588=\"SII\",IF(H588=\"yes\",\"Excluded Area\",IF(G588<0.55,250,IF(G588<0.81,150, IF(G588<1.16,0, IF(G588<1.51,(1380-1230*G588),-600))))),IF(H588=\"yes\",\"Excluded Area\",IF(G588<0.55,250,IF(G588<0.81,150, IF(G588<1.51,0, IF(G588<=1.8,(730-540*G588),-600)))))))","v":{"$error":"#DIV/0!"}},null,{"$error":"#DIV/0!"}]
[null,null,null,null,null,null,{"$error":"#DIV/0!"},"no",null,{"$error":"#DIV/0!"},null,{"$error":"#DIV/0!"}]
[null,null,null,null,null,null,{"$error":"#DIV/0!"},"no",null,{"$error":"#DIV/0!"},null,{"$error":"#DIV/0!"}]
[null,null,null,null,null,null,{"$error":"#DIV/0!"},"no",null,{"$error":"#DIV/0!"},null,{"$error":"#DIV/0!"}]
[null,null,null,null,null,null,{"$error":"#DIV/0!"},"no",null,{"$error":"#DIV/0!"},null,{"$error":"#DIV/0!"}]
[null,null,null,null,null,null,{"$error":"#DIV/0!"},"no",null,{"$error":"#DIV/0!"},null,{"$error":"#DIV/0!"}]
[null,null,null,null,null,null,{"$error":"#DIV/0!"},"no",null,{"$error":"#DIV/0!"},null,{"$error":"#DIV/0!"}]
[null,null,null,null,null,null,{"$error":"#DIV/0!"},"no",null,{"$error":"#DIV/0!"},null,{"$error":"#DIV/0!"}]
[null,null,null,null,null,null,{"$error":"#DIV/0!"},"no",null,{"$error":"#DIV/0!"},null,{"$error":"#DIV/0!"}]
[null,null,null,null,null,null,{"$error":"#DIV/0!"},"no",null,{"$error":"#DIV/0!"},null,{"$error":"#DIV/0!"}]
[null,null,null,null,null,null,{"$error":"#DIV/0!"},"no",null,{"$error":"#DIV/0!"},null,{"$error":"#DIV/0!"}]
[null,null,null,null,null,null,{"$error":"#DIV/0!"},"no",null,{"$error":"#DIV/0!"},null,{"$error":"#DIV/0!"}]
[null,null,null,null,null,null,{"$error":"#DIV/0!"},"no",null,{"$error":"#DIV/0!"},null,{"$error":"#DIV/0!"}]
[null,null,null,null,null,null,{"$error":"#DIV/0!"},"no",null,{"$error":"#DIV/0!"},null,{"$error":"#DIV/0!"}]
[null,null,null,null,null,null,{"$error":"#DIV/0!"},"no",null,{"$error":"#DIV/0!"},null,{"$error":"#DIV/0!"}]
[null,null,null,null,null,null,{"$error":"#DIV/0!"},"no",null,{"$error":"#DIV/0!"},null,{"$error":"#DIV/0!"}]
[null,null,null,null,null,null,{"$error":"#DIV/0!"},"no",null,{"$error":"#DIV/0!"},null,{"$error":"#DIV/0!"}]
[null,null,null,null,null,null,{"$error":"#DIV/0!"},"no",null,{"$error":"#DIV/0!"},null,{"$error":"#DIV/0!"}]
[null,null,null,null,null,null,{"$error":"#DIV/0!"},"no",null,{"$error":"#DIV/0!"},null,{"$error":"#DIV/0!"}]
[null,null,null,null,null,null,{"$error":"#DIV/0!"},"no",null,{"$error":"#DIV/0!"},null,{"$error":"#DIV/0!"}]
[null,null,null,null,null,null,{"$error":"#DIV/0!"},"no",null,{"$error":"#DIV/0!"},null,{"$error":"#DIV/0!"}]
[null,null,null,null,null,null,{"$error":"#DIV/0!"},"no",null,{"$error":"#DIV/0!"},null,{"$error":"#DIV/0!"}]
[null,null,null,null,null,null,{"$error":"#DIV/0!"},"no",null,{"$error":"#DIV/0!"},null,{"$error":"#DIV/0!"}]
[null,null,null,null,null,null,{"$error":"#DIV/0!"},"no",null,{"$error":"#DIV/0!"},null,{"$error":"#DIV/0!"}]
[null,null,null,null,null,null,{"$error":"#DIV/0!"},"no",null,{"$error":"#DIV/0!"},null,{"$error":"#DIV/0!"}]
[null,null,null,null,null,null,{"$error":"#DIV/0!"},"no",null,{"$error":"#DIV/0!"},null,{"$error":"#DIV/0!"}]
[null,null,null,null,null,null,{"$error":"#DIV/0!"},"no",null,{"$error":"#DIV/0!"},null,{"$error":"#DIV/0!"}]
[null,null,null,null,null,null,{"$error":"#DIV/0!"},"no",null,{"$error":"#DIV/0!"},null,{"$error":"#DIV/0!"}]
[null,null,null,null,null,null,{"$error":"#DIV/0!"},"no",null,{"$error":"#DIV/0!"},null,{"$error":"#DIV/0!"}]
[null,null,null,null,null,null,{"$error":"#DIV/0!"},"no",null,{"$error":"#DIV/0!"},null,{"$error":"#DIV/0!"}]
[null,null,null,null,null,null,{"$error":"#DIV/0!"},"no",null,{"$error":"#DIV/0!"},null,{"$error":"#DIV/0!"}]
[null,null,null,null,null,null,{"$error":"#DIV/0!"},"no",null,{"$error":"#DIV/0!"},null,{"$error":"#DIV/0!"}]
[null,null,null,null,null,null,{"$error":"#DIV/0!"},"no",null,{"$error":"#DIV/0!"},null,{"$error":"#DIV/0!"}]
[null,null,null,null,null,null,{"$error":"#DIV/0!"},"no",null,{"$error":"#DIV/0!"},null,{"$error":"#DIV/0!"}]
[null,null,null,null,null,null,{"$error":"#DIV/0!"},"no",null,{"$error":"#DIV/0!"},null,{"$error":"#DIV/0!"}]
[null,null,null,null,null,null,{"$error":"#DIV/0!"},"no",null,{"$error":"#DIV/0!"},null,{"$error":"#DIV/0!"}]
[null,null,null,null,null,null,{"$error":"#DIV/0!"},"no",null,{"$error":"#DIV/0!"},null,{"$error":"#DIV/0!"}]
[null,null,null,null,null,null,{"$error":"#DIV/0!"},"no",null,{"$error":"#DIV/0!"},null,{"$error":"#DIV/0!"}]
[null,null,null,null,null,null,{"$error":"#DIV/0!"},"no",null,{"$error":"#DIV/0!"},null,{"$error":"#DIV/0!"}]
[null,null,null,null,null,null,{"$error":"#DIV/0!"},"no",null,{"$error":"#DIV/0!"},null,{"$error":"#DIV/0!"}]
[null,null,null,null,null,null,{"$error":"#DIV/0!"},"no",null,{"$error":"#DIV/0!"},null,{"$error":"#DIV/0!"}]
[null,null,null,null,null,null,{"$error":"#DIV/0!"},"no",null,{"$error":"#DIV/0!"},null,{"$error":"#DIV/0!"}]
[null,null,null,null,null,null,{"$error":"#DIV/0!"},"no",null,{"$error":"#DIV/0!"},null,{"$error":"#DIV/0!"}]
[null,null,null,null,null,null,{"$error":"#DIV/0!"},"no",null,{"$error":"#DIV/0!"},null,{"$error":"#DIV/0!"}]
[null,null,null,null,null,null,{"$error":"#DIV/0!"},"no",null,{"$error":"#DIV/0!"},null,{"$error":"#DIV/0!"}]
[null,null,null,null,null,null,{"$error":"#DIV/0!"},"no",null,{"$error":"#DIV/0!"},null,{"$error":"#DIV/0!"}]
[null,null,null,null,null,null,{"$error":"#DIV/0!"},"no",null,{"$error":"#DIV/0!"},null,{"$error":"#DIV/0!"}]
[null,null,null,null,null,null,{"$error":"#DIV/0!"},"no",null,{"$error":"#DIV/0!"},null,{"$error":"#DIV/0!"}]
[null,null,null,null,null,null,{"$error":"#DIV/0!"},"no",null,{"$error":"#DIV/0!"},null,{"$error":"#DIV/0!"}]
[null,null,null,null,null,null,{"$error":"#DIV/0!"},"no",null,{"$error":"#DIV/0!"},null,{"$error":"#DIV/0!"}]
[null,null,null,null,null,null,{"$error":"#DIV/0!"},"no",null,{"$error":"#DIV/0!"},null,{"$error":"#DIV/0!"}]
[null,null,null,null,null,null,{"$error":"#DIV/0!"},"no",null,{"$error":"#DIV/0!"},null,{"$error":"#DIV/0!"}]
[null,null,null,null,null,null,{"$error":"#DIV/0!"},"no",null,{"$error":"#DIV/0!"},null,{"$error":"#DIV/0!"}]
[null,null,null,null,null,null,{"$error":"#DIV/0!"},"no",null,{"$error":"#DIV/0!"},null,{"$error":"#DIV/0!"}]
[null,null,null,null,null,null,{"$error":"#DIV/0!"},"no",null,{"$error":"#DIV/0!"},null,{"$error":"#DIV/0!"}]
[null,null,null,null,null,null,{"$error":"#DIV/0!"},"no",null,{"$error":"#DIV/0!"},null,{"$error":"#DIV/0!"}]
[null,null,null,null,null,null,{"$error":"#DIV/0!"},"no",null,{"$error":"#DIV/0!"},null,{"$error":"#DIV/0!"}]
[null,null,null,null,null,null,{"$error":"#DIV/0!"},"no",null,{"$error":"#DIV/0!"},null,{"$error":"#DIV/0!"}]
[null,null,null,null,null,null,{"$error":"#DIV/0!"},"no",null,{"$error":"#DIV/0!"},null,{"$error":"#DIV/0!"}]
[null,null,null,null,null,null,{"$error":"#DIV/0!"},"no",null,{"$error":"#DIV/0!"},null,{"$error":"#DIV/0!"}]
[null,null,null,null,null,null,{"$error":"#DIV/0!"},"no",null,{"$error":"#DIV/0!"},null,{"$error":"#DIV/0!"}]
[null,null,null,null,null,null,{"$error":"#DIV/0!"},"no",null,{"$error":"#DIV/0!"},null,{"$error":"#DIV/0!"}]
[null,null,null,null,null,null,{"$error":"#DIV/0!"},"no",null,{"$error":"#DIV/0!"},null,{"$error":"#DIV/0!"}]
[null,null,null,null,null,null,{"$error":"#DIV/0!"},"no",null,{"$error":"#DIV/0!"},null,{"$f":"IF(J651=-600,\"Refer to Note (1) of Table 3.50 C1 or 3.53 C1\",\" \")","v":{"$error":"#DIV/0!"}}]
[null,null,null,null,null,null,{"$f":"ROUND(AVERAGE(E652:F652),2)","v":{"$error":"#DIV/0!"}},"no",null,{"$f":"IF(I652=\"SI\",IF(H652=\"yes\",\"Excluded Area\",IF(G652<0.55,250,IF(G652<0.71,150,IF(G652<1.01,0,IF(G652<1.51,(800-900*G652),-600))))),IF(I652=\"SII\",IF(H652=\"yes\",\"Excluded Area\",IF(G652<0.55,250,IF(G652<0.81,150, IF(G652<1.16,0, IF(G652<1.51,(1380-1230*G652),-600))))),IF(H652=\"yes\",\"Excluded Area\",IF(G652<0.55,250,IF(G652<0.81,150, IF(G652<1.51,0, IF(G652<=1.8,(730-540*G652),-600)))))))","v":{"$error":"#DIV/0!"}},null,{"$error":"#DIV/0!"}]
[null,null,null,null,null,null,{"$error":"#DIV/0!"},"no",null,{"$error":"#DIV/0!"},null,{"$error":"#DIV/0!"}]
[null,null,null,null,null,null,{"$error":"#DIV/0!"},"no",null,{"$error":"#DIV/0!"},null,{"$error":"#DIV/0!"}]
[null,null,null,null,null,null,{"$error":"#DIV/0!"},"no",null,{"$error":"#DIV/0!"},null,{"$error":"#DIV/0!"}]
[null,null,null,null,null,null,{"$error":"#DIV/0!"},"no",null,{"$error":"#DIV/0!"},null,{"$error":"#DIV/0!"}]
[null,null,null,null,null,null,{"$error":"#DIV/0!"},"no",null,{"$error":"#DIV/0!"},null,{"$error":"#DIV/0!"}]
[null,null,null,null,null,null,{"$error":"#DIV/0!"},"no",null,{"$error":"#DIV/0!"},null,{"$error":"#DIV/0!"}]
[null,null,null,null,null,null,{"$error":"#DIV/0!"},"no",null,{"$error":"#DIV/0!"},null,{"$error":"#DIV/0!"}]
[null,null,null,null,null,null,{"$error":"#DIV/0!"},"no",null,{"$error":"#DIV/0!"},null,{"$error":"#DIV/0!"}]
[null,null,null,null,null,null,{"$error":"#DIV/0!"},"no",null,{"$error":"#DIV/0!"},null,{"$error":"#DIV/0!"}]
[null,null,null,null,null,null,{"$error":"#DIV/0!"},"no",null,{"$error":"#DIV/0!"},null,{"$error":"#DIV/0!"}]
[null,null,null,null,null,null,{"$error":"#DIV/0!"},"no",null,{"$error":"#DIV/0!"},null,{"$error":"#DIV/0!"}]
[null,null,null,null,null,null,{"$error":"#DIV/0!"},"no",null,{"$error":"#DIV/0!"},null,{"$error":"#DIV/0!"}]
[null,null,null,null,null,null,{"$error":"#DIV/0!"},"no",null,{"$error":"#DIV/0!"},null,{"$error":"#DIV/0!"}]
[null,null,null,null,null,null,{"$error":"#DIV/0!"},"no",null,{"$error":"#DIV/0!"},null,{"$error":"#DIV/0!"}]
[null,null,null,null,null,null,{"$error":"#DIV/0!"},"no",null,{"$error":"#DIV/0!"},null,{"$error":"#DIV/0!"}]
[null,null,null,null,null,null,{"$error":"#DIV/0!"},"no",null,{"$error":"#DIV/0!"},null,{"$error":"#DIV/0!"}]
[null,null,null,null,null,null,{"$error":"#DIV/0!"},"no",null,{"$error":"#DIV/0!"},null,{"$error":"#DIV/0!"}]
[null,null,null,null,null,null,{"$error":"#DIV/0!"},"no",null,{"$error":"#DIV/0!"},null,{"$error":"#DIV/0!"}]
[null,null,null,null,null,null,{"$error":"#DIV/0!"},"no",null,{"$error":"#DIV/0!"},null,{"$error":"#DIV/0!"}]
[null,null,null,null,null,null,{"$error":"#DIV/0!"},"no",null,{"$error":"#DIV/0!"},null,{"$error":"#DIV/0!"}]
[null,null,null,null,null,null,{"$error":"#DIV/0!"},"no",null,{"$error":"#DIV/0!"},null,{"$error":"#DIV/0!"}]
[null,null,null,null,null,null,{"$error":"#DIV/0!"},"no",null,{"$error":"#DIV/0!"},null,{"$error":"#DIV/0!"}]
[null,null,null,null,null,null,{"$error":"#DIV/0!"},"no",null,{"$error":"#DIV/0!"},null,{"$error":"#DIV/0!"}]
[null,null,null,null,null,null,{"$error":"#DIV/0!"},"no",null,{"$error":"#DIV/0!"},null,{"$error":"#DIV/0!"}]
[null,null,null,null,null,null,{"$error":"#DIV/0!"},"no",null,{"$error":"#DIV/0!"},null,{"$error":"#DIV/0!"}]
[null,null,null,null,null,null,{"$error":"#DIV/0!"},"no",null,{"$error":"#DIV/0!"},null,{"$error":"#DIV/0!"}]
[null,null,null,null,null,null,{"$error":"#DIV/0!"},"no",null,{"$error":"#DIV/0!"},null,{"$error":"#DIV/0!"}]
[null,null,null,null,null,null,{"$error":"#DIV/0!"},"no",null,{"$error":"#DIV/0!"},null,{"$error":"#DIV/0!"}]
[null,null,null,null,null,null,{"$error":"#DIV/0!"},"no",null,{"$error":"#DIV/0!"},null,{"$error":"#DIV/0!"}]
[null,null,null,null,null,null,{"$error":"#DIV/0!"},"no",null,{"$error":"#DIV/0!"},null,{"$error":"#DIV/0!"}]
[null,null,null,null,null,null,{"$error":"#DIV/0!"},"no",null,{"$error":"#DIV/0!"},null,{"$error":"#DIV/0!"}]
[null,null,null,null,null,null,{"$error":"#DIV/0!"},"no",null,{"$error":"#DIV/0!"},null,{"$error":"#DIV/0!"}]
[null,null,null,null,null,null,{"$error":"#DIV/0!"},"no",null,{"$error":"#DIV/0!"},null,{"$error":"#DIV/0!"}]
[null,null,null,null,null,null,{"$error":"#DIV/0!"},"no",null,{"$error":"#DIV/0!"},null,{"$error":"#DIV/0!"}]
[null,null,null,null,null,null,{"$error":"#DIV/0!"},"no",null,{"$error":"#DIV/0!"},null,{"$error":"#DIV/0!"}]
[null,null,null,null,null,null,{"$error":"#DIV/0!"},"no",null,{"$error":"#DIV/0!"},null,{"$error":"#DIV/0!"}]
[null,null,null,null,null,null,{"$error":"#DIV/0!"},"no",null,{"$error":"#DIV/0!"},null,{"$error":"#DIV/0!"}]
[null,null,null,null,null,null,{"$error":"#DIV/0!"},"no",null,{"$error":"#DIV/0!"},null,{"$error":"#DIV/0!"}]
[null,null,null,null,null,null,{"$error":"#DIV/0!"},"no",null,{"$error":"#DIV/0!"},null,{"$error":"#DIV/0!"}]
[null,null,null,null,null,null,{"$error":"#DIV/0!"},"no",null,{"$error":"#DIV/0!"},null,{"$error":"#DIV/0!"}]
[null,null,null,null,null,null,{"$error":"#DIV/0!"},"no",null,{"$error":"#DIV/0!"},null,{"$error":"#DIV/0!"}]
[null,null,null,null,null,null,{"$error":"#DIV/0!"},"no",null,{"$error":"#DIV/0!"},null,{"$error":"#DIV/0!"}]
[null,null,null,null,null,null,{"$error":"#DIV/0!"},"no",null,{"$error":"#DIV/0!"},null,{"$error":"#DIV/0!"}]
[null,null,null,null,null,null,{"$error":"#DIV/0!"},"no",null,{"$error":"#DIV/0!"},null,{"$error":"#DIV/0!"}]
[null,null,null,null,null,null,{"$error":"#DIV/0!"},"no",null,{"$error":"#DIV/0!"},null,{"$error":"#DIV/0!"}]
[null,null,null,null,null,null,{"$error":"#DIV/0!"},"no",null,{"$error":"#DIV/0!"},null,{"$error":"#DIV/0!"}]
[null,null,null,null,null,null,{"$error":"#DIV/0!"},"no",null,{"$error":"#DIV/0!"},null,{"$error":"#DIV/0!"}]
[null,null,null,null,null,null,{"$error":"#DIV/0!"},"no",null,{"$error":"#DIV/0!"},null,{"$error":"#DIV/0!"}]
[null,null,null,null,null,null,{"$error":"#DIV/0!"},"no",null,{"$error":"#DIV/0!"},null,{"$error":"#DIV/0!"}]
[null,null,null,null,null,null,{"$error":"#DIV/0!"},"no",null,{"$error":"#DIV/0!"},null,{"$error":"#DIV/0!"}]
[null,null,null,null,null,null,{"$error":"#DIV/0!"},"no",null,{"$error":"#DIV/0!"},null,{"$error":"#DIV/0!"}]
[null,null,null,null,null,null,{"$error":"#DIV/0!"},"no",null,{"$error":"#DIV/0!"},null,{"$error":"#DIV/0!"}]
[null,null,null,null,null,null,{"$error":"#DIV/0!"},"no",null,{"$error":"#DIV/0!"},null,{"$error":"#DIV/0!"}]
[null,null,null,null,null,null,{"$error":"#DIV/0!"},"no",null,{"$error":"#DIV/0!"},null,{"$error":"#DIV/0!"}]
[null,null,null,null,null,null,{"$error":"#DIV/0!"},"no",null,{"$error":"#DIV/0!"},null,{"$error":"#DIV/0!"}]
[null,null,null,null,null,null,{"$error":"#DIV/0!"},"no",null,{"$error":"#DIV/0!"},null,{"$error":"#DIV/0!"}]
[null,null,null,null,null,null,{"$error":"#DIV/0!"},"no",null,{"$error":"#DIV/0!"},null,{"$error":"#DIV/0!"}]
[null,null,null,null,null,null,{"$error":"#DIV/0!"},"no",null,{"$error":"#DIV/0!"},null,{"$error":"#DIV/0!"}]
[null,null,null,null,null,null,{"$error":"#DIV/0!"},"no",null,{"$error":"#DIV/0!"},null,{"$error":"#DIV/0!"}]
[null,null,null,null,null,null,{"$error":"#DIV/0!"},"no",null,{"$error":"#DIV/0!"},null,{"$error":"#DIV/0!"}]
[null,null,null,null,null,null,{"$error":"#DIV/0!"},"no",null,{"$error":"#DIV/0!"},null,{"$error":"#DIV/0!"}]
[null,null,null,null,null,null,{"$error":"#DIV/0!"},"no",null,{"$error":"#DIV/0!"},null,{"$error":"#DIV/0!"}]
[null,null,null,null,null,null,{"$error":"#DIV/0!"},"no",null,{"$error":"#DIV/0!"},null,{"$f":"IF(J715=-600,\"Refer to Note (1) of Table 3.50 C1 or 3.53 C1\",\" \")","v":{"$error":"#DIV/0!"}}]
[null,null,null,null,null,null,{"$f":"ROUND(AVERAGE(E716:F716),2)","v":{"$error":"#DIV/0!"}},"no",null,{"$f":"IF(I716=\"SI\",IF(H716=\"yes\",\"Excluded Area\",IF(G716<0.55,250,IF(G716<0.71,150,IF(G716<1.01,0,IF(G716<1.51,(800-900*G716),-600))))),IF(I716=\"SII\",IF(H716=\"yes\",\"Excluded Area\",IF(G716<0.55,250,IF(G716<0.81,150, IF(G716<1.16,0, IF(G716<1.51,(1380-1230*G716),-600))))),IF(H716=\"yes\",\"Excluded Area\",IF(G716<0.55,250,IF(G716<0.81,150, IF(G716<1.51,0, IF(G716<=1.8,(730-540*G716),-600)))))))","v":{"$error":"#DIV/0!"}},null,{"$error":"#DIV/0!"}]
[null,null,null,null,null,null,{"$error":"#DIV/0!"},"no",null,{"$error":"#DIV/0!"},null,{"$error":"#DIV/0!"}]
[null,null,null,null,null,null,{"$error":"#DIV/0!"},"no",null,{"$error":"#DIV/0!"},null,{"$error":"#DIV/0!"}]
[null,null,null,null,null,null,{"$error":"#DIV/0!"},"no",null,{"$error":"#DIV/0!"},null,{"$error":"#DIV/0!"}]
[null,null,null,null,null,null,{"$error":"#DIV/0!"},"no",null,{"$error":"#DIV/0!"},null,{"$error":"#DIV/0!"}]
[null,null,null,null,null,null,{"$error":"#DIV/0!"},"no",null,{"$error":"#DIV/0!"},null,{"$error":"#DIV/0!"}]
[null,null,null,null,null,null,{"$error":"#DIV/0!"},"no",null,{"$error":"#DIV/0!"},null,{"$error":"#DIV/0!"}]
[null,null,null,null,null,null,{"$error":"#DIV/0!"},"no",null,{"$error":"#DIV/0!"},null,{"$error":"#DIV/0!"}]
[null,null,null,null,null,null,{"$error":"#DIV/0!"},"no",null,{"$error":"#DIV/0!"},null,{"$error":"#DIV/0!"}]
[null,null,null,null,null,null,{"$error":"#DIV/0!"},"no",null,{"$error":"#DIV/0!"},null,{"$error":"#DIV/0!"}]
[null,null,null,null,null,null,{"$error":"#DIV/0!"},"no",null,{"$error":"#DIV/0!"},null,{"$error":"#DIV/0!"}]
[null,null,null,null,null,null,{"$error":"#DIV/0!"},"no",null,{"$error":"#DIV/0!"},null,{"$error":"#DIV/0!"}]
[null,null,null,null,null,null,{"$error":"#DIV/0!"},"no",null,{"$error":"#DIV/0!"},null,{"$error":"#DIV/0!"}]
[null,null,null,null,null,null,{"$error":"#DIV/0!"},"no",null,{"$error":"#DIV/0!"},null,{"$error":"#DIV/0!"}]
[null,null,null,null,null,null,{"$error":"#DIV/0!"},"no",null,{"$error":"#DIV/0!"},null,{"$error":"#DIV/0!"}]
[null,null,null,null,null,null,{"$error":"#DIV/0!"},"no",null,{"$error":"#DIV/0!"},null,{"$error":"#DIV/0!"}]
[null,null,null,null,null,null,{"$error":"#DIV/0!"},"no",null,{"$error":"#DIV/0!"},null,{"$error":"#DIV/0!"}]
[null,null,null,null,null,null,{"$error":"#DIV/0!"},"no",null,{"$error":"#DIV/0!"},null,{"$error":"#DIV/0!"}]
[null,null,null,null,null,null,{"$error":"#DIV/0!"},"no",null,{"$error":"#DIV/0!"},null,{"$error":"#DIV/0!"}]
[null,null,null,null,null,null,{"$error":"#DIV/0!"},"no",null,{"$error":"#DIV/0!"},null,{"$error":"#DIV/0!"}]
[null,null,null,null,null,null,{"$error":"#DIV/0!"},"no",null,{"$error":"#DIV/0!"},null,{"$error":"#DIV/0!"}]
[null,null,null,null,null,null,{"$error":"#DIV/0!"},"no",null,{"$error":"#DIV/0!"},null,{"$error":"#DIV/0!"}]
[null,null,null,null,null,null,{"$error":"#DIV/0!"},"no",null,{"$error":"#DIV/0!"},null,{"$error":"#DIV/0!"}]
[null,null,null,null,null,null,{"$error":"#DIV/0!"},"no",null,{"$error":"#DIV/0!"},null,{"$error":"#DIV/0!"}]
[null,null,null,null,null,null,{"$error":"#DIV/0!"},"no",null,{"$error":"#DIV/0!"},null,{"$error":"#DIV/0!"}]
[null,null,null,null,null,null,{"$error":"#DIV/0!"},"no",null,{"$error":"#DIV/0!"},null,{"$error":"#DIV/0!"}]
[null,null,null,null,null,null,{"$error":"#DIV/0!"},"no",null,{"$error":"#DIV/0!"},null,{"$error":"#DIV/0!"}]
[null,null,null,null,null,null,{"$error":"#DIV/0!"},"no",null,{"$error":"#DIV/0!"},null,{"$error":"#DIV/0!"}]
[null,null,null,null,null,null,{"$error":"#DIV/0!"},"no",null,{"$error":"#DIV/0!"},null,{"$error":"#DIV/0!"}]
[null,null,null,null,null,null,{"$error":"#DIV/0!"},"no",null,{"$error":"#DIV/0!"},null,{"$error":"#DIV/0!"}]
[null,null,null,null,null,null,{"$error":"#DIV/0!"},"no",null,{"$error":"#DIV/0!"},null,{"$error":"#DIV/0!"}]
[null,null,null,null,null,null,{"$error":"#DIV/0!"},"no",null,{"$error":"#DIV/0!"},null,{"$error":"#DIV/0!"}]
[null,null,null,null,null,null,{"$error":"#DIV/0!"},"no",null,{"$error":"#DIV/0!"},null,{"$error":"#DIV/0!"}]
[null,null,null,null,null,null,{"$error":"#DIV/0!"},"no",null,{"$error":"#DIV/0!"},null,{"$error":"#DIV/0!"}]
[null,null,null,null,null,null,{"$error":"#DIV/0!"},"no",null,{"$error":"#DIV/0!"},null,{"$error":"#DIV/0!"}]
[null,null,null,null,null,null,{"$error":"#DIV/0!"},"no",null,{"$error":"#DIV/0!"},null,{"$error":"#DIV/0!"}]
[null,null,null,null,null,null,{"$error":"#DIV/0!"},"no",null,{"$error":"#DIV/0!"},null,{"$error":"#DIV/0!"}]
[null,null,null,null,null,null,{"$error":"#DIV/0!"},"no",null,{"$error":"#DIV/0!"},null,{"$error":"#DIV/0!"}]
[null,null,null,null,null,null,{"$error":"#DIV/0!"},"no",null,{"$error":"#DIV/0!"},null,{"$error":"#DIV/0!"}]
[null,null,null,null,null,null,{"$error":"#DIV/0!"},"no",null,{"$error":"#DIV/0!"},null,{"$error":"#DIV/0!"}]
[null,null,null,null,null,null,{"$error":"#DIV/0!"},"no",null,{"$error":"#DIV/0!"},null,{"$error":"#DIV/0!"}]
[null,null,null,null,null,null,{"$error":"#DIV/0!"},"no",null,{"$error":"#DIV/0!"},null,{"$error":"#DIV/0!"}]
[null,null,null,null,null,null,{"$error":"#DIV/0!"},"no",null,{"$error":"#DIV/0!"},null,{"$error":"#DIV/0!"}]
[null,null,null,null,null,null,{"$error":"#DIV/0!"},"no",null,{"$error":"#DIV/0!"},null,{"$error":"#DIV/0!"}]
[null,null,null,null,null,null,{"$error":"#DIV/0!"},"no",null,{"$error":"#DIV/0!"},null,{"$error":"#DIV/0!"}]
[null,null,null,null,null,null,{"$error":"#DIV/0!"},"no",null,{"$error":"#DIV/0!"},null,{"$error":"#DIV/0!"}]
[null,null,null,null,null,null,{"$error":"#DIV/0!"},"no",null,{"$error":"#DIV/0!"},null,{"$error":"#DIV/0!"}]
[null,null,null,null,null,null,{"$error":"#DIV/0!"},"no",null,{"$error":"#DIV/0!"},null,{"$error":"#DIV/0!"}]
[null,null,null,null,null,null,{"$error":"#DIV/0!"},"no",null,{"$error":"#DIV/0!"},null,{"$error":"#DIV/0!"}]
[null,null,null,null,null,null,{"$error":"#DIV/0!"},"no",null,{"$error":"#DIV/0!"},null,{"$error":"#DIV/0!"}]
[null,null,null,null,null,null,{"$error":"#DIV/0!"},"no",null,{"$error":"#DIV/0!"},null,{"$error":"#DIV/0!"}]
[null,null,null,null,null,null,{"$error":"#DIV/0!"},"no",null,{"$error":"#DIV/0!"},null,{"$error":"#DIV/0!"}]
[null,null,null,null,null,null,{"$error":"#DIV/0!"},"no",null,{"$error":"#DIV/0!"},null,{"$error":"#DIV/0!"}]
[null,null,null,null,null,null,{"$error":"#DIV/0!"},"no",null,{"$error":"#DIV/0!"},null,{"$error":"#DIV/0!"}]
[null,null,null,null,null,null,{"$error":"#DIV/0!"},"no",null,{"$error":"#DIV/0!"},null,{"$error":"#DIV/0!"}]
[null,null,null,null,null,null,{"$error":"#DIV/0!"},"no",null,{"$error":"#DIV/0!"},null,{"$error":"#DIV/0!"}]
[null,null,null,null,null,null,{"$error":"#DIV/0!"},"no",null,{"$error":"#DIV/0!"},null,{"$error":"#DIV/0!"}]
[null,null,null,null,null,null,{"$error":"#DIV/0!"},"no",null,{"$error":"#DIV/0!"},null,{"$error":"#DIV/0!"}]
[null,null,null,null,null,null,{"$error":"#DIV/0!"},"no",null,{"$error":"#DIV/0!"},null,{"$error":"#DIV/0!"}]
[null,null,null,null,null,null,{"$error":"#DIV/0!"},"no",null,{"$error":"#DIV/0!"},null,{"$error":"#DIV/0!"}]
[null,null,null,null,null,null,{"$error":"#DIV/0!"},"no",null,{"$error":"#DIV/0!"},null,{"$error":"#DIV/0!"}]
[null,null,null,null,null,null,{"$error":"#DIV/0!"},"no",null,{"$error":"#DIV/0!"},null,{"$error":"#DIV/0!"}]
[null,null,null,null,null,null,{"$error":"#DIV/0!"},"no",null,{"$error":"#DIV/0!"},null,{"$error":"#DIV/0!"}]
[null,null,null,null,null,null,{"$error":"#DIV/0!"},"no",null,{"$error":"#DIV/0!"},null,{"$f":"IF(J779=-600,\"Refer to Note (1) of Table 3.50 C1 or 3.53 C1\",\" \")","v":{"$error":"#DIV/0!"}}]
[null,null,null,null,null,null,{"$f":"ROUND(AVERAGE(E780:F780),2)","v":{"$error":"#DIV/0!"}},"no",null,{"$f":"IF(I780=\"SI\",IF(H780=\"yes\",\"Excluded Area\",IF(G780<0.55,250,IF(G780<0.71,150,IF(G780<1.01,0,IF(G780<1.51,(800-900*G780),-600))))),IF(I780=\"SII\",IF(H780=\"yes\",\"Excluded Area\",IF(G780<0.55,250,IF(G780<0.81,150, IF(G780<1.16,0, IF(G780<1.51,(1380-1230*G780),-600))))),IF(H780=\"yes\",\"Excluded Area\",IF(G780<0.55,250,IF(G780<0.81,150, IF(G780<1.51,0, IF(G780<=1.8,(730-540*G780),-600)))))))","v":{"$error":"#DIV/0!"}},null,{"$error":"#DIV/0!"}]
[null,null,null,null,null,null,{"$error":"#DIV/0!"},"no",null,{"$error":"#DIV/0!"},null,{"$error":"#DIV/0!"}]
[null,null,null,null,null,null,{"$error":"#DIV/0!"},"no",null,{"$error":"#DIV/0!"},null,{"$error":"#DIV/0!"}]
[null,null,null,null,null,null,{"$error":"#DIV/0!"},"no",null,{"$error":"#DIV/0!"},null,{"$error":"#DIV/0!"}]
[null,null,null,null,null,null,{"$error":"#DIV/0!"},"no",null,{"$error":"#DIV/0!"},null,{"$error":"#DIV/0!"}]
[null,null,null,null,null,null,{"$error":"#DIV/0!"},"no",null,{"$error":"#DIV/0!"},null,{"$error":"#DIV/0!"}]
[null,null,null,null,null,null,{"$error":"#DIV/0!"},"no",null,{"$error":"#DIV/0!"},null,{"$error":"#DIV/0!"}]
[null,null,null,null,null,null,{"$error":"#DIV/0!"},"no",null,{"$error":"#DIV/0!"},null,{"$error":"#DIV/0!"}]
[null,null,null,null,null,null,{"$error":"#DIV/0!"},"no",null,{"$error":"#DIV/0!"},null,{"$error":"#DIV/0!"}]
[null,null,null,null,null,null,{"$error":"#DIV/0!"},"no",null,{"$error":"#DIV/0!"},null,{"$error":"#DIV/0!"}]
[null,null,null,null,null,null,{"$error":"#DIV/0!"},"no",null,{"$error":"#DIV/0!"},null,{"$error":"#DIV/0!"}]
[null,null,null,null,null,null,{"$error":"#DIV/0!"},"no",null,{"$error":"#DIV/0!"},null,{"$error":"#DIV/0!"}]
[null,null,null,null,null,null,{"$error":"#DIV/0!"},"no",null,{"$error":"#DIV/0!"},null,{"$error":"#DIV/0!"}]
[null,null,null,null,null,null,{"$error":"#DIV/0!"},"no",null,{"$error":"#DIV/0!"},null,{"$error":"#DIV/0!"}]
[null,null,null,null,null,null,{"$error":"#DIV/0!"},"no",null,{"$error":"#DIV/0!"},null,{"$error":"#DIV/0!"}]
[null,null,null,null,null,null,{"$error":"#DIV/0!"},"no",null,{"$error":"#DIV/0!"},null,{"$error":"#DIV/0!"}]
[null,null,null,null,null,null,{"$error":"#DIV/0!"},"no",null,{"$error":"#DIV/0!"},null,{"$error":"#DIV/0!"}]
[null,null,null,null,null,null,{"$error":"#DIV/0!"},"no",null,{"$error":"#DIV/0!"},null,{"$error":"#DIV/0!"}]
[null,null,null,null,null,null,{"$error":"#DIV/0!"},"no",null,{"$error":"#DIV/0!"},null,{"$error":"#DIV/0!"}]
[null,null,null,null,null,null,{"$error":"#DIV/0!"},"no",null,{"$error":"#DIV/0!"},null,{"$error":"#DIV/0!"}]
[null,null,null,null,null,null,{"$error":"#DIV/0!"},"no",null,{"$error":"#DIV/0!"},null,{"$error":"#DIV/0!"}]
[null,null,null,null,null,null,{"$error":"#DIV/0!"},"no",null,{"$error":"#DIV/0!"},null,{"$error":"#DIV/0!"}]
[null,null,null,null,null,null,{"$error":"#DIV/0!"},"no",null,{"$error":"#DIV/0!"},null,{"$error":"#DIV/0!"}]
[null,null,null,null,null,null,{"$error":"#DIV/0!"},"no",null,{"$error":"#DIV/0!"},null,{"$error":"#DIV/0!"}]
[null,null,null,null,null,null,{"$error":"#DIV/0!"},"no",null,{"$error":"#DIV/0!"},null,{"$error":"#DIV/0!"}]
[null,null,null,null,null,null,{"$error":"#DIV/0!"},"no",null,{"$error":"#DIV/0!"},null,{"$error":"#DIV/0!"}]
[null,null,null,null,null,null,{"$error":"#DIV/0!"},"no",null,{"$error":"#DIV/0!"},null,{"$error":"#DIV/0!"}]
[null,null,null,null,null,null,{"$error":"#DIV/0!"},"no",null,{"$error":"#DIV/0!"},null,{"$error":"#DIV/0!"}]
[null,null,null,null,null,null,{"$error":"#DIV/0!"},"no",null,{"$error":"#DIV/0!"},null,{"$error":"#DIV/0!"}]
[null,null,null,null,null,null,{"$error":"#DIV/0!"},"no",null,{"$error":"#DIV/0!"},null,{"$error":"#DIV/0!"}]
[null,null,null,null,null,null,{"$error":"#DIV/0!"},"no",null,{"$error":"#DIV/0!"},null,{"$error":"#DIV/0!"}]
[null,null,null,null,null,null,{"$error":"#DIV/0!"},"no",null,{"$error":"#DIV/0!"},null,{"$error":"#DIV/0!"}]
[null,null,null,null,null,null,{"$error":"#DIV/0!"},"no",null,{"$error":"#DIV/0!"},null,{"$error":"#DIV/0!"}]
[null,null,null,null,null,null,{"$error":"#DIV/0!"},"no",null,{"$error":"#DIV/0!"},null,{"$error":"#DIV/0!"}]
[null,null,null,null,null,null,{"$error":"#DIV/0!"},"no",null,{"$error":"#DIV/0!"},null,{"$error":"#DIV/0!"}]
[null,null,null,null,null,null,{"$error":"#DIV/0!"},"no",null,{"$error":"#DIV/0!"},null,{"$error":"#DIV/0!"}]
[null,null,null,null,null,null,{"$error":"#DIV/0!"},"no",null,{"$error":"#DIV/0!"},null,{"$error":"#DIV/0!"}]
[null,null,null,null,null,null,{"$error":"#DIV/0!"},"no",null,{"$error":"#DIV/0!"},null,{"$error":"#DIV/0!"}]
[null,null,null,null,null,null,{"$error":"#DIV/0!"},"no",null,{"$error":"#DIV/0!"},null,{"$error":"#DIV/0!"}]
[null,null,null,null,null,null,{"$error":"#DIV/0!"},"no",null,{"$error":"#DIV/0!"},null,{"$error":"#DIV/0!"}]
[null,null,null,null,null,null,{"$error":"#DIV/0!"},"no",null,{"$error":"#DIV/0!"},null,{"$error":"#DIV/0!"}]
[null,null,null,null,null,null,{"$error":"#DIV/0!"},"no",null,{"$error":"#DIV/0!"},null,{"$error":"#DIV/0!"}]
[null,null,null,null,null,null,{"$error":"#DIV/0!"},"no",null,{"$error":"#DIV/0!"},null,{"$error":"#DIV/0!"}]
[null,null,null,null,null,null,{"$error":"#DIV/0!"},"no",null,{"$error":"#DIV/0!"},null,{"$error":"#DIV/0!"}]
[null,null,null,null,null,null,{"$error":"#DIV/0!"},"no",null,{"$error":"#DIV/0!"},null,{"$error":"#DIV/0!"}]
[null,null,null,null,null,null,{"$error":"#DIV/0!"},"no",null,{"$error":"#DIV/0!"},null,{"$error":"#DIV/0!"}]
[null,null,null,null,null,null,{"$error":"#DIV/0!"},"no",null,{"$error":"#DIV/0!"},null,{"$error":"#DIV/0!"}]
[null,null,null,null,null,null,{"$error":"#DIV/0!"},"no",null,{"$error":"#DIV/0!"},null,{"$error":"#DIV/0!"}]
[null,null,null,null,null,null,{"$error":"#DIV/0!"},"no",null,{"$error":"#DIV/0!"},null,{"$error":"#DIV/0!"}]
[null,null,null,null,null,null,{"$error":"#DIV/0!"},"no",null,{"$error":"#DIV/0!"},null,{"$error":"#DIV/0!"}]
[null,null,null,null,null,null,{"$error":"#DIV/0!"},"no",null,{"$error":"#DIV/0!"},null,{"$error":"#DIV/0!"}]
[null,null,null,null,null,null,{"$error":"#DIV/0!"},"no",null,{"$error":"#DIV/0!"},null,{"$error":"#DIV/0!"}]
[null,null,null,null,null,null,{"$error":"#DIV/0!"},"no",null,{"$error":"#DIV/0!"},null,{"$error":"#DIV/0!"}]
[null,null,null,null,null,null,{"$error":"#DIV/0!"},"no",null,{"$error":"#DIV/0!"},null,{"$error":"#DIV/0!"}]
[null,null,null,null,null,null,{"$error":"#DIV/0!"},"no",null,{"$error":"#DIV/0!"},null,{"$error":"#DIV/0!"}]
[null,null,null,null,null,null,{"$error":"#DIV/0!"},"no",null,{"$error":"#DIV/0!"},null,{"$error":"#DIV/0!"}]
[null,null,null,null,null,null,{"$error":"#DIV/0!"},"no",null,{"$error":"#DIV/0!"},null,{"$error":"#DIV/0!"}]
[null,null,null,null,null,null,{"$error":"#DIV/0!"},"no",null,{"$error":"#DIV/0!"},null,{"$error":"#DIV/0!"}]
[null,null,null,null,null,null,{"$error":"#DIV/0!"},"no",null,{"$error":"#DIV/0!"},null,{"$error":"#DIV/0!"}]
[null,null,null,null,null,null,{"$error":"#DIV/0!"},"no",null,{"$error":"#DIV/0!"},null,{"$error":"#DIV/0!"}]
[null,null,null,null,null,null,{"$error":"#DIV/0!"},"no",null,{"$error":"#DIV/0!"},null,{"$error":"#DIV/0!"}]
[null,null,null,null,null,null,{"$error":"#DIV/0!"},"no",null,{"$error":"#DIV/0!"},null,{"$error":"#DIV/0!"}]
[null,null,null,null,null,null,{"$error":"#DIV/0!"},"no",null,{"$error":"#DIV/0!"},null,{"$error":"#DIV/0!"}]
[null,null,null,null,null,null,{"$error":"#DIV/0!"},"no",null,{"$error":"#DIV/0!"},null,{"$f":"IF(J843=-600,\"Refer to Note (1) of Table 3.50 C1 or 3.53 C1\",\" \")","v":{"$error":"#DIV/0!"}}]
[null,null,null,null,null,null,{"$f":"ROUND(AVERAGE(E844:F844),2)","v":{"$error":"#DIV/0!"}},"no",null,{"$f":"IF(I844=\"SI\",IF(H844=\"yes\",\"Excluded Area\",IF(G844<0.55,250,IF(G844<0.71,150,IF(G844<1.01,0,IF(G844<1.51,(800-900*G844),-600))))),IF(I844=\"SII\",IF(H844=\"yes\",\"Excluded Area\",IF(G844<0.55,250,IF(G844<0.81,150, IF(G844<1.16,0, IF(G844<1.51,(1380-1230*G844),-600))))),IF(H844=\"yes\",\"Excluded Area\",IF(G844<0.55,250,IF(G844<0.81,150, IF(G844<1.51,0, IF(G844<=1.8,(730-540*G844),-600)))))))","v":{"$error":"#DIV/0!"}},null,{"$error":"#DIV/0!"}]
[null,null,null,null,null,null,{"$error":"#DIV/0!"},"no",null,{"$error":"#DIV/0!"},null,{"$error":"#DIV/0!"}]
[null,null,null,null,null,null,{"$error":"#DIV/0!"},"no",null,{"$error":"#DIV/0!"},null,{"$error":"#DIV/0!"}]
[null,null,null,null,null,null,{"$error":"#DIV/0!"},"no",null,{"$error":"#DIV/0!"},null,{"$error":"#DIV/0!"}]
[null,null,null,null,null,null,{"$error":"#DIV/0!"},"no",null,{"$error":"#DIV/0!"},null,{"$error":"#DIV/0!"}]
[null,null,null,null,null,null,{"$error":"#DIV/0!"},"no",null,{"$error":"#DIV/0!"},null,{"$error":"#DIV/0!"}]
[null,null,null,null,null,null,{"$error":"#DIV/0!"},"no",null,{"$error":"#DIV/0!"},null,{"$error":"#DIV/0!"}]
[null,null,null,null,null,null,{"$error":"#DIV/0!"},"no",null,{"$error":"#DIV/0!"},null,{"$error":"#DIV/0!"}]
[null,null,null,null,null,null,{"$error":"#DIV/0!"},"no",null,{"$error":"#DIV/0!"},null,{"$error":"#DIV/0!"}]
[null,null,null,null,null,null,{"$error":"#DIV/0!"},"no",null,{"$error":"#DIV/0!"},null,{"$error":"#DIV/0!"}]
[null,null,null,null,null,null,{"$error":"#DIV/0!"},"no",null,{"$error":"#DIV/0!"},null,{"$error":"#DIV/0!"}]
[null,null,null,null,null,null,{"$error":"#DIV/0!"},"no",null,{"$error":"#DIV/0!"},null,{"$error":"#DIV/0!"}]
[null,null,null,null,null,null,{"$error":"#DIV/0!"},"no",null,{"$error":"#DIV/0!"},null,{"$error":"#DIV/0!"}]
[null,null,null,null,null,null,{"$error":"#DIV/0!"},"no",null,{"$error":"#DIV/0!"},null,{"$error":"#DIV/0!"}]
[null,null,null,null,null,null,{"$error":"#DIV/0!"},"no",null,{"$error":"#DIV/0!"},null,{"$error":"#DIV/0!"}]
[null,null,null,null,null,null,{"$error":"#DIV/0!"},"no",null,{"$error":"#DIV/0!"},null,{"$error":"#DIV/0!"}]
[null,null,null,null,null,null,{"$error":"#DIV/0!"},"no",null,{"$error":"#DIV/0!"},null,{"$error":"#DIV/0!"}]
[null,null,null,null,null,null,{"$error":"#DIV/0!"},"no",null,{"$error":"#DIV/0!"},null,{"$error":"#DIV/0!"}]
[null,null,null,null,null,null,{"$error":"#DIV/0!"},"no",null,{"$error":"#DIV/0!"},null,{"$error":"#DIV/0!"}]
[null,null,null,null,null,null,{"$error":"#DIV/0!"},"no",null,{"$error":"#DIV/0!"},null,{"$error":"#DIV/0!"}]
[null,null,null,null,null,null,{"$error":"#DIV/0!"},"no",null,{"$error":"#DIV/0!"},null,{"$error":"#DIV/0!"}]
[null,null,null,null,null,null,{"$error":"#DIV/0!"},"no",null,{"$error":"#DIV/0!"},null,{"$error":"#DIV/0!"}]
[null,null,null,null,null,null,{"$error":"#DIV/0!"},"no",null,{"$error":"#DIV/0!"},null,{"$error":"#DIV/0!"}]
[null,null,null,null,null,null,{"$error":"#DIV/0!"},"no",null,{"$error":"#DIV/0!"},null,{"$error":"#DIV/0!"}]
[null,null,null,null,null,null,{"$error":"#DIV/0!"},"no",null,{"$error":"#DIV/0!"},null,{"$error":"#DIV/0!"}]
[null,null,null,null,null,null,{"$error":"#DIV/0!"},"no",null,{"$error":"#DIV/0!"},null,{"$error":"#DIV/0!"}]
[null,null,null,null,null,null,{"$error":"#DIV/0!"},"no",null,{"$error":"#DIV/0!"},null,{"$error":"#DIV/0!"}]
[null,null,null,null,null,null,{"$error":"#DIV/0!"},"no",null,{"$error":"#DIV/0!"},null,{"$error":"#DIV/0!"}]
[null,null,null,null,null,null,{"$error":"#DIV/0!"},"no",null,{"$error":"#DIV/0!"},null,{"$error":"#DIV/0!"}]
[null,null,null,null,null,null,{"$error":"#DIV/0!"},"no",null,{"$error":"#DIV/0!"},null,{"$error":"#DIV/0!"}]
[null,null,null,null,null,null,{"$error":"#DIV/0!"},"no",null,{"$error":"#DIV/0!"},null,{"$error":"#DIV/0!"}]
[null,null,null,null,null,null,{"$error":"#DIV/0!"},"no",null,{"$error":"#DIV/0!"},null,{"$error":"#DIV/0!"}]
[null,null,null,null,null,null,{"$error":"#DIV/0!"},"no",null,{"$error":"#DIV/0!"},null,{"$error":"#DIV/0!"}]
[null,null,null,null,null,null,{"$error":"#DIV/0!"},"no",null,{"$error":"#DIV/0!"},null,{"$error":"#DIV/0!"}]
[null,null,null,null,null,null,{"$error":"#DIV/0!"},"no",null,{"$error":"#DIV/0!"},null,{"$error":"#DIV/0!"}]
[null,null,null,null,null,null,{"$error":"#DIV/0!"},"no",null,{"$error":"#DIV/0!"},null,{"$error":"#DIV/0!"}]
[null,null,null,null,null,null,{"$error":"#DIV/0!"},"no",null,{"$error":"#DIV/0!"},null,{"$error":"#DIV/0!"}]
[null,null,null,null,null,null,{"$error":"#DIV/0!"},"no",null,{"$error":"#DIV/0!"},null,{"$error":"#DIV/0!"}]
[null,null,null,null,null,null,{"$error":"#DIV/0!"},"no",null,{"$error":"#DIV/0!"},null,{"$error":"#DIV/0!"}]
[null,null,null,null,null,null,{"$error":"#DIV/0!"},"no",null,{"$error":"#DIV/0!"},null,{"$error":"#DIV/0!"}]
[null,null,null,null,null,null,{"$error":"#DIV/0!"},"no",null,{"$error":"#DIV/0!"},null,{"$error":"#DIV/0!"}]
[null,null,null,null,null,null,{"$error":"#DIV/0!"},"no",null,{"$error":"#DIV/0!"},null,{"$error":"#DIV/0!"}]
[null,null,null,null,null,null,{"$error":"#DIV/0!"},"no",null,{"$error":"#DIV/0!"},null,{"$error":"#DIV/0!"}]
[null,null,null,null,null,null,{"$error":"#DIV/0!"},"no",null,{"$error":"#DIV/0!"},null,{"$error":"#DIV/0!"}]
[null,null,null,null,null,null,{"$error":"#DIV/0!"},"no",null,{"$error":"#DIV/0!"},null,{"$error":"#DIV/0!"}]
[null,null,null,null,null,null,{"$error":"#DIV/0!"},"no",null,{"$error":"#DIV/0!"},null,{"$error":"#DIV/0!"}]
[null,null,null,null,null,null,{"$error":"#DIV/0!"},"no",null,{"$error":"#DIV/0!"},null,{"$error":"#DIV/0!"}]
[null,null,null,null,null,null,{"$error":"#DIV/0!"},"no",null,{"$error":"#DIV/0!"},null,{"$error":"#DIV/0!"}]
[null,null,null,null,null,null,{"$error":"#DIV/0!"},"no",null,{"$error":"#DIV/0!"},null,{"$error":"#DIV/0!"}]
[null,null,null,null,null,null,{"$error":"#DIV/0!"},"no",null,{"$error":"#DIV/0!"},null,{"$error":"#DIV/0!"}]
[null,null,null,null,null,null,{"$error":"#DIV/0!"},"no",null,{"$error":"#DIV/0!"},null,{"$error":"#DIV/0!"}]
[null,null,null,null,null,null,{"$error":"#DIV/0!"},"no",null,{"$error":"#DIV/0!"},null,{"$error":"#DIV/0!"}]
[null,null,null,null,null,null,{"$error":"#DIV/0!"},"no",null,{"$error":"#DIV/0!"},null,{"$error":"#DIV/0!"}]
[null,null,null,null,null,null,{"$error":"#DIV/0!"},"no",null,{"$error":"#DIV/0!"},null,{"$error":"#DIV/0!"}]
[null,null,null,null,null,null,{"$error":"#DIV/0!"},"no",null,{"$error":"#DIV/0!"},null,{"$error":"#DIV/0!"}]
[null,null,null,null,null,null,{"$error":"#DIV/0!"},"no",null,{"$error":"#DIV/0!"},null,{"$error":"#DIV/0!"}]
[null,null,null,null,null,null,{"$error":"#DIV/0!"},"no",null,{"$error":"#DIV/0!"},null,{"$error":"#DIV/0!"}]
[null,null,null,null,null,null,{"$error":"#DIV/0!"},"no",null,{"$error":"#DIV/0!"},null,{"$error":"#DIV/0!"}]
[null,null,null,null,null,null,{"$error":"#DIV/0!"},"no",null,{"$error":"#DIV/0!"},null,{"$error":"#DIV/0!"}]
[null,null,null,null,null,null,{"$error":"#DIV/0!"},"no",null,{"$error":"#DIV/0!"},null,{"$error":"#DIV/0!"}]
[null,null,null,null,null,null,{"$error":"#DIV/0!"},"no",null,{"$error":"#DIV/0!"},null,{"$error":"#DIV/0!"}]
[null,null,null,null,null,null,{"$error":"#DIV/0!"},"no",null,{"$error":"#DIV/0!"},null,{"$error":"#DIV/0!"}]
[null,null,null,null,null,null,{"$error":"#DIV/0!"},"no",null,{"$error":"#DIV/0!"},null,{"$error":"#DIV/0!"}]
[null,null,null,null,null,null,{"$error":"#DIV/0!"},"no",null,{"$error":"#DIV/0!"},null,{"$f":"IF(J907=-600,\"Refer to Note (1) of Table 3.50 C1 or 3.53 C1\",\" \")","v":{"$error":"#DIV/0!"}}]
[null,null,null,null,null,null,{"$f":"ROUND(AVERAGE(E908:F908),2)","v":{"$error":"#DIV/0!"}},"no",null,{"$f":"IF(I908=\"SI\",IF(H908=\"yes\",\"Excluded Area\",IF(G908<0.55,250,IF(G908<0.71,150,IF(G908<1.01,0,IF(G908<1.51,(800-900*G908),-600))))),IF(I908=\"SII\",IF(H908=\"yes\",\"Excluded Area\",IF(G908<0.55,250,IF(G908<0.81,150, IF(G908<1.16,0, IF(G908<1.51,(1380-1230*G908),-600))))),IF(H908=\"yes\",\"Excluded Area\",IF(G908<0.55,250,IF(G908<0.81,150, IF(G908<1.51,0, IF(G908<=1.8,(730-540*G908),-600)))))))","v":{"$error":"#DIV/0!"}},null,{"$error":"#DIV/0!"}]
[null,null,null,null,null,null,{"$error":"#DIV/0!"},"no",null,{"$error":"#DIV/0!"},null,{"$error":"#DIV/0!"}]
[null,null,null,null,null,null,{"$error":"#DIV/0!"},"no",null,{"$error":"#DIV/0!"},null,{"$error":"#DIV/0!"}]
[null,null,null,null,null,null,{"$error":"#DIV/0!"},"no",null,{"$error":"#DIV/0!"},null,{"$error":"#DIV/0!"}]
[null,null,null,null,null,null,{"$error":"#DIV/0!"},"no",null,{"$error":"#DIV/0!"},null,{"$error":"#DIV/0!"}]
[null,null,null,null,null,null,{"$error":"#DIV/0!"},"no",null,{"$error":"#DIV/0!"},null,{"$error":"#DIV/0!"}]
[null,null,null,null,null,null,{"$error":"#DIV/0!"},"no",null,{"$error":"#DIV/0!"},null,{"$error":"#DIV/0!"}]
[null,null,null,null,null,null,{"$error":"#DIV/0!"},"no",null,{"$error":"#DIV/0!"},null,{"$error":"#DIV/0!"}]
[null,null,null,null,null,null,{"$error":"#DIV/0!"},"no",null,{"$error":"#DIV/0!"},null,{"$error":"#DIV/0!"}]
[null,null,null,null,null,null,{"$error":"#DIV/0!"},"no",null,{"$error":"#DIV/0!"},null,{"$error":"#DIV/0!"}]
[null,null,null,null,null,null,{"$error":"#DIV/0!"},"no",null,{"$error":"#DIV/0!"},null,{"$error":"#DIV/0!"}]
[null,null,null,null,null,null,{"$error":"#DIV/0!"},"no",null,{"$error":"#DIV/0!"},null,{"$error":"#DIV/0!"}]
[null,null,null,null,null,null,{"$error":"#DIV/0!"},"no",null,{"$error":"#DIV/0!"},null,{"$error":"#DIV/0!"}]
[null,null,null,null,null,null,{"$error":"#DIV/0!"},"no",null,{"$error":"#DIV/0!"},null,{"$error":"#DIV/0!"}]
[null,null,null,null,null,null,{"$error":"#DIV/0!"},"no",null,{"$error":"#DIV/0!"},null,{"$error":"#DIV/0!"}]
[null,null,null,null,null,null,{"$error":"#DIV/0!"},"no",null,{"$error":"#DIV/0!"},null,{"$error":"#DIV/0!"}]
[null,null,null,null,null,null,{"$error":"#DIV/0!"},"no",null,{"$error":"#DIV/0!"},null,{"$error":"#DIV/0!"}]
[null,null,null,null,null,null,{"$error":"#DIV/0!"},"no",null,{"$error":"#DIV/0!"},null,{"$error":"#DIV/0!"}]
[null,null,null,null,null,null,{"$error":"#DIV/0!"},"no",null,{"$error":"#DIV/0!"},null,{"$error":"#DIV/0!"}]
[null,null,null,null,null,null,{"$error":"#DIV/0!"},"no",null,{"$error":"#DIV/0!"},null,{"$error":"#DIV/0!"}]
[null,null,null,null,null,null,{"$error":"#DIV/0!"},"no",null,{"$error":"#DIV/0!"},null,{"$error":"#DIV/0!"}]
[null,null,null,null,null,null,{"$error":"#DIV/0!"},"no",null,{"$error":"#DIV/0!"},null,{"$error":"#DIV/0!"}]
[null,null,null,null,null,null,{"$error":"#DIV/0!"},"no",null,{"$error":"#DIV/0!"},null,{"$error":"#DIV/0!"}]
[null,null,null,null,null,null,{"$error":"#DIV/0!"},"no",null,{"$error":"#DIV/0!"},null,{"$error":"#DIV/0!"}]
[null,null,null,null,null,null,{"$error":"#DIV/0!"},"no",null,{"$error":"#DIV/0!"},null,{"$error":"#DIV/0!"}]
[null,null,null,null,null,null,{"$error":"#DIV/0!"},"no",null,{"$error":"#DIV/0!"},null,{"$error":"#DIV/0!"}]
[null,null,null,null,null,null,{"$error":"#DIV/0!"},"no",null,{"$error":"#DIV/0!"},null,{"$error":"#DIV/0!"}]
[null,null,null,null,null,null,{"$error":"#DIV/0!"},"no",null,{"$error":"#DIV/0!"},null,{"$error":"#DIV/0!"}]
[null,null,null,null,null,null,{"$error":"#DIV/0!"},"no",null,{"$error":"#DIV/0!"},null,{"$error":"#DIV/0!"}]
[null,null,null,null,null,null,{"$error":"#DIV/0!"},"no",null,{"$error":"#DIV/0!"},null,{"$error":"#DIV/0!"}]
[null,null,null,null,null,null,{"$error":"#DIV/0!"},"no",null,{"$error":"#DIV/0!"},null,{"$error":"#DIV/0!"}]
[null,null,null,null,null,null,{"$error":"#DIV/0!"},"no",null,{"$error":"#DIV/0!"},null,{"$error":"#DIV/0!"}]
[null,null,null,null,null,null,{"$error":"#DIV/0!"},"no",null,{"$error":"#DIV/0!"},null,{"$error":"#DIV/0!"}]
[null,null,null,null,null,null,{"$error":"#DIV/0!"},"no",null,{"$error":"#DIV/0!"},null,{"$error":"#DIV/0!"}]
[null,null,null,null,null,null,{"$error":"#DIV/0!"},"no",null,{"$error":"#DIV/0!"},null,{"$error":"#DIV/0!"}]
[null,null,null,null,null,null,{"$error":"#DIV/0!"},"no",null,{"$error":"#DIV/0!"},null,{"$error":"#DIV/0!"}]
[null,null,null,null,null,null,{"$error":"#DIV/0!"},"no",null,{"$error":"#DIV/0!"},null,{"$error":"#DIV/0!"}]
[null,null,null,null,null,null,{"$error":"#DIV/0!"},"no",null,{"$error":"#DIV/0!"},null,{"$error":"#DIV/0!"}]
[null,null,null,null,null,null,{"$error":"#DIV/0!"},"no",null,{"$error":"#DIV/0!"},null,{"$error":"#DIV/0!"}]
[null,null,null,null,null,null,{"$error":"#DIV/0!"},"no",null,{"$error":"#DIV/0!"},null,{"$error":"#DIV/0!"}]
[null,null,null,null,null,null,{"$error":"#DIV/0!"},"no",null,{"$error":"#DIV/0!"},null,{"$error":"#DIV/0!"}]
[null,null,null,null,null,null,{"$error":"#DIV/0!"},"no",null,{"$error":"#DIV/0!"},null,{"$error":"#DIV/0!"}]
[null,null,null,null,null,null,{"$error":"#DIV/0!"},"no",null,{"$error":"#DIV/0!"},null,{"$error":"#DIV/0!"}]
[null,null,null,null,null,null,{"$error":"#DIV/0!"},"no",null,{"$error":"#DIV/0!"},null,{"$error":"#DIV/0!"}]
[null,null,null,null,null,null,{"$error":"#DIV/0!"},"no",null,{"$error":"#DIV/0!"},null,{"$error":"#DIV/0!"}]
[null,null,null,null,null,null,{"$error":"#DIV/0!"},"no",null,{"$error":"#DIV/0!"},null,{"$error":"#DIV/0!"}]
[null,null,null,null,null,null,{"$error":"#DIV/0!"},"no",null,{"$error":"#DIV/0!"},null,{"$error":"#DIV/0!"}]
[null,null,null,null,null,null,{"$error":"#DIV/0!"},"no",null,{"$error":"#DIV/0!"},null,{"$error":"#DIV/0!"}]
[null,null,null,null,null,null,{"$error":"#DIV/0!"},"no",null,{"$error":"#DIV/0!"},null,{"$error":"#DIV/0!"}]
[null,null,null,null,null,null,{"$error":"#DIV/0!"},"no",null,{"$error":"#DIV/0!"},null,{"$error":"#DIV/0!"}]
[null,null,null,null,null,null,{"$error":"#DIV/0!"},"no",null,{"$error":"#DIV/0!"},null,{"$error":"#DIV/0!"}]
[null,null,null,null,null,null,{"$error":"#DIV/0!"},"no",null,{"$error":"#DIV/0!"},null,{"$error":"#DIV/0!"}]
[null,null,null,null,null,null,{"$error":"#DIV/0!"},"no",null,{"$error":"#DIV/0!"},null,{"$error":"#DIV/0!"}]
[null,null,null,null,null,null,{"$error":"#DIV/0!"},"no",null,{"$error":"#DIV/0!"},null,{"$error":"#DIV/0!"}]
[null,null,null,null,null,null,{"$error":"#DIV/0!"},"no",null,{"$error":"#DIV/0!"},null,{"$error":"#DIV/0!"}]
[null,null,null,null,null,null,{"$error":"#DIV/0!"},"no",null,{"$error":"#DIV/0!"},null,{"$error":"#DIV/0!"}]
[null,null,null,null,null,null,{"$error":"#DIV/0!"},"no",null,{"$error":"#DIV/0!"},null,{"$error":"#DIV/0!"}]
[null,null,null,null,null,null,{"$error":"#DIV/0!"},"no",null,{"$error":"#DIV/0!"},null,{"$error":"#DIV/0!"}]
[null,null,null,null,null,null,{"$error":"#DIV/0!"},"no",null,{"$error":"#DIV/0!"},null,{"$error":"#DIV/0!"}]
[null,null,null,null,null,null,{"$error":"#DIV/0!"},"no",null,{"$error":"#DIV/0!"},null,{"$error":"#DIV/0!"}]
[null,null,null,null,null,null,{"$error":"#DIV/0!"},"no",null,{"$error":"#DIV/0!"},null,{"$error":"#DIV/0!"}]
[null,null,null,null,null,null,{"$error":"#DIV/0!"},"no",null,{"$error":"#DIV/0!"},null,{"$error":"#DIV/0!"}]
[null,null,null,null,null,null,{"$error":"#DIV/0!"},"no",null,{"$error":"#DIV/0!"},null,{"$error":"#DIV/0!"}]
[null,null,null,null,null,null,{"$error":"#DIV/0!"},"no",null,{"$error":"#DIV/0!"},null,{"$f":"IF(J971=-600,\"Refer to Note (1) of Table 3.50 C1 or 3.53 C1\",\" \")","v":{"$error":"#DIV/0!"}}]
[null,null,null,null,null,null,{"$f":"ROUND(AVERAGE(E972:F972),2)","v":{"$error":"#DIV/0!"}},"no",null,{"$f":"IF(I972=\"SI\",IF(H972=\"yes\",\"Excluded Area\",IF(G972<0.55,250,IF(G972<0.71,150,IF(G972<1.01,0,IF(G972<1.51,(800-900*G972),-600))))),IF(I972=\"SII\",IF(H972=\"yes\",\"Excluded Area\",IF(G972<0.55,250,IF(G972<0.81,150, IF(G972<1.16,0, IF(G972<1.51,(1380-1230*G972),-600))))),IF(H972=\"yes\",\"Excluded Area\",IF(G972<0.55,250,IF(G972<0.81,150, IF(G972<1.51,0, IF(G972<=1.8,(730-540*G972),-600)))))))","v":{"$error":"#DIV/0!"}},null,{"$error":"#DIV/0!"}]
[null,null,null,null,null,null,{"$error":"#DIV/0!"},"no",null,{"$error":"#DIV/0!"},null,{"$error":"#DIV/0!"}]
[null,null,null,null,null,null,{"$error":"#DIV/0!"},"no",null,{"$error":"#DIV/0!"},null,{"$error":"#DIV/0!"}]
[null,null,null,null,null,null,{"$error":"#DIV/0!"},"no",null,{"$error":"#DIV/0!"},null,{"$error":"#DIV/0!"}]
[null,null,null,null,null,null,{"$error":"#DIV/0!"},"no",null,{"$error":"#DIV/0!"},null,{"$error":"#DIV/0!"}]
[null,null,null,null,null,null,{"$error":"#DIV/0!"},"no",null,{"$error":"#DIV/0!"},null,{"$error":"#DIV/0!"}]
[null,null,null,null,null,null,{"$error":"#DIV/0!"},"no",null,{"$error":"#DIV/0!"},null,{"$error":"#DIV/0!"}]
[null,null,null,null,null,null,{"$error":"#DIV/0!"},"no",null,{"$error":"#DIV/0!"},null,{"$error":"#DIV/0!"}]
[null,null,null,null,null,null,{"$error":"#DIV/0!"},"no",null,{"$error":"#DIV/0!"},null,{"$error":"#DIV/0!"}]
[null,null,null,null,null,null,{"$error":"#DIV/0!"},"no",null,{"$error":"#DIV/0!"},null,{"$error":"#DIV/0!"}]
[null,null,null,null,null,null,{"$error":"#DIV/0!"},"no",null,{"$error":"#DIV/0!"},null,{"$error":"#DIV/0!"}]
[null,null,null,null,null,null,{"$error":"#DIV/0!"},"no",null,{"$error":"#DIV/0!"},null,{"$error":"#DIV/0!"}]
[null,null,null,null,null,null,{"$error":"#DIV/0!"},"no",null,{"$error":"#DIV/0!"},null,{"$error":"#DIV/0!"}]
[null,null,null,null,null,null,{"$error":"#DIV/0!"},"no",null,{"$error":"#DIV/0!"},null,{"$error":"#DIV/0!"}]
[null,null,null,null,null,null,{"$error":"#DIV/0!"},"no",null,{"$error":"#DIV/0!"},null,{"$error":"#DIV/0!"}]
[null,null,null,null,null,null,{"$error":"#DIV/0!"},"no",null,{"$error":"#DIV/0!"},null,{"$error":"#DIV/0!"}]
[null,null,null,null,null,null,{"$error":"#DIV/0!"},"no",null,{"$error":"#DIV/0!"},null,{"$error":"#DIV/0!"}]
[null,null,null,null,null,null,{"$error":"#DIV/0!"},"no",null,{"$error":"#DIV/0!"},null,{"$error":"#DIV/0!"}]
[null,null,null,null,null,null,{"$error":"#DIV/0!"},"no",null,{"$error":"#DIV/0!"},null,{"$error":"#DIV/0!"}]
[null,null,null,null,null,null,{"$error":"#DIV/0!"},"no",null,{"$error":"#DIV/0!"},null,{"$error":"#DIV/0!"}]
[null,null,null,null,null,null,{"$error":"#DIV/0!"},"no",null,{"$error":"#DIV/0!"},null,{"$error":"#DIV/0!"}]
[null,null,null,null,null,null,{"$error":"#DIV/0!"},"no",null,{"$error":"#DIV/0!"},null,{"$error":"#DIV/0!"}]
[null,null,null,null,null,null,{"$error":"#DIV/0!"},"no",null,{"$error":"#DIV/0!"},null,{"$error":"#DIV/0!"}]
[null,null,null,null,null,null,{"$error":"#DIV/0!"},"no",null,{"$error":"#DIV/0!"},null,{"$error":"#DIV/0!"}]
[null,null,null,null,null,null,{"$error":"#DIV/0!"},"no",null,{"$error":"#DIV/0!"},null,{"$error":"#DIV/0!"}]
[null,null,null,null,null,null,{"$error":"#DIV/0!"},"no",null,{"$error":"#DIV/0!"},null,{"$error":"#DIV/0!"}]
[null,null,null,null,null,null,{"$error":"#DIV/0!"},"no",null,{"$error":"#DIV/0!"},null,{"$error":"#DIV/0!"}]
[null,null,null,null,null,null,{"$error":"#DIV/0!"},"no",null,{"$error":"#DIV/0!"},null,{"$error":"#DIV/0!"}]
[null,null,null,null,null,null,null,"no",null,250,null," "]

{"sheet":"IRI(<2024)","index":3,"n_rows":1000,"n_cols":20,"rows_kept":1000,"cut":false,"hidden":false,"merged":[[14,14,15,21]]}
[null,null,null,null,null,"Contract No:",null,"Type of Test:",null,null,null,null,null,null,1]
[null,null,null,null,null,"Hwy Number:",null,"Contractor:"]
[null,null,null,null,null,"Control Section:",null,"IP Operator:"]
[null,null,null,null,null,"Lane:",null,"Test Date:\n(yyyy-mm-dd)"]
[null,null,null,null,null,"Direction:",null,"Comments:"]
["VERIFY CONTRACT SPECIFICATION AMENDMENTS - THIS SHEET IS FOR CONTRACTS WITHOUT SPECIFICATION AMENDMENT AMC_S279/280 (MAX BONUS $50/REJECT -$500)",null,null,null,null,null,null,null,null,null,null,null,null,null,null,"for Type of Test(F5)","for column H","for column I","direction"]
["Ride Quality Bonus/Penalty Summary",null,null,null,null,null,null,null,null,null,null,null,null,null,null,"Acceptance","yes","SI","WB","L1"]
["Appendix B20.a",null,null,null,null,null,null,"Excluded Area?","Type of Cons.","Sublot Payment","SI",null,null,null,null,"Verification","no","SII","EB","L2"]
["Sublot","Station (km)",null,"Length","IRI (m/km)",null,"MIRI","Yes or No?","SI,SII,or SIII","Assessment","SII",null,null,null,null,null,{"$f":"\"\"","v":""},"SIII","SB","L3"]
["Number","Start","End","(m)","Left","Right","(m/km)",null,null,"($)","SIII",null,null,null,null,null,null,null,"NB","L4"]
[null,"paste here",null,null,null,null,{"$f":"ROUND(AVERAGE(E11:F11),2)","v":{"$error":"#DIV/0!"}},"no",null,{"$f":"IF(I11=\"SI\",IF(H11=\"yes\",\"Excluded Area\",IF(G11<0.55,50,IF(G11<0.71,30,IF(G11<1.05,0,IF(G11<1.55,(740-740*G11),-500))))),IF(I11=\"SII\",IF(H11=\"yes\",\"Excluded Area\",IF(G11<0.55,50,IF(G11<0.81,30, IF(G11<1.21,0, IF(G11<1.55,(1090-930*G11),-500))))),IF(H11=\"yes\",\"Excluded Area\",IF(G11<0.55,50,IF(G11<0.81,30, IF(G11<1.55,0, IF(G11<=1.85,(740-490*G11),-500)))))))","v":{"$error":"#DIV/0!"}},null,{"$f":"IF(J11=-500,\"Refer to Note (1) of Table 3.50 C1 or 3.53 C1\",\" \")","v":{"$error":"#DIV/0!"}},null,null,null,null,null,null,null,"R1"]
[null,null,null,null,null,null,{"$f":"ROUND(AVERAGE(E12:F12),2)","v":{"$error":"#DIV/0!"}},"no",null,{"$f":"IF(I12=\"SI\",IF(H12=\"yes\",\"Excluded Area\",IF(G12<0.55,50,IF(G12<0.71,30,IF(G12<1.05,0,IF(G12<1.55,(740-740*G12),-500))))),IF(I12=\"SII\",IF(H12=\"yes\",\"Excluded Area\",IF(G12<0.55,50,IF(G12<0.81,30, IF(G12<1.21,0, IF(G12<1.55,(1090-930*G12),-500))))),IF(H12=\"yes\",\"Excluded Area\",IF(G12<0.55,50,IF(G12<0.81,30, IF(G12<1.55,0, IF(G12<=1.85,(740-490*G12),-500)))))))","v":{"$error":"#DIV/0!"}},null,{"$f":"IF(J12=-500,\"Refer to Note (1) of Table 3.50 C1 or 3.53 C1\",\" \")","v":{"$error":"#DIV/0!"}},null,null,null,null,null,null,null,"R2"]
[null,null,null,null,null,null,{"$error":"#DIV/0!"},"no",null,{"$error":"#DIV/0!"},null,{"$error":"#DIV/0!"},null,null,null,null,null,null,null,"R3"]
[null,null,null,null,null,null,{"$error":"#DIV/0!"},"no",null,{"$error":"#DIV/0!"},null,{"$error":"#DIV/0!"},null,null,null,null,null,null,null,"R4"]
[null,null,null,null,null,null,{"$error":"#DIV/0!"},"no",null,{"$error":"#DIV/0!"},null,{"$error":"#DIV/0!"},null,null,"THIS SUBLOT ASSESSMENT TABLE IS FOR CONTRACTS THAT DO NOT CONTAIN SPECIFICATION AMENDMENT AMC_S279/280 ONLY USE TAB \"IRI\" FOR ALL OTHER CONTRACTS"]
[null,null,null,null,null,null,{"$error":"#DIV/0!"},"no",null,{"$error":"#DIV/0!"},null,{"$error":"#DIV/0!"}]
[null,null,null,null,null,null,{"$error":"#DIV/0!"},"no",null,{"$error":"#DIV/0!"},null,{"$error":"#DIV/0!"}]
[null,null,null,null,null,null,{"$error":"#DIV/0!"},"no",null,{"$error":"#DIV/0!"},null,{"$error":"#DIV/0!"}]
[null,null,null,null,null,null,{"$error":"#DIV/0!"},"no",null,{"$error":"#DIV/0!"},null,{"$error":"#DIV/0!"}]
[null,null,null,null,null,null,{"$error":"#DIV/0!"},"no",null,{"$error":"#DIV/0!"},null,{"$error":"#DIV/0!"}]
[null,null,null,null,null,null,{"$error":"#DIV/0!"},"no",null,{"$error":"#DIV/0!"},null,{"$error":"#DIV/0!"}]
[null,null,null,null,null,null,{"$error":"#DIV/0!"},"no",null,{"$error":"#DIV/0!"},null,{"$error":"#DIV/0!"}]
[null,null,null,null,null,null,{"$error":"#DIV/0!"},"no",null,{"$error":"#DIV/0!"},null,{"$error":"#DIV/0!"}]
[null,null,null,null,null,null,{"$error":"#DIV/0!"},"no",null,{"$error":"#DIV/0!"},null,{"$error":"#DIV/0!"}]
[null,null,null,null,null,null,{"$error":"#DIV/0!"},"no",null,{"$error":"#DIV/0!"},null,{"$error":"#DIV/0!"}]
[null,null,null,null,null,null,{"$error":"#DIV/0!"},"no",null,{"$error":"#DIV/0!"},null,{"$error":"#DIV/0!"}]
[null,null,null,null,null,null,{"$error":"#DIV/0!"},"no",null,{"$error":"#DIV/0!"},null,{"$error":"#DIV/0!"}]
[null,null,null,null,null,null,{"$error":"#DIV/0!"},"no",null,{"$error":"#DIV/0!"},null,{"$error":"#DIV/0!"}]
[null,null,null,null,null,null,{"$error":"#DIV/0!"},"no",null,{"$error":"#DIV/0!"},null,{"$error":"#DIV/0!"}]
[null,null,null,null,null,null,{"$error":"#DIV/0!"},"no",null,{"$error":"#DIV/0!"},null,{"$error":"#DIV/0!"}]
[null,null,null,null,null,null,{"$error":"#DIV/0!"},"no",null,{"$error":"#DIV/0!"},null,{"$error":"#DIV/0!"}]
[null,null,null,null,null,null,{"$error":"#DIV/0!"},"no",null,{"$error":"#DIV/0!"},null,{"$error":"#DIV/0!"}]
[null,null,null,null,null,null,{"$error":"#DIV/0!"},"no",null,{"$error":"#DIV/0!"},null,{"$error":"#DIV/0!"}]
[null,null,null,null,null,null,{"$error":"#DIV/0!"},"no",null,{"$error":"#DIV/0!"},null,{"$error":"#DIV/0!"}]
[null,null,null,null,null,null,{"$error":"#DIV/0!"},"no",null,{"$error":"#DIV/0!"},null,{"$error":"#DIV/0!"}]
[null,null,null,null,null,null,{"$error":"#DIV/0!"},"no",null,{"$error":"#DIV/0!"},null,{"$error":"#DIV/0!"}]
[null,null,null,null,null,null,{"$error":"#DIV/0!"},"no",null,{"$error":"#DIV/0!"},null,{"$error":"#DIV/0!"},null,null,null,"Note, reject sublots are identified in this spreadsheet with a payment assessment of -$600."]
[null,null,null,null,null,null,{"$error":"#DIV/0!"},"no",null,{"$error":"#DIV/0!"},null,{"$error":"#DIV/0!"},null,null,null,"Consultant is to review whether remedial work is required (and sublot retested) or if sublot can be accepted with -$600 assessment."]
[null,null,null,null,null,null,{"$error":"#DIV/0!"},"no",null,{"$error":"#DIV/0!"},null,{"$error":"#DIV/0!"}]
[null,null,null,null,null,null,{"$error":"#DIV/0!"},"no",null,{"$error":"#DIV/0!"},null,{"$error":"#DIV/0!"}]
[null,null,null,null,null,null,{"$error":"#DIV/0!"},"no",null,{"$error":"#DIV/0!"},null,{"$error":"#DIV/0!"}]
[null,null,null,null,null,null,{"$error":"#DIV/0!"},"no",null,{"$error":"#DIV/0!"},null,{"$error":"#DIV/0!"}]
[null,null,null,null,null,null,{"$error":"#DIV/0!"},"no",null,{"$error":"#DIV/0!"},null,{"$error":"#DIV/0!"}]
[null,null,null,null,null,null,{"$error":"#DIV/0!"},"no",null,{"$error":"#DIV/0!"},null,{"$error":"#DIV/0!"}]
[null,null,null,null,null,null,{"$error":"#DIV/0!"},"no",null,{"$error":"#DIV/0!"},null,{"$error":"#DIV/0!"}]
[null,null,null,null,null,null,{"$error":"#DIV/0!"},"no",null,{"$error":"#DIV/0!"},null,{"$error":"#DIV/0!"}]
[null,null,null,null,null,null,{"$error":"#DIV/0!"},"no",null,{"$error":"#DIV/0!"},null,{"$error":"#DIV/0!"}]
[null,null,null,null,null,null,{"$error":"#DIV/0!"},"no",null,{"$error":"#DIV/0!"},null,{"$error":"#DIV/0!"}]
[null,null,null,null,null,null,{"$error":"#DIV/0!"},"no",null,{"$error":"#DIV/0!"},null,{"$error":"#DIV/0!"}]
[null,null,null,null,null,null,{"$error":"#DIV/0!"},"no",null,{"$error":"#DIV/0!"},null,{"$error":"#DIV/0!"}]
[null,null,null,null,null,null,{"$error":"#DIV/0!"},"no",null,{"$error":"#DIV/0!"},null,{"$error":"#DIV/0!"}]
[null,null,null,null,null,null,{"$error":"#DIV/0!"},"no",null,{"$error":"#DIV/0!"},null,{"$error":"#DIV/0!"}]
[null,null,null,null,null,null,{"$error":"#DIV/0!"},"no",null,{"$error":"#DIV/0!"},null,{"$error":"#DIV/0!"}]
[null,null,null,null,null,null,{"$error":"#DIV/0!"},"no",null,{"$error":"#DIV/0!"},null,{"$error":"#DIV/0!"}]
[null,null,null,null,null,null,{"$error":"#DIV/0!"},"no",null,{"$error":"#DIV/0!"},null,{"$error":"#DIV/0!"}]
[null,null,null,null,null,null,{"$error":"#DIV/0!"},"no",null,{"$error":"#DIV/0!"},null,{"$error":"#DIV/0!"}]
[null,null,null,null,null,null,{"$error":"#DIV/0!"},"no",null,{"$error":"#DIV/0!"},null,{"$error":"#DIV/0!"}]
[null,null,null,null,null,null,{"$error":"#DIV/0!"},"no",null,{"$error":"#DIV/0!"},null,{"$error":"#DIV/0!"}]
[null,null,null,null,null,null,{"$error":"#DIV/0!"},"no",null,{"$error":"#DIV/0!"},null,{"$error":"#DIV/0!"}]
[null,null,null,null,null,null,{"$error":"#DIV/0!"},"no",null,{"$error":"#DIV/0!"},null,{"$error":"#DIV/0!"}]
[null,null,null,null,null,null,{"$error":"#DIV/0!"},"no",null,{"$error":"#DIV/0!"},null,{"$error":"#DIV/0!"}]
[null,null,null,null,null,null,{"$error":"#DIV/0!"},"no",null,{"$error":"#DIV/0!"},null,{"$error":"#DIV/0!"}]
[null,null,null,null,null,null,{"$error":"#DIV/0!"},"no",null,{"$error":"#DIV/0!"},null,{"$error":"#DIV/0!"}]
[null,null,null,null,null,null,{"$error":"#DIV/0!"},"no",null,{"$error":"#DIV/0!"},null,{"$error":"#DIV/0!"}]
[null,null,null,null,null,null,{"$error":"#DIV/0!"},"no",null,{"$error":"#DIV/0!"},null,{"$error":"#DIV/0!"}]
[null,null,null,null,null,null,{"$error":"#DIV/0!"},"no",null,{"$error":"#DIV/0!"},null,{"$error":"#DIV/0!"}]
[null,null,null,null,null,null,{"$error":"#DIV/0!"},"no",null,{"$error":"#DIV/0!"},null,{"$error":"#DIV/0!"}]
[null,null,null,null,null,null,{"$error":"#DIV/0!"},"no",null,{"$error":"#DIV/0!"},null,{"$error":"#DIV/0!"}]
[null,null,null,null,null,null,{"$error":"#DIV/0!"},"no",null,{"$error":"#DIV/0!"},null,{"$error":"#DIV/0!"}]
[null,null,null,null,null,null,{"$error":"#DIV/0!"},"no",null,{"$error":"#DIV/0!"},null,{"$error":"#DIV/0!"}]
[null,null,null,null,null,null,{"$error":"#DIV/0!"},"no",null,{"$error":"#DIV/0!"},null,{"$error":"#DIV/0!"}]
[null,null,null,null,null,null,{"$error":"#DIV/0!"},"no",null,{"$error":"#DIV/0!"},null,{"$error":"#DIV/0!"}]
[null,null,null,null,null,null,{"$error":"#DIV/0!"},"no",null,{"$error":"#DIV/0!"},null,{"$error":"#DIV/0!"}]
[null,null,null,null,null,null,{"$error":"#DIV/0!"},"no",null,{"$error":"#DIV/0!"},null,{"$error":"#DIV/0!"}]
[null,null,null,null,null,null,{"$error":"#DIV/0!"},"no",null,{"$error":"#DIV/0!"},null,{"$error":"#DIV/0!"}]
[null,null,null,null,null,null,{"$f":"ROUND(AVERAGE(E76:F76),2)","v":{"$error":"#DIV/0!"}},"no",null,{"$f":"IF(I76=\"SI\",IF(H76=\"yes\",\"Excluded Area\",IF(G76<0.55,50,IF(G76<0.71,30,IF(G76<1.05,0,IF(G76<1.55,(740-740*G76),-500))))),IF(I76=\"SII\",IF(H76=\"yes\",\"Excluded Area\",IF(G76<0.55,50,IF(G76<0.81,30, IF(G76<1.21,0, IF(G76<1.55,(1090-930*G76),-500))))),IF(H76=\"yes\",\"Excluded Area\",IF(G76<0.55,50,IF(G76<0.81,30, IF(G76<1.55,0, IF(G76<=1.85,(740-490*G76),-500)))))))","v":{"$error":"#DIV/0!"}},null,{"$f":"IF(J76=-500,\"Refer to Note (1) of Table 3.50 C1 or 3.53 C1\",\" \")","v":{"$error":"#DIV/0!"}}]
[null,null,null,null,null,null,{"$error":"#DIV/0!"},"no",null,{"$error":"#DIV/0!"},null,{"$error":"#DIV/0!"}]
[null,null,null,null,null,null,{"$error":"#DIV/0!"},"no",null,{"$error":"#DIV/0!"},null,{"$error":"#DIV/0!"}]
[null,null,null,null,null,null,{"$error":"#DIV/0!"},"no",null,{"$error":"#DIV/0!"},null,{"$error":"#DIV/0!"}]
[null,null,null,null,null,null,{"$error":"#DIV/0!"},"no",null,{"$error":"#DIV/0!"},null,{"$error":"#DIV/0!"}]
[null,null,null,null,null,null,{"$error":"#DIV/0!"},"no",null,{"$error":"#DIV/0!"},null,{"$error":"#DIV/0!"}]
[null,null,null,null,null,null,{"$error":"#DIV/0!"},"no",null,{"$error":"#DIV/0!"},null,{"$error":"#DIV/0!"}]
[null,null,null,null,null,null,{"$error":"#DIV/0!"},"no",null,{"$error":"#DIV/0!"},null,{"$error":"#DIV/0!"}]
[null,null,null,null,null,null,{"$error":"#DIV/0!"},"no",null,{"$error":"#DIV/0!"},null,{"$error":"#DIV/0!"}]
[null,null,null,null,null,null,{"$error":"#DIV/0!"},"no",null,{"$error":"#DIV/0!"},null,{"$error":"#DIV/0!"}]
[null,null,null,null,null,null,{"$error":"#DIV/0!"},"no",null,{"$error":"#DIV/0!"},null,{"$error":"#DIV/0!"}]
[null,null,null,null,null,null,{"$error":"#DIV/0!"},"no",null,{"$error":"#DIV/0!"},null,{"$error":"#DIV/0!"}]
[null,null,null,null,null,null,{"$error":"#DIV/0!"},"no",null,{"$error":"#DIV/0!"},null,{"$error":"#DIV/0!"}]
[null,null,null,null,null,null,{"$error":"#DIV/0!"},"no",null,{"$error":"#DIV/0!"},null,{"$error":"#DIV/0!"}]
[null,null,null,null,null,null,{"$error":"#DIV/0!"},"no",null,{"$error":"#DIV/0!"},null,{"$error":"#DIV/0!"}]
[null,null,null,null,null,null,{"$error":"#DIV/0!"},"no",null,{"$error":"#DIV/0!"},null,{"$error":"#DIV/0!"}]
[null,null,null,null,null,null,{"$error":"#DIV/0!"},"no",null,{"$error":"#DIV/0!"},null,{"$error":"#DIV/0!"}]
[null,null,null,null,null,null,{"$error":"#DIV/0!"},"no",null,{"$error":"#DIV/0!"},null,{"$error":"#DIV/0!"}]
[null,null,null,null,null,null,{"$error":"#DIV/0!"},"no",null,{"$error":"#DIV/0!"},null,{"$error":"#DIV/0!"}]
[null,null,null,null,null,null,{"$error":"#DIV/0!"},"no",null,{"$error":"#DIV/0!"},null,{"$error":"#DIV/0!"}]
[null,null,null,null,null,null,{"$error":"#DIV/0!"},"no",null,{"$error":"#DIV/0!"},null,{"$error":"#DIV/0!"}]
[null,null,null,null,null,null,{"$error":"#DIV/0!"},"no",null,{"$error":"#DIV/0!"},null,{"$error":"#DIV/0!"}]
[null,null,null,null,null,null,{"$error":"#DIV/0!"},"no",null,{"$error":"#DIV/0!"},null,{"$error":"#DIV/0!"}]
[null,null,null,null,null,null,{"$error":"#DIV/0!"},"no",null,{"$error":"#DIV/0!"},null,{"$error":"#DIV/0!"}]
[null,null,null,null,null,null,{"$error":"#DIV/0!"},"no",null,{"$error":"#DIV/0!"},null,{"$error":"#DIV/0!"}]
[null,null,null,null,null,null,{"$error":"#DIV/0!"},"no",null,{"$error":"#DIV/0!"},null,{"$error":"#DIV/0!"}]
[null,null,null,null,null,null,{"$error":"#DIV/0!"},"no",null,{"$error":"#DIV/0!"},null,{"$error":"#DIV/0!"}]
[null,null,null,null,null,null,{"$error":"#DIV/0!"},"no",null,{"$error":"#DIV/0!"},null,{"$error":"#DIV/0!"}]
[null,null,null,null,null,null,{"$error":"#DIV/0!"},"no",null,{"$error":"#DIV/0!"},null,{"$error":"#DIV/0!"}]
[null,null,null,null,null,null,{"$error":"#DIV/0!"},"no",null,{"$error":"#DIV/0!"},null,{"$error":"#DIV/0!"}]
[null,null,null,null,null,null,{"$error":"#DIV/0!"},"no",null,{"$error":"#DIV/0!"},null,{"$error":"#DIV/0!"}]
[null,null,null,null,null,null,{"$error":"#DIV/0!"},"no",null,{"$error":"#DIV/0!"},null,{"$error":"#DIV/0!"}]
[null,null,null,null,null,null,{"$error":"#DIV/0!"},"no",null,{"$error":"#DIV/0!"},null,{"$error":"#DIV/0!"}]
[null,null,null,null,null,null,{"$error":"#DIV/0!"},"no",null,{"$error":"#DIV/0!"},null,{"$error":"#DIV/0!"}]
[null,null,null,null,null,null,{"$error":"#DIV/0!"},"no",null,{"$error":"#DIV/0!"},null,{"$error":"#DIV/0!"}]
[null,null,null,null,null,null,{"$error":"#DIV/0!"},"no",null,{"$error":"#DIV/0!"},null,{"$error":"#DIV/0!"}]
[null,null,null,null,null,null,{"$error":"#DIV/0!"},"no",null,{"$error":"#DIV/0!"},null,{"$error":"#DIV/0!"}]
[null,null,null,null,null,null,{"$error":"#DIV/0!"},"no",null,{"$error":"#DIV/0!"},null,{"$error":"#DIV/0!"}]
[null,null,null,null,null,null,{"$error":"#DIV/0!"},"no",null,{"$error":"#DIV/0!"},null,{"$error":"#DIV/0!"}]
[null,null,null,null,null,null,{"$error":"#DIV/0!"},"no",null,{"$error":"#DIV/0!"},null,{"$error":"#DIV/0!"}]
[null,null,null,null,null,null,{"$error":"#DIV/0!"},"no",null,{"$error":"#DIV/0!"},null,{"$error":"#DIV/0!"}]
[null,null,null,null,null,null,{"$error":"#DIV/0!"},"no",null,{"$error":"#DIV/0!"},null,{"$error":"#DIV/0!"}]
[null,null,null,null,null,null,{"$error":"#DIV/0!"},"no",null,{"$error":"#DIV/0!"},null,{"$error":"#DIV/0!"}]
[null,null,null,null,null,null,{"$error":"#DIV/0!"},"no",null,{"$error":"#DIV/0!"},null,{"$error":"#DIV/0!"}]
[null,null,null,null,null,null,{"$error":"#DIV/0!"},"no",null,{"$error":"#DIV/0!"},null,{"$error":"#DIV/0!"}]
[null,null,null,null,null,null,{"$error":"#DIV/0!"},"no",null,{"$error":"#DIV/0!"},null,{"$error":"#DIV/0!"}]
[null,null,null,null,null,null,{"$error":"#DIV/0!"},"no",null,{"$error":"#DIV/0!"},null,{"$error":"#DIV/0!"}]
[null,null,null,null,null,null,{"$error":"#DIV/0!"},"no",null,{"$error":"#DIV/0!"},null,{"$error":"#DIV/0!"}]
[null,null,null,null,null,null,{"$error":"#DIV/0!"},"no",null,{"$error":"#DIV/0!"},null,{"$error":"#DIV/0!"}]
[null,null,null,null,null,null,{"$error":"#DIV/0!"},"no",null,{"$error":"#DIV/0!"},null,{"$error":"#DIV/0!"}]
[null,null,null,null,null,null,{"$error":"#DIV/0!"},"no",null,{"$error":"#DIV/0!"},null,{"$error":"#DIV/0!"}]
[null,null,null,null,null,null,{"$error":"#DIV/0!"},"no",null,{"$error":"#DIV/0!"},null,{"$error":"#DIV/0!"}]
[null,null,null,null,null,null,{"$error":"#DIV/0!"},"no",null,{"$error":"#DIV/0!"},null,{"$error":"#DIV/0!"}]
[null,null,null,null,null,null,{"$error":"#DIV/0!"},"no",null,{"$error":"#DIV/0!"},null,{"$error":"#DIV/0!"}]
[null,null,null,null,null,null,{"$error":"#DIV/0!"},"no",null,{"$error":"#DIV/0!"},null,{"$error":"#DIV/0!"}]
[null,null,null,null,null,null,{"$error":"#DIV/0!"},"no",null,{"$error":"#DIV/0!"},null,{"$error":"#DIV/0!"}]
[null,null,null,null,null,null,{"$error":"#DIV/0!"},"no",null,{"$error":"#DIV/0!"},null,{"$error":"#DIV/0!"}]
[null,null,null,null,null,null,{"$error":"#DIV/0!"},"no",null,{"$error":"#DIV/0!"},null,{"$error":"#DIV/0!"}]
[null,null,null,null,null,null,{"$error":"#DIV/0!"},"no",null,{"$error":"#DIV/0!"},null,{"$error":"#DIV/0!"}]
[null,null,null,null,null,null,{"$error":"#DIV/0!"},"no",null,{"$error":"#DIV/0!"},null,{"$error":"#DIV/0!"}]
[null,null,null,null,null,null,{"$error":"#DIV/0!"},"no",null,{"$error":"#DIV/0!"},null,{"$error":"#DIV/0!"}]
[null,null,null,null,null,null,{"$error":"#DIV/0!"},"no",null,{"$error":"#DIV/0!"},null,{"$error":"#DIV/0!"}]
[null,null,null,null,null,null,{"$error":"#DIV/0!"},"no",null,{"$error":"#DIV/0!"},null,{"$error":"#DIV/0!"}]
[null,null,null,null,null,null,{"$error":"#DIV/0!"},"no",null,{"$error":"#DIV/0!"},null,{"$error":"#DIV/0!"}]
[null,null,null,null,null,null,{"$f":"ROUND(AVERAGE(E140:F140),2)","v":{"$error":"#DIV/0!"}},"no",null,{"$f":"IF(I140=\"SI\",IF(H140=\"yes\",\"Excluded Area\",IF(G140<0.55,50,IF(G140<0.71,30,IF(G140<1.05,0,IF(G140<1.55,(740-740*G140),-500))))),IF(I140=\"SII\",IF(H140=\"yes\",\"Excluded Area\",IF(G140<0.55,50,IF(G140<0.81,30, IF(G140<1.21,0, IF(G140<1.55,(1090-930*G140),-500))))),IF(H140=\"yes\",\"Excluded Area\",IF(G140<0.55,50,IF(G140<0.81,30, IF(G140<1.55,0, IF(G140<=1.85,(740-490*G140),-500)))))))","v":{"$error":"#DIV/0!"}},null,{"$f":"IF(J140=-500,\"Refer to Note (1) of Table 3.50 C1 or 3.53 C1\",\" \")","v":{"$error":"#DIV/0!"}}]
[null,null,null,null,null,null,{"$error":"#DIV/0!"},"no",null,{"$error":"#DIV/0!"},null,{"$error":"#DIV/0!"}]
[null,null,null,null,null,null,{"$error":"#DIV/0!"},"no",null,{"$error":"#DIV/0!"},null,{"$error":"#DIV/0!"}]
[null,null,null,null,null,null,{"$error":"#DIV/0!"},"no",null,{"$error":"#DIV/0!"},null,{"$error":"#DIV/0!"}]
[null,null,null,null,null,null,{"$error":"#DIV/0!"},"no",null,{"$error":"#DIV/0!"},null,{"$error":"#DIV/0!"}]
[null,null,null,null,null,null,{"$error":"#DIV/0!"},"no",null,{"$error":"#DIV/0!"},null,{"$error":"#DIV/0!"}]
[null,null,null,null,null,null,{"$error":"#DIV/0!"},"no",null,{"$error":"#DIV/0!"},null,{"$error":"#DIV/0!"}]
[null,null,null,null,null,null,{"$error":"#DIV/0!"},"no",null,{"$error":"#DIV/0!"},null,{"$error":"#DIV/0!"}]
[null,null,null,null,null,null,{"$error":"#DIV/0!"},"no",null,{"$error":"#DIV/0!"},null,{"$error":"#DIV/0!"}]
[null,null,null,null,null,null,{"$error":"#DIV/0!"},"no",null,{"$error":"#DIV/0!"},null,{"$error":"#DIV/0!"}]
[null,null,null,null,null,null,{"$error":"#DIV/0!"},"no",null,{"$error":"#DIV/0!"},null,{"$error":"#DIV/0!"}]
[null,null,null,null,null,null,{"$error":"#DIV/0!"},"no",null,{"$error":"#DIV/0!"},null,{"$error":"#DIV/0!"}]
[null,null,null,null,null,null,{"$error":"#DIV/0!"},"no",null,{"$error":"#DIV/0!"},null,{"$error":"#DIV/0!"}]
[null,null,null,null,null,null,{"$error":"#DIV/0!"},"no",null,{"$error":"#DIV/0!"},null,{"$error":"#DIV/0!"}]
[null,null,null,null,null,null,{"$error":"#DIV/0!"},"no",null,{"$error":"#DIV/0!"},null,{"$error":"#DIV/0!"}]
[null,null,null,null,null,null,{"$error":"#DIV/0!"},"no",null,{"$error":"#DIV/0!"},null,{"$error":"#DIV/0!"}]
[null,null,null,null,null,null,{"$error":"#DIV/0!"},"no",null,{"$error":"#DIV/0!"},null,{"$error":"#DIV/0!"}]
[null,null,null,null,null,null,{"$error":"#DIV/0!"},"no",null,{"$error":"#DIV/0!"},null,{"$error":"#DIV/0!"}]
[null,null,null,null,null,null,{"$error":"#DIV/0!"},"no",null,{"$error":"#DIV/0!"},null,{"$error":"#DIV/0!"}]
[null,null,null,null,null,null,{"$error":"#DIV/0!"},"no",null,{"$error":"#DIV/0!"},null,{"$error":"#DIV/0!"}]
[null,null,null,null,null,null,{"$error":"#DIV/0!"},"no",null,{"$error":"#DIV/0!"},null,{"$error":"#DIV/0!"}]
[null,null,null,null,null,null,{"$error":"#DIV/0!"},"no",null,{"$error":"#DIV/0!"},null,{"$error":"#DIV/0!"}]
[null,null,null,null,null,null,{"$error":"#DIV/0!"},"no",null,{"$error":"#DIV/0!"},null,{"$error":"#DIV/0!"}]
[null,null,null,null,null,null,{"$error":"#DIV/0!"},"no",null,{"$error":"#DIV/0!"},null,{"$error":"#DIV/0!"}]
[null,null,null,null,null,null,{"$error":"#DIV/0!"},"no",null,{"$error":"#DIV/0!"},null,{"$error":"#DIV/0!"}]
[null,null,null,null,null,null,{"$error":"#DIV/0!"},"no",null,{"$error":"#DIV/0!"},null,{"$error":"#DIV/0!"}]
[null,null,null,null,null,null,{"$error":"#DIV/0!"},"no",null,{"$error":"#DIV/0!"},null,{"$error":"#DIV/0!"}]
[null,null,null,null,null,null,{"$error":"#DIV/0!"},"no",null,{"$error":"#DIV/0!"},null,{"$error":"#DIV/0!"}]
[null,null,null,null,null,null,{"$error":"#DIV/0!"},"no",null,{"$error":"#DIV/0!"},null,{"$error":"#DIV/0!"}]
[null,null,null,null,null,null,{"$error":"#DIV/0!"},"no",null,{"$error":"#DIV/0!"},null,{"$error":"#DIV/0!"}]
[null,null,null,null,null,null,{"$error":"#DIV/0!"},"no",null,{"$error":"#DIV/0!"},null,{"$error":"#DIV/0!"}]
[null,null,null,null,null,null,{"$error":"#DIV/0!"},"no",null,{"$error":"#DIV/0!"},null,{"$error":"#DIV/0!"}]
[null,null,null,null,null,null,{"$error":"#DIV/0!"},"no",null,{"$error":"#DIV/0!"},null,{"$error":"#DIV/0!"}]
[null,null,null,null,null,null,{"$error":"#DIV/0!"},"no",null,{"$error":"#DIV/0!"},null,{"$error":"#DIV/0!"}]
[null,null,null,null,null,null,{"$error":"#DIV/0!"},"no",null,{"$error":"#DIV/0!"},null,{"$error":"#DIV/0!"}]
[null,null,null,null,null,null,{"$error":"#DIV/0!"},"no",null,{"$error":"#DIV/0!"},null,{"$error":"#DIV/0!"}]
[null,null,null,null,null,null,{"$error":"#DIV/0!"},"no",null,{"$error":"#DIV/0!"},null,{"$error":"#DIV/0!"}]
[null,null,null,null,null,null,{"$error":"#DIV/0!"},"no",null,{"$error":"#DIV/0!"},null,{"$error":"#DIV/0!"}]
[null,null,null,null,null,null,{"$error":"#DIV/0!"},"no",null,{"$error":"#DIV/0!"},null,{"$error":"#DIV/0!"}]
[null,null,null,null,null,null,{"$error":"#DIV/0!"},"no",null,{"$error":"#DIV/0!"},null,{"$error":"#DIV/0!"}]
[null,null,null,null,null,null,{"$error":"#DIV/0!"},"no",null,{"$error":"#DIV/0!"},null,{"$error":"#DIV/0!"}]
[null,null,null,null,null,null,{"$error":"#DIV/0!"},"no",null,{"$error":"#DIV/0!"},null,{"$error":"#DIV/0!"}]
[null,null,null,null,null,null,{"$error":"#DIV/0!"},"no",null,{"$error":"#DIV/0!"},null,{"$error":"#DIV/0!"}]
[null,null,null,null,null,null,{"$error":"#DIV/0!"},"no",null,{"$error":"#DIV/0!"},null,{"$error":"#DIV/0!"}]
[null,null,null,null,null,null,{"$error":"#DIV/0!"},"no",null,{"$error":"#DIV/0!"},null,{"$error":"#DIV/0!"}]
[null,null,null,null,null,null,{"$error":"#DIV/0!"},"no",null,{"$error":"#DIV/0!"},null,{"$error":"#DIV/0!"}]
[null,null,null,null,null,null,{"$error":"#DIV/0!"},"no",null,{"$error":"#DIV/0!"},null,{"$error":"#DIV/0!"}]
[null,null,null,null,null,null,{"$error":"#DIV/0!"},"no",null,{"$error":"#DIV/0!"},null,{"$error":"#DIV/0!"}]
[null,null,null,null,null,null,{"$error":"#DIV/0!"},"no",null,{"$error":"#DIV/0!"},null,{"$error":"#DIV/0!"}]
[null,null,null,null,null,null,{"$error":"#DIV/0!"},"no",null,{"$error":"#DIV/0!"},null,{"$error":"#DIV/0!"}]
[null,null,null,null,null,null,{"$error":"#DIV/0!"},"no",null,{"$error":"#DIV/0!"},null,{"$error":"#DIV/0!"}]
[null,null,null,null,null,null,{"$error":"#DIV/0!"},"no",null,{"$error":"#DIV/0!"},null,{"$error":"#DIV/0!"}]
[null,null,null,null,null,null,{"$error":"#DIV/0!"},"no",null,{"$error":"#DIV/0!"},null,{"$error":"#DIV/0!"}]
[null,null,null,null,null,null,{"$error":"#DIV/0!"},"no",null,{"$error":"#DIV/0!"},null,{"$error":"#DIV/0!"}]
[null,null,null,null,null,null,{"$error":"#DIV/0!"},"no",null,{"$error":"#DIV/0!"},null,{"$error":"#DIV/0!"}]
[null,null,null,null,null,null,{"$error":"#DIV/0!"},"no",null,{"$error":"#DIV/0!"},null,{"$error":"#DIV/0!"}]
[null,null,null,null,null,null,{"$error":"#DIV/0!"},"no",null,{"$error":"#DIV/0!"},null,{"$error":"#DIV/0!"}]
[null,null,null,null,null,null,{"$error":"#DIV/0!"},"no",null,{"$error":"#DIV/0!"},null,{"$error":"#DIV/0!"}]
[null,null,null,null,null,null,{"$error":"#DIV/0!"},"no",null,{"$error":"#DIV/0!"},null,{"$error":"#DIV/0!"}]
[null,null,null,null,null,null,{"$error":"#DIV/0!"},"no",null,{"$error":"#DIV/0!"},null,{"$error":"#DIV/0!"}]
[null,null,null,null,null,null,{"$error":"#DIV/0!"},"no",null,{"$error":"#DIV/0!"},null,{"$error":"#DIV/0!"}]
[null,null,null,null,null,null,{"$error":"#DIV/0!"},"no",null,{"$error":"#DIV/0!"},null,{"$error":"#DIV/0!"}]
[null,null,null,null,null,null,{"$error":"#DIV/0!"},"no",null,{"$error":"#DIV/0!"},null,{"$error":"#DIV/0!"}]
[null,null,null,null,null,null,{"$error":"#DIV/0!"},"no",null,{"$error":"#DIV/0!"},null,{"$error":"#DIV/0!"}]
[null,null,null,null,null,null,{"$f":"ROUND(AVERAGE(E204:F204),2)","v":{"$error":"#DIV/0!"}},"no",null,{"$f":"IF(I204=\"SI\",IF(H204=\"yes\",\"Excluded Area\",IF(G204<0.55,50,IF(G204<0.71,30,IF(G204<1.05,0,IF(G204<1.55,(740-740*G204),-500))))),IF(I204=\"SII\",IF(H204=\"yes\",\"Excluded Area\",IF(G204<0.55,50,IF(G204<0.81,30, IF(G204<1.21,0, IF(G204<1.55,(1090-930*G204),-500))))),IF(H204=\"yes\",\"Excluded Area\",IF(G204<0.55,50,IF(G204<0.81,30, IF(G204<1.55,0, IF(G204<=1.85,(740-490*G204),-500)))))))","v":{"$error":"#DIV/0!"}},null,{"$f":"IF(J204=-500,\"Refer to Note (1) of Table 3.50 C1 or 3.53 C1\",\" \")","v":{"$error":"#DIV/0!"}}]
[null,null,null,null,null,null,{"$error":"#DIV/0!"},"no",null,{"$error":"#DIV/0!"},null,{"$error":"#DIV/0!"}]
[null,null,null,null,null,null,{"$error":"#DIV/0!"},"no",null,{"$error":"#DIV/0!"},null,{"$error":"#DIV/0!"}]
[null,null,null,null,null,null,{"$error":"#DIV/0!"},"no",null,{"$error":"#DIV/0!"},null,{"$error":"#DIV/0!"}]
[null,null,null,null,null,null,{"$error":"#DIV/0!"},"no",null,{"$error":"#DIV/0!"},null,{"$error":"#DIV/0!"}]
[null,null,null,null,null,null,{"$error":"#DIV/0!"},"no",null,{"$error":"#DIV/0!"},null,{"$error":"#DIV/0!"}]
[null,null,null,null,null,null,{"$error":"#DIV/0!"},"no",null,{"$error":"#DIV/0!"},null,{"$error":"#DIV/0!"}]
[null,null,null,null,null,null,{"$error":"#DIV/0!"},"no",null,{"$error":"#DIV/0!"},null,{"$error":"#DIV/0!"}]
[null,null,null,null,null,null,{"$error":"#DIV/0!"},"no",null,{"$error":"#DIV/0!"},null,{"$error":"#DIV/0!"}]
[null,null,null,null,null,null,{"$error":"#DIV/0!"},"no",null,{"$error":"#DIV/0!"},null,{"$error":"#DIV/0!"}]
[null,null,null,null,null,null,{"$error":"#DIV/0!"},"no",null,{"$error":"#DIV/0!"},null,{"$error":"#DIV/0!"}]
[null,null,null,null,null,null,{"$error":"#DIV/0!"},"no",null,{"$error":"#DIV/0!"},null,{"$error":"#DIV/0!"}]
[null,null,null,null,null,null,{"$error":"#DIV/0!"},"no",null,{"$error":"#DIV/0!"},null,{"$error":"#DIV/0!"}]
[null,null,null,null,null,null,{"$error":"#DIV/0!"},"no",null,{"$error":"#DIV/0!"},null,{"$error":"#DIV/0!"}]
[null,null,null,null,null,null,{"$error":"#DIV/0!"},"no",null,{"$error":"#DIV/0!"},null,{"$error":"#DIV/0!"}]
[null,null,null,null,null,null,{"$error":"#DIV/0!"},"no",null,{"$error":"#DIV/0!"},null,{"$error":"#DIV/0!"}]
[null,null,null,null,null,null,{"$error":"#DIV/0!"},"no",null,{"$error":"#DIV/0!"},null,{"$error":"#DIV/0!"}]
[null,null,null,null,null,null,{"$error":"#DIV/0!"},"no",null,{"$error":"#DIV/0!"},null,{"$error":"#DIV/0!"}]
[null,null,null,null,null,null,{"$error":"#DIV/0!"},"no",null,{"$error":"#DIV/0!"},null,{"$error":"#DIV/0!"}]
[null,null,null,null,null,null,{"$error":"#DIV/0!"},"no",null,{"$error":"#DIV/0!"},null,{"$error":"#DIV/0!"}]
[null,null,null,null,null,null,{"$error":"#DIV/0!"},"no",null,{"$error":"#DIV/0!"},null,{"$error":"#DIV/0!"}]
[null,null,null,null,null,null,{"$error":"#DIV/0!"},"no",null,{"$error":"#DIV/0!"},null,{"$error":"#DIV/0!"}]
[null,null,null,null,null,null,{"$error":"#DIV/0!"},"no",null,{"$error":"#DIV/0!"},null,{"$error":"#DIV/0!"}]
[null,null,null,null,null,null,{"$error":"#DIV/0!"},"no",null,{"$error":"#DIV/0!"},null,{"$error":"#DIV/0!"}]
[null,null,null,null,null,null,{"$error":"#DIV/0!"},"no",null,{"$error":"#DIV/0!"},null,{"$error":"#DIV/0!"}]
[null,null,null,null,null,null,{"$error":"#DIV/0!"},"no",null,{"$error":"#DIV/0!"},null,{"$error":"#DIV/0!"}]
[null,null,null,null,null,null,{"$error":"#DIV/0!"},"no",null,{"$error":"#DIV/0!"},null,{"$error":"#DIV/0!"}]
[null,null,null,null,null,null,{"$error":"#DIV/0!"},"no",null,{"$error":"#DIV/0!"},null,{"$error":"#DIV/0!"}]
[null,null,null,null,null,null,{"$error":"#DIV/0!"},"no",null,{"$error":"#DIV/0!"},null,{"$error":"#DIV/0!"}]
[null,null,null,null,null,null,{"$error":"#DIV/0!"},"no",null,{"$error":"#DIV/0!"},null,{"$error":"#DIV/0!"}]
[null,null,null,null,null,null,{"$error":"#DIV/0!"},"no",null,{"$error":"#DIV/0!"},null,{"$error":"#DIV/0!"}]
[null,null,null,null,null,null,{"$error":"#DIV/0!"},"no",null,{"$error":"#DIV/0!"},null,{"$error":"#DIV/0!"}]
[null,null,null,null,null,null,{"$error":"#DIV/0!"},"no",null,{"$error":"#DIV/0!"},null,{"$error":"#DIV/0!"}]
[null,null,null,null,null,null,{"$error":"#DIV/0!"},"no",null,{"$error":"#DIV/0!"},null,{"$error":"#DIV/0!"}]
[null,null,null,null,null,null,{"$error":"#DIV/0!"},"no",null,{"$error":"#DIV/0!"},null,{"$error":"#DIV/0!"}]
[null,null,null,null,null,null,{"$error":"#DIV/0!"},"no",null,{"$error":"#DIV/0!"},null,{"$error":"#DIV/0!"}]
[null,null,null,null,null,null,{"$error":"#DIV/0!"},"no",null,{"$error":"#DIV/0!"},null,{"$error":"#DIV/0!"}]
[null,null,null,null,null,null,{"$error":"#DIV/0!"},"no",null,{"$error":"#DIV/0!"},null,{"$error":"#DIV/0!"}]
[null,null,null,null,null,null,{"$error":"#DIV/0!"},"no",null,{"$error":"#DIV/0!"},null,{"$error":"#DIV/0!"}]
[null,null,null,null,null,null,{"$error":"#DIV/0!"},"no",null,{"$error":"#DIV/0!"},null,{"$error":"#DIV/0!"}]
[null,null,null,null,null,null,{"$error":"#DIV/0!"},"no",null,{"$error":"#DIV/0!"},null,{"$error":"#DIV/0!"}]
[null,null,null,null,null,null,{"$error":"#DIV/0!"},"no",null,{"$error":"#DIV/0!"},null,{"$error":"#DIV/0!"}]
[null,null,null,null,null,null,{"$error":"#DIV/0!"},"no",null,{"$error":"#DIV/0!"},null,{"$error":"#DIV/0!"}]
[null,null,null,null,null,null,{"$error":"#DIV/0!"},"no",null,{"$error":"#DIV/0!"},null,{"$error":"#DIV/0!"}]
[null,null,null,null,null,null,{"$error":"#DIV/0!"},"no",null,{"$error":"#DIV/0!"},null,{"$error":"#DIV/0!"}]
[null,null,null,null,null,null,{"$error":"#DIV/0!"},"no",null,{"$error":"#DIV/0!"},null,{"$error":"#DIV/0!"}]
[null,null,null,null,null,null,{"$error":"#DIV/0!"},"no",null,{"$error":"#DIV/0!"},null,{"$error":"#DIV/0!"}]
[null,null,null,null,null,null,{"$error":"#DIV/0!"},"no",null,{"$error":"#DIV/0!"},null,{"$error":"#DIV/0!"}]
[null,null,null,null,null,null,{"$error":"#DIV/0!"},"no",null,{"$error":"#DIV/0!"},null,{"$error":"#DIV/0!"}]
[null,null,null,null,null,null,{"$error":"#DIV/0!"},"no",null,{"$error":"#DIV/0!"},null,{"$error":"#DIV/0!"}]
[null,null,null,null,null,null,{"$error":"#DIV/0!"},"no",null,{"$error":"#DIV/0!"},null,{"$error":"#DIV/0!"}]
[null,null,null,null,null,null,{"$error":"#DIV/0!"},"no",null,{"$error":"#DIV/0!"},null,{"$error":"#DIV/0!"}]
[null,null,null,null,null,null,{"$error":"#DIV/0!"},"no",null,{"$error":"#DIV/0!"},null,{"$error":"#DIV/0!"}]
[null,null,null,null,null,null,{"$error":"#DIV/0!"},"no",null,{"$error":"#DIV/0!"},null,{"$error":"#DIV/0!"}]
[null,null,null,null,null,null,{"$error":"#DIV/0!"},"no",null,{"$error":"#DIV/0!"},null,{"$error":"#DIV/0!"}]
[null,null,null,null,null,null,{"$error":"#DIV/0!"},"no",null,{"$error":"#DIV/0!"},null,{"$error":"#DIV/0!"}]
[null,null,null,null,null,null,{"$error":"#DIV/0!"},"no",null,{"$error":"#DIV/0!"},null,{"$error":"#DIV/0!"}]
[null,null,null,null,null,null,{"$error":"#DIV/0!"},"no",null,{"$error":"#DIV/0!"},null,{"$error":"#DIV/0!"}]
[null,null,null,null,null,null,{"$error":"#DIV/0!"},"no",null,{"$error":"#DIV/0!"},null,{"$error":"#DIV/0!"}]
[null,null,null,null,null,null,{"$error":"#DIV/0!"},"no",null,{"$error":"#DIV/0!"},null,{"$error":"#DIV/0!"}]
[null,null,null,null,null,null,{"$error":"#DIV/0!"},"no",null,{"$error":"#DIV/0!"},null,{"$error":"#DIV/0!"}]
[null,null,null,null,null,null,{"$error":"#DIV/0!"},"no",null,{"$error":"#DIV/0!"},null,{"$error":"#DIV/0!"}]
[null,null,null,null,null,null,{"$error":"#DIV/0!"},"no",null,{"$error":"#DIV/0!"},null,{"$error":"#DIV/0!"}]
[null,null,null,null,null,null,{"$error":"#DIV/0!"},"no",null,{"$error":"#DIV/0!"},null,{"$error":"#DIV/0!"}]
[null,null,null,null,null,null,{"$f":"ROUND(AVERAGE(E268:F268),2)","v":{"$error":"#DIV/0!"}},"no",null,{"$f":"IF(I268=\"SI\",IF(H268=\"yes\",\"Excluded Area\",IF(G268<0.55,50,IF(G268<0.71,30,IF(G268<1.05,0,IF(G268<1.55,(740-740*G268),-500))))),IF(I268=\"SII\",IF(H268=\"yes\",\"Excluded Area\",IF(G268<0.55,50,IF(G268<0.81,30, IF(G268<1.21,0, IF(G268<1.55,(1090-930*G268),-500))))),IF(H268=\"yes\",\"Excluded Area\",IF(G268<0.55,50,IF(G268<0.81,30, IF(G268<1.55,0, IF(G268<=1.85,(740-490*G268),-500)))))))","v":{"$error":"#DIV/0!"}},null,{"$f":"IF(J268=-500,\"Refer to Note (1) of Table 3.50 C1 or 3.53 C1\",\" \")","v":{"$error":"#DIV/0!"}}]
[null,null,null,null,null,null,{"$error":"#DIV/0!"},"no",null,{"$error":"#DIV/0!"},null,{"$error":"#DIV/0!"}]
[null,null,null,null,null,null,{"$error":"#DIV/0!"},"no",null,{"$error":"#DIV/0!"},null,{"$error":"#DIV/0!"}]
[null,null,null,null,null,null,{"$error":"#DIV/0!"},"no",null,{"$error":"#DIV/0!"},null,{"$error":"#DIV/0!"}]
[null,null,null,null,null,null,{"$error":"#DIV/0!"},"no",null,{"$error":"#DIV/0!"},null,{"$error":"#DIV/0!"}]
[null,null,null,null,null,null,{"$error":"#DIV/0!"},"no",null,{"$error":"#DIV/0!"},null,{"$error":"#DIV/0!"}]
[null,null,null,null,null,null,{"$error":"#DIV/0!"},"no",null,{"$error":"#DIV/0!"},null,{"$error":"#DIV/0!"}]
[null,null,null,null,null,null,{"$error":"#DIV/0!"},"no",null,{"$error":"#DIV/0!"},null,{"$error":"#DIV/0!"}]
[null,null,null,null,null,null,{"$error":"#DIV/0!"},"no",null,{"$error":"#DIV/0!"},null,{"$error":"#DIV/0!"}]
[null,null,null,null,null,null,{"$error":"#DIV/0!"},"no",null,{"$error":"#DIV/0!"},null,{"$error":"#DIV/0!"}]
[null,null,null,null,null,null,{"$error":"#DIV/0!"},"no",null,{"$error":"#DIV/0!"},null,{"$error":"#DIV/0!"}]
[null,null,null,null,null,null,{"$error":"#DIV/0!"},"no",null,{"$error":"#DIV/0!"},null,{"$error":"#DIV/0!"}]
[null,null,null,null,null,null,{"$error":"#DIV/0!"},"no",null,{"$error":"#DIV/0!"},null,{"$error":"#DIV/0!"}]
[null,null,null,null,null,null,{"$error":"#DIV/0!"},"no",null,{"$error":"#DIV/0!"},null,{"$error":"#DIV/0!"}]
[null,null,null,null,null,null,{"$error":"#DIV/0!"},"no",null,{"$error":"#DIV/0!"},null,{"$error":"#DIV/0!"}]
[null,null,null,null,null,null,{"$error":"#DIV/0!"},"no",null,{"$error":"#DIV/0!"},null,{"$error":"#DIV/0!"}]
[null,null,null,null,null,null,{"$error":"#DIV/0!"},"no",null,{"$error":"#DIV/0!"},null,{"$error":"#DIV/0!"}]
[null,null,null,null,null,null,{"$error":"#DIV/0!"},"no",null,{"$error":"#DIV/0!"},null,{"$error":"#DIV/0!"}]
[null,null,null,null,null,null,{"$error":"#DIV/0!"},"no",null,{"$error":"#DIV/0!"},null,{"$error":"#DIV/0!"}]
[null,null,null,null,null,null,{"$error":"#DIV/0!"},"no",null,{"$error":"#DIV/0!"},null,{"$error":"#DIV/0!"}]
[null,null,null,null,null,null,{"$error":"#DIV/0!"},"no",null,{"$error":"#DIV/0!"},null,{"$error":"#DIV/0!"}]
[null,null,null,null,null,null,{"$error":"#DIV/0!"},"no",null,{"$error":"#DIV/0!"},null,{"$error":"#DIV/0!"}]
[null,null,null,null,null,null,{"$error":"#DIV/0!"},"no",null,{"$error":"#DIV/0!"},null,{"$error":"#DIV/0!"}]
[null,null,null,null,null,null,{"$error":"#DIV/0!"},"no",null,{"$error":"#DIV/0!"},null,{"$error":"#DIV/0!"}]
[null,null,null,null,null,null,{"$error":"#DIV/0!"},"no",null,{"$error":"#DIV/0!"},null,{"$error":"#DIV/0!"}]
[null,null,null,null,null,null,{"$error":"#DIV/0!"},"no",null,{"$error":"#DIV/0!"},null,{"$error":"#DIV/0!"}]
[null,null,null,null,null,null,{"$error":"#DIV/0!"},"no",null,{"$error":"#DIV/0!"},null,{"$error":"#DIV/0!"}]
[null,null,null,null,null,null,{"$error":"#DIV/0!"},"no",null,{"$error":"#DIV/0!"},null,{"$error":"#DIV/0!"}]
[null,null,null,null,null,null,{"$error":"#DIV/0!"},"no",null,{"$error":"#DIV/0!"},null,{"$error":"#DIV/0!"}]
[null,null,null,null,null,null,{"$error":"#DIV/0!"},"no",null,{"$error":"#DIV/0!"},null,{"$error":"#DIV/0!"}]
[null,null,null,null,null,null,{"$error":"#DIV/0!"},"no",null,{"$error":"#DIV/0!"},null,{"$error":"#DIV/0!"}]
[null,null,null,null,null,null,{"$error":"#DIV/0!"},"no",null,{"$error":"#DIV/0!"},null,{"$error":"#DIV/0!"}]
[null,null,null,null,null,null,{"$error":"#DIV/0!"},"no",null,{"$error":"#DIV/0!"},null,{"$error":"#DIV/0!"}]
[null,null,null,null,null,null,{"$error":"#DIV/0!"},"no",null,{"$error":"#DIV/0!"},null,{"$error":"#DIV/0!"}]
[null,null,null,null,null,null,{"$error":"#DIV/0!"},"no",null,{"$error":"#DIV/0!"},null,{"$error":"#DIV/0!"}]
[null,null,null,null,null,null,{"$error":"#DIV/0!"},"no",null,{"$error":"#DIV/0!"},null,{"$error":"#DIV/0!"}]
[null,null,null,null,null,null,{"$error":"#DIV/0!"},"no",null,{"$error":"#DIV/0!"},null,{"$error":"#DIV/0!"}]
[null,null,null,null,null,null,{"$error":"#DIV/0!"},"no",null,{"$error":"#DIV/0!"},null,{"$error":"#DIV/0!"}]
[null,null,null,null,null,null,{"$error":"#DIV/0!"},"no",null,{"$error":"#DIV/0!"},null,{"$error":"#DIV/0!"}]
[null,null,null,null,null,null,{"$error":"#DIV/0!"},"no",null,{"$error":"#DIV/0!"},null,{"$error":"#DIV/0!"}]
[null,null,null,null,null,null,{"$error":"#DIV/0!"},"no",null,{"$error":"#DIV/0!"},null,{"$error":"#DIV/0!"}]
[null,null,null,null,null,null,{"$error":"#DIV/0!"},"no",null,{"$error":"#DIV/0!"},null,{"$error":"#DIV/0!"}]
[null,null,null,null,null,null,{"$error":"#DIV/0!"},"no",null,{"$error":"#DIV/0!"},null,{"$error":"#DIV/0!"}]
[null,null,null,null,null,null,{"$error":"#DIV/0!"},"no",null,{"$error":"#DIV/0!"},null,{"$error":"#DIV/0!"}]
[null,null,null,null,null,null,{"$error":"#DIV/0!"},"no",null,{"$error":"#DIV/0!"},null,{"$error":"#DIV/0!"}]
[null,null,null,null,null,null,{"$error":"#DIV/0!"},"no",null,{"$error":"#DIV/0!"},null,{"$error":"#DIV/0!"}]
[null,null,null,null,null,null,{"$error":"#DIV/0!"},"no",null,{"$error":"#DIV/0!"},null,{"$error":"#DIV/0!"}]
[null,null,null,null,null,null,{"$error":"#DIV/0!"},"no",null,{"$error":"#DIV/0!"},null,{"$error":"#DIV/0!"}]
[null,null,null,null,null,null,{"$error":"#DIV/0!"},"no",null,{"$error":"#DIV/0!"},null,{"$error":"#DIV/0!"}]
[null,null,null,null,null,null,{"$error":"#DIV/0!"},"no",null,{"$error":"#DIV/0!"},null,{"$error":"#DIV/0!"}]
[null,null,null,null,null,null,{"$error":"#DIV/0!"},"no",null,{"$error":"#DIV/0!"},null,{"$error":"#DIV/0!"}]
[null,null,null,null,null,null,{"$error":"#DIV/0!"},"no",null,{"$error":"#DIV/0!"},null,{"$error":"#DIV/0!"}]
[null,null,null,null,null,null,{"$error":"#DIV/0!"},"no",null,{"$error":"#DIV/0!"},null,{"$error":"#DIV/0!"}]
[null,null,null,null,null,null,{"$error":"#DIV/0!"},"no",null,{"$error":"#DIV/0!"},null,{"$error":"#DIV/0!"}]
[null,null,null,null,null,null,{"$error":"#DIV/0!"},"no",null,{"$error":"#DIV/0!"},null,{"$error":"#DIV/0!"}]
[null,null,null,null,null,null,{"$error":"#DIV/0!"},"no",null,{"$error":"#DIV/0!"},null,{"$error":"#DIV/0!"}]
[null,null,null,null,null,null,{"$error":"#DIV/0!"},"no",null,{"$error":"#DIV/0!"},null,{"$error":"#DIV/0!"}]
[null,null,null,null,null,null,{"$error":"#DIV/0!"},"no",null,{"$error":"#DIV/0!"},null,{"$error":"#DIV/0!"}]
[null,null,null,null,null,null,{"$error":"#DIV/0!"},"no",null,{"$error":"#DIV/0!"},null,{"$error":"#DIV/0!"}]
[null,null,null,null,null,null,{"$error":"#DIV/0!"},"no",null,{"$error":"#DIV/0!"},null,{"$error":"#DIV/0!"}]
[null,null,null,null,null,null,{"$error":"#DIV/0!"},"no",null,{"$error":"#DIV/0!"},null,{"$error":"#DIV/0!"}]
[null,null,null,null,null,null,{"$error":"#DIV/0!"},"no",null,{"$error":"#DIV/0!"},null,{"$error":"#DIV/0!"}]
[null,null,null,null,null,null,{"$error":"#DIV/0!"},"no",null,{"$error":"#DIV/0!"},null,{"$error":"#DIV/0!"}]
[null,null,null,null,null,null,{"$error":"#DIV/0!"},"no",null,{"$error":"#DIV/0!"},null,{"$error":"#DIV/0!"}]
[null,null,null,null,null,null,{"$f":"ROUND(AVERAGE(E332:F332),2)","v":{"$error":"#DIV/0!"}},"no",null,{"$f":"IF(I332=\"SI\",IF(H332=\"yes\",\"Excluded Area\",IF(G332<0.55,50,IF(G332<0.71,30,IF(G332<1.05,0,IF(G332<1.55,(740-740*G332),-500))))),IF(I332=\"SII\",IF(H332=\"yes\",\"Excluded Area\",IF(G332<0.55,50,IF(G332<0.81,30, IF(G332<1.21,0, IF(G332<1.55,(1090-930*G332),-500))))),IF(H332=\"yes\",\"Excluded Area\",IF(G332<0.55,50,IF(G332<0.81,30, IF(G332<1.55,0, IF(G332<=1.85,(740-490*G332),-500)))))))","v":{"$error":"#DIV/0!"}},null,{"$f":"IF(J332=-500,\"Refer to Note (1) of Table 3.50 C1 or 3.53 C1\",\" \")","v":{"$error":"#DIV/0!"}}]
[null,null,null,null,null,null,{"$error":"#DIV/0!"},"no",null,{"$error":"#DIV/0!"},null,{"$error":"#DIV/0!"}]
[null,null,null,null,null,null,{"$error":"#DIV/0!"},"no",null,{"$error":"#DIV/0!"},null,{"$error":"#DIV/0!"}]
[null,null,null,null,null,null,{"$error":"#DIV/0!"},"no",null,{"$error":"#DIV/0!"},null,{"$error":"#DIV/0!"}]
[null,null,null,null,null,null,{"$error":"#DIV/0!"},"no",null,{"$error":"#DIV/0!"},null,{"$error":"#DIV/0!"}]
[null,null,null,null,null,null,{"$error":"#DIV/0!"},"no",null,{"$error":"#DIV/0!"},null,{"$error":"#DIV/0!"}]
[null,null,null,null,null,null,{"$error":"#DIV/0!"},"no",null,{"$error":"#DIV/0!"},null,{"$error":"#DIV/0!"}]
[null,null,null,null,null,null,{"$error":"#DIV/0!"},"no",null,{"$error":"#DIV/0!"},null,{"$error":"#DIV/0!"}]
[null,null,null,null,null,null,{"$error":"#DIV/0!"},"no",null,{"$error":"#DIV/0!"},null,{"$error":"#DIV/0!"}]
[null,null,null,null,null,null,{"$error":"#DIV/0!"},"no",null,{"$error":"#DIV/0!"},null,{"$error":"#DIV/0!"}]
[null,null,null,null,null,null,{"$error":"#DIV/0!"},"no",null,{"$error":"#DIV/0!"},null,{"$error":"#DIV/0!"}]
[null,null,null,null,null,null,{"$error":"#DIV/0!"},"no",null,{"$error":"#DIV/0!"},null,{"$error":"#DIV/0!"}]
[null,null,null,null,null,null,{"$error":"#DIV/0!"},"no",null,{"$error":"#DIV/0!"},null,{"$error":"#DIV/0!"}]
[null,null,null,null,null,null,{"$error":"#DIV/0!"},"no",null,{"$error":"#DIV/0!"},null,{"$error":"#DIV/0!"}]
[null,null,null,null,null,null,{"$error":"#DIV/0!"},"no",null,{"$error":"#DIV/0!"},null,{"$error":"#DIV/0!"}]
[null,null,null,null,null,null,{"$error":"#DIV/0!"},"no",null,{"$error":"#DIV/0!"},null,{"$error":"#DIV/0!"}]
[null,null,null,null,null,null,{"$error":"#DIV/0!"},"no",null,{"$error":"#DIV/0!"},null,{"$error":"#DIV/0!"}]
[null,null,null,null,null,null,{"$error":"#DIV/0!"},"no",null,{"$error":"#DIV/0!"},null,{"$error":"#DIV/0!"}]
[null,null,null,null,null,null,{"$error":"#DIV/0!"},"no",null,{"$error":"#DIV/0!"},null,{"$error":"#DIV/0!"}]
[null,null,null,null,null,null,{"$error":"#DIV/0!"},"no",null,{"$error":"#DIV/0!"},null,{"$error":"#DIV/0!"}]
[null,null,null,null,null,null,{"$error":"#DIV/0!"},"no",null,{"$error":"#DIV/0!"},null,{"$error":"#DIV/0!"}]
[null,null,null,null,null,null,{"$error":"#DIV/0!"},"no",null,{"$error":"#DIV/0!"},null,{"$error":"#DIV/0!"}]
[null,null,null,null,null,null,{"$error":"#DIV/0!"},"no",null,{"$error":"#DIV/0!"},null,{"$error":"#DIV/0!"}]
[null,null,null,null,null,null,{"$error":"#DIV/0!"},"no",null,{"$error":"#DIV/0!"},null,{"$error":"#DIV/0!"}]
[null,null,null,null,null,null,{"$error":"#DIV/0!"},"no",null,{"$error":"#DIV/0!"},null,{"$error":"#DIV/0!"}]
[null,null,null,null,null,null,{"$error":"#DIV/0!"},"no",null,{"$error":"#DIV/0!"},null,{"$error":"#DIV/0!"}]
[null,null,null,null,null,null,{"$error":"#DIV/0!"},"no",null,{"$error":"#DIV/0!"},null,{"$error":"#DIV/0!"}]
[null,null,null,null,null,null,{"$error":"#DIV/0!"},"no",null,{"$error":"#DIV/0!"},null,{"$error":"#DIV/0!"}]
[null,null,null,null,null,null,{"$error":"#DIV/0!"},"no",null,{"$error":"#DIV/0!"},null,{"$error":"#DIV/0!"}]
[null,null,null,null,null,null,{"$error":"#DIV/0!"},"no",null,{"$error":"#DIV/0!"},null,{"$error":"#DIV/0!"}]
[null,null,null,null,null,null,{"$error":"#DIV/0!"},"no",null,{"$error":"#DIV/0!"},null,{"$error":"#DIV/0!"}]
[null,null,null,null,null,null,{"$error":"#DIV/0!"},"no",null,{"$error":"#DIV/0!"},null,{"$error":"#DIV/0!"}]
[null,null,null,null,null,null,{"$error":"#DIV/0!"},"no",null,{"$error":"#DIV/0!"},null,{"$error":"#DIV/0!"}]
[null,null,null,null,null,null,{"$error":"#DIV/0!"},"no",null,{"$error":"#DIV/0!"},null,{"$error":"#DIV/0!"}]
[null,null,null,null,null,null,{"$error":"#DIV/0!"},"no",null,{"$error":"#DIV/0!"},null,{"$error":"#DIV/0!"}]
[null,null,null,null,null,null,{"$error":"#DIV/0!"},"no",null,{"$error":"#DIV/0!"},null,{"$error":"#DIV/0!"}]
[null,null,null,null,null,null,{"$error":"#DIV/0!"},"no",null,{"$error":"#DIV/0!"},null,{"$error":"#DIV/0!"}]
[null,null,null,null,null,null,{"$error":"#DIV/0!"},"no",null,{"$error":"#DIV/0!"},null,{"$error":"#DIV/0!"}]
[null,null,null,null,null,null,{"$error":"#DIV/0!"},"no",null,{"$error":"#DIV/0!"},null,{"$error":"#DIV/0!"}]
[null,null,null,null,null,null,{"$error":"#DIV/0!"},"no",null,{"$error":"#DIV/0!"},null,{"$error":"#DIV/0!"}]
[null,null,null,null,null,null,{"$error":"#DIV/0!"},"no",null,{"$error":"#DIV/0!"},null,{"$error":"#DIV/0!"}]
[null,null,null,null,null,null,{"$error":"#DIV/0!"},"no",null,{"$error":"#DIV/0!"},null,{"$error":"#DIV/0!"}]
[null,null,null,null,null,null,{"$error":"#DIV/0!"},"no",null,{"$error":"#DIV/0!"},null,{"$error":"#DIV/0!"}]
[null,null,null,null,null,null,{"$error":"#DIV/0!"},"no",null,{"$error":"#DIV/0!"},null,{"$error":"#DIV/0!"}]
[null,null,null,null,null,null,{"$error":"#DIV/0!"},"no",null,{"$error":"#DIV/0!"},null,{"$error":"#DIV/0!"}]
[null,null,null,null,null,null,{"$error":"#DIV/0!"},"no",null,{"$error":"#DIV/0!"},null,{"$error":"#DIV/0!"}]
[null,null,null,null,null,null,{"$error":"#DIV/0!"},"no",null,{"$error":"#DIV/0!"},null,{"$error":"#DIV/0!"}]
[null,null,null,null,null,null,{"$error":"#DIV/0!"},"no",null,{"$error":"#DIV/0!"},null,{"$error":"#DIV/0!"}]
[null,null,null,null,null,null,{"$error":"#DIV/0!"},"no",null,{"$error":"#DIV/0!"},null,{"$error":"#DIV/0!"}]
[null,null,null,null,null,null,{"$error":"#DIV/0!"},"no",null,{"$error":"#DIV/0!"},null,{"$error":"#DIV/0!"}]
[null,null,null,null,null,null,{"$error":"#DIV/0!"},"no",null,{"$error":"#DIV/0!"},null,{"$error":"#DIV/0!"}]
[null,null,null,null,null,null,{"$error":"#DIV/0!"},"no",null,{"$error":"#DIV/0!"},null,{"$error":"#DIV/0!"}]
[null,null,null,null,null,null,{"$error":"#DIV/0!"},"no",null,{"$error":"#DIV/0!"},null,{"$error":"#DIV/0!"}]
[null,null,null,null,null,null,{"$error":"#DIV/0!"},"no",null,{"$error":"#DIV/0!"},null,{"$error":"#DIV/0!"}]
[null,null,null,null,null,null,{"$error":"#DIV/0!"},"no",null,{"$error":"#DIV/0!"},null,{"$error":"#DIV/0!"}]
[null,null,null,null,null,null,{"$error":"#DIV/0!"},"no",null,{"$error":"#DIV/0!"},null,{"$error":"#DIV/0!"}]
[null,null,null,null,null,null,{"$error":"#DIV/0!"},"no",null,{"$error":"#DIV/0!"},null,{"$error":"#DIV/0!"}]
[null,null,null,null,null,null,{"$error":"#DIV/0!"},"no",null,{"$error":"#DIV/0!"},null,{"$error":"#DIV/0!"}]
[null,null,null,null,null,null,{"$error":"#DIV/0!"},"no",null,{"$error":"#DIV/0!"},null,{"$error":"#DIV/0!"}]
[null,null,null,null,null,null,{"$error":"#DIV/0!"},"no",null,{"$error":"#DIV/0!"},null,{"$error":"#DIV/0!"}]
[null,null,null,null,null,null,{"$error":"#DIV/0!"},"no",null,{"$error":"#DIV/0!"},null,{"$error":"#DIV/0!"}]
[null,null,null,null,null,null,{"$error":"#DIV/0!"},"no",null,{"$error":"#DIV/0!"},null,{"$error":"#DIV/0!"}]
[null,null,null,null,null,null,{"$error":"#DIV/0!"},"no",null,{"$error":"#DIV/0!"},null,{"$error":"#DIV/0!"}]
[null,null,null,null,null,null,{"$error":"#DIV/0!"},"no",null,{"$error":"#DIV/0!"},null,{"$error":"#DIV/0!"}]
[null,null,null,null,null,null,{"$f":"ROUND(AVERAGE(E396:F396),2)","v":{"$error":"#DIV/0!"}},"no",null,{"$f":"IF(I396=\"SI\",IF(H396=\"yes\",\"Excluded Area\",IF(G396<0.55,50,IF(G396<0.71,30,IF(G396<1.05,0,IF(G396<1.55,(740-740*G396),-500))))),IF(I396=\"SII\",IF(H396=\"yes\",\"Excluded Area\",IF(G396<0.55,50,IF(G396<0.81,30, IF(G396<1.21,0, IF(G396<1.55,(1090-930*G396),-500))))),IF(H396=\"yes\",\"Excluded Area\",IF(G396<0.55,50,IF(G396<0.81,30, IF(G396<1.55,0, IF(G396<=1.85,(740-490*G396),-500)))))))","v":{"$error":"#DIV/0!"}},null,{"$f":"IF(J396=-500,\"Refer to Note (1) of Table 3.50 C1 or 3.53 C1\",\" \")","v":{"$error":"#DIV/0!"}}]
[null,null,null,null,null,null,{"$error":"#DIV/0!"},"no",null,{"$error":"#DIV/0!"},null,{"$error":"#DIV/0!"}]
[null,null,null,null,null,null,{"$error":"#DIV/0!"},"no",null,{"$error":"#DIV/0!"},null,{"$error":"#DIV/0!"}]
[null,null,null,null,null,null,{"$error":"#DIV/0!"},"no",null,{"$error":"#DIV/0!"},null,{"$error":"#DIV/0!"}]
[null,null,null,null,null,null,{"$error":"#DIV/0!"},"no",null,{"$error":"#DIV/0!"},null,{"$error":"#DIV/0!"}]
[null,null,null,null,null,null,{"$error":"#DIV/0!"},"no",null,{"$error":"#DIV/0!"},null,{"$error":"#DIV/0!"}]
[null,null,null,null,null,null,{"$error":"#DIV/0!"},"no",null,{"$error":"#DIV/0!"},null,{"$error":"#DIV/0!"}]
[null,null,null,null,null,null,{"$error":"#DIV/0!"},"no",null,{"$error":"#DIV/0!"},null,{"$error":"#DIV/0!"}]
[null,null,null,null,null,null,{"$error":"#DIV/0!"},"no",null,{"$error":"#DIV/0!"},null,{"$error":"#DIV/0!"}]
[null,null,null,null,null,null,{"$error":"#DIV/0!"},"no",null,{"$error":"#DIV/0!"},null,{"$error":"#DIV/0!"}]
[null,null,null,null,null,null,{"$error":"#DIV/0!"},"no",null,{"$error":"#DIV/0!"},null,{"$error":"#DIV/0!"}]
[null,null,null,null,null,null,{"$error":"#DIV/0!"},"no",null,{"$error":"#DIV/0!"},null,{"$error":"#DIV/0!"}]
[null,null,null,null,null,null,{"$error":"#DIV/0!"},"no",null,{"$error":"#DIV/0!"},null,{"$error":"#DIV/0!"}]
[null,null,null,null,null,null,{"$error":"#DIV/0!"},"no",null,{"$error":"#DIV/0!"},null,{"$error":"#DIV/0!"}]
[null,null,null,null,null,null,{"$error":"#DIV/0!"},"no",null,{"$error":"#DIV/0!"},null,{"$error":"#DIV/0!"}]
[null,null,null,null,null,null,{"$error":"#DIV/0!"},"no",null,{"$error":"#DIV/0!"},null,{"$error":"#DIV/0!"}]
[null,null,null,null,null,null,{"$error":"#DIV/0!"},"no",null,{"$error":"#DIV/0!"},null,{"$error":"#DIV/0!"}]
[null,null,null,null,null,null,{"$error":"#DIV/0!"},"no",null,{"$error":"#DIV/0!"},null,{"$error":"#DIV/0!"}]
[null,null,null,null,null,null,{"$error":"#DIV/0!"},"no",null,{"$error":"#DIV/0!"},null,{"$error":"#DIV/0!"}]
[null,null,null,null,null,null,{"$error":"#DIV/0!"},"no",null,{"$error":"#DIV/0!"},null,{"$error":"#DIV/0!"}]
[null,null,null,null,null,null,{"$error":"#DIV/0!"},"no",null,{"$error":"#DIV/0!"},null,{"$error":"#DIV/0!"}]
[null,null,null,null,null,null,{"$error":"#DIV/0!"},"no",null,{"$error":"#DIV/0!"},null,{"$error":"#DIV/0!"}]
[null,null,null,null,null,null,{"$error":"#DIV/0!"},"no",null,{"$error":"#DIV/0!"},null,{"$error":"#DIV/0!"}]
[null,null,null,null,null,null,{"$error":"#DIV/0!"},"no",null,{"$error":"#DIV/0!"},null,{"$error":"#DIV/0!"}]
[null,null,null,null,null,null,{"$error":"#DIV/0!"},"no",null,{"$error":"#DIV/0!"},null,{"$error":"#DIV/0!"}]
[null,null,null,null,null,null,{"$error":"#DIV/0!"},"no",null,{"$error":"#DIV/0!"},null,{"$error":"#DIV/0!"}]
[null,null,null,null,null,null,{"$error":"#DIV/0!"},"no",null,{"$error":"#DIV/0!"},null,{"$error":"#DIV/0!"}]
[null,null,null,null,null,null,{"$error":"#DIV/0!"},"no",null,{"$error":"#DIV/0!"},null,{"$error":"#DIV/0!"}]
[null,null,null,null,null,null,{"$error":"#DIV/0!"},"no",null,{"$error":"#DIV/0!"},null,{"$error":"#DIV/0!"}]
[null,null,null,null,null,null,{"$error":"#DIV/0!"},"no",null,{"$error":"#DIV/0!"},null,{"$error":"#DIV/0!"}]
[null,null,null,null,null,null,{"$error":"#DIV/0!"},"no",null,{"$error":"#DIV/0!"},null,{"$error":"#DIV/0!"}]
[null,null,null,null,null,null,{"$error":"#DIV/0!"},"no",null,{"$error":"#DIV/0!"},null,{"$error":"#DIV/0!"}]
[null,null,null,null,null,null,{"$error":"#DIV/0!"},"no",null,{"$error":"#DIV/0!"},null,{"$error":"#DIV/0!"}]
[null,null,null,null,null,null,{"$error":"#DIV/0!"},"no",null,{"$error":"#DIV/0!"},null,{"$error":"#DIV/0!"}]
[null,null,null,null,null,null,{"$error":"#DIV/0!"},"no",null,{"$error":"#DIV/0!"},null,{"$error":"#DIV/0!"}]
[null,null,null,null,null,null,{"$error":"#DIV/0!"},"no",null,{"$error":"#DIV/0!"},null,{"$error":"#DIV/0!"}]
[null,null,null,null,null,null,{"$error":"#DIV/0!"},"no",null,{"$error":"#DIV/0!"},null,{"$error":"#DIV/0!"}]
[null,null,null,null,null,null,{"$error":"#DIV/0!"},"no",null,{"$error":"#DIV/0!"},null,{"$error":"#DIV/0!"}]
[null,null,null,null,null,null,{"$error":"#DIV/0!"},"no",null,{"$error":"#DIV/0!"},null,{"$error":"#DIV/0!"}]
[null,null,null,null,null,null,{"$error":"#DIV/0!"},"no",null,{"$error":"#DIV/0!"},null,{"$error":"#DIV/0!"}]
[null,null,null,null,null,null,{"$error":"#DIV/0!"},"no",null,{"$error":"#DIV/0!"},null,{"$error":"#DIV/0!"}]
[null,null,null,null,null,null,{"$error":"#DIV/0!"},"no",null,{"$error":"#DIV/0!"},null,{"$error":"#DIV/0!"}]
[null,null,null,null,null,null,{"$error":"#DIV/0!"},"no",null,{"$error":"#DIV/0!"},null,{"$error":"#DIV/0!"}]
[null,null,null,null,null,null,{"$error":"#DIV/0!"},"no",null,{"$error":"#DIV/0!"},null,{"$error":"#DIV/0!"}]
[null,null,null,null,null,null,{"$error":"#DIV/0!"},"no",null,{"$error":"#DIV/0!"},null,{"$error":"#DIV/0!"}]
[null,null,null,null,null,null,{"$error":"#DIV/0!"},"no",null,{"$error":"#DIV/0!"},null,{"$error":"#DIV/0!"}]
[null,null,null,null,null,null,{"$error":"#DIV/0!"},"no",null,{"$error":"#DIV/0!"},null,{"$error":"#DIV/0!"}]
[null,null,null,null,null,null,{"$error":"#DIV/0!"},"no",null,{"$error":"#DIV/0!"},null,{"$error":"#DIV/0!"}]
[null,null,null,null,null,null,{"$error":"#DIV/0!"},"no",null,{"$error":"#DIV/0!"},null,{"$error":"#DIV/0!"}]
[null,null,null,null,null,null,{"$error":"#DIV/0!"},"no",null,{"$error":"#DIV/0!"},null,{"$error":"#DIV/0!"}]
[null,null,null,null,null,null,{"$error":"#DIV/0!"},"no",null,{"$error":"#DIV/0!"},null,{"$error":"#DIV/0!"}]
[null,null,null,null,null,null,{"$error":"#DIV/0!"},"no",null,{"$error":"#DIV/0!"},null,{"$error":"#DIV/0!"}]
[null,null,null,null,null,null,{"$error":"#DIV/0!"},"no",null,{"$error":"#DIV/0!"},null,{"$error":"#DIV/0!"}]
[null,null,null,null,null,null,{"$error":"#DIV/0!"},"no",null,{"$error":"#DIV/0!"},null,{"$error":"#DIV/0!"}]
[null,null,null,null,null,null,{"$error":"#DIV/0!"},"no",null,{"$error":"#DIV/0!"},null,{"$error":"#DIV/0!"}]
[null,null,null,null,null,null,{"$error":"#DIV/0!"},"no",null,{"$error":"#DIV/0!"},null,{"$error":"#DIV/0!"}]
[null,null,null,null,null,null,{"$error":"#DIV/0!"},"no",null,{"$error":"#DIV/0!"},null,{"$error":"#DIV/0!"}]
[null,null,null,null,null,null,{"$error":"#DIV/0!"},"no",null,{"$error":"#DIV/0!"},null,{"$error":"#DIV/0!"}]
[null,null,null,null,null,null,{"$error":"#DIV/0!"},"no",null,{"$error":"#DIV/0!"},null,{"$error":"#DIV/0!"}]
[null,null,null,null,null,null,{"$error":"#DIV/0!"},"no",null,{"$error":"#DIV/0!"},null,{"$error":"#DIV/0!"}]
[null,null,null,null,null,null,{"$error":"#DIV/0!"},"no",null,{"$error":"#DIV/0!"},null,{"$error":"#DIV/0!"}]
[null,null,null,null,null,null,{"$error":"#DIV/0!"},"no",null,{"$error":"#DIV/0!"},null,{"$error":"#DIV/0!"}]
[null,null,null,null,null,null,{"$error":"#DIV/0!"},"no",null,{"$error":"#DIV/0!"},null,{"$error":"#DIV/0!"}]
[null,null,null,null,null,null,{"$error":"#DIV/0!"},"no",null,{"$error":"#DIV/0!"},null,{"$error":"#DIV/0!"}]
[null,null,null,null,null,null,{"$f":"ROUND(AVERAGE(E460:F460),2)","v":{"$error":"#DIV/0!"}},"no",null,{"$f":"IF(I460=\"SI\",IF(H460=\"yes\",\"Excluded Area\",IF(G460<0.55,50,IF(G460<0.71,30,IF(G460<1.05,0,IF(G460<1.55,(740-740*G460),-500))))),IF(I460=\"SII\",IF(H460=\"yes\",\"Excluded Area\",IF(G460<0.55,50,IF(G460<0.81,30, IF(G460<1.21,0, IF(G460<1.55,(1090-930*G460),-500))))),IF(H460=\"yes\",\"Excluded Area\",IF(G460<0.55,50,IF(G460<0.81,30, IF(G460<1.55,0, IF(G460<=1.85,(740-490*G460),-500)))))))","v":{"$error":"#DIV/0!"}},null,{"$f":"IF(J460=-500,\"Refer to Note (1) of Table 3.50 C1 or 3.53 C1\",\" \")","v":{"$error":"#DIV/0!"}}]
[null,null,null,null,null,null,{"$error":"#DIV/0!"},"no",null,{"$error":"#DIV/0!"},null,{"$error":"#DIV/0!"}]
[null,null,null,null,null,null,{"$error":"#DIV/0!"},"no",null,{"$error":"#DIV/0!"},null,{"$error":"#DIV/0!"}]
[null,null,null,null,null,null,{"$error":"#DIV/0!"},"no",null,{"$error":"#DIV/0!"},null,{"$error":"#DIV/0!"}]
[null,null,null,null,null,null,{"$error":"#DIV/0!"},"no",null,{"$error":"#DIV/0!"},null,{"$error":"#DIV/0!"}]
[null,null,null,null,null,null,{"$error":"#DIV/0!"},"no",null,{"$error":"#DIV/0!"},null,{"$error":"#DIV/0!"}]
[null,null,null,null,null,null,{"$error":"#DIV/0!"},"no",null,{"$error":"#DIV/0!"},null,{"$error":"#DIV/0!"}]
[null,null,null,null,null,null,{"$error":"#DIV/0!"},"no",null,{"$error":"#DIV/0!"},null,{"$error":"#DIV/0!"}]
[null,null,null,null,null,null,{"$error":"#DIV/0!"},"no",null,{"$error":"#DIV/0!"},null,{"$error":"#DIV/0!"}]
[null,null,null,null,null,null,{"$error":"#DIV/0!"},"no",null,{"$error":"#DIV/0!"},null,{"$error":"#DIV/0!"}]
[null,null,null,null,null,null,{"$error":"#DIV/0!"},"no",null,{"$error":"#DIV/0!"},null,{"$error":"#DIV/0!"}]
[null,null,null,null,null,null,{"$error":"#DIV/0!"},"no",null,{"$error":"#DIV/0!"},null,{"$error":"#DIV/0!"}]
[null,null,null,null,null,null,{"$error":"#DIV/0!"},"no",null,{"$error":"#DIV/0!"},null,{"$error":"#DIV/0!"}]
[null,null,null,null,null,null,{"$error":"#DIV/0!"},"no",null,{"$error":"#DIV/0!"},null,{"$error":"#DIV/0!"}]
[null,null,null,null,null,null,{"$error":"#DIV/0!"},"no",null,{"$error":"#DIV/0!"},null,{"$error":"#DIV/0!"}]
[null,null,null,null,null,null,{"$error":"#DIV/0!"},"no",null,{"$error":"#DIV/0!"},null,{"$error":"#DIV/0!"}]
[null,null,null,null,null,null,{"$error":"#DIV/0!"},"no",null,{"$error":"#DIV/0!"},null,{"$error":"#DIV/0!"}]
[null,null,null,null,null,null,{"$error":"#DIV/0!"},"no",null,{"$error":"#DIV/0!"},null,{"$error":"#DIV/0!"}]
[null,null,null,null,null,null,{"$error":"#DIV/0!"},"no",null,{"$error":"#DIV/0!"},null,{"$error":"#DIV/0!"}]
[null,null,null,null,null,null,{"$error":"#DIV/0!"},"no",null,{"$error":"#DIV/0!"},null,{"$error":"#DIV/0!"}]
[null,null,null,null,null,null,{"$error":"#DIV/0!"},"no",null,{"$error":"#DIV/0!"},null,{"$error":"#DIV/0!"}]
[null,null,null,null,null,null,{"$error":"#DIV/0!"},"no",null,{"$error":"#DIV/0!"},null,{"$error":"#DIV/0!"}]
[null,null,null,null,null,null,{"$error":"#DIV/0!"},"no",null,{"$error":"#DIV/0!"},null,{"$error":"#DIV/0!"}]
[null,null,null,null,null,null,{"$error":"#DIV/0!"},"no",null,{"$error":"#DIV/0!"},null,{"$error":"#DIV/0!"}]
[null,null,null,null,null,null,{"$error":"#DIV/0!"},"no",null,{"$error":"#DIV/0!"},null,{"$error":"#DIV/0!"}]
[null,null,null,null,null,null,{"$error":"#DIV/0!"},"no",null,{"$error":"#DIV/0!"},null,{"$error":"#DIV/0!"}]
[null,null,null,null,null,null,{"$error":"#DIV/0!"},"no",null,{"$error":"#DIV/0!"},null,{"$error":"#DIV/0!"}]
[null,null,null,null,null,null,{"$error":"#DIV/0!"},"no",null,{"$error":"#DIV/0!"},null,{"$error":"#DIV/0!"}]
[null,null,null,null,null,null,{"$error":"#DIV/0!"},"no",null,{"$error":"#DIV/0!"},null,{"$error":"#DIV/0!"}]
[null,null,null,null,null,null,{"$error":"#DIV/0!"},"no",null,{"$error":"#DIV/0!"},null,{"$error":"#DIV/0!"}]
[null,null,null,null,null,null,{"$error":"#DIV/0!"},"no",null,{"$error":"#DIV/0!"},null,{"$error":"#DIV/0!"}]
[null,null,null,null,null,null,{"$error":"#DIV/0!"},"no",null,{"$error":"#DIV/0!"},null,{"$error":"#DIV/0!"}]
[null,null,null,null,null,null,{"$error":"#DIV/0!"},"no",null,{"$error":"#DIV/0!"},null,{"$error":"#DIV/0!"}]
[null,null,null,null,null,null,{"$error":"#DIV/0!"},"no",null,{"$error":"#DIV/0!"},null,{"$error":"#DIV/0!"}]
[null,null,null,null,null,null,{"$error":"#DIV/0!"},"no",null,{"$error":"#DIV/0!"},null,{"$error":"#DIV/0!"}]
[null,null,null,null,null,null,{"$error":"#DIV/0!"},"no",null,{"$error":"#DIV/0!"},null,{"$error":"#DIV/0!"}]
[null,null,null,null,null,null,{"$error":"#DIV/0!"},"no",null,{"$error":"#DIV/0!"},null,{"$error":"#DIV/0!"}]
[null,null,null,null,null,null,{"$error":"#DIV/0!"},"no",null,{"$error":"#DIV/0!"},null,{"$error":"#DIV/0!"}]
[null,null,null,null,null,null,{"$error":"#DIV/0!"},"no",null,{"$error":"#DIV/0!"},null,{"$error":"#DIV/0!"}]
[null,null,null,null,null,null,{"$error":"#DIV/0!"},"no",null,{"$error":"#DIV/0!"},null,{"$error":"#DIV/0!"}]
[null,null,null,null,null,null,{"$error":"#DIV/0!"},"no",null,{"$error":"#DIV/0!"},null,{"$error":"#DIV/0!"}]
[null,null,null,null,null,null,{"$error":"#DIV/0!"},"no",null,{"$error":"#DIV/0!"},null,{"$error":"#DIV/0!"}]
[null,null,null,null,null,null,{"$error":"#DIV/0!"},"no",null,{"$error":"#DIV/0!"},null,{"$error":"#DIV/0!"}]
[null,null,null,null,null,null,{"$error":"#DIV/0!"},"no",null,{"$error":"#DIV/0!"},null,{"$error":"#DIV/0!"}]
[null,null,null,null,null,null,{"$error":"#DIV/0!"},"no",null,{"$error":"#DIV/0!"},null,{"$error":"#DIV/0!"}]
[null,null,null,null,null,null,{"$error":"#DIV/0!"},"no",null,{"$error":"#DIV/0!"},null,{"$error":"#DIV/0!"}]
[null,null,null,null,null,null,{"$error":"#DIV/0!"},"no",null,{"$error":"#DIV/0!"},null,{"$error":"#DIV/0!"}]
[null,null,null,null,null,null,{"$error":"#DIV/0!"},"no",null,{"$error":"#DIV/0!"},null,{"$error":"#DIV/0!"}]
[null,null,null,null,null,null,{"$error":"#DIV/0!"},"no",null,{"$error":"#DIV/0!"},null,{"$error":"#DIV/0!"}]
[null,null,null,null,null,null,{"$error":"#DIV/0!"},"no",null,{"$error":"#DIV/0!"},null,{"$error":"#DIV/0!"}]
[null,null,null,null,null,null,{"$error":"#DIV/0!"},"no",null,{"$error":"#DIV/0!"},null,{"$error":"#DIV/0!"}]
[null,null,null,null,null,null,{"$error":"#DIV/0!"},"no",null,{"$error":"#DIV/0!"},null,{"$error":"#DIV/0!"}]
[null,null,null,null,null,null,{"$error":"#DIV/0!"},"no",null,{"$error":"#DIV/0!"},null,{"$error":"#DIV/0!"}]
[null,null,null,null,null,null,{"$error":"#DIV/0!"},"no",null,{"$error":"#DIV/0!"},null,{"$error":"#DIV/0!"}]
[null,null,null,null,null,null,{"$error":"#DIV/0!"},"no",null,{"$error":"#DIV/0!"},null,{"$error":"#DIV/0!"}]
[null,null,null,null,null,null,{"$error":"#DIV/0!"},"no",null,{"$error":"#DIV/0!"},null,{"$error":"#DIV/0!"}]
[null,null,null,null,null,null,{"$error":"#DIV/0!"},"no",null,{"$error":"#DIV/0!"},null,{"$error":"#DIV/0!"}]
[null,null,null,null,null,null,{"$error":"#DIV/0!"},"no",null,{"$error":"#DIV/0!"},null,{"$error":"#DIV/0!"}]
[null,null,null,null,null,null,{"$error":"#DIV/0!"},"no",null,{"$error":"#DIV/0!"},null,{"$error":"#DIV/0!"}]
[null,null,null,null,null,null,{"$error":"#DIV/0!"},"no",null,{"$error":"#DIV/0!"},null,{"$error":"#DIV/0!"}]
[null,null,null,null,null,null,{"$error":"#DIV/0!"},"no",null,{"$error":"#DIV/0!"},null,{"$error":"#DIV/0!"}]
[null,null,null,null,null,null,{"$error":"#DIV/0!"},"no",null,{"$error":"#DIV/0!"},null,{"$error":"#DIV/0!"}]
[null,null,null,null,null,null,{"$error":"#DIV/0!"},"no",null,{"$error":"#DIV/0!"},null,{"$error":"#DIV/0!"}]
[null,null,null,null,null,null,{"$error":"#DIV/0!"},"no",null,{"$error":"#DIV/0!"},null,{"$error":"#DIV/0!"}]
[null,null,null,null,null,null,{"$f":"ROUND(AVERAGE(E524:F524),2)","v":{"$error":"#DIV/0!"}},"no",null,{"$f":"IF(I524=\"SI\",IF(H524=\"yes\",\"Excluded Area\",IF(G524<0.55,50,IF(G524<0.71,30,IF(G524<1.05,0,IF(G524<1.55,(740-740*G524),-500))))),IF(I524=\"SII\",IF(H524=\"yes\",\"Excluded Area\",IF(G524<0.55,50,IF(G524<0.81,30, IF(G524<1.21,0, IF(G524<1.55,(1090-930*G524),-500))))),IF(H524=\"yes\",\"Excluded Area\",IF(G524<0.55,50,IF(G524<0.81,30, IF(G524<1.55,0, IF(G524<=1.85,(740-490*G524),-500)))))))","v":{"$error":"#DIV/0!"}},null,{"$f":"IF(J524=-500,\"Refer to Note (1) of Table 3.50 C1 or 3.53 C1\",\" \")","v":{"$error":"#DIV/0!"}}]
[null,null,null,null,null,null,{"$error":"#DIV/0!"},"no",null,{"$error":"#DIV/0!"},null,{"$error":"#DIV/0!"}]
[null,null,null,null,null,null,{"$error":"#DIV/0!"},"no",null,{"$error":"#DIV/0!"},null,{"$error":"#DIV/0!"}]
[null,null,null,null,null,null,{"$error":"#DIV/0!"},"no",null,{"$error":"#DIV/0!"},null,{"$error":"#DIV/0!"}]
[null,null,null,null,null,null,{"$error":"#DIV/0!"},"no",null,{"$error":"#DIV/0!"},null,{"$error":"#DIV/0!"}]
[null,null,null,null,null,null,{"$error":"#DIV/0!"},"no",null,{"$error":"#DIV/0!"},null,{"$error":"#DIV/0!"}]
[null,null,null,null,null,null,{"$error":"#DIV/0!"},"no",null,{"$error":"#DIV/0!"},null,{"$error":"#DIV/0!"}]
[null,null,null,null,null,null,{"$error":"#DIV/0!"},"no",null,{"$error":"#DIV/0!"},null,{"$error":"#DIV/0!"}]
[null,null,null,null,null,null,{"$error":"#DIV/0!"},"no",null,{"$error":"#DIV/0!"},null,{"$error":"#DIV/0!"}]
[null,null,null,null,null,null,{"$error":"#DIV/0!"},"no",null,{"$error":"#DIV/0!"},null,{"$error":"#DIV/0!"}]
[null,null,null,null,null,null,{"$error":"#DIV/0!"},"no",null,{"$error":"#DIV/0!"},null,{"$error":"#DIV/0!"}]
[null,null,null,null,null,null,{"$error":"#DIV/0!"},"no",null,{"$error":"#DIV/0!"},null,{"$error":"#DIV/0!"}]
[null,null,null,null,null,null,{"$error":"#DIV/0!"},"no",null,{"$error":"#DIV/0!"},null,{"$error":"#DIV/0!"}]
[null,null,null,null,null,null,{"$error":"#DIV/0!"},"no",null,{"$error":"#DIV/0!"},null,{"$error":"#DIV/0!"}]
[null,null,null,null,null,null,{"$error":"#DIV/0!"},"no",null,{"$error":"#DIV/0!"},null,{"$error":"#DIV/0!"}]
[null,null,null,null,null,null,{"$error":"#DIV/0!"},"no",null,{"$error":"#DIV/0!"},null,{"$error":"#DIV/0!"}]
[null,null,null,null,null,null,{"$error":"#DIV/0!"},"no",null,{"$error":"#DIV/0!"},null,{"$error":"#DIV/0!"}]
[null,null,null,null,null,null,{"$error":"#DIV/0!"},"no",null,{"$error":"#DIV/0!"},null,{"$error":"#DIV/0!"}]
[null,null,null,null,null,null,{"$error":"#DIV/0!"},"no",null,{"$error":"#DIV/0!"},null,{"$error":"#DIV/0!"}]
[null,null,null,null,null,null,{"$error":"#DIV/0!"},"no",null,{"$error":"#DIV/0!"},null,{"$error":"#DIV/0!"}]
[null,null,null,null,null,null,{"$error":"#DIV/0!"},"no",null,{"$error":"#DIV/0!"},null,{"$error":"#DIV/0!"}]
[null,null,null,null,null,null,{"$error":"#DIV/0!"},"no",null,{"$error":"#DIV/0!"},null,{"$error":"#DIV/0!"}]
[null,null,null,null,null,null,{"$error":"#DIV/0!"},"no",null,{"$error":"#DIV/0!"},null,{"$error":"#DIV/0!"}]
[null,null,null,null,null,null,{"$error":"#DIV/0!"},"no",null,{"$error":"#DIV/0!"},null,{"$error":"#DIV/0!"}]
[null,null,null,null,null,null,{"$error":"#DIV/0!"},"no",null,{"$error":"#DIV/0!"},null,{"$error":"#DIV/0!"}]
[null,null,null,null,null,null,{"$error":"#DIV/0!"},"no",null,{"$error":"#DIV/0!"},null,{"$error":"#DIV/0!"}]
[null,null,null,null,null,null,{"$error":"#DIV/0!"},"no",null,{"$error":"#DIV/0!"},null,{"$error":"#DIV/0!"}]
[null,null,null,null,null,null,{"$error":"#DIV/0!"},"no",null,{"$error":"#DIV/0!"},null,{"$error":"#DIV/0!"}]
[null,null,null,null,null,null,{"$error":"#DIV/0!"},"no",null,{"$error":"#DIV/0!"},null,{"$error":"#DIV/0!"}]
[null,null,null,null,null,null,{"$error":"#DIV/0!"},"no",null,{"$error":"#DIV/0!"},null,{"$error":"#DIV/0!"}]
[null,null,null,null,null,null,{"$error":"#DIV/0!"},"no",null,{"$error":"#DIV/0!"},null,{"$error":"#DIV/0!"}]
[null,null,null,null,null,null,{"$error":"#DIV/0!"},"no",null,{"$error":"#DIV/0!"},null,{"$error":"#DIV/0!"}]
[null,null,null,null,null,null,{"$error":"#DIV/0!"},"no",null,{"$error":"#DIV/0!"},null,{"$error":"#DIV/0!"}]
[null,null,null,null,null,null,{"$error":"#DIV/0!"},"no",null,{"$error":"#DIV/0!"},null,{"$error":"#DIV/0!"}]
[null,null,null,null,null,null,{"$error":"#DIV/0!"},"no",null,{"$error":"#DIV/0!"},null,{"$error":"#DIV/0!"}]
[null,null,null,null,null,null,{"$error":"#DIV/0!"},"no",null,{"$error":"#DIV/0!"},null,{"$error":"#DIV/0!"}]
[null,null,null,null,null,null,{"$error":"#DIV/0!"},"no",null,{"$error":"#DIV/0!"},null,{"$error":"#DIV/0!"}]
[null,null,null,null,null,null,{"$error":"#DIV/0!"},"no",null,{"$error":"#DIV/0!"},null,{"$error":"#DIV/0!"}]
[null,null,null,null,null,null,{"$error":"#DIV/0!"},"no",null,{"$error":"#DIV/0!"},null,{"$error":"#DIV/0!"}]
[null,null,null,null,null,null,{"$error":"#DIV/0!"},"no",null,{"$error":"#DIV/0!"},null,{"$error":"#DIV/0!"}]
[null,null,null,null,null,null,{"$error":"#DIV/0!"},"no",null,{"$error":"#DIV/0!"},null,{"$error":"#DIV/0!"}]
[null,null,null,null,null,null,{"$error":"#DIV/0!"},"no",null,{"$error":"#DIV/0!"},null,{"$error":"#DIV/0!"}]
[null,null,null,null,null,null,{"$error":"#DIV/0!"},"no",null,{"$error":"#DIV/0!"},null,{"$error":"#DIV/0!"}]
[null,null,null,null,null,null,{"$error":"#DIV/0!"},"no",null,{"$error":"#DIV/0!"},null,{"$error":"#DIV/0!"}]
[null,null,null,null,null,null,{"$error":"#DIV/0!"},"no",null,{"$error":"#DIV/0!"},null,{"$error":"#DIV/0!"}]
[null,null,null,null,null,null,{"$error":"#DIV/0!"},"no",null,{"$error":"#DIV/0!"},null,{"$error":"#DIV/0!"}]
[null,null,null,null,null,null,{"$error":"#DIV/0!"},"no",null,{"$error":"#DIV/0!"},null,{"$error":"#DIV/0!"}]
[null,null,null,null,null,null,{"$error":"#DIV/0!"},"no",null,{"$error":"#DIV/0!"},null,{"$error":"#DIV/0!"}]
[null,null,null,null,null,null,{"$error":"#DIV/0!"},"no",null,{"$error":"#DIV/0!"},null,{"$error":"#DIV/0!"}]
[null,null,null,null,null,null,{"$error":"#DIV/0!"},"no",null,{"$error":"#DIV/0!"},null,{"$error":"#DIV/0!"}]
[null,null,null,null,null,null,{"$error":"#DIV/0!"},"no",null,{"$error":"#DIV/0!"},null,{"$error":"#DIV/0!"}]
[null,null,null,null,null,null,{"$error":"#DIV/0!"},"no",null,{"$error":"#DIV/0!"},null,{"$error":"#DIV/0!"}]
[null,null,null,null,null,null,{"$error":"#DIV/0!"},"no",null,{"$error":"#DIV/0!"},null,{"$error":"#DIV/0!"}]
[null,null,null,null,null,null,{"$error":"#DIV/0!"},"no",null,{"$error":"#DIV/0!"},null,{"$error":"#DIV/0!"}]
[null,null,null,null,null,null,{"$error":"#DIV/0!"},"no",null,{"$error":"#DIV/0!"},null,{"$error":"#DIV/0!"}]
[null,null,null,null,null,null,{"$error":"#DIV/0!"},"no",null,{"$error":"#DIV/0!"},null,{"$error":"#DIV/0!"}]
[null,null,null,null,null,null,{"$error":"#DIV/0!"},"no",null,{"$error":"#DIV/0!"},null,{"$error":"#DIV/0!"}]
[null,null,null,null,null,null,{"$error":"#DIV/0!"},"no",null,{"$error":"#DIV/0!"},null,{"$error":"#DIV/0!"}]
[null,null,null,null,null,null,{"$error":"#DIV/0!"},"no",null,{"$error":"#DIV/0!"},null,{"$error":"#DIV/0!"}]
[null,null,null,null,null,null,{"$error":"#DIV/0!"},"no",null,{"$error":"#DIV/0!"},null,{"$error":"#DIV/0!"}]
[null,null,null,null,null,null,{"$error":"#DIV/0!"},"no",null,{"$error":"#DIV/0!"},null,{"$error":"#DIV/0!"}]
[null,null,null,null,null,null,{"$error":"#DIV/0!"},"no",null,{"$error":"#DIV/0!"},null,{"$error":"#DIV/0!"}]
[null,null,null,null,null,null,{"$error":"#DIV/0!"},"no",null,{"$error":"#DIV/0!"},null,{"$error":"#DIV/0!"}]
[null,null,null,null,null,null,{"$error":"#DIV/0!"},"no",null,{"$error":"#DIV/0!"},null,{"$error":"#DIV/0!"}]
[null,null,null,null,null,null,{"$f":"ROUND(AVERAGE(E588:F588),2)","v":{"$error":"#DIV/0!"}},"no",null,{"$f":"IF(I588=\"SI\",IF(H588=\"yes\",\"Excluded Area\",IF(G588<0.55,50,IF(G588<0.71,30,IF(G588<1.05,0,IF(G588<1.55,(740-740*G588),-500))))),IF(I588=\"SII\",IF(H588=\"yes\",\"Excluded Area\",IF(G588<0.55,50,IF(G588<0.81,30, IF(G588<1.21,0, IF(G588<1.55,(1090-930*G588),-500))))),IF(H588=\"yes\",\"Excluded Area\",IF(G588<0.55,50,IF(G588<0.81,30, IF(G588<1.55,0, IF(G588<=1.85,(740-490*G588),-500)))))))","v":{"$error":"#DIV/0!"}},null,{"$f":"IF(J588=-500,\"Refer to Note (1) of Table 3.50 C1 or 3.53 C1\",\" \")","v":{"$error":"#DIV/0!"}}]
[null,null,null,null,null,null,{"$error":"#DIV/0!"},"no",null,{"$error":"#DIV/0!"},null,{"$error":"#DIV/0!"}]
[null,null,null,null,null,null,{"$error":"#DIV/0!"},"no",null,{"$error":"#DIV/0!"},null,{"$error":"#DIV/0!"}]
[null,null,null,null,null,null,{"$error":"#DIV/0!"},"no",null,{"$error":"#DIV/0!"},null,{"$error":"#DIV/0!"}]
[null,null,null,null,null,null,{"$error":"#DIV/0!"},"no",null,{"$error":"#DIV/0!"},null,{"$error":"#DIV/0!"}]
[null,null,null,null,null,null,{"$error":"#DIV/0!"},"no",null,{"$error":"#DIV/0!"},null,{"$error":"#DIV/0!"}]
[null,null,null,null,null,null,{"$error":"#DIV/0!"},"no",null,{"$error":"#DIV/0!"},null,{"$error":"#DIV/0!"}]
[null,null,null,null,null,null,{"$error":"#DIV/0!"},"no",null,{"$error":"#DIV/0!"},null,{"$error":"#DIV/0!"}]
[null,null,null,null,null,null,{"$error":"#DIV/0!"},"no",null,{"$error":"#DIV/0!"},null,{"$error":"#DIV/0!"}]
[null,null,null,null,null,null,{"$error":"#DIV/0!"},"no",null,{"$error":"#DIV/0!"},null,{"$error":"#DIV/0!"}]
[null,null,null,null,null,null,{"$error":"#DIV/0!"},"no",null,{"$error":"#DIV/0!"},null,{"$error":"#DIV/0!"}]
[null,null,null,null,null,null,{"$error":"#DIV/0!"},"no",null,{"$error":"#DIV/0!"},null,{"$error":"#DIV/0!"}]
[null,null,null,null,null,null,{"$error":"#DIV/0!"},"no",null,{"$error":"#DIV/0!"},null,{"$error":"#DIV/0!"}]
[null,null,null,null,null,null,{"$error":"#DIV/0!"},"no",null,{"$error":"#DIV/0!"},null,{"$error":"#DIV/0!"}]
[null,null,null,null,null,null,{"$error":"#DIV/0!"},"no",null,{"$error":"#DIV/0!"},null,{"$error":"#DIV/0!"}]
[null,null,null,null,null,null,{"$error":"#DIV/0!"},"no",null,{"$error":"#DIV/0!"},null,{"$error":"#DIV/0!"}]
[null,null,null,null,null,null,{"$error":"#DIV/0!"},"no",null,{"$error":"#DIV/0!"},null,{"$error":"#DIV/0!"}]
[null,null,null,null,null,null,{"$error":"#DIV/0!"},"no",null,{"$error":"#DIV/0!"},null,{"$error":"#DIV/0!"}]
[null,null,null,null,null,null,{"$error":"#DIV/0!"},"no",null,{"$error":"#DIV/0!"},null,{"$error":"#DIV/0!"}]
[null,null,null,null,null,null,{"$error":"#DIV/0!"},"no",null,{"$error":"#DIV/0!"},null,{"$error":"#DIV/0!"}]
[null,null,null,null,null,null,{"$error":"#DIV/0!"},"no",null,{"$error":"#DIV/0!"},null,{"$error":"#DIV/0!"}]
[null,null,null,null,null,null,{"$error":"#DIV/0!"},"no",null,{"$error":"#DIV/0!"},null,{"$error":"#DIV/0!"}]
[null,null,null,null,null,null,{"$error":"#DIV/0!"},"no",null,{"$error":"#DIV/0!"},null,{"$error":"#DIV/0!"}]
[null,null,null,null,null,null,{"$error":"#DIV/0!"},"no",null,{"$error":"#DIV/0!"},null,{"$error":"#DIV/0!"}]
[null,null,null,null,null,null,{"$error":"#DIV/0!"},"no",null,{"$error":"#DIV/0!"},null,{"$error":"#DIV/0!"}]
[null,null,null,null,null,null,{"$error":"#DIV/0!"},"no",null,{"$error":"#DIV/0!"},null,{"$error":"#DIV/0!"}]
[null,null,null,null,null,null,{"$error":"#DIV/0!"},"no",null,{"$error":"#DIV/0!"},null,{"$error":"#DIV/0!"}]
[null,null,null,null,null,null,{"$error":"#DIV/0!"},"no",null,{"$error":"#DIV/0!"},null,{"$error":"#DIV/0!"}]
[null,null,null,null,null,null,{"$error":"#DIV/0!"},"no",null,{"$error":"#DIV/0!"},null,{"$error":"#DIV/0!"}]
[null,null,null,null,null,null,{"$error":"#DIV/0!"},"no",null,{"$error":"#DIV/0!"},null,{"$error":"#DIV/0!"}]
[null,null,null,null,null,null,{"$error":"#DIV/0!"},"no",null,{"$error":"#DIV/0!"},null,{"$error":"#DIV/0!"}]
[null,null,null,null,null,null,{"$error":"#DIV/0!"},"no",null,{"$error":"#DIV/0!"},null,{"$error":"#DIV/0!"}]
[null,null,null,null,null,null,{"$error":"#DIV/0!"},"no",null,{"$error":"#DIV/0!"},null,{"$error":"#DIV/0!"}]
[null,null,null,null,null,null,{"$error":"#DIV/0!"},"no",null,{"$error":"#DIV/0!"},null,{"$error":"#DIV/0!"}]
[null,null,null,null,null,null,{"$error":"#DIV/0!"},"no",null,{"$error":"#DIV/0!"},null,{"$error":"#DIV/0!"}]
[null,null,null,null,null,null,{"$error":"#DIV/0!"},"no",null,{"$error":"#DIV/0!"},null,{"$error":"#DIV/0!"}]
[null,null,null,null,null,null,{"$error":"#DIV/0!"},"no",null,{"$error":"#DIV/0!"},null,{"$error":"#DIV/0!"}]
[null,null,null,null,null,null,{"$error":"#DIV/0!"},"no",null,{"$error":"#DIV/0!"},null,{"$error":"#DIV/0!"}]
[null,null,null,null,null,null,{"$error":"#DIV/0!"},"no",null,{"$error":"#DIV/0!"},null,{"$error":"#DIV/0!"}]
[null,null,null,null,null,null,{"$error":"#DIV/0!"},"no",null,{"$error":"#DIV/0!"},null,{"$error":"#DIV/0!"}]
[null,null,null,null,null,null,{"$error":"#DIV/0!"},"no",null,{"$error":"#DIV/0!"},null,{"$error":"#DIV/0!"}]
[null,null,null,null,null,null,{"$error":"#DIV/0!"},"no",null,{"$error":"#DIV/0!"},null,{"$error":"#DIV/0!"}]
[null,null,null,null,null,null,{"$error":"#DIV/0!"},"no",null,{"$error":"#DIV/0!"},null,{"$error":"#DIV/0!"}]
[null,null,null,null,null,null,{"$error":"#DIV/0!"},"no",null,{"$error":"#DIV/0!"},null,{"$error":"#DIV/0!"}]
[null,null,null,null,null,null,{"$error":"#DIV/0!"},"no",null,{"$error":"#DIV/0!"},null,{"$error":"#DIV/0!"}]
[null,null,null,null,null,null,{"$error":"#DIV/0!"},"no",null,{"$error":"#DIV/0!"},null,{"$error":"#DIV/0!"}]
[null,null,null,null,null,null,{"$error":"#DIV/0!"},"no",null,{"$error":"#DIV/0!"},null,{"$error":"#DIV/0!"}]
[null,null,null,null,null,null,{"$error":"#DIV/0!"},"no",null,{"$error":"#DIV/0!"},null,{"$error":"#DIV/0!"}]
[null,null,null,null,null,null,{"$error":"#DIV/0!"},"no",null,{"$error":"#DIV/0!"},null,{"$error":"#DIV/0!"}]
[null,null,null,null,null,null,{"$error":"#DIV/0!"},"no",null,{"$error":"#DIV/0!"},null,{"$error":"#DIV/0!"}]
[null,null,null,null,null,null,{"$error":"#DIV/0!"},"no",null,{"$error":"#DIV/0!"},null,{"$error":"#DIV/0!"}]
[null,null,null,null,null,null,{"$error":"#DIV/0!"},"no",null,{"$error":"#DIV/0!"},null,{"$error":"#DIV/0!"}]
[null,null,null,null,null,null,{"$error":"#DIV/0!"},"no",null,{"$error":"#DIV/0!"},null,{"$error":"#DIV/0!"}]
[null,null,null,null,null,null,{"$error":"#DIV/0!"},"no",null,{"$error":"#DIV/0!"},null,{"$error":"#DIV/0!"}]
[null,null,null,null,null,null,{"$error":"#DIV/0!"},"no",null,{"$error":"#DIV/0!"},null,{"$error":"#DIV/0!"}]
[null,null,null,null,null,null,{"$error":"#DIV/0!"},"no",null,{"$error":"#DIV/0!"},null,{"$error":"#DIV/0!"}]
[null,null,null,null,null,null,{"$error":"#DIV/0!"},"no",null,{"$error":"#DIV/0!"},null,{"$error":"#DIV/0!"}]
[null,null,null,null,null,null,{"$error":"#DIV/0!"},"no",null,{"$error":"#DIV/0!"},null,{"$error":"#DIV/0!"}]
[null,null,null,null,null,null,{"$error":"#DIV/0!"},"no",null,{"$error":"#DIV/0!"},null,{"$error":"#DIV/0!"}]
[null,null,null,null,null,null,{"$error":"#DIV/0!"},"no",null,{"$error":"#DIV/0!"},null,{"$error":"#DIV/0!"}]
[null,null,null,null,null,null,{"$error":"#DIV/0!"},"no",null,{"$error":"#DIV/0!"},null,{"$error":"#DIV/0!"}]
[null,null,null,null,null,null,{"$error":"#DIV/0!"},"no",null,{"$error":"#DIV/0!"},null,{"$error":"#DIV/0!"}]
[null,null,null,null,null,null,{"$error":"#DIV/0!"},"no",null,{"$error":"#DIV/0!"},null,{"$error":"#DIV/0!"}]
[null,null,null,null,null,null,{"$error":"#DIV/0!"},"no",null,{"$error":"#DIV/0!"},null,{"$error":"#DIV/0!"}]
[null,null,null,null,null,null,{"$f":"ROUND(AVERAGE(E652:F652),2)","v":{"$error":"#DIV/0!"}},"no",null,{"$f":"IF(I652=\"SI\",IF(H652=\"yes\",\"Excluded Area\",IF(G652<0.55,50,IF(G652<0.71,30,IF(G652<1.05,0,IF(G652<1.55,(740-740*G652),-500))))),IF(I652=\"SII\",IF(H652=\"yes\",\"Excluded Area\",IF(G652<0.55,50,IF(G652<0.81,30, IF(G652<1.21,0, IF(G652<1.55,(1090-930*G652),-500))))),IF(H652=\"yes\",\"Excluded Area\",IF(G652<0.55,50,IF(G652<0.81,30, IF(G652<1.55,0, IF(G652<=1.85,(740-490*G652),-500)))))))","v":{"$error":"#DIV/0!"}},null,{"$f":"IF(J652=-500,\"Refer to Note (1) of Table 3.50 C1 or 3.53 C1\",\" \")","v":{"$error":"#DIV/0!"}}]
[null,null,null,null,null,null,{"$error":"#DIV/0!"},"no",null,{"$error":"#DIV/0!"},null,{"$error":"#DIV/0!"}]
[null,null,null,null,null,null,{"$error":"#DIV/0!"},"no",null,{"$error":"#DIV/0!"},null,{"$error":"#DIV/0!"}]
[null,null,null,null,null,null,{"$error":"#DIV/0!"},"no",null,{"$error":"#DIV/0!"},null,{"$error":"#DIV/0!"}]
[null,null,null,null,null,null,{"$error":"#DIV/0!"},"no",null,{"$error":"#DIV/0!"},null,{"$error":"#DIV/0!"}]
[null,null,null,null,null,null,{"$error":"#DIV/0!"},"no",null,{"$error":"#DIV/0!"},null,{"$error":"#DIV/0!"}]
[null,null,null,null,null,null,{"$error":"#DIV/0!"},"no",null,{"$error":"#DIV/0!"},null,{"$error":"#DIV/0!"}]
[null,null,null,null,null,null,{"$error":"#DIV/0!"},"no",null,{"$error":"#DIV/0!"},null,{"$error":"#DIV/0!"}]
[null,null,null,null,null,null,{"$error":"#DIV/0!"},"no",null,{"$error":"#DIV/0!"},null,{"$error":"#DIV/0!"}]
[null,null,null,null,null,null,{"$error":"#DIV/0!"},"no",null,{"$error":"#DIV/0!"},null,{"$error":"#DIV/0!"}]
[null,null,null,null,null,null,{"$error":"#DIV/0!"},"no",null,{"$error":"#DIV/0!"},null,{"$error":"#DIV/0!"}]
[null,null,null,null,null,null,{"$error":"#DIV/0!"},"no",null,{"$error":"#DIV/0!"},null,{"$error":"#DIV/0!"}]
[null,null,null,null,null,null,{"$error":"#DIV/0!"},"no",null,{"$error":"#DIV/0!"},null,{"$error":"#DIV/0!"}]
[null,null,null,null,null,null,{"$error":"#DIV/0!"},"no",null,{"$error":"#DIV/0!"},null,{"$error":"#DIV/0!"}]
[null,null,null,null,null,null,{"$error":"#DIV/0!"},"no",null,{"$error":"#DIV/0!"},null,{"$error":"#DIV/0!"}]
[null,null,null,null,null,null,{"$error":"#DIV/0!"},"no",null,{"$error":"#DIV/0!"},null,{"$error":"#DIV/0!"}]
[null,null,null,null,null,null,{"$error":"#DIV/0!"},"no",null,{"$error":"#DIV/0!"},null,{"$error":"#DIV/0!"}]
[null,null,null,null,null,null,{"$error":"#DIV/0!"},"no",null,{"$error":"#DIV/0!"},null,{"$error":"#DIV/0!"}]
[null,null,null,null,null,null,{"$error":"#DIV/0!"},"no",null,{"$error":"#DIV/0!"},null,{"$error":"#DIV/0!"}]
[null,null,null,null,null,null,{"$error":"#DIV/0!"},"no",null,{"$error":"#DIV/0!"},null,{"$error":"#DIV/0!"}]
[null,null,null,null,null,null,{"$error":"#DIV/0!"},"no",null,{"$error":"#DIV/0!"},null,{"$error":"#DIV/0!"}]
[null,null,null,null,null,null,{"$error":"#DIV/0!"},"no",null,{"$error":"#DIV/0!"},null,{"$error":"#DIV/0!"}]
[null,null,null,null,null,null,{"$error":"#DIV/0!"},"no",null,{"$error":"#DIV/0!"},null,{"$error":"#DIV/0!"}]
[null,null,null,null,null,null,{"$error":"#DIV/0!"},"no",null,{"$error":"#DIV/0!"},null,{"$error":"#DIV/0!"}]
[null,null,null,null,null,null,{"$error":"#DIV/0!"},"no",null,{"$error":"#DIV/0!"},null,{"$error":"#DIV/0!"}]
[null,null,null,null,null,null,{"$error":"#DIV/0!"},"no",null,{"$error":"#DIV/0!"},null,{"$error":"#DIV/0!"}]
[null,null,null,null,null,null,{"$error":"#DIV/0!"},"no",null,{"$error":"#DIV/0!"},null,{"$error":"#DIV/0!"}]
[null,null,null,null,null,null,{"$error":"#DIV/0!"},"no",null,{"$error":"#DIV/0!"},null,{"$error":"#DIV/0!"}]
[null,null,null,null,null,null,{"$error":"#DIV/0!"},"no",null,{"$error":"#DIV/0!"},null,{"$error":"#DIV/0!"}]
[null,null,null,null,null,null,{"$error":"#DIV/0!"},"no",null,{"$error":"#DIV/0!"},null,{"$error":"#DIV/0!"}]
[null,null,null,null,null,null,{"$error":"#DIV/0!"},"no",null,{"$error":"#DIV/0!"},null,{"$error":"#DIV/0!"}]
[null,null,null,null,null,null,{"$error":"#DIV/0!"},"no",null,{"$error":"#DIV/0!"},null,{"$error":"#DIV/0!"}]
[null,null,null,null,null,null,{"$error":"#DIV/0!"},"no",null,{"$error":"#DIV/0!"},null,{"$error":"#DIV/0!"}]
[null,null,null,null,null,null,{"$error":"#DIV/0!"},"no",null,{"$error":"#DIV/0!"},null,{"$error":"#DIV/0!"}]
[null,null,null,null,null,null,{"$error":"#DIV/0!"},"no",null,{"$error":"#DIV/0!"},null,{"$error":"#DIV/0!"}]
[null,null,null,null,null,null,{"$error":"#DIV/0!"},"no",null,{"$error":"#DIV/0!"},null,{"$error":"#DIV/0!"}]
[null,null,null,null,null,null,{"$error":"#DIV/0!"},"no",null,{"$error":"#DIV/0!"},null,{"$error":"#DIV/0!"}]
[null,null,null,null,null,null,{"$error":"#DIV/0!"},"no",null,{"$error":"#DIV/0!"},null,{"$error":"#DIV/0!"}]
[null,null,null,null,null,null,{"$error":"#DIV/0!"},"no",null,{"$error":"#DIV/0!"},null,{"$error":"#DIV/0!"}]
[null,null,null,null,null,null,{"$error":"#DIV/0!"},"no",null,{"$error":"#DIV/0!"},null,{"$error":"#DIV/0!"}]
[null,null,null,null,null,null,{"$error":"#DIV/0!"},"no",null,{"$error":"#DIV/0!"},null,{"$error":"#DIV/0!"}]
[null,null,null,null,null,null,{"$error":"#DIV/0!"},"no",null,{"$error":"#DIV/0!"},null,{"$error":"#DIV/0!"}]
[null,null,null,null,null,null,{"$error":"#DIV/0!"},"no",null,{"$error":"#DIV/0!"},null,{"$error":"#DIV/0!"}]
[null,null,null,null,null,null,{"$error":"#DIV/0!"},"no",null,{"$error":"#DIV/0!"},null,{"$error":"#DIV/0!"}]
[null,null,null,null,null,null,{"$error":"#DIV/0!"},"no",null,{"$error":"#DIV/0!"},null,{"$error":"#DIV/0!"}]
[null,null,null,null,null,null,{"$error":"#DIV/0!"},"no",null,{"$error":"#DIV/0!"},null,{"$error":"#DIV/0!"}]
[null,null,null,null,null,null,{"$error":"#DIV/0!"},"no",null,{"$error":"#DIV/0!"},null,{"$error":"#DIV/0!"}]
[null,null,null,null,null,null,{"$error":"#DIV/0!"},"no",null,{"$error":"#DIV/0!"},null,{"$error":"#DIV/0!"}]
[null,null,null,null,null,null,{"$error":"#DIV/0!"},"no",null,{"$error":"#DIV/0!"},null,{"$error":"#DIV/0!"}]
[null,null,null,null,null,null,{"$error":"#DIV/0!"},"no",null,{"$error":"#DIV/0!"},null,{"$error":"#DIV/0!"}]
[null,null,null,null,null,null,{"$error":"#DIV/0!"},"no",null,{"$error":"#DIV/0!"},null,{"$error":"#DIV/0!"}]
[null,null,null,null,null,null,{"$error":"#DIV/0!"},"no",null,{"$error":"#DIV/0!"},null,{"$error":"#DIV/0!"}]
[null,null,null,null,null,null,{"$error":"#DIV/0!"},"no",null,{"$error":"#DIV/0!"},null,{"$error":"#DIV/0!"}]
[null,null,null,null,null,null,{"$error":"#DIV/0!"},"no",null,{"$error":"#DIV/0!"},null,{"$error":"#DIV/0!"}]
[null,null,null,null,null,null,{"$error":"#DIV/0!"},"no",null,{"$error":"#DIV/0!"},null,{"$error":"#DIV/0!"}]
[null,null,null,null,null,null,{"$error":"#DIV/0!"},"no",null,{"$error":"#DIV/0!"},null,{"$error":"#DIV/0!"}]
[null,null,null,null,null,null,{"$error":"#DIV/0!"},"no",null,{"$error":"#DIV/0!"},null,{"$error":"#DIV/0!"}]
[null,null,null,null,null,null,{"$error":"#DIV/0!"},"no",null,{"$error":"#DIV/0!"},null,{"$error":"#DIV/0!"}]
[null,null,null,null,null,null,{"$error":"#DIV/0!"},"no",null,{"$error":"#DIV/0!"},null,{"$error":"#DIV/0!"}]
[null,null,null,null,null,null,{"$error":"#DIV/0!"},"no",null,{"$error":"#DIV/0!"},null,{"$error":"#DIV/0!"}]
[null,null,null,null,null,null,{"$error":"#DIV/0!"},"no",null,{"$error":"#DIV/0!"},null,{"$error":"#DIV/0!"}]
[null,null,null,null,null,null,{"$error":"#DIV/0!"},"no",null,{"$error":"#DIV/0!"},null,{"$error":"#DIV/0!"}]
[null,null,null,null,null,null,{"$error":"#DIV/0!"},"no",null,{"$error":"#DIV/0!"},null,{"$error":"#DIV/0!"}]
[null,null,null,null,null,null,{"$error":"#DIV/0!"},"no",null,{"$error":"#DIV/0!"},null,{"$error":"#DIV/0!"}]
[null,null,null,null,null,null,{"$f":"ROUND(AVERAGE(E716:F716),2)","v":{"$error":"#DIV/0!"}},"no",null,{"$f":"IF(I716=\"SI\",IF(H716=\"yes\",\"Excluded Area\",IF(G716<0.55,50,IF(G716<0.71,30,IF(G716<1.05,0,IF(G716<1.55,(740-740*G716),-500))))),IF(I716=\"SII\",IF(H716=\"yes\",\"Excluded Area\",IF(G716<0.55,50,IF(G716<0.81,30, IF(G716<1.21,0, IF(G716<1.55,(1090-930*G716),-500))))),IF(H716=\"yes\",\"Excluded Area\",IF(G716<0.55,50,IF(G716<0.81,30, IF(G716<1.55,0, IF(G716<=1.85,(740-490*G716),-500)))))))","v":{"$error":"#DIV/0!"}},null,{"$f":"IF(J716=-500,\"Refer to Note (1) of Table 3.50 C1 or 3.53 C1\",\" \")","v":{"$error":"#DIV/0!"}}]
[null,null,null,null,null,null,{"$error":"#DIV/0!"},"no",null,{"$error":"#DIV/0!"},null,{"$error":"#DIV/0!"}]
[null,null,null,null,null,null,{"$error":"#DIV/0!"},"no",null,{"$error":"#DIV/0!"},null,{"$error":"#DIV/0!"}]
[null,null,null,null,null,null,{"$error":"#DIV/0!"},"no",null,{"$error":"#DIV/0!"},null,{"$error":"#DIV/0!"}]
[null,null,null,null,null,null,{"$error":"#DIV/0!"},"no",null,{"$error":"#DIV/0!"},null,{"$error":"#DIV/0!"}]
[null,null,null,null,null,null,{"$error":"#DIV/0!"},"no",null,{"$error":"#DIV/0!"},null,{"$error":"#DIV/0!"}]
[null,null,null,null,null,null,{"$error":"#DIV/0!"},"no",null,{"$error":"#DIV/0!"},null,{"$error":"#DIV/0!"}]
[null,null,null,null,null,null,{"$error":"#DIV/0!"},"no",null,{"$error":"#DIV/0!"},null,{"$error":"#DIV/0!"}]
[null,null,null,null,null,null,{"$error":"#DIV/0!"},"no",null,{"$error":"#DIV/0!"},null,{"$error":"#DIV/0!"}]
[null,null,null,null,null,null,{"$error":"#DIV/0!"},"no",null,{"$error":"#DIV/0!"},null,{"$error":"#DIV/0!"}]
[null,null,null,null,null,null,{"$error":"#DIV/0!"},"no",null,{"$error":"#DIV/0!"},null,{"$error":"#DIV/0!"}]
[null,null,null,null,null,null,{"$error":"#DIV/0!"},"no",null,{"$error":"#DIV/0!"},null,{"$error":"#DIV/0!"}]
[null,null,null,null,null,null,{"$error":"#DIV/0!"},"no",null,{"$error":"#DIV/0!"},null,{"$error":"#DIV/0!"}]
[null,null,null,null,null,null,{"$error":"#DIV/0!"},"no",null,{"$error":"#DIV/0!"},null,{"$error":"#DIV/0!"}]
[null,null,null,null,null,null,{"$error":"#DIV/0!"},"no",null,{"$error":"#DIV/0!"},null,{"$error":"#DIV/0!"}]
[null,null,null,null,null,null,{"$error":"#DIV/0!"},"no",null,{"$error":"#DIV/0!"},null,{"$error":"#DIV/0!"}]
[null,null,null,null,null,null,{"$error":"#DIV/0!"},"no",null,{"$error":"#DIV/0!"},null,{"$error":"#DIV/0!"}]
[null,null,null,null,null,null,{"$error":"#DIV/0!"},"no",null,{"$error":"#DIV/0!"},null,{"$error":"#DIV/0!"}]
[null,null,null,null,null,null,{"$error":"#DIV/0!"},"no",null,{"$error":"#DIV/0!"},null,{"$error":"#DIV/0!"}]
[null,null,null,null,null,null,{"$error":"#DIV/0!"},"no",null,{"$error":"#DIV/0!"},null,{"$error":"#DIV/0!"}]
[null,null,null,null,null,null,{"$error":"#DIV/0!"},"no",null,{"$error":"#DIV/0!"},null,{"$error":"#DIV/0!"}]
[null,null,null,null,null,null,{"$error":"#DIV/0!"},"no",null,{"$error":"#DIV/0!"},null,{"$error":"#DIV/0!"}]
[null,null,null,null,null,null,{"$error":"#DIV/0!"},"no",null,{"$error":"#DIV/0!"},null,{"$error":"#DIV/0!"}]
[null,null,null,null,null,null,{"$error":"#DIV/0!"},"no",null,{"$error":"#DIV/0!"},null,{"$error":"#DIV/0!"}]
[null,null,null,null,null,null,{"$error":"#DIV/0!"},"no",null,{"$error":"#DIV/0!"},null,{"$error":"#DIV/0!"}]
[null,null,null,null,null,null,{"$error":"#DIV/0!"},"no",null,{"$error":"#DIV/0!"},null,{"$error":"#DIV/0!"}]
[null,null,null,null,null,null,{"$error":"#DIV/0!"},"no",null,{"$error":"#DIV/0!"},null,{"$error":"#DIV/0!"}]
[null,null,null,null,null,null,{"$error":"#DIV/0!"},"no",null,{"$error":"#DIV/0!"},null,{"$error":"#DIV/0!"}]
[null,null,null,null,null,null,{"$error":"#DIV/0!"},"no",null,{"$error":"#DIV/0!"},null,{"$error":"#DIV/0!"}]
[null,null,null,null,null,null,{"$error":"#DIV/0!"},"no",null,{"$error":"#DIV/0!"},null,{"$error":"#DIV/0!"}]
[null,null,null,null,null,null,{"$error":"#DIV/0!"},"no",null,{"$error":"#DIV/0!"},null,{"$error":"#DIV/0!"}]
[null,null,null,null,null,null,{"$error":"#DIV/0!"},"no",null,{"$error":"#DIV/0!"},null,{"$error":"#DIV/0!"}]
[null,null,null,null,null,null,{"$error":"#DIV/0!"},"no",null,{"$error":"#DIV/0!"},null,{"$error":"#DIV/0!"}]
[null,null,null,null,null,null,{"$error":"#DIV/0!"},"no",null,{"$error":"#DIV/0!"},null,{"$error":"#DIV/0!"}]
[null,null,null,null,null,null,{"$error":"#DIV/0!"},"no",null,{"$error":"#DIV/0!"},null,{"$error":"#DIV/0!"}]
[null,null,null,null,null,null,{"$error":"#DIV/0!"},"no",null,{"$error":"#DIV/0!"},null,{"$error":"#DIV/0!"}]
[null,null,null,null,null,null,{"$error":"#DIV/0!"},"no",null,{"$error":"#DIV/0!"},null,{"$error":"#DIV/0!"}]
[null,null,null,null,null,null,{"$error":"#DIV/0!"},"no",null,{"$error":"#DIV/0!"},null,{"$error":"#DIV/0!"}]
[null,null,null,null,null,null,{"$error":"#DIV/0!"},"no",null,{"$error":"#DIV/0!"},null,{"$error":"#DIV/0!"}]
[null,null,null,null,null,null,{"$error":"#DIV/0!"},"no",null,{"$error":"#DIV/0!"},null,{"$error":"#DIV/0!"}]
[null,null,null,null,null,null,{"$error":"#DIV/0!"},"no",null,{"$error":"#DIV/0!"},null,{"$error":"#DIV/0!"}]
[null,null,null,null,null,null,{"$error":"#DIV/0!"},"no",null,{"$error":"#DIV/0!"},null,{"$error":"#DIV/0!"}]
[null,null,null,null,null,null,{"$error":"#DIV/0!"},"no",null,{"$error":"#DIV/0!"},null,{"$error":"#DIV/0!"}]
[null,null,null,null,null,null,{"$error":"#DIV/0!"},"no",null,{"$error":"#DIV/0!"},null,{"$error":"#DIV/0!"}]
[null,null,null,null,null,null,{"$error":"#DIV/0!"},"no",null,{"$error":"#DIV/0!"},null,{"$error":"#DIV/0!"}]
[null,null,null,null,null,null,{"$error":"#DIV/0!"},"no",null,{"$error":"#DIV/0!"},null,{"$error":"#DIV/0!"}]
[null,null,null,null,null,null,{"$error":"#DIV/0!"},"no",null,{"$error":"#DIV/0!"},null,{"$error":"#DIV/0!"}]
[null,null,null,null,null,null,{"$error":"#DIV/0!"},"no",null,{"$error":"#DIV/0!"},null,{"$error":"#DIV/0!"}]
[null,null,null,null,null,null,{"$error":"#DIV/0!"},"no",null,{"$error":"#DIV/0!"},null,{"$error":"#DIV/0!"}]
[null,null,null,null,null,null,{"$error":"#DIV/0!"},"no",null,{"$error":"#DIV/0!"},null,{"$error":"#DIV/0!"}]
[null,null,null,null,null,null,{"$error":"#DIV/0!"},"no",null,{"$error":"#DIV/0!"},null,{"$error":"#DIV/0!"}]
[null,null,null,null,null,null,{"$error":"#DIV/0!"},"no",null,{"$error":"#DIV/0!"},null,{"$error":"#DIV/0!"}]
[null,null,null,null,null,null,{"$error":"#DIV/0!"},"no",null,{"$error":"#DIV/0!"},null,{"$error":"#DIV/0!"}]
[null,null,null,null,null,null,{"$error":"#DIV/0!"},"no",null,{"$error":"#DIV/0!"},null,{"$error":"#DIV/0!"}]
[null,null,null,null,null,null,{"$error":"#DIV/0!"},"no",null,{"$error":"#DIV/0!"},null,{"$error":"#DIV/0!"}]
[null,null,null,null,null,null,{"$error":"#DIV/0!"},"no",null,{"$error":"#DIV/0!"},null,{"$error":"#DIV/0!"}]
[null,null,null,null,null,null,{"$error":"#DIV/0!"},"no",null,{"$error":"#DIV/0!"},null,{"$error":"#DIV/0!"}]
[null,null,null,null,null,null,{"$error":"#DIV/0!"},"no",null,{"$error":"#DIV/0!"},null,{"$error":"#DIV/0!"}]
[null,null,null,null,null,null,{"$error":"#DIV/0!"},"no",null,{"$error":"#DIV/0!"},null,{"$error":"#DIV/0!"}]
[null,null,null,null,null,null,{"$error":"#DIV/0!"},"no",null,{"$error":"#DIV/0!"},null,{"$error":"#DIV/0!"}]
[null,null,null,null,null,null,{"$error":"#DIV/0!"},"no",null,{"$error":"#DIV/0!"},null,{"$error":"#DIV/0!"}]
[null,null,null,null,null,null,{"$error":"#DIV/0!"},"no",null,{"$error":"#DIV/0!"},null,{"$error":"#DIV/0!"}]
[null,null,null,null,null,null,{"$error":"#DIV/0!"},"no",null,{"$error":"#DIV/0!"},null,{"$error":"#DIV/0!"}]
[null,null,null,null,null,null,{"$error":"#DIV/0!"},"no",null,{"$error":"#DIV/0!"},null,{"$error":"#DIV/0!"}]
[null,null,null,null,null,null,{"$f":"ROUND(AVERAGE(E780:F780),2)","v":{"$error":"#DIV/0!"}},"no",null,{"$f":"IF(I780=\"SI\",IF(H780=\"yes\",\"Excluded Area\",IF(G780<0.55,50,IF(G780<0.71,30,IF(G780<1.05,0,IF(G780<1.55,(740-740*G780),-500))))),IF(I780=\"SII\",IF(H780=\"yes\",\"Excluded Area\",IF(G780<0.55,50,IF(G780<0.81,30, IF(G780<1.21,0, IF(G780<1.55,(1090-930*G780),-500))))),IF(H780=\"yes\",\"Excluded Area\",IF(G780<0.55,50,IF(G780<0.81,30, IF(G780<1.55,0, IF(G780<=1.85,(740-490*G780),-500)))))))","v":{"$error":"#DIV/0!"}},null,{"$f":"IF(J780=-500,\"Refer to Note (1) of Table 3.50 C1 or 3.53 C1\",\" \")","v":{"$error":"#DIV/0!"}}]
[null,null,null,null,null,null,{"$error":"#DIV/0!"},"no",null,{"$error":"#DIV/0!"},null,{"$error":"#DIV/0!"}]
[null,null,null,null,null,null,{"$error":"#DIV/0!"},"no",null,{"$error":"#DIV/0!"},null,{"$error":"#DIV/0!"}]
[null,null,null,null,null,null,{"$error":"#DIV/0!"},"no",null,{"$error":"#DIV/0!"},null,{"$error":"#DIV/0!"}]
[null,null,null,null,null,null,{"$error":"#DIV/0!"},"no",null,{"$error":"#DIV/0!"},null,{"$error":"#DIV/0!"}]
[null,null,null,null,null,null,{"$error":"#DIV/0!"},"no",null,{"$error":"#DIV/0!"},null,{"$error":"#DIV/0!"}]
[null,null,null,null,null,null,{"$error":"#DIV/0!"},"no",null,{"$error":"#DIV/0!"},null,{"$error":"#DIV/0!"}]
[null,null,null,null,null,null,{"$error":"#DIV/0!"},"no",null,{"$error":"#DIV/0!"},null,{"$error":"#DIV/0!"}]
[null,null,null,null,null,null,{"$error":"#DIV/0!"},"no",null,{"$error":"#DIV/0!"},null,{"$error":"#DIV/0!"}]
[null,null,null,null,null,null,{"$error":"#DIV/0!"},"no",null,{"$error":"#DIV/0!"},null,{"$error":"#DIV/0!"}]
[null,null,null,null,null,null,{"$error":"#DIV/0!"},"no",null,{"$error":"#DIV/0!"},null,{"$error":"#DIV/0!"}]
[null,null,null,null,null,null,{"$error":"#DIV/0!"},"no",null,{"$error":"#DIV/0!"},null,{"$error":"#DIV/0!"}]
[null,null,null,null,null,null,{"$error":"#DIV/0!"},"no",null,{"$error":"#DIV/0!"},null,{"$error":"#DIV/0!"}]
[null,null,null,null,null,null,{"$error":"#DIV/0!"},"no",null,{"$error":"#DIV/0!"},null,{"$error":"#DIV/0!"}]
[null,null,null,null,null,null,{"$error":"#DIV/0!"},"no",null,{"$error":"#DIV/0!"},null,{"$error":"#DIV/0!"}]
[null,null,null,null,null,null,{"$error":"#DIV/0!"},"no",null,{"$error":"#DIV/0!"},null,{"$error":"#DIV/0!"}]
[null,null,null,null,null,null,{"$error":"#DIV/0!"},"no",null,{"$error":"#DIV/0!"},null,{"$error":"#DIV/0!"}]
[null,null,null,null,null,null,{"$error":"#DIV/0!"},"no",null,{"$error":"#DIV/0!"},null,{"$error":"#DIV/0!"}]
[null,null,null,null,null,null,{"$error":"#DIV/0!"},"no",null,{"$error":"#DIV/0!"},null,{"$error":"#DIV/0!"}]
[null,null,null,null,null,null,{"$error":"#DIV/0!"},"no",null,{"$error":"#DIV/0!"},null,{"$error":"#DIV/0!"}]
[null,null,null,null,null,null,{"$error":"#DIV/0!"},"no",null,{"$error":"#DIV/0!"},null,{"$error":"#DIV/0!"}]
[null,null,null,null,null,null,{"$error":"#DIV/0!"},"no",null,{"$error":"#DIV/0!"},null,{"$error":"#DIV/0!"}]
[null,null,null,null,null,null,{"$error":"#DIV/0!"},"no",null,{"$error":"#DIV/0!"},null,{"$error":"#DIV/0!"}]
[null,null,null,null,null,null,{"$error":"#DIV/0!"},"no",null,{"$error":"#DIV/0!"},null,{"$error":"#DIV/0!"}]
[null,null,null,null,null,null,{"$error":"#DIV/0!"},"no",null,{"$error":"#DIV/0!"},null,{"$error":"#DIV/0!"}]
[null,null,null,null,null,null,{"$error":"#DIV/0!"},"no",null,{"$error":"#DIV/0!"},null,{"$error":"#DIV/0!"}]
[null,null,null,null,null,null,{"$error":"#DIV/0!"},"no",null,{"$error":"#DIV/0!"},null,{"$error":"#DIV/0!"}]
[null,null,null,null,null,null,{"$error":"#DIV/0!"},"no",null,{"$error":"#DIV/0!"},null,{"$error":"#DIV/0!"}]
[null,null,null,null,null,null,{"$error":"#DIV/0!"},"no",null,{"$error":"#DIV/0!"},null,{"$error":"#DIV/0!"}]
[null,null,null,null,null,null,{"$error":"#DIV/0!"},"no",null,{"$error":"#DIV/0!"},null,{"$error":"#DIV/0!"}]
[null,null,null,null,null,null,{"$error":"#DIV/0!"},"no",null,{"$error":"#DIV/0!"},null,{"$error":"#DIV/0!"}]
[null,null,null,null,null,null,{"$error":"#DIV/0!"},"no",null,{"$error":"#DIV/0!"},null,{"$error":"#DIV/0!"}]
[null,null,null,null,null,null,{"$error":"#DIV/0!"},"no",null,{"$error":"#DIV/0!"},null,{"$error":"#DIV/0!"}]
[null,null,null,null,null,null,{"$error":"#DIV/0!"},"no",null,{"$error":"#DIV/0!"},null,{"$error":"#DIV/0!"}]
[null,null,null,null,null,null,{"$error":"#DIV/0!"},"no",null,{"$error":"#DIV/0!"},null,{"$error":"#DIV/0!"}]
[null,null,null,null,null,null,{"$error":"#DIV/0!"},"no",null,{"$error":"#DIV/0!"},null,{"$error":"#DIV/0!"}]
[null,null,null,null,null,null,{"$error":"#DIV/0!"},"no",null,{"$error":"#DIV/0!"},null,{"$error":"#DIV/0!"}]
[null,null,null,null,null,null,{"$error":"#DIV/0!"},"no",null,{"$error":"#DIV/0!"},null,{"$error":"#DIV/0!"}]
[null,null,null,null,null,null,{"$error":"#DIV/0!"},"no",null,{"$error":"#DIV/0!"},null,{"$error":"#DIV/0!"}]
[null,null,null,null,null,null,{"$error":"#DIV/0!"},"no",null,{"$error":"#DIV/0!"},null,{"$error":"#DIV/0!"}]
[null,null,null,null,null,null,{"$error":"#DIV/0!"},"no",null,{"$error":"#DIV/0!"},null,{"$error":"#DIV/0!"}]
[null,null,null,null,null,null,{"$error":"#DIV/0!"},"no",null,{"$error":"#DIV/0!"},null,{"$error":"#DIV/0!"}]
[null,null,null,null,null,null,{"$error":"#DIV/0!"},"no",null,{"$error":"#DIV/0!"},null,{"$error":"#DIV/0!"}]
[null,null,null,null,null,null,{"$error":"#DIV/0!"},"no",null,{"$error":"#DIV/0!"},null,{"$error":"#DIV/0!"}]
[null,null,null,null,null,null,{"$error":"#DIV/0!"},"no",null,{"$error":"#DIV/0!"},null,{"$error":"#DIV/0!"}]
[null,null,null,null,null,null,{"$error":"#DIV/0!"},"no",null,{"$error":"#DIV/0!"},null,{"$error":"#DIV/0!"}]
[null,null,null,null,null,null,{"$error":"#DIV/0!"},"no",null,{"$error":"#DIV/0!"},null,{"$error":"#DIV/0!"}]
[null,null,null,null,null,null,{"$error":"#DIV/0!"},"no",null,{"$error":"#DIV/0!"},null,{"$error":"#DIV/0!"}]
[null,null,null,null,null,null,{"$error":"#DIV/0!"},"no",null,{"$error":"#DIV/0!"},null,{"$error":"#DIV/0!"}]
[null,null,null,null,null,null,{"$error":"#DIV/0!"},"no",null,{"$error":"#DIV/0!"},null,{"$error":"#DIV/0!"}]
[null,null,null,null,null,null,{"$error":"#DIV/0!"},"no",null,{"$error":"#DIV/0!"},null,{"$error":"#DIV/0!"}]
[null,null,null,null,null,null,{"$error":"#DIV/0!"},"no",null,{"$error":"#DIV/0!"},null,{"$error":"#DIV/0!"}]
[null,null,null,null,null,null,{"$error":"#DIV/0!"},"no",null,{"$error":"#DIV/0!"},null,{"$error":"#DIV/0!"}]
[null,null,null,null,null,null,{"$error":"#DIV/0!"},"no",null,{"$error":"#DIV/0!"},null,{"$error":"#DIV/0!"}]
[null,null,null,null,null,null,{"$error":"#DIV/0!"},"no",null,{"$error":"#DIV/0!"},null,{"$error":"#DIV/0!"}]
[null,null,null,null,null,null,{"$error":"#DIV/0!"},"no",null,{"$error":"#DIV/0!"},null,{"$error":"#DIV/0!"}]
[null,null,null,null,null,null,{"$error":"#DIV/0!"},"no",null,{"$error":"#DIV/0!"},null,{"$error":"#DIV/0!"}]
[null,null,null,null,null,null,{"$error":"#DIV/0!"},"no",null,{"$error":"#DIV/0!"},null,{"$error":"#DIV/0!"}]
[null,null,null,null,null,null,{"$error":"#DIV/0!"},"no",null,{"$error":"#DIV/0!"},null,{"$error":"#DIV/0!"}]
[null,null,null,null,null,null,{"$error":"#DIV/0!"},"no",null,{"$error":"#DIV/0!"},null,{"$error":"#DIV/0!"}]
[null,null,null,null,null,null,{"$error":"#DIV/0!"},"no",null,{"$error":"#DIV/0!"},null,{"$error":"#DIV/0!"}]
[null,null,null,null,null,null,{"$error":"#DIV/0!"},"no",null,{"$error":"#DIV/0!"},null,{"$error":"#DIV/0!"}]
[null,null,null,null,null,null,{"$error":"#DIV/0!"},"no",null,{"$error":"#DIV/0!"},null,{"$error":"#DIV/0!"}]
[null,null,null,null,null,null,{"$error":"#DIV/0!"},"no",null,{"$error":"#DIV/0!"},null,{"$error":"#DIV/0!"}]
[null,null,null,null,null,null,{"$f":"ROUND(AVERAGE(E844:F844),2)","v":{"$error":"#DIV/0!"}},"no",null,{"$f":"IF(I844=\"SI\",IF(H844=\"yes\",\"Excluded Area\",IF(G844<0.55,50,IF(G844<0.71,30,IF(G844<1.05,0,IF(G844<1.55,(740-740*G844),-500))))),IF(I844=\"SII\",IF(H844=\"yes\",\"Excluded Area\",IF(G844<0.55,50,IF(G844<0.81,30, IF(G844<1.21,0, IF(G844<1.55,(1090-930*G844),-500))))),IF(H844=\"yes\",\"Excluded Area\",IF(G844<0.55,50,IF(G844<0.81,30, IF(G844<1.55,0, IF(G844<=1.85,(740-490*G844),-500)))))))","v":{"$error":"#DIV/0!"}},null,{"$f":"IF(J844=-500,\"Refer to Note (1) of Table 3.50 C1 or 3.53 C1\",\" \")","v":{"$error":"#DIV/0!"}}]
[null,null,null,null,null,null,{"$error":"#DIV/0!"},"no",null,{"$error":"#DIV/0!"},null,{"$error":"#DIV/0!"}]
[null,null,null,null,null,null,{"$error":"#DIV/0!"},"no",null,{"$error":"#DIV/0!"},null,{"$error":"#DIV/0!"}]
[null,null,null,null,null,null,{"$error":"#DIV/0!"},"no",null,{"$error":"#DIV/0!"},null,{"$error":"#DIV/0!"}]
[null,null,null,null,null,null,{"$error":"#DIV/0!"},"no",null,{"$error":"#DIV/0!"},null,{"$error":"#DIV/0!"}]
[null,null,null,null,null,null,{"$error":"#DIV/0!"},"no",null,{"$error":"#DIV/0!"},null,{"$error":"#DIV/0!"}]
[null,null,null,null,null,null,{"$error":"#DIV/0!"},"no",null,{"$error":"#DIV/0!"},null,{"$error":"#DIV/0!"}]
[null,null,null,null,null,null,{"$error":"#DIV/0!"},"no",null,{"$error":"#DIV/0!"},null,{"$error":"#DIV/0!"}]
[null,null,null,null,null,null,{"$error":"#DIV/0!"},"no",null,{"$error":"#DIV/0!"},null,{"$error":"#DIV/0!"}]
[null,null,null,null,null,null,{"$error":"#DIV/0!"},"no",null,{"$error":"#DIV/0!"},null,{"$error":"#DIV/0!"}]
[null,null,null,null,null,null,{"$error":"#DIV/0!"},"no",null,{"$error":"#DIV/0!"},null,{"$error":"#DIV/0!"}]
[null,null,null,null,null,null,{"$error":"#DIV/0!"},"no",null,{"$error":"#DIV/0!"},null,{"$error":"#DIV/0!"}]
[null,null,null,null,null,null,{"$error":"#DIV/0!"},"no",null,{"$error":"#DIV/0!"},null,{"$error":"#DIV/0!"}]
[null,null,null,null,null,null,{"$error":"#DIV/0!"},"no",null,{"$error":"#DIV/0!"},null,{"$error":"#DIV/0!"}]
[null,null,null,null,null,null,{"$error":"#DIV/0!"},"no",null,{"$error":"#DIV/0!"},null,{"$error":"#DIV/0!"}]
[null,null,null,null,null,null,{"$error":"#DIV/0!"},"no",null,{"$error":"#DIV/0!"},null,{"$error":"#DIV/0!"}]
[null,null,null,null,null,null,{"$error":"#DIV/0!"},"no",null,{"$error":"#DIV/0!"},null,{"$error":"#DIV/0!"}]
[null,null,null,null,null,null,{"$error":"#DIV/0!"},"no",null,{"$error":"#DIV/0!"},null,{"$error":"#DIV/0!"}]
[null,null,null,null,null,null,{"$error":"#DIV/0!"},"no",null,{"$error":"#DIV/0!"},null,{"$error":"#DIV/0!"}]
[null,null,null,null,null,null,{"$error":"#DIV/0!"},"no",null,{"$error":"#DIV/0!"},null,{"$error":"#DIV/0!"}]
[null,null,null,null,null,null,{"$error":"#DIV/0!"},"no",null,{"$error":"#DIV/0!"},null,{"$error":"#DIV/0!"}]
[null,null,null,null,null,null,{"$error":"#DIV/0!"},"no",null,{"$error":"#DIV/0!"},null,{"$error":"#DIV/0!"}]
[null,null,null,null,null,null,{"$error":"#DIV/0!"},"no",null,{"$error":"#DIV/0!"},null,{"$error":"#DIV/0!"}]
[null,null,null,null,null,null,{"$error":"#DIV/0!"},"no",null,{"$error":"#DIV/0!"},null,{"$error":"#DIV/0!"}]
[null,null,null,null,null,null,{"$error":"#DIV/0!"},"no",null,{"$error":"#DIV/0!"},null,{"$error":"#DIV/0!"}]
[null,null,null,null,null,null,{"$error":"#DIV/0!"},"no",null,{"$error":"#DIV/0!"},null,{"$error":"#DIV/0!"}]
[null,null,null,null,null,null,{"$error":"#DIV/0!"},"no",null,{"$error":"#DIV/0!"},null,{"$error":"#DIV/0!"}]
[null,null,null,null,null,null,{"$error":"#DIV/0!"},"no",null,{"$error":"#DIV/0!"},null,{"$error":"#DIV/0!"}]
[null,null,null,null,null,null,{"$error":"#DIV/0!"},"no",null,{"$error":"#DIV/0!"},null,{"$error":"#DIV/0!"}]
[null,null,null,null,null,null,{"$error":"#DIV/0!"},"no",null,{"$error":"#DIV/0!"},null,{"$error":"#DIV/0!"}]
[null,null,null,null,null,null,{"$error":"#DIV/0!"},"no",null,{"$error":"#DIV/0!"},null,{"$error":"#DIV/0!"}]
[null,null,null,null,null,null,{"$error":"#DIV/0!"},"no",null,{"$error":"#DIV/0!"},null,{"$error":"#DIV/0!"}]
[null,null,null,null,null,null,{"$error":"#DIV/0!"},"no",null,{"$error":"#DIV/0!"},null,{"$error":"#DIV/0!"}]
[null,null,null,null,null,null,{"$error":"#DIV/0!"},"no",null,{"$error":"#DIV/0!"},null,{"$error":"#DIV/0!"}]
[null,null,null,null,null,null,{"$error":"#DIV/0!"},"no",null,{"$error":"#DIV/0!"},null,{"$error":"#DIV/0!"}]
[null,null,null,null,null,null,{"$error":"#DIV/0!"},"no",null,{"$error":"#DIV/0!"},null,{"$error":"#DIV/0!"}]
[null,null,null,null,null,null,{"$error":"#DIV/0!"},"no",null,{"$error":"#DIV/0!"},null,{"$error":"#DIV/0!"}]
[null,null,null,null,null,null,{"$error":"#DIV/0!"},"no",null,{"$error":"#DIV/0!"},null,{"$error":"#DIV/0!"}]
[null,null,null,null,null,null,{"$error":"#DIV/0!"},"no",null,{"$error":"#DIV/0!"},null,{"$error":"#DIV/0!"}]
[null,null,null,null,null,null,{"$error":"#DIV/0!"},"no",null,{"$error":"#DIV/0!"},null,{"$error":"#DIV/0!"}]
[null,null,null,null,null,null,{"$error":"#DIV/0!"},"no",null,{"$error":"#DIV/0!"},null,{"$error":"#DIV/0!"}]
[null,null,null,null,null,null,{"$error":"#DIV/0!"},"no",null,{"$error":"#DIV/0!"},null,{"$error":"#DIV/0!"}]
[null,null,null,null,null,null,{"$error":"#DIV/0!"},"no",null,{"$error":"#DIV/0!"},null,{"$error":"#DIV/0!"}]
[null,null,null,null,null,null,{"$error":"#DIV/0!"},"no",null,{"$error":"#DIV/0!"},null,{"$error":"#DIV/0!"}]
[null,null,null,null,null,null,{"$error":"#DIV/0!"},"no",null,{"$error":"#DIV/0!"},null,{"$error":"#DIV/0!"}]
[null,null,null,null,null,null,{"$error":"#DIV/0!"},"no",null,{"$error":"#DIV/0!"},null,{"$error":"#DIV/0!"}]
[null,null,null,null,null,null,{"$error":"#DIV/0!"},"no",null,{"$error":"#DIV/0!"},null,{"$error":"#DIV/0!"}]
[null,null,null,null,null,null,{"$error":"#DIV/0!"},"no",null,{"$error":"#DIV/0!"},null,{"$error":"#DIV/0!"}]
[null,null,null,null,null,null,{"$error":"#DIV/0!"},"no",null,{"$error":"#DIV/0!"},null,{"$error":"#DIV/0!"}]
[null,null,null,null,null,null,{"$error":"#DIV/0!"},"no",null,{"$error":"#DIV/0!"},null,{"$error":"#DIV/0!"}]
[null,null,null,null,null,null,{"$error":"#DIV/0!"},"no",null,{"$error":"#DIV/0!"},null,{"$error":"#DIV/0!"}]
[null,null,null,null,null,null,{"$error":"#DIV/0!"},"no",null,{"$error":"#DIV/0!"},null,{"$error":"#DIV/0!"}]
[null,null,null,null,null,null,{"$error":"#DIV/0!"},"no",null,{"$error":"#DIV/0!"},null,{"$error":"#DIV/0!"}]
[null,null,null,null,null,null,{"$error":"#DIV/0!"},"no",null,{"$error":"#DIV/0!"},null,{"$error":"#DIV/0!"}]
[null,null,null,null,null,null,{"$error":"#DIV/0!"},"no",null,{"$error":"#DIV/0!"},null,{"$error":"#DIV/0!"}]
[null,null,null,null,null,null,{"$error":"#DIV/0!"},"no",null,{"$error":"#DIV/0!"},null,{"$error":"#DIV/0!"}]
[null,null,null,null,null,null,{"$error":"#DIV/0!"},"no",null,{"$error":"#DIV/0!"},null,{"$error":"#DIV/0!"}]
[null,null,null,null,null,null,{"$error":"#DIV/0!"},"no",null,{"$error":"#DIV/0!"},null,{"$error":"#DIV/0!"}]
[null,null,null,null,null,null,{"$error":"#DIV/0!"},"no",null,{"$error":"#DIV/0!"},null,{"$error":"#DIV/0!"}]
[null,null,null,null,null,null,{"$error":"#DIV/0!"},"no",null,{"$error":"#DIV/0!"},null,{"$error":"#DIV/0!"}]
[null,null,null,null,null,null,{"$error":"#DIV/0!"},"no",null,{"$error":"#DIV/0!"},null,{"$error":"#DIV/0!"}]
[null,null,null,null,null,null,{"$error":"#DIV/0!"},"no",null,{"$error":"#DIV/0!"},null,{"$error":"#DIV/0!"}]
[null,null,null,null,null,null,{"$error":"#DIV/0!"},"no",null,{"$error":"#DIV/0!"},null,{"$error":"#DIV/0!"}]
[null,null,null,null,null,null,{"$error":"#DIV/0!"},"no",null,{"$error":"#DIV/0!"},null,{"$error":"#DIV/0!"}]
[null,null,null,null,null,null,{"$f":"ROUND(AVERAGE(E908:F908),2)","v":{"$error":"#DIV/0!"}},"no",null,{"$f":"IF(I908=\"SI\",IF(H908=\"yes\",\"Excluded Area\",IF(G908<0.55,50,IF(G908<0.71,30,IF(G908<1.05,0,IF(G908<1.55,(740-740*G908),-500))))),IF(I908=\"SII\",IF(H908=\"yes\",\"Excluded Area\",IF(G908<0.55,50,IF(G908<0.81,30, IF(G908<1.21,0, IF(G908<1.55,(1090-930*G908),-500))))),IF(H908=\"yes\",\"Excluded Area\",IF(G908<0.55,50,IF(G908<0.81,30, IF(G908<1.55,0, IF(G908<=1.85,(740-490*G908),-500)))))))","v":{"$error":"#DIV/0!"}},null,{"$f":"IF(J908=-500,\"Refer to Note (1) of Table 3.50 C1 or 3.53 C1\",\" \")","v":{"$error":"#DIV/0!"}}]
[null,null,null,null,null,null,{"$error":"#DIV/0!"},"no",null,{"$error":"#DIV/0!"},null,{"$error":"#DIV/0!"}]
[null,null,null,null,null,null,{"$error":"#DIV/0!"},"no",null,{"$error":"#DIV/0!"},null,{"$error":"#DIV/0!"}]
[null,null,null,null,null,null,{"$error":"#DIV/0!"},"no",null,{"$error":"#DIV/0!"},null,{"$error":"#DIV/0!"}]
[null,null,null,null,null,null,{"$error":"#DIV/0!"},"no",null,{"$error":"#DIV/0!"},null,{"$error":"#DIV/0!"}]
[null,null,null,null,null,null,{"$error":"#DIV/0!"},"no",null,{"$error":"#DIV/0!"},null,{"$error":"#DIV/0!"}]
[null,null,null,null,null,null,{"$error":"#DIV/0!"},"no",null,{"$error":"#DIV/0!"},null,{"$error":"#DIV/0!"}]
[null,null,null,null,null,null,{"$error":"#DIV/0!"},"no",null,{"$error":"#DIV/0!"},null,{"$error":"#DIV/0!"}]
[null,null,null,null,null,null,{"$error":"#DIV/0!"},"no",null,{"$error":"#DIV/0!"},null,{"$error":"#DIV/0!"}]
[null,null,null,null,null,null,{"$error":"#DIV/0!"},"no",null,{"$error":"#DIV/0!"},null,{"$error":"#DIV/0!"}]
[null,null,null,null,null,null,{"$error":"#DIV/0!"},"no",null,{"$error":"#DIV/0!"},null,{"$error":"#DIV/0!"}]
[null,null,null,null,null,null,{"$error":"#DIV/0!"},"no",null,{"$error":"#DIV/0!"},null,{"$error":"#DIV/0!"}]
[null,null,null,null,null,null,{"$error":"#DIV/0!"},"no",null,{"$error":"#DIV/0!"},null,{"$error":"#DIV/0!"}]
[null,null,null,null,null,null,{"$error":"#DIV/0!"},"no",null,{"$error":"#DIV/0!"},null,{"$error":"#DIV/0!"}]
[null,null,null,null,null,null,{"$error":"#DIV/0!"},"no",null,{"$error":"#DIV/0!"},null,{"$error":"#DIV/0!"}]
[null,null,null,null,null,null,{"$error":"#DIV/0!"},"no",null,{"$error":"#DIV/0!"},null,{"$error":"#DIV/0!"}]
[null,null,null,null,null,null,{"$error":"#DIV/0!"},"no",null,{"$error":"#DIV/0!"},null,{"$error":"#DIV/0!"}]
[null,null,null,null,null,null,{"$error":"#DIV/0!"},"no",null,{"$error":"#DIV/0!"},null,{"$error":"#DIV/0!"}]
[null,null,null,null,null,null,{"$error":"#DIV/0!"},"no",null,{"$error":"#DIV/0!"},null,{"$error":"#DIV/0!"}]
[null,null,null,null,null,null,{"$error":"#DIV/0!"},"no",null,{"$error":"#DIV/0!"},null,{"$error":"#DIV/0!"}]
[null,null,null,null,null,null,{"$error":"#DIV/0!"},"no",null,{"$error":"#DIV/0!"},null,{"$error":"#DIV/0!"}]
[null,null,null,null,null,null,{"$error":"#DIV/0!"},"no",null,{"$error":"#DIV/0!"},null,{"$error":"#DIV/0!"}]
[null,null,null,null,null,null,{"$error":"#DIV/0!"},"no",null,{"$error":"#DIV/0!"},null,{"$error":"#DIV/0!"}]
[null,null,null,null,null,null,{"$error":"#DIV/0!"},"no",null,{"$error":"#DIV/0!"},null,{"$error":"#DIV/0!"}]
[null,null,null,null,null,null,{"$error":"#DIV/0!"},"no",null,{"$error":"#DIV/0!"},null,{"$error":"#DIV/0!"}]
[null,null,null,null,null,null,{"$error":"#DIV/0!"},"no",null,{"$error":"#DIV/0!"},null,{"$error":"#DIV/0!"}]
[null,null,null,null,null,null,{"$error":"#DIV/0!"},"no",null,{"$error":"#DIV/0!"},null,{"$error":"#DIV/0!"}]
[null,null,null,null,null,null,{"$error":"#DIV/0!"},"no",null,{"$error":"#DIV/0!"},null,{"$error":"#DIV/0!"}]
[null,null,null,null,null,null,{"$error":"#DIV/0!"},"no",null,{"$error":"#DIV/0!"},null,{"$error":"#DIV/0!"}]
[null,null,null,null,null,null,{"$error":"#DIV/0!"},"no",null,{"$error":"#DIV/0!"},null,{"$error":"#DIV/0!"}]
[null,null,null,null,null,null,{"$error":"#DIV/0!"},"no",null,{"$error":"#DIV/0!"},null,{"$error":"#DIV/0!"}]
[null,null,null,null,null,null,{"$error":"#DIV/0!"},"no",null,{"$error":"#DIV/0!"},null,{"$error":"#DIV/0!"}]
[null,null,null,null,null,null,{"$error":"#DIV/0!"},"no",null,{"$error":"#DIV/0!"},null,{"$error":"#DIV/0!"}]
[null,null,null,null,null,null,{"$error":"#DIV/0!"},"no",null,{"$error":"#DIV/0!"},null,{"$error":"#DIV/0!"}]
[null,null,null,null,null,null,{"$error":"#DIV/0!"},"no",null,{"$error":"#DIV/0!"},null,{"$error":"#DIV/0!"}]
[null,null,null,null,null,null,{"$error":"#DIV/0!"},"no",null,{"$error":"#DIV/0!"},null,{"$error":"#DIV/0!"}]
[null,null,null,null,null,null,{"$error":"#DIV/0!"},"no",null,{"$error":"#DIV/0!"},null,{"$error":"#DIV/0!"}]
[null,null,null,null,null,null,{"$error":"#DIV/0!"},"no",null,{"$error":"#DIV/0!"},null,{"$error":"#DIV/0!"}]
[null,null,null,null,null,null,{"$error":"#DIV/0!"},"no",null,{"$error":"#DIV/0!"},null,{"$error":"#DIV/0!"}]
[null,null,null,null,null,null,{"$error":"#DIV/0!"},"no",null,{"$error":"#DIV/0!"},null,{"$error":"#DIV/0!"}]
[null,null,null,null,null,null,{"$error":"#DIV/0!"},"no",null,{"$error":"#DIV/0!"},null,{"$error":"#DIV/0!"}]
[null,null,null,null,null,null,{"$error":"#DIV/0!"},"no",null,{"$error":"#DIV/0!"},null,{"$error":"#DIV/0!"}]
[null,null,null,null,null,null,{"$error":"#DIV/0!"},"no",null,{"$error":"#DIV/0!"},null,{"$error":"#DIV/0!"}]
[null,null,null,null,null,null,{"$error":"#DIV/0!"},"no",null,{"$error":"#DIV/0!"},null,{"$error":"#DIV/0!"}]
[null,null,null,null,null,null,{"$error":"#DIV/0!"},"no",null,{"$error":"#DIV/0!"},null,{"$error":"#DIV/0!"}]
[null,null,null,null,null,null,{"$error":"#DIV/0!"},"no",null,{"$error":"#DIV/0!"},null,{"$error":"#DIV/0!"}]
[null,null,null,null,null,null,{"$error":"#DIV/0!"},"no",null,{"$error":"#DIV/0!"},null,{"$error":"#DIV/0!"}]
[null,null,null,null,null,null,{"$error":"#DIV/0!"},"no",null,{"$error":"#DIV/0!"},null,{"$error":"#DIV/0!"}]
[null,null,null,null,null,null,{"$error":"#DIV/0!"},"no",null,{"$error":"#DIV/0!"},null,{"$error":"#DIV/0!"}]
[null,null,null,null,null,null,{"$error":"#DIV/0!"},"no",null,{"$error":"#DIV/0!"},null,{"$error":"#DIV/0!"}]
[null,null,null,null,null,null,{"$error":"#DIV/0!"},"no",null,{"$error":"#DIV/0!"},null,{"$error":"#DIV/0!"}]
[null,null,null,null,null,null,{"$error":"#DIV/0!"},"no",null,{"$error":"#DIV/0!"},null,{"$error":"#DIV/0!"}]
[null,null,null,null,null,null,{"$error":"#DIV/0!"},"no",null,{"$error":"#DIV/0!"},null,{"$error":"#DIV/0!"}]
[null,null,null,null,null,null,{"$error":"#DIV/0!"},"no",null,{"$error":"#DIV/0!"},null,{"$error":"#DIV/0!"}]
[null,null,null,null,null,null,{"$error":"#DIV/0!"},"no",null,{"$error":"#DIV/0!"},null,{"$error":"#DIV/0!"}]
[null,null,null,null,null,null,{"$error":"#DIV/0!"},"no",null,{"$error":"#DIV/0!"},null,{"$error":"#DIV/0!"}]
[null,null,null,null,null,null,{"$error":"#DIV/0!"},"no",null,{"$error":"#DIV/0!"},null,{"$error":"#DIV/0!"}]
[null,null,null,null,null,null,{"$error":"#DIV/0!"},"no",null,{"$error":"#DIV/0!"},null,{"$error":"#DIV/0!"}]
[null,null,null,null,null,null,{"$error":"#DIV/0!"},"no",null,{"$error":"#DIV/0!"},null,{"$error":"#DIV/0!"}]
[null,null,null,null,null,null,{"$error":"#DIV/0!"},"no",null,{"$error":"#DIV/0!"},null,{"$error":"#DIV/0!"}]
[null,null,null,null,null,null,{"$error":"#DIV/0!"},"no",null,{"$error":"#DIV/0!"},null,{"$error":"#DIV/0!"}]
[null,null,null,null,null,null,{"$error":"#DIV/0!"},"no",null,{"$error":"#DIV/0!"},null,{"$error":"#DIV/0!"}]
[null,null,null,null,null,null,{"$error":"#DIV/0!"},"no",null,{"$error":"#DIV/0!"},null,{"$error":"#DIV/0!"}]
[null,null,null,null,null,null,{"$error":"#DIV/0!"},"no",null,{"$error":"#DIV/0!"},null,{"$error":"#DIV/0!"}]
[null,null,null,null,null,null,{"$f":"ROUND(AVERAGE(E972:F972),2)","v":{"$error":"#DIV/0!"}},"no",null,{"$f":"IF(I972=\"SI\",IF(H972=\"yes\",\"Excluded Area\",IF(G972<0.55,50,IF(G972<0.71,30,IF(G972<1.05,0,IF(G972<1.55,(740-740*G972),-500))))),IF(I972=\"SII\",IF(H972=\"yes\",\"Excluded Area\",IF(G972<0.55,50,IF(G972<0.81,30, IF(G972<1.21,0, IF(G972<1.55,(1090-930*G972),-500))))),IF(H972=\"yes\",\"Excluded Area\",IF(G972<0.55,50,IF(G972<0.81,30, IF(G972<1.55,0, IF(G972<=1.85,(740-490*G972),-500)))))))","v":{"$error":"#DIV/0!"}},null,{"$f":"IF(J972=-500,\"Refer to Note (1) of Table 3.50 C1 or 3.53 C1\",\" \")","v":{"$error":"#DIV/0!"}}]
[null,null,null,null,null,null,{"$error":"#DIV/0!"},"no",null,{"$error":"#DIV/0!"},null,{"$error":"#DIV/0!"}]
[null,null,null,null,null,null,{"$error":"#DIV/0!"},"no",null,{"$error":"#DIV/0!"},null,{"$error":"#DIV/0!"}]
[null,null,null,null,null,null,{"$error":"#DIV/0!"},"no",null,{"$error":"#DIV/0!"},null,{"$error":"#DIV/0!"}]
[null,null,null,null,null,null,{"$error":"#DIV/0!"},"no",null,{"$error":"#DIV/0!"},null,{"$error":"#DIV/0!"}]
[null,null,null,null,null,null,{"$error":"#DIV/0!"},"no",null,{"$error":"#DIV/0!"},null,{"$error":"#DIV/0!"}]
[null,null,null,null,null,null,{"$error":"#DIV/0!"},"no",null,{"$error":"#DIV/0!"},null,{"$error":"#DIV/0!"}]
[null,null,null,null,null,null,{"$error":"#DIV/0!"},"no",null,{"$error":"#DIV/0!"},null,{"$error":"#DIV/0!"}]
[null,null,null,null,null,null,{"$error":"#DIV/0!"},"no",null,{"$error":"#DIV/0!"},null,{"$error":"#DIV/0!"}]
[null,null,null,null,null,null,{"$error":"#DIV/0!"},"no",null,{"$error":"#DIV/0!"},null,{"$error":"#DIV/0!"}]
[null,null,null,null,null,null,{"$error":"#DIV/0!"},"no",null,{"$error":"#DIV/0!"},null,{"$error":"#DIV/0!"}]
[null,null,null,null,null,null,{"$error":"#DIV/0!"},"no",null,{"$error":"#DIV/0!"},null,{"$error":"#DIV/0!"}]
[null,null,null,null,null,null,{"$error":"#DIV/0!"},"no",null,{"$error":"#DIV/0!"},null,{"$error":"#DIV/0!"}]
[null,null,null,null,null,null,{"$error":"#DIV/0!"},"no",null,{"$error":"#DIV/0!"},null,{"$error":"#DIV/0!"}]
[null,null,null,null,null,null,{"$error":"#DIV/0!"},"no",null,{"$error":"#DIV/0!"},null,{"$error":"#DIV/0!"}]
[null,null,null,null,null,null,{"$error":"#DIV/0!"},"no",null,{"$error":"#DIV/0!"},null,{"$error":"#DIV/0!"}]
[null,null,null,null,null,null,{"$error":"#DIV/0!"},"no",null,{"$error":"#DIV/0!"},null,{"$error":"#DIV/0!"}]
[null,null,null,null,null,null,{"$error":"#DIV/0!"},"no",null,{"$error":"#DIV/0!"},null,{"$error":"#DIV/0!"}]
[null,null,null,null,null,null,{"$error":"#DIV/0!"},"no",null,{"$error":"#DIV/0!"},null,{"$error":"#DIV/0!"}]
[null,null,null,null,null,null,{"$error":"#DIV/0!"},"no",null,{"$error":"#DIV/0!"},null,{"$error":"#DIV/0!"}]
[null,null,null,null,null,null,{"$error":"#DIV/0!"},"no",null,{"$error":"#DIV/0!"},null,{"$error":"#DIV/0!"}]
[null,null,null,null,null,null,{"$error":"#DIV/0!"},"no",null,{"$error":"#DIV/0!"},null,{"$error":"#DIV/0!"}]
[null,null,null,null,null,null,{"$error":"#DIV/0!"},"no",null,{"$error":"#DIV/0!"},null,{"$error":"#DIV/0!"}]
[null,null,null,null,null,null,{"$error":"#DIV/0!"},"no",null,{"$error":"#DIV/0!"},null,{"$error":"#DIV/0!"}]
[null,null,null,null,null,null,{"$error":"#DIV/0!"},"no",null,{"$error":"#DIV/0!"},null,{"$error":"#DIV/0!"}]
[null,null,null,null,null,null,{"$error":"#DIV/0!"},"no",null,{"$error":"#DIV/0!"},null,{"$error":"#DIV/0!"}]
[null,null,null,null,null,null,{"$error":"#DIV/0!"},"no",null,{"$error":"#DIV/0!"},null,{"$error":"#DIV/0!"}]
[null,null,null,null,null,null,{"$error":"#DIV/0!"},"no",null,{"$error":"#DIV/0!"},null,{"$error":"#DIV/0!"}]
[null,null,null,null,null,null,null,"no",null,50,null," "]

{"sheet":"ALR","index":4,"n_rows":300,"n_cols":15,"rows_kept":300,"cut":false,"hidden":false,"merged":[]}
[null,null,null,"Contract No:",{"$f":"IF(IRI!G1=\"\",IF('IRI(<2024)'!G1=\"\",\"\",'IRI(<2024)'!G1),IRI!G1)","v":""},"Type of Test:"]
[null,null,null,"Hwy Number",{"$f":"IF(IRI!G2=\"\",IF('IRI(<2024)'!G2=\"\",\"\",'IRI(<2024)'!G2),IRI!G2)","v":""},"Contractor:",{"$f":"IF(IRI!I2=\"\",IF('IRI(<2024)'!I2=\"\",\"\",'IRI(<2024)'!I2),IRI!I2)","v":""}]
[null,null,null,"Control Section",{"$f":"IF(IRI!G3=\"\",IF('IRI(<2024)'!G3=\"\",\"\",'IRI(<2024)'!G3),IRI!G3)","v":""},"IP Operator:",{"$f":"IF(IRI!I3=\"\",IF('IRI(<2024)'!I3=\"\",\"\",'IRI(<2024)'!I3),IRI!I3)","v":""}]
[null,null,null,"Lane:",{"$f":"IF(IRI!G4=\"\",IF('IRI(<2024)'!G4=\"\",\"\",'IRI(<2024)'!G4),IRI!G4)","v":""},"Test Date:\n(yyyy-mm-dd)"]
[null,null,null,"Direction:",{"$f":"IF(IRI!G5=\"\",IF('IRI(<2024)'!G5=\"\",\"\",'IRI(<2024)'!G5),IRI!G5)","v":""},"Comments:",{"$f":"IF(IRI!I5=\"\",IF('IRI(<2024)'!I5=\"\",\"\",'IRI(<2024)'!I5),IRI!I5)","v":""}]
["Appendix B20.b",null,null,null,null,null,null,null,null,null,null,"for Type of Test(F5)","for column H","for column I","payment reduction"]
["Areas of Localized Roughness Summary",null,null,null,null,null,null,null,null,null,null,"Acceptance","yes","SI",40]
["             Station (km)",null,"IRI (m/km)","Length","Excluded Area?","Type of Cons.","Penalty",null,null,null,null,"Verification","no","SII",15]
["Start","End","Right","(m)","Yes or No","SI,SII,or SIII","Assessment $",null,null,null,null,null,null,"SIII"]
["paste here",null,null,{"$f":"ABS(+ROUND(B10*1000,0)-ROUND(A10*1000,0))","v":{"$error":"#VALUE!"}},"no",null,{"$f":"IF(E10=\"yes\",\"Excluded Area\",IF(F10=\"SI\",-$O$7*D10,IF(OR(F10=\"SII\",F10=\"SIII\"),-$O$8*D10)))","v":false}]
[null,null,null,{"$f":"ABS(+ROUND(B11*1000,0)-ROUND(A11*1000,0))","v":0},"no",null,{"$f":"IF(E11=\"yes\",\"Excluded Area\",IF(F11=\"SI\",-$O$7*D11,IF(OR(F11=\"SII\",F11=\"SIII\"),-$O$8*D11)))","v":false}]
[null,null,null,{"$f":"ABS(+ROUND(B12*1000,0)-ROUND(A12*1000,0))","v":0},"no",null,false]
[null,null,null,0,"no",null,false]
[null,null,null,0,"no",null,false]
[null,null,null,0,"no",null,false]
[null,null,null,0,"no",null,false]
[null,null,null,0,"no",null,false]
[null,null,null,0,"no",null,false]
[null,null,null,0,"no",null,false]
[null,null,null,0,"no",null,false]
[null,null,null,0,"no",null,false]
[null,null,null,0,"no",null,false]
[null,null,null,0,"no",null,false]
[null,null,null,0,"no",null,false]
[null,null,null,0,"no",null,false]
[null,null,null,0,"no",null,false]
[null,null,null,0,"no",null,false]
[null,null,null,0,"no",null,false]
[null,null,null,0,"no",null,false]
[null,null,null,0,"no",null,false]
[null,null,null,0,"no",null,false]
[null,null,null,0,"no",null,false]
[null,null,null,0,"no",null,false]
[null,null,null,0,"no",null,false]
[null,null,null,0,"no",null,false]
[null,null,null,0,"no",null,false]
[null,null,null,0,"no",null,false]
[null,null,null,0,"no",null,false]
[null,null,null,0,"no",null,false]
[null,null,null,0,"no",null,false]
[null,null,null,0,"no",null,false]
[null,null,null,0,"no",null,false]
[null,null,null,0,"no",null,false]
[null,null,null,0,"no",null,false]
[null,null,null,0,"no",null,false]
[null,null,null,0,"no",null,false]
[null,null,null,0,"no",null,false]
[null,null,null,0,"no",null,false]
[null,null,null,0,"no",null,false]
[null,null,null,0,"no",null,false]
[null,null,null,0,"no",null,false]
[null,null,null,0,"no",null,false]
[null,null,null,0,"no",null,false]
[null,null,null,0,"no",null,false]
[null,null,null,0,"no",null,false]
[null,null,null,0,"no",null,false]
[null,null,null,0,"no",null,false]
[null,null,null,0,"no",null,false]
[null,null,null,0,"no",null,false]
[null,null,null,0,"no",null,false]
[null,null,null,0,"no",null,false]
[null,null,null,0,"no",null,false]
[null,null,null,0,"no",null,false]
[null,null,null,0,"no",null,false]
[null,null,null,0,"no",null,false]
[null,null,null,0,"no",null,false]
[null,null,null,0,"no",null,false]
[null,null,null,0,"no",null,false]
[null,null,null,0,"no",null,false]
[null,null,null,0,"no",null,false]
[null,null,null,0,"no",null,false]
[null,null,null,0,"no",null,false]
[null,null,null,0,"no",null,false]
[null,null,null,0,"no",null,false]
[null,null,null,0,"no",null,{"$f":"IF(E75=\"yes\",\"Excluded Area\",IF(F75=\"SI\",-$O$7*D75,IF(OR(F75=\"SII\",F75=\"SIII\"),-$O$8*D75)))","v":false}]
[null,null,null,{"$f":"ABS(+ROUND(B76*1000,0)-ROUND(A76*1000,0))","v":0},"no",null,false]
[null,null,null,0,"no",null,false]
[null,null,null,0,"no",null,false]
[null,null,null,0,"no",null,false]
[null,null,null,0,"no",null,false]
[null,null,null,0,"no",null,false]
[null,null,null,0,"no",null,false]
[null,null,null,0,"no",null,false]
[null,null,null,0,"no",null,false]
[null,null,null,0,"no",null,false]
[null,null,null,0,"no",null,false]
[null,null,null,0,"no",null,false]
[null,null,null,0,"no",null,false]
[null,null,null,0,"no",null,false]
[null,null,null,0,"no",null,false]
[null,null,null,0,"no",null,false]
[null,null,null,0,"no",null,false]
[null,null,null,0,"no",null,false]
[null,null,null,0,"no",null,false]
[null,null,null,0,"no",null,false]
[null,null,null,0,"no",null,false]
[null,null,null,0,"no",null,false]
[null,null,null,0,"no",null,false]
[null,null,null,0,"no",null,false]
[null,null,null,0,"no",null,false]
[null,null,null,0,"no",null,false]
[null,null,null,0,"no",null,false]
[null,null,null,0,"no",null,false]
[null,null,null,0,"no",null,false]
[null,null,null,0,"no",null,false]
[null,null,null,0,"no",null,false]
[null,null,null,0,"no",null,false]
[null,null,null,0,"no",null,false]
[null,null,null,0,"no",null,false]
[null,null,null,0,"no",null,false]
[null,null,null,0,"no",null,false]
[null,null,null,0,"no",null,false]
[null,null,null,0,"no",null,false]
[null,null,null,0,"no",null,false]
[null,null,null,0,"no",null,false]
[null,null,null,0,"no",null,false]
[null,null,null,0,"no",null,false]
[null,null,null,0,"no",null,false]
[null,null,null,0,"no",null,false]
[null,null,null,0,"no",null,false]
[null,null,null,0,"no",null,false]
[null,null,null,0,"no",null,false]
[null,null,null,0,"no",null,false]
[null,null,null,0,"no",null,false]
[null,null,null,0,"no",null,false]
[null,null,null,0,"no",null,false]
[null,null,null,0,"no",null,false]
[null,null,null,0,"no",null,false]
[null,null,null,0,"no",null,false]
[null,null,null,0,"no",null,false]
[null,null,null,0,"no",null,false]
[null,null,null,0,"no",null,false]
[null,null,null,0,"no",null,false]
[null,null,null,0,"no",null,false]
[null,null,null,0,"no",null,false]
[null,null,null,0,"no",null,false]
[null,null,null,0,"no",null,false]
[null,null,null,0,"no",null,false]
[null,null,null,0,"no",null,{"$f":"IF(E139=\"yes\",\"Excluded Area\",IF(F139=\"SI\",-$O$7*D139,IF(OR(F139=\"SII\",F139=\"SIII\"),-$O$8*D139)))","v":false}]
[null,null,null,{"$f":"ABS(+ROUND(B140*1000,0)-ROUND(A140*1000,0))","v":0},"no",null,false]
[null,null,null,0,"no",null,false]
[null,null,null,0,"no",null,false]
[null,null,null,0,"no",null,false]
[null,null,null,0,"no",null,false]
[null,null,null,0,"no",null,false]
[null,null,null,0,"no",null,false]
[null,null,null,0,"no",null,false]
[null,null,null,0,"no",null,false]
[null,null,null,0,"no",null,false]
[null,null,null,0,"no",null,false]
[null,null,null,0,"no",null,false]
[null,null,null,0,"no",null,false]
[null,null,null,0,"no",null,false]
[null,null,null,0,"no",null,false]
[null,null,null,0,"no",null,false]
[null,null,null,0,"no",null,false]
[null,null,null,0,"no",null,false]
[null,null,null,0,"no",null,false]
[null,null,null,0,"no",null,false]
[null,null,null,0,"no",null,false]
[null,null,null,0,"no",null,false]
[null,null,null,0,"no",null,false]
[null,null,null,0,"no",null,false]
[null,null,null,0,"no",null,false]
[null,null,null,0,"no",null,false]
[null,null,null,0,"no",null,false]
[null,null,null,0,"no",null,false]
[null,null,null,0,"no",null,false]
[null,null,null,0,"no",null,false]
[null,null,null,0,"no",null,false]
[null,null,null,0,"no",null,false]
[null,null,null,0,"no",null,false]
[null,null,null,0,"no",null,false]
[null,null,null,0,"no",null,false]
[null,null,null,0,"no",null,false]
[null,null,null,0,"no",null,false]
[null,null,null,0,"no",null,false]
[null,null,null,0,"no",null,false]
[null,null,null,0,"no",null,false]
[null,null,null,0,"no",null,false]
[null,null,null,0,"no",null,false]
[null,null,null,0,"no",null,false]
[null,null,null,0,"no",null,false]
[null,null,null,0,"no",null,false]
[null,null,null,0,"no",null,false]
[null,null,null,0,"no",null,false]
[null,null,null,0,"no",null,false]
[null,null,null,0,"no",null,false]
[null,null,null,0,"no",null,false]
[null,null,null,0,"no",null,false]
[null,null,null,0,"no",null,false]
[null,null,null,0,"no",null,false]
[null,null,null,0,"no",null,false]
[null,null,null,0,"no",null,false]
[null,null,null,0,"no",null,false]
[null,null,null,0,"no",null,false]
[null,null,null,0,"no",null,false]
[null,null,null,0,"no",null,false]
[null,null,null,0,"no",null,false]
[null,null,null,0,"no",null,false]
[null,null,null,0,"no",null,false]
[null,null,null,0,"no",null,false]
[null,null,null,0,"no",null,{"$f":"IF(E203=\"yes\",\"Excluded Area\",IF(F203=\"SI\",-$O$7*D203,IF(OR(F203=\"SII\",F203=\"SIII\"),-$O$8*D203)))","v":false}]
[null,null,null,{"$f":"ABS(+ROUND(B204*1000,0)-ROUND(A204*1000,0))","v":0},"no",null,false]
[null,null,null,0,"no",null,false]
[null,null,null,0,"no",null,false]
[null,null,null,0,"no",null,false]
[null,null,null,0,"no",null,false]
[null,null,null,0,"no",null,false]
[null,null,null,0,"no",null,false]
[null,null,null,0,"no",null,false]
[null,null,null,0,"no",null,false]
[null,null,null,0,"no",null,false]
[null,null,null,0,"no",null,false]
[null,null,null,0,"no",null,false]
[null,null,null,0,"no",null,false]
[null,null,null,0,"no",null,false]
[null,null,null,0,"no",null,false]
[null,null,null,0,"no",null,false]
[null,null,null,0,"no",null,false]
[null,null,null,0,"no",null,false]
[null,null,null,0,"no",null,false]
[null,null,null,0,"no",null,false]
[null,null,null,0,"no",null,false]
[null,null,null,0,"no",null,false]
[null,null,null,0,"no",null,false]
[null,null,null,0,"no",null,false]
[null,null,null,0,"no",null,false]
[null,null,null,0,"no",null,false]
[null,null,null,0,"no",null,false]
[null,null,null,0,"no",null,false]
[null,null,null,0,"no",null,false]
[null,null,null,0,"no",null,false]
[null,null,null,0,"no",null,false]
[null,null,null,0,"no",null,false]
[null,null,null,0,"no",null,false]
[null,null,null,0,"no",null,false]
[null,null,null,0,"no",null,false]
[null,null,null,0,"no",null,false]
[null,null,null,0,"no",null,false]
[null,null,null,0,"no",null,false]
[null,null,null,0,"no",null,false]
[null,null,null,0,"no",null,false]
[null,null,null,0,"no",null,false]
[null,null,null,0,"no",null,false]
[null,null,null,0,"no",null,false]
[null,null,null,0,"no",null,false]
[null,null,null,0,"no",null,false]
[null,null,null,0,"no",null,false]
[null,null,null,0,"no",null,false]
[null,null,null,0,"no",null,false]
[null,null,null,0,"no",null,false]
[null,null,null,0,"no",null,false]
[null,null,null,0,"no",null,false]
[null,null,null,0,"no",null,false]
[null,null,null,0,"no",null,false]
[null,null,null,0,"no",null,false]
[null,null,null,0,"no",null,false]
[null,null,null,0,"no",null,false]
[null,null,null,0,"no",null,false]
[null,null,null,0,"no",null,false]
[null,null,null,0,"no",null,false]
[null,null,null,0,"no",null,false]
[null,null,null,0,"no",null,false]
[null,null,null,0,"no",null,false]
[null,null,null,0,"no",null,false]
[null,null,null,0,"no",null,{"$f":"IF(E267=\"yes\",\"Excluded Area\",IF(F267=\"SI\",-$O$7*D267,IF(OR(F267=\"SII\",F267=\"SIII\"),-$O$8*D267)))","v":false}]
[null,null,null,{"$f":"ABS(+ROUND(B268*1000,0)-ROUND(A268*1000,0))","v":0},"no",null,false]
[null,null,null,0,"no",null,false]
[null,null,null,0,"no",null,false]
[null,null,null,0,"no",null,false]
[null,null,null,0,"no",null,false]
[null,null,null,0,"no",null,false]
[null,null,null,0,"no",null,false]
[null,null,null,0,"no",null,false]
[null,null,null,0,"no",null,false]
[null,null,null,0,"no",null,false]
[null,null,null,0,"no",null,false]
[null,null,null,0,"no",null,false]
[null,null,null,0,"no",null,false]
[null,null,null,0,"no",null,false]
[null,null,null,0,"no",null,false]
[null,null,null,0,"no",null,false]
[null,null,null,0,"no",null,false]
[null,null,null,0,"no",null,false]
[null,null,null,0,"no",null,false]
[null,null,null,0,"no",null,false]
[null,null,null,0,"no",null,false]
[null,null,null,0,"no",null,false]
[null,null,null,0,"no",null,false]
[null,null,null,0,"no",null,false]
[null,null,null,0,"no",null,false]
[null,null,null,0,"no",null,false]
[null,null,null,0,"no",null,false]
[null,null,null,0,"no",null,false]
[null,null,null,0,"no",null,false]
[null,null,null,0,"no",null,false]
[null,null,null,0,"no",null,false]
[null,null,null,0,"no",null,false]
[null,null,null,0,"no",null,false]

{"sheet":"IRI Example","index":5,"n_rows":1000,"n_cols":20,"rows_kept":1000,"cut":false,"hidden":false,"merged":[[14,13,15,20],[20,0,20,8],[21,0,21,9]]}
[null,null,null,null,null,"Contract No:",12345,"Type of Test:","Acceptance"]
[null,null,null,null,null,"Hwy Number:","12","Contractor:","123 Contracting"]
[null,null,null,null,null,"Control Section:",34,"IP Operator:","J.Doe"]
[null,null,null,null,null,"Lane:","L1","Test Date:\n(mm/dd/yyyy)","01/01/2021"]
[null,null,null,null,null,"Direction:","EB",null,"NEW Amendment"]
["VERIFY CONTRACT SPECIFICATION AMENDMENTS - THIS SHEET IS FOR CONTRACTS WITH SPECIFICATION AMENDMENT AMC_S279/S280 ISSUED SEPTEMBER 2024 (MAX BONUS $250/REJECT -$600)",null,null,null,null,null,null,null,null,null,null,null,null,null,null,"for Type of Test(F5)","for column H","for column I","direction"]
["Ride Quality Bonus/Penalty Summary",null,null,null,null,null,null,null,null,null,null,null,null,null,null,"Acceptance","yes","SI","WB","L1"]
["Appendix B20.a",null,null,null,null,null,null,"Excluded Area?","Type of Cons.","Sublot Payment","SI",null,null,null,null,"Verification","no","SII","EB","L2"]
["Sublot","Station (km)",null,"Length","IRI (m/km)",null,"MIRI","Yes or No?","SI,SII,or SIII","Assessment","SII",null,null,null,null,null,{"$f":"\"\"","v":""},"SIII","SB","L3"]
["Number","Start","End","(m)","Left","Right","(m/km)",null,null,"($)","SIII",null,null,null,null,null,null,null,"NB","L4"]
[1,28.71,28.81,99.997200000000007,1.750486,1.6000540000000001,{"$f":"ROUND(AVERAGE(E11:F11),2)","v":1.68},"yes","SI",{"$f":"IF(I11=\"SI\",IF(H11=\"yes\",\"Excluded Area\",IF(G11<0.55,250,IF(G11<0.71,150,IF(G11<1.01,0,IF(G11<1.51,(800-900*G11),-600))))),IF(I11=\"SII\",IF(H11=\"yes\",\"Excluded Area\",IF(G11<0.55,250,IF(G11<0.81,150, IF(G11<1.16,0, IF(G11<1.51,(1380-1230*G11),-600))))),IF(H11=\"yes\",\"Excluded Area\",IF(G11<0.55,250,IF(G11<0.81,150, IF(G11<1.51,0, IF(G11<=1.8,(730-540*G11),-600)))))))","v":"Excluded Area"},null,{"$f":"IF(J11=-600,\"Refer to Note (1) of Table 3.50 C1 or 3.53 C1\",\" \")","v":" "},null,null,null,null,null,null,null,"R1"]
[2,28.81,28.909990000000001,99.997200000000007,0.82248690000000002,0.85462459999999996,0.84,"no","SI",0,null," ",null,null,null,null,null,null,null,"R2"]
[3,28.909990000000001,29.009989999999998,99.997200000000007,0.83806709999999995,0.68966300000000003,0.76,"no","SI",0,null," ",null,null,null,null,null,null,null,"R3"]
[4,29.009989999999998,29.10999,99.997200000000007,0.99790829999999997,0.9963881,1,"no","SI",0,null," ",null,null,null,null,null,null,null,"R4"]
[5,29.10999,29.209990000000001,99.997200000000007,1.144455,1.1873530000000001,1.17,"no","SI",-253,null," ",null,"THIS SUBLOT ASSESSMENT TABLE IS FOR CONTRACTS THAT CONTAIN SPECIFICATION AMENDMENT AMC_S279/280 ONLY USE TAB \"IRI(<2024)' FOR ALL OTHER CONTRACTS"]
[6,29.209990000000001,29.309979999999999,99.997200000000007,0.84638449999999998,1.032861,0.94,"no","SI",0,null," "]
[7,29.309979999999999,29.409980000000001,99.997200000000007,0.71638690000000005,0.95360160000000005,0.83,"no","SI",0,null," "]
[8,29.409980000000001,29.509979999999999,99.997200000000007,0.85469240000000002,1.13632,1,"no","SI",0,null," "]
[9,29.509979999999999,29.609970000000001,99.997200000000007,0.77593849999999998,0.91454559999999996,0.85,"no","SI",0,null," "]
[10,29.609970000000001,29.667719999999999,57.7395,0.94795059999999998,1.1917759999999999,1.07,"yes","SI",{"$f":"IF(I20=\"SI\",IF(H20=\"yes\",\"Excluded Area\",IF(G20<0.55,250,IF(G20<0.71,150,IF(G20<1.01,0,IF(G20<1.51,(800-900*G20),-600))))),IF(I20=\"SII\",IF(H20=\"yes\",\"Excluded Area\",IF(G20<0.55,250,IF(G20<0.81,150, IF(G20<1.16,0, IF(G20<1.51,(1380-1230*G20),-600))))),IF(H20=\"yes\",\"Excluded Area\",IF(G20<0.55,250,IF(G20<0.81,150, IF(G20<1.51,0, IF(G20<=1.8,(730-540*G20),-600)))))))","v":"Excluded Area"},null," "]
["Total Assessment",null,null,null,null,null,null,null,null,{"$f":"SUM(J11:J20)","v":-253},null," "]
["Comments: NEW Amendment",null,null,null,null,null,null,null,null,null,null," "]
[null,null,null,null,null,null,{"$f":"ROUND(AVERAGE(E23:F23),2)","v":{"$error":"#DIV/0!"}},"no",null,{"$f":"IF(I23=\"SI\",IF(H23=\"yes\",\"Excluded Area\",IF(G23<0.55,250,IF(G23<0.71,150,IF(G23<1.01,0,IF(G23<1.51,(800-900*G23),-600))))),IF(I23=\"SII\",IF(H23=\"yes\",\"Excluded Area\",IF(G23<0.55,250,IF(G23<0.81,150, IF(G23<1.16,0, IF(G23<1.51,(1380-1230*G23),-600))))),IF(H23=\"yes\",\"Excluded Area\",IF(G23<0.55,250,IF(G23<0.81,150, IF(G23<1.51,0, IF(G23<=1.8,(730-540*G23),-600)))))))","v":{"$error":"#DIV/0!"}},null,{"$error":"#DIV/0!"}]
[null,null,null,null,null,null,{"$error":"#DIV/0!"},"no",null,{"$error":"#DIV/0!"},null,{"$error":"#DIV/0!"}]
[null,null,null,null,null,null,{"$error":"#DIV/0!"},"no",null,{"$error":"#DIV/0!"},null,{"$error":"#DIV/0!"}]
[null,null,null,null,null,null,{"$error":"#DIV/0!"},"no",null,{"$error":"#DIV/0!"},null,{"$error":"#DIV/0!"}]
[null,null,null,null,null,null,{"$error":"#DIV/0!"},"no",null,{"$error":"#DIV/0!"},null,{"$error":"#DIV/0!"}]
[null,null,null,null,null,null,{"$error":"#DIV/0!"},"no",null,{"$error":"#DIV/0!"},null,{"$error":"#DIV/0!"}]
[null,null,null,null,null,null,{"$error":"#DIV/0!"},"no",null,{"$error":"#DIV/0!"},null,{"$error":"#DIV/0!"}]
[null,null,null,null,null,null,{"$error":"#DIV/0!"},"no",null,{"$error":"#DIV/0!"},null,{"$error":"#DIV/0!"}]
[null,null,null,null,null,null,{"$error":"#DIV/0!"},"no",null,{"$error":"#DIV/0!"},null,{"$error":"#DIV/0!"}]
[null,null,null,null,null,null,{"$error":"#DIV/0!"},"no",null,{"$error":"#DIV/0!"},null,{"$error":"#DIV/0!"}]
[null,null,null,null,null,null,{"$error":"#DIV/0!"},"no",null,{"$error":"#DIV/0!"},null,{"$error":"#DIV/0!"}]
[null,null,null,null,null,null,{"$error":"#DIV/0!"},"no",null,{"$error":"#DIV/0!"},null,{"$error":"#DIV/0!"}]
[null,null,null,null,null,null,{"$error":"#DIV/0!"},"no",null,{"$error":"#DIV/0!"},null,{"$error":"#DIV/0!"}]
[null,null,null,null,null,null,{"$error":"#DIV/0!"},"no",null,{"$error":"#DIV/0!"},null,{"$error":"#DIV/0!"}]
[null,null,null,null,null,null,{"$error":"#DIV/0!"},"no",null,{"$error":"#DIV/0!"},null,{"$error":"#DIV/0!"},null,null,null,"Note, reject sublots are identified in this spreadsheet with a payment assessment of -$600."]
[null,null,null,null,null,null,{"$error":"#DIV/0!"},"no",null,{"$error":"#DIV/0!"},null,{"$error":"#DIV/0!"},null,null,null,"Consultant is to review whether remedial work is required (and sublot retested) or if sublot can be accepted with -$600 assessment."]
[null,null,null,null,null,null,{"$error":"#DIV/0!"},"no",null,{"$error":"#DIV/0!"},null,{"$error":"#DIV/0!"}]
[null,null,null,null,null,null,{"$error":"#DIV/0!"},"no",null,{"$error":"#DIV/0!"},null,{"$error":"#DIV/0!"}]
[null,null,null,null,null,null,{"$error":"#DIV/0!"},"no",null,{"$error":"#DIV/0!"},null,{"$error":"#DIV/0!"}]
[null,null,null,null,null,null,{"$error":"#DIV/0!"},"no",null,{"$error":"#DIV/0!"},null,{"$error":"#DIV/0!"}]
[null,null,null,null,null,null,{"$error":"#DIV/0!"},"no",null,{"$error":"#DIV/0!"},null,{"$error":"#DIV/0!"}]
[null,null,null,null,null,null,{"$error":"#DIV/0!"},"no",null,{"$error":"#DIV/0!"},null,{"$error":"#DIV/0!"}]
[null,null,null,null,null,null,{"$error":"#DIV/0!"},"no",null,{"$error":"#DIV/0!"},null,{"$error":"#DIV/0!"}]
[null,null,null,null,null,null,{"$error":"#DIV/0!"},"no",null,{"$error":"#DIV/0!"},null,{"$error":"#DIV/0!"}]
[null,null,null,null,null,null,{"$error":"#DIV/0!"},"no",null,{"$error":"#DIV/0!"},null,{"$error":"#DIV/0!"}]
[null,null,null,null,null,null,{"$error":"#DIV/0!"},"no",null,{"$error":"#DIV/0!"},null,{"$error":"#DIV/0!"}]
[null,null,null,null,null,null,{"$error":"#DIV/0!"},"no",null,{"$error":"#DIV/0!"},null,{"$error":"#DIV/0!"}]
[null,null,null,null,null,null,{"$error":"#DIV/0!"},"no",null,{"$error":"#DIV/0!"},null,{"$error":"#DIV/0!"}]
[null,null,null,null,null,null,{"$error":"#DIV/0!"},"no",null,{"$error":"#DIV/0!"},null,{"$error":"#DIV/0!"}]
[null,null,null,null,null,null,{"$error":"#DIV/0!"},"no",null,{"$error":"#DIV/0!"},null,{"$error":"#DIV/0!"}]
[null,null,null,null,null,null,{"$error":"#DIV/0!"},"no",null,{"$error":"#DIV/0!"},null,{"$error":"#DIV/0!"}]
[null,null,null,null,null,null,{"$error":"#DIV/0!"},"no",null,{"$error":"#DIV/0!"},null,{"$error":"#DIV/0!"}]
[null,null,null,null,null,null,{"$error":"#DIV/0!"},"no",null,{"$error":"#DIV/0!"},null,{"$error":"#DIV/0!"}]
[null,null,null,null,null,null,{"$error":"#DIV/0!"},"no",null,{"$error":"#DIV/0!"},null,{"$error":"#DIV/0!"}]
[null,null,null,null,null,null,{"$error":"#DIV/0!"},"no",null,{"$error":"#DIV/0!"},null,{"$error":"#DIV/0!"}]
[null,null,null,null,null,null,{"$error":"#DIV/0!"},"no",null,{"$error":"#DIV/0!"},null,{"$error":"#DIV/0!"}]
[null,null,null,null,null,null,{"$error":"#DIV/0!"},"no",null,{"$error":"#DIV/0!"},null,{"$error":"#DIV/0!"}]
[null,null,null,null,null,null,{"$error":"#DIV/0!"},"no",null,{"$error":"#DIV/0!"},null,{"$error":"#DIV/0!"}]
[null,null,null,null,null,null,{"$error":"#DIV/0!"},"no",null,{"$error":"#DIV/0!"},null,{"$error":"#DIV/0!"}]
[null,null,null,null,null,null,{"$error":"#DIV/0!"},"no",null,{"$error":"#DIV/0!"},null,{"$error":"#DIV/0!"}]
[null,null,null,null,null,null,{"$error":"#DIV/0!"},"no",null,{"$error":"#DIV/0!"},null,{"$error":"#DIV/0!"}]
[null,null,null,null,null,null,{"$error":"#DIV/0!"},"no",null,{"$error":"#DIV/0!"},null,{"$error":"#DIV/0!"}]
[null,null,null,null,null,null,{"$error":"#DIV/0!"},"no",null,{"$error":"#DIV/0!"},null,{"$error":"#DIV/0!"}]
[null,null,null,null,null,null,{"$error":"#DIV/0!"},"no",null,{"$error":"#DIV/0!"},null,{"$error":"#DIV/0!"}]
[null,null,null,null,null,null,{"$error":"#DIV/0!"},"no",null,{"$error":"#DIV/0!"},null,{"$error":"#DIV/0!"}]
[null,null,null,null,null,null,{"$error":"#DIV/0!"},"no",null,{"$error":"#DIV/0!"},null,{"$error":"#DIV/0!"}]
[null,null,null,null,null,null,{"$error":"#DIV/0!"},"no",null,{"$error":"#DIV/0!"},null,{"$error":"#DIV/0!"}]
[null,null,null,null,null,null,{"$error":"#DIV/0!"},"no",null,{"$error":"#DIV/0!"},null,{"$error":"#DIV/0!"}]
[null,null,null,null,null,null,{"$error":"#DIV/0!"},"no",null,{"$error":"#DIV/0!"},null,{"$error":"#DIV/0!"}]
[null,null,null,null,null,null,{"$error":"#DIV/0!"},"no",null,{"$error":"#DIV/0!"},null,{"$error":"#DIV/0!"}]
[null,null,null,null,null,null,{"$error":"#DIV/0!"},"no",null,{"$error":"#DIV/0!"},null,{"$error":"#DIV/0!"}]
[null,null,null,null,null,null,{"$error":"#DIV/0!"},"no",null,{"$error":"#DIV/0!"},null,{"$error":"#DIV/0!"}]
[null,null,null,null,null,null,{"$error":"#DIV/0!"},"no",null,{"$error":"#DIV/0!"},null,{"$f":"IF(J75=-600,\"Refer to Note (1) of Table 3.50 C1 or 3.53 C1\",\" \")","v":{"$error":"#DIV/0!"}}]
[null,null,null,null,null,null,{"$error":"#DIV/0!"},"no",null,{"$error":"#DIV/0!"},null,{"$error":"#DIV/0!"}]
[null,null,null,null,null,null,{"$error":"#DIV/0!"},"no",null,{"$error":"#DIV/0!"},null,{"$error":"#DIV/0!"}]
[null,null,null,null,null,null,{"$error":"#DIV/0!"},"no",null,{"$error":"#DIV/0!"},null,{"$error":"#DIV/0!"}]
[null,null,null,null,null,null,{"$error":"#DIV/0!"},"no",null,{"$error":"#DIV/0!"},null,{"$error":"#DIV/0!"}]
[null,null,null,null,null,null,{"$error":"#DIV/0!"},"no",null,{"$error":"#DIV/0!"},null,{"$error":"#DIV/0!"}]
[null,null,null,null,null,null,{"$error":"#DIV/0!"},"no",null,{"$error":"#DIV/0!"},null,{"$error":"#DIV/0!"}]
[null,null,null,null,null,null,{"$error":"#DIV/0!"},"no",null,{"$error":"#DIV/0!"},null,{"$error":"#DIV/0!"}]
[null,null,null,null,null,null,{"$error":"#DIV/0!"},"no",null,{"$error":"#DIV/0!"},null,{"$error":"#DIV/0!"}]
[null,null,null,null,null,null,{"$error":"#DIV/0!"},"no",null,{"$error":"#DIV/0!"},null,{"$error":"#DIV/0!"}]
[null,null,null,null,null,null,{"$error":"#DIV/0!"},"no",null,{"$error":"#DIV/0!"},null,{"$error":"#DIV/0!"}]
[null,null,null,null,null,null,{"$error":"#DIV/0!"},"no",null,{"$error":"#DIV/0!"},null,{"$error":"#DIV/0!"}]
[null,null,null,null,null,null,{"$f":"ROUND(AVERAGE(E87:F87),2)","v":{"$error":"#DIV/0!"}},"no",null,{"$f":"IF(I87=\"SI\",IF(H87=\"yes\",\"Excluded Area\",IF(G87<0.55,250,IF(G87<0.71,150,IF(G87<1.01,0,IF(G87<1.51,(800-900*G87),-600))))),IF(I87=\"SII\",IF(H87=\"yes\",\"Excluded Area\",IF(G87<0.55,250,IF(G87<0.81,150, IF(G87<1.16,0, IF(G87<1.51,(1380-1230*G87),-600))))),IF(H87=\"yes\",\"Excluded Area\",IF(G87<0.55,250,IF(G87<0.81,150, IF(G87<1.51,0, IF(G87<=1.8,(730-540*G87),-600)))))))","v":{"$error":"#DIV/0!"}},null,{"$error":"#DIV/0!"}]
[null,null,null,null,null,null,{"$error":"#DIV/0!"},"no",null,{"$error":"#DIV/0!"},null,{"$error":"#DIV/0!"}]
[null,null,null,null,null,null,{"$error":"#DIV/0!"},"no",null,{"$error":"#DIV/0!"},null,{"$error":"#DIV/0!"}]
[null,null,null,null,null,null,{"$error":"#DIV/0!"},"no",null,{"$error":"#DIV/0!"},null,{"$error":"#DIV/0!"}]
[null,null,null,null,null,null,{"$error":"#DIV/0!"},"no",null,{"$error":"#DIV/0!"},null,{"$error":"#DIV/0!"}]
[null,null,null,null,null,null,{"$error":"#DIV/0!"},"no",null,{"$error":"#DIV/0!"},null,{"$error":"#DIV/0!"}]
[null,null,null,null,null,null,{"$error":"#DIV/0!"},"no",null,{"$error":"#DIV/0!"},null,{"$error":"#DIV/0!"}]
[null,null,null,null,null,null,{"$error":"#DIV/0!"},"no",null,{"$error":"#DIV/0!"},null,{"$error":"#DIV/0!"}]
[null,null,null,null,null,null,{"$error":"#DIV/0!"},"no",null,{"$error":"#DIV/0!"},null,{"$error":"#DIV/0!"}]
[null,null,null,null,null,null,{"$error":"#DIV/0!"},"no",null,{"$error":"#DIV/0!"},null,{"$error":"#DIV/0!"}]
[null,null,null,null,null,null,{"$error":"#DIV/0!"},"no",null,{"$error":"#DIV/0!"},null,{"$error":"#DIV/0!"}]
[null,null,null,null,null,null,{"$error":"#DIV/0!"},"no",null,{"$error":"#DIV/0!"},null,{"$error":"#DIV/0!"}]
[null,null,null,null,null,null,{"$error":"#DIV/0!"},"no",null,{"$error":"#DIV/0!"},null,{"$error":"#DIV/0!"}]
[null,null,null,null,null,null,{"$error":"#DIV/0!"},"no",null,{"$error":"#DIV/0!"},null,{"$error":"#DIV/0!"}]
[null,null,null,null,null,null,{"$error":"#DIV/0!"},"no",null,{"$error":"#DIV/0!"},null,{"$error":"#DIV/0!"}]
[null,null,null,null,null,null,{"$error":"#DIV/0!"},"no",null,{"$error":"#DIV/0!"},null,{"$error":"#DIV/0!"}]
[null,null,null,null,null,null,{"$error":"#DIV/0!"},"no",null,{"$error":"#DIV/0!"},null,{"$error":"#DIV/0!"}]
[null,null,null,null,null,null,{"$error":"#DIV/0!"},"no",null,{"$error":"#DIV/0!"},null,{"$error":"#DIV/0!"}]
[null,null,null,null,null,null,{"$error":"#DIV/0!"},"no",null,{"$error":"#DIV/0!"},null,{"$error":"#DIV/0!"}]
[null,null,null,null,null,null,{"$error":"#DIV/0!"},"no",null,{"$error":"#DIV/0!"},null,{"$error":"#DIV/0!"}]
[null,null,null,null,null,null,{"$error":"#DIV/0!"},"no",null,{"$error":"#DIV/0!"},null,{"$error":"#DIV/0!"}]
[null,null,null,null,null,null,{"$error":"#DIV/0!"},"no",null,{"$error":"#DIV/0!"},null,{"$error":"#DIV/0!"}]
[null,null,null,null,null,null,{"$error":"#DIV/0!"},"no",null,{"$error":"#DIV/0!"},null,{"$error":"#DIV/0!"}]
[null,null,null,null,null,null,{"$error":"#DIV/0!"},"no",null,{"$error":"#DIV/0!"},null,{"$error":"#DIV/0!"}]
[null,null,null,null,null,null,{"$error":"#DIV/0!"},"no",null,{"$error":"#DIV/0!"},null,{"$error":"#DIV/0!"}]
[null,null,null,null,null,null,{"$error":"#DIV/0!"},"no",null,{"$error":"#DIV/0!"},null,{"$error":"#DIV/0!"}]
[null,null,null,null,null,null,{"$error":"#DIV/0!"},"no",null,{"$error":"#DIV/0!"},null,{"$error":"#DIV/0!"}]
[null,null,null,null,null,null,{"$error":"#DIV/0!"},"no",null,{"$error":"#DIV/0!"},null,{"$error":"#DIV/0!"}]
[null,null,null,null,null,null,{"$error":"#DIV/0!"},"no",null,{"$error":"#DIV/0!"},null,{"$error":"#DIV/0!"}]
[null,null,null,null,null,null,{"$error":"#DIV/0!"},"no",null,{"$error":"#DIV/0!"},null,{"$error":"#DIV/0!"}]
[null,null,null,null,null,null,{"$error":"#DIV/0!"},"no",null,{"$error":"#DIV/0!"},null,{"$error":"#DIV/0!"}]
[null,null,null,null,null,null,{"$error":"#DIV/0!"},"no",null,{"$error":"#DIV/0!"},null,{"$error":"#DIV/0!"}]
[null,null,null,null,null,null,{"$error":"#DIV/0!"},"no",null,{"$error":"#DIV/0!"},null,{"$error":"#DIV/0!"}]
[null,null,null,null,null,null,{"$error":"#DIV/0!"},"no",null,{"$error":"#DIV/0!"},null,{"$error":"#DIV/0!"}]
[null,null,null,null,null,null,{"$error":"#DIV/0!"},"no",null,{"$error":"#DIV/0!"},null,{"$error":"#DIV/0!"}]
[null,null,null,null,null,null,{"$error":"#DIV/0!"},"no",null,{"$error":"#DIV/0!"},null,{"$error":"#DIV/0!"}]
[null,null,null,null,null,null,{"$error":"#DIV/0!"},"no",null,{"$error":"#DIV/0!"},null,{"$error":"#DIV/0!"}]
[null,null,null,null,null,null,{"$error":"#DIV/0!"},"no",null,{"$error":"#DIV/0!"},null,{"$error":"#DIV/0!"}]
[null,null,null,null,null,null,{"$error":"#DIV/0!"},"no",null,{"$error":"#DIV/0!"},null,{"$error":"#DIV/0!"}]
[null,null,null,null,null,null,{"$error":"#DIV/0!"},"no",null,{"$error":"#DIV/0!"},null,{"$error":"#DIV/0!"}]
[null,null,null,null,null,null,{"$error":"#DIV/0!"},"no",null,{"$error":"#DIV/0!"},null,{"$error":"#DIV/0!"}]
[null,null,null,null,null,null,{"$error":"#DIV/0!"},"no",null,{"$error":"#DIV/0!"},null,{"$error":"#DIV/0!"}]
[null,null,null,null,null,null,{"$error":"#DIV/0!"},"no",null,{"$error":"#DIV/0!"},null,{"$error":"#DIV/0!"}]
[null,null,null,null,null,null,{"$error":"#DIV/0!"},"no",null,{"$error":"#DIV/0!"},null,{"$error":"#DIV/0!"}]
[null,null,null,null,null,null,{"$error":"#DIV/0!"},"no",null,{"$error":"#DIV/0!"},null,{"$error":"#DIV/0!"}]
[null,null,null,null,null,null,{"$error":"#DIV/0!"},"no",null,{"$error":"#DIV/0!"},null,{"$error":"#DIV/0!"}]
[null,null,null,null,null,null,{"$error":"#DIV/0!"},"no",null,{"$error":"#DIV/0!"},null,{"$error":"#DIV/0!"}]
[null,null,null,null,null,null,{"$error":"#DIV/0!"},"no",null,{"$error":"#DIV/0!"},null,{"$error":"#DIV/0!"}]
[null,null,null,null,null,null,{"$error":"#DIV/0!"},"no",null,{"$error":"#DIV/0!"},null,{"$error":"#DIV/0!"}]
[null,null,null,null,null,null,{"$error":"#DIV/0!"},"no",null,{"$error":"#DIV/0!"},null,{"$error":"#DIV/0!"}]
[null,null,null,null,null,null,{"$error":"#DIV/0!"},"no",null,{"$error":"#DIV/0!"},null,{"$error":"#DIV/0!"}]
[null,null,null,null,null,null,{"$error":"#DIV/0!"},"no",null,{"$error":"#DIV/0!"},null,{"$error":"#DIV/0!"}]
[null,null,null,null,null,null,{"$error":"#DIV/0!"},"no",null,{"$error":"#DIV/0!"},null,{"$f":"IF(J139=-600,\"Refer to Note (1) of Table 3.50 C1 or 3.53 C1\",\" \")","v":{"$error":"#DIV/0!"}}]
[null,null,null,null,null,null,{"$error":"#DIV/0!"},"no",null,{"$error":"#DIV/0!"},null,{"$error":"#DIV/0!"}]
[null,null,null,null,null,null,{"$error":"#DIV/0!"},"no",null,{"$error":"#DIV/0!"},null,{"$error":"#DIV/0!"}]
[null,null,null,null,null,null,{"$error":"#DIV/0!"},"no",null,{"$error":"#DIV/0!"},null,{"$error":"#DIV/0!"}]
[null,null,null,null,null,null,{"$error":"#DIV/0!"},"no",null,{"$error":"#DIV/0!"},null,{"$error":"#DIV/0!"}]
[null,null,null,null,null,null,{"$error":"#DIV/0!"},"no",null,{"$error":"#DIV/0!"},null,{"$error":"#DIV/0!"}]
[null,null,null,null,null,null,{"$error":"#DIV/0!"},"no",null,{"$error":"#DIV/0!"},null,{"$error":"#DIV/0!"}]
[null,null,null,null,null,null,{"$error":"#DIV/0!"},"no",null,{"$error":"#DIV/0!"},null,{"$error":"#DIV/0!"}]
[null,null,null,null,null,null,{"$error":"#DIV/0!"},"no",null,{"$error":"#DIV/0!"},null,{"$error":"#DIV/0!"}]
[null,null,null,null,null,null,{"$error":"#DIV/0!"},"no",null,{"$error":"#DIV/0!"},null,{"$error":"#DIV/0!"}]
[null,null,null,null,null,null,{"$error":"#DIV/0!"},"no",null,{"$error":"#DIV/0!"},null,{"$error":"#DIV/0!"}]
[null,null,null,null,null,null,{"$error":"#DIV/0!"},"no",null,{"$error":"#DIV/0!"},null,{"$error":"#DIV/0!"}]
[null,null,null,null,null,null,{"$f":"ROUND(AVERAGE(E151:F151),2)","v":{"$error":"#DIV/0!"}},"no",null,{"$f":"IF(I151=\"SI\",IF(H151=\"yes\",\"Excluded Area\",IF(G151<0.55,250,IF(G151<0.71,150,IF(G151<1.01,0,IF(G151<1.51,(800-900*G151),-600))))),IF(I151=\"SII\",IF(H151=\"yes\",\"Excluded Area\",IF(G151<0.55,250,IF(G151<0.81,150, IF(G151<1.16,0, IF(G151<1.51,(1380-1230*G151),-600))))),IF(H151=\"yes\",\"Excluded Area\",IF(G151<0.55,250,IF(G151<0.81,150, IF(G151<1.51,0, IF(G151<=1.8,(730-540*G151),-600)))))))","v":{"$error":"#DIV/0!"}},null,{"$error":"#DIV/0!"}]
[null,null,null,null,null,null,{"$error":"#DIV/0!"},"no",null,{"$error":"#DIV/0!"},null,{"$error":"#DIV/0!"}]
[null,null,null,null,null,null,{"$error":"#DIV/0!"},"no",null,{"$error":"#DIV/0!"},null,{"$error":"#DIV/0!"}]
[null,null,null,null,null,null,{"$error":"#DIV/0!"},"no",null,{"$error":"#DIV/0!"},null,{"$error":"#DIV/0!"}]
[null,null,null,null,null,null,{"$error":"#DIV/0!"},"no",null,{"$error":"#DIV/0!"},null,{"$error":"#DIV/0!"}]
[null,null,null,null,null,null,{"$error":"#DIV/0!"},"no",null,{"$error":"#DIV/0!"},null,{"$error":"#DIV/0!"}]
[null,null,null,null,null,null,{"$error":"#DIV/0!"},"no",null,{"$error":"#DIV/0!"},null,{"$error":"#DIV/0!"}]
[null,null,null,null,null,null,{"$error":"#DIV/0!"},"no",null,{"$error":"#DIV/0!"},null,{"$error":"#DIV/0!"}]
[null,null,null,null,null,null,{"$error":"#DIV/0!"},"no",null,{"$error":"#DIV/0!"},null,{"$error":"#DIV/0!"}]
[null,null,null,null,null,null,{"$error":"#DIV/0!"},"no",null,{"$error":"#DIV/0!"},null,{"$error":"#DIV/0!"}]
[null,null,null,null,null,null,{"$error":"#DIV/0!"},"no",null,{"$error":"#DIV/0!"},null,{"$error":"#DIV/0!"}]
[null,null,null,null,null,null,{"$error":"#DIV/0!"},"no",null,{"$error":"#DIV/0!"},null,{"$error":"#DIV/0!"}]
[null,null,null,null,null,null,{"$error":"#DIV/0!"},"no",null,{"$error":"#DIV/0!"},null,{"$error":"#DIV/0!"}]
[null,null,null,null,null,null,{"$error":"#DIV/0!"},"no",null,{"$error":"#DIV/0!"},null,{"$error":"#DIV/0!"}]
[null,null,null,null,null,null,{"$error":"#DIV/0!"},"no",null,{"$error":"#DIV/0!"},null,{"$error":"#DIV/0!"}]
[null,null,null,null,null,null,{"$error":"#DIV/0!"},"no",null,{"$error":"#DIV/0!"},null,{"$error":"#DIV/0!"}]
[null,null,null,null,null,null,{"$error":"#DIV/0!"},"no",null,{"$error":"#DIV/0!"},null,{"$error":"#DIV/0!"}]
[null,null,null,null,null,null,{"$error":"#DIV/0!"},"no",null,{"$error":"#DIV/0!"},null,{"$error":"#DIV/0!"}]
[null,null,null,null,null,null,{"$error":"#DIV/0!"},"no",null,{"$error":"#DIV/0!"},null,{"$error":"#DIV/0!"}]
[null,null,null,null,null,null,{"$error":"#DIV/0!"},"no",null,{"$error":"#DIV/0!"},null,{"$error":"#DIV/0!"}]
[null,null,null,null,null,null,{"$error":"#DIV/0!"},"no",null,{"$error":"#DIV/0!"},null,{"$error":"#DIV/0!"}]
[null,null,null,null,null,null,{"$error":"#DIV/0!"},"no",null,{"$error":"#DIV/0!"},null,{"$error":"#DIV/0!"}]
[null,null,null,null,null,null,{"$error":"#DIV/0!"},"no",null,{"$error":"#DIV/0!"},null,{"$error":"#DIV/0!"}]
[null,null,null,null,null,null,{"$error":"#DIV/0!"},"no",null,{"$error":"#DIV/0!"},null,{"$error":"#DIV/0!"}]
[null,null,null,null,null,null,{"$error":"#DIV/0!"},"no",null,{"$error":"#DIV/0!"},null,{"$error":"#DIV/0!"}]
[null,null,null,null,null,null,{"$error":"#DIV/0!"},"no",null,{"$error":"#DIV/0!"},null,{"$error":"#DIV/0!"}]
[null,null,null,null,null,null,{"$error":"#DIV/0!"},"no",null,{"$error":"#DIV/0!"},null,{"$error":"#DIV/0!"}]
[null,null,null,null,null,null,{"$error":"#DIV/0!"},"no",null,{"$error":"#DIV/0!"},null,{"$error":"#DIV/0!"}]
[null,null,null,null,null,null,{"$error":"#DIV/0!"},"no",null,{"$error":"#DIV/0!"},null,{"$error":"#DIV/0!"}]
[null,null,null,null,null,null,{"$error":"#DIV/0!"},"no",null,{"$error":"#DIV/0!"},null,{"$error":"#DIV/0!"}]
[null,null,null,null,null,null,{"$error":"#DIV/0!"},"no",null,{"$error":"#DIV/0!"},null,{"$error":"#DIV/0!"}]
[null,null,null,null,null,null,{"$error":"#DIV/0!"},"no",null,{"$error":"#DIV/0!"},null,{"$error":"#DIV/0!"}]
[null,null,null,null,null,null,{"$error":"#DIV/0!"},"no",null,{"$error":"#DIV/0!"},null,{"$error":"#DIV/0!"}]
[null,null,null,null,null,null,{"$error":"#DIV/0!"},"no",null,{"$error":"#DIV/0!"},null,{"$error":"#DIV/0!"}]
[null,null,null,null,null,null,{"$error":"#DIV/0!"},"no",null,{"$error":"#DIV/0!"},null,{"$error":"#DIV/0!"}]
[null,null,null,null,null,null,{"$error":"#DIV/0!"},"no",null,{"$error":"#DIV/0!"},null,{"$error":"#DIV/0!"}]
[null,null,null,null,null,null,{"$error":"#DIV/0!"},"no",null,{"$error":"#DIV/0!"},null,{"$error":"#DIV/0!"}]
[null,null,null,null,null,null,{"$error":"#DIV/0!"},"no",null,{"$error":"#DIV/0!"},null,{"$error":"#DIV/0!"}]
[null,null,null,null,null,null,{"$error":"#DIV/0!"},"no",null,{"$error":"#DIV/0!"},null,{"$error":"#DIV/0!"}]
[null,null,null,null,null,null,{"$error":"#DIV/0!"},"no",null,{"$error":"#DIV/0!"},null,{"$error":"#DIV/0!"}]
[null,null,null,null,null,null,{"$error":"#DIV/0!"},"no",null,{"$error":"#DIV/0!"},null,{"$error":"#DIV/0!"}]
[null,null,null,null,null,null,{"$error":"#DIV/0!"},"no",null,{"$error":"#DIV/0!"},null,{"$error":"#DIV/0!"}]
[null,null,null,null,null,null,{"$error":"#DIV/0!"},"no",null,{"$error":"#DIV/0!"},null,{"$error":"#DIV/0!"}]
[null,null,null,null,null,null,{"$error":"#DIV/0!"},"no",null,{"$error":"#DIV/0!"},null,{"$error":"#DIV/0!"}]
[null,null,null,null,null,null,{"$error":"#DIV/0!"},"no",null,{"$error":"#DIV/0!"},null,{"$error":"#DIV/0!"}]
[null,null,null,null,null,null,{"$error":"#DIV/0!"},"no",null,{"$error":"#DIV/0!"},null,{"$error":"#DIV/0!"}]
[null,null,null,null,null,null,{"$error":"#DIV/0!"},"no",null,{"$error":"#DIV/0!"},null,{"$error":"#DIV/0!"}]
[null,null,null,null,null,null,{"$error":"#DIV/0!"},"no",null,{"$error":"#DIV/0!"},null,{"$error":"#DIV/0!"}]
[null,null,null,null,null,null,{"$error":"#DIV/0!"},"no",null,{"$error":"#DIV/0!"},null,{"$error":"#DIV/0!"}]
[null,null,null,null,null,null,{"$error":"#DIV/0!"},"no",null,{"$error":"#DIV/0!"},null,{"$error":"#DIV/0!"}]
[null,null,null,null,null,null,{"$error":"#DIV/0!"},"no",null,{"$error":"#DIV/0!"},null,{"$error":"#DIV/0!"}]
[null,null,null,null,null,null,{"$error":"#DIV/0!"},"no",null,{"$error":"#DIV/0!"},null,{"$error":"#DIV/0!"}]
[null,null,null,null,null,null,{"$error":"#DIV/0!"},"no",null,{"$error":"#DIV/0!"},null,{"$f":"IF(J203=-600,\"Refer to Note (1) of Table 3.50 C1 or 3.53 C1\",\" \")","v":{"$error":"#DIV/0!"}}]
[null,null,null,null,null,null,{"$error":"#DIV/0!"},"no",null,{"$error":"#DIV/0!"},null,{"$error":"#DIV/0!"}]
[null,null,null,null,null,null,{"$error":"#DIV/0!"},"no",null,{"$error":"#DIV/0!"},null,{"$error":"#DIV/0!"}]
[null,null,null,null,null,null,{"$error":"#DIV/0!"},"no",null,{"$error":"#DIV/0!"},null,{"$error":"#DIV/0!"}]
[null,null,null,null,null,null,{"$error":"#DIV/0!"},"no",null,{"$error":"#DIV/0!"},null,{"$error":"#DIV/0!"}]
[null,null,null,null,null,null,{"$error":"#DIV/0!"},"no",null,{"$error":"#DIV/0!"},null,{"$error":"#DIV/0!"}]
[null,null,null,null,null,null,{"$error":"#DIV/0!"},"no",null,{"$error":"#DIV/0!"},null,{"$error":"#DIV/0!"}]
[null,null,null,null,null,null,{"$error":"#DIV/0!"},"no",null,{"$error":"#DIV/0!"},null,{"$error":"#DIV/0!"}]
[null,null,null,null,null,null,{"$error":"#DIV/0!"},"no",null,{"$error":"#DIV/0!"},null,{"$error":"#DIV/0!"}]
[null,null,null,null,null,null,{"$error":"#DIV/0!"},"no",null,{"$error":"#DIV/0!"},null,{"$error":"#DIV/0!"}]
[null,null,null,null,null,null,{"$error":"#DIV/0!"},"no",null,{"$error":"#DIV/0!"},null,{"$error":"#DIV/0!"}]
[null,null,null,null,null,null,{"$error":"#DIV/0!"},"no",null,{"$error":"#DIV/0!"},null,{"$error":"#DIV/0!"}]
[null,null,null,null,null,null,{"$f":"ROUND(AVERAGE(E215:F215),2)","v":{"$error":"#DIV/0!"}},"no",null,{"$f":"IF(I215=\"SI\",IF(H215=\"yes\",\"Excluded Area\",IF(G215<0.55,250,IF(G215<0.71,150,IF(G215<1.01,0,IF(G215<1.51,(800-900*G215),-600))))),IF(I215=\"SII\",IF(H215=\"yes\",\"Excluded Area\",IF(G215<0.55,250,IF(G215<0.81,150, IF(G215<1.16,0, IF(G215<1.51,(1380-1230*G215),-600))))),IF(H215=\"yes\",\"Excluded Area\",IF(G215<0.55,250,IF(G215<0.81,150, IF(G215<1.51,0, IF(G215<=1.8,(730-540*G215),-600)))))))","v":{"$error":"#DIV/0!"}},null,{"$error":"#DIV/0!"}]
[null,null,null,null,null,null,{"$error":"#DIV/0!"},"no",null,{"$error":"#DIV/0!"},null,{"$error":"#DIV/0!"}]
[null,null,null,null,null,null,{"$error":"#DIV/0!"},"no",null,{"$error":"#DIV/0!"},null,{"$error":"#DIV/0!"}]
[null,null,null,null,null,null,{"$error":"#DIV/0!"},"no",null,{"$error":"#DIV/0!"},null,{"$error":"#DIV/0!"}]
[null,null,null,null,null,null,{"$error":"#DIV/0!"},"no",null,{"$error":"#DIV/0!"},null,{"$error":"#DIV/0!"}]
[null,null,null,null,null,null,{"$error":"#DIV/0!"},"no",null,{"$error":"#DIV/0!"},null,{"$error":"#DIV/0!"}]
[null,null,null,null,null,null,{"$error":"#DIV/0!"},"no",null,{"$error":"#DIV/0!"},null,{"$error":"#DIV/0!"}]
[null,null,null,null,null,null,{"$error":"#DIV/0!"},"no",null,{"$error":"#DIV/0!"},null,{"$error":"#DIV/0!"}]
[null,null,null,null,null,null,{"$error":"#DIV/0!"},"no",null,{"$error":"#DIV/0!"},null,{"$error":"#DIV/0!"}]
[null,null,null,null,null,null,{"$error":"#DIV/0!"},"no",null,{"$error":"#DIV/0!"},null,{"$error":"#DIV/0!"}]
[null,null,null,null,null,null,{"$error":"#DIV/0!"},"no",null,{"$error":"#DIV/0!"},null,{"$error":"#DIV/0!"}]
[null,null,null,null,null,null,{"$error":"#DIV/0!"},"no",null,{"$error":"#DIV/0!"},null,{"$error":"#DIV/0!"}]
[null,null,null,null,null,null,{"$error":"#DIV/0!"},"no",null,{"$error":"#DIV/0!"},null,{"$error":"#DIV/0!"}]
[null,null,null,null,null,null,{"$error":"#DIV/0!"},"no",null,{"$error":"#DIV/0!"},null,{"$error":"#DIV/0!"}]
[null,null,null,null,null,null,{"$error":"#DIV/0!"},"no",null,{"$error":"#DIV/0!"},null,{"$error":"#DIV/0!"}]
[null,null,null,null,null,null,{"$error":"#DIV/0!"},"no",null,{"$error":"#DIV/0!"},null,{"$error":"#DIV/0!"}]
[null,null,null,null,null,null,{"$error":"#DIV/0!"},"no",null,{"$error":"#DIV/0!"},null,{"$error":"#DIV/0!"}]
[null,null,null,null,null,null,{"$error":"#DIV/0!"},"no",null,{"$error":"#DIV/0!"},null,{"$error":"#DIV/0!"}]
[null,null,null,null,null,null,{"$error":"#DIV/0!"},"no",null,{"$error":"#DIV/0!"},null,{"$error":"#DIV/0!"}]
[null,null,null,null,null,null,{"$error":"#DIV/0!"},"no",null,{"$error":"#DIV/0!"},null,{"$error":"#DIV/0!"}]
[null,null,null,null,null,null,{"$error":"#DIV/0!"},"no",null,{"$error":"#DIV/0!"},null,{"$error":"#DIV/0!"}]
[null,null,null,null,null,null,{"$error":"#DIV/0!"},"no",null,{"$error":"#DIV/0!"},null,{"$error":"#DIV/0!"}]
[null,null,null,null,null,null,{"$error":"#DIV/0!"},"no",null,{"$error":"#DIV/0!"},null,{"$error":"#DIV/0!"}]
[null,null,null,null,null,null,{"$error":"#DIV/0!"},"no",null,{"$error":"#DIV/0!"},null,{"$error":"#DIV/0!"}]
[null,null,null,null,null,null,{"$error":"#DIV/0!"},"no",null,{"$error":"#DIV/0!"},null,{"$error":"#DIV/0!"}]
[null,null,null,null,null,null,{"$error":"#DIV/0!"},"no",null,{"$error":"#DIV/0!"},null,{"$error":"#DIV/0!"}]
[null,null,null,null,null,null,{"$error":"#DIV/0!"},"no",null,{"$error":"#DIV/0!"},null,{"$error":"#DIV/0!"}]
[null,null,null,null,null,null,{"$error":"#DIV/0!"},"no",null,{"$error":"#DIV/0!"},null,{"$error":"#DIV/0!"}]
[null,null,null,null,null,null,{"$error":"#DIV/0!"},"no",null,{"$error":"#DIV/0!"},null,{"$error":"#DIV/0!"}]
[null,null,null,null,null,null,{"$error":"#DIV/0!"},"no",null,{"$error":"#DIV/0!"},null,{"$error":"#DIV/0!"}]
[null,null,null,null,null,null,{"$error":"#DIV/0!"},"no",null,{"$error":"#DIV/0!"},null,{"$error":"#DIV/0!"}]
[null,null,null,null,null,null,{"$error":"#DIV/0!"},"no",null,{"$error":"#DIV/0!"},null,{"$error":"#DIV/0!"}]
[null,null,null,null,null,null,{"$error":"#DIV/0!"},"no",null,{"$error":"#DIV/0!"},null,{"$error":"#DIV/0!"}]
[null,null,null,null,null,null,{"$error":"#DIV/0!"},"no",null,{"$error":"#DIV/0!"},null,{"$error":"#DIV/0!"}]
[null,null,null,null,null,null,{"$error":"#DIV/0!"},"no",null,{"$error":"#DIV/0!"},null,{"$error":"#DIV/0!"}]
[null,null,null,null,null,null,{"$error":"#DIV/0!"},"no",null,{"$error":"#DIV/0!"},null,{"$error":"#DIV/0!"}]
[null,null,null,null,null,null,{"$error":"#DIV/0!"},"no",null,{"$error":"#DIV/0!"},null,{"$error":"#DIV/0!"}]
[null,null,null,null,null,null,{"$error":"#DIV/0!"},"no",null,{"$error":"#DIV/0!"},null,{"$error":"#DIV/0!"}]
[null,null,null,null,null,null,{"$error":"#DIV/0!"},"no",null,{"$error":"#DIV/0!"},null,{"$error":"#DIV/0!"}]
[null,null,null,null,null,null,{"$error":"#DIV/0!"},"no",null,{"$error":"#DIV/0!"},null,{"$error":"#DIV/0!"}]
[null,null,null,null,null,null,{"$error":"#DIV/0!"},"no",null,{"$error":"#DIV/0!"},null,{"$error":"#DIV/0!"}]
[null,null,null,null,null,null,{"$error":"#DIV/0!"},"no",null,{"$error":"#DIV/0!"},null,{"$error":"#DIV/0!"}]
[null,null,null,null,null,null,{"$error":"#DIV/0!"},"no",null,{"$error":"#DIV/0!"},null,{"$error":"#DIV/0!"}]
[null,null,null,null,null,null,{"$error":"#DIV/0!"},"no",null,{"$error":"#DIV/0!"},null,{"$error":"#DIV/0!"}]
[null,null,null,null,null,null,{"$error":"#DIV/0!"},"no",null,{"$error":"#DIV/0!"},null,{"$error":"#DIV/0!"}]
[null,null,null,null,null,null,{"$error":"#DIV/0!"},"no",null,{"$error":"#DIV/0!"},null,{"$error":"#DIV/0!"}]
[null,null,null,null,null,null,{"$error":"#DIV/0!"},"no",null,{"$error":"#DIV/0!"},null,{"$error":"#DIV/0!"}]
[null,null,null,null,null,null,{"$error":"#DIV/0!"},"no",null,{"$error":"#DIV/0!"},null,{"$error":"#DIV/0!"}]
[null,null,null,null,null,null,{"$error":"#DIV/0!"},"no",null,{"$error":"#DIV/0!"},null,{"$error":"#DIV/0!"}]
[null,null,null,null,null,null,{"$error":"#DIV/0!"},"no",null,{"$error":"#DIV/0!"},null,{"$error":"#DIV/0!"}]
[null,null,null,null,null,null,{"$error":"#DIV/0!"},"no",null,{"$error":"#DIV/0!"},null,{"$error":"#DIV/0!"}]
[null,null,null,null,null,null,{"$error":"#DIV/0!"},"no",null,{"$error":"#DIV/0!"},null,{"$error":"#DIV/0!"}]
[null,null,null,null,null,null,{"$error":"#DIV/0!"},"no",null,{"$error":"#DIV/0!"},null,{"$f":"IF(J267=-600,\"Refer to Note (1) of Table 3.50 C1 or 3.53 C1\",\" \")","v":{"$error":"#DIV/0!"}}]
[null,null,null,null,null,null,{"$error":"#DIV/0!"},"no",null,{"$error":"#DIV/0!"},null,{"$error":"#DIV/0!"}]
[null,null,null,null,null,null,{"$error":"#DIV/0!"},"no",null,{"$error":"#DIV/0!"},null,{"$error":"#DIV/0!"}]
[null,null,null,null,null,null,{"$error":"#DIV/0!"},"no",null,{"$error":"#DIV/0!"},null,{"$error":"#DIV/0!"}]
[null,null,null,null,null,null,{"$error":"#DIV/0!"},"no",null,{"$error":"#DIV/0!"},null,{"$error":"#DIV/0!"}]
[null,null,null,null,null,null,{"$error":"#DIV/0!"},"no",null,{"$error":"#DIV/0!"},null,{"$error":"#DIV/0!"}]
[null,null,null,null,null,null,{"$error":"#DIV/0!"},"no",null,{"$error":"#DIV/0!"},null,{"$error":"#DIV/0!"}]
[null,null,null,null,null,null,{"$error":"#DIV/0!"},"no",null,{"$error":"#DIV/0!"},null,{"$error":"#DIV/0!"}]
[null,null,null,null,null,null,{"$error":"#DIV/0!"},"no",null,{"$error":"#DIV/0!"},null,{"$error":"#DIV/0!"}]
[null,null,null,null,null,null,{"$error":"#DIV/0!"},"no",null,{"$error":"#DIV/0!"},null,{"$error":"#DIV/0!"}]
[null,null,null,null,null,null,{"$error":"#DIV/0!"},"no",null,{"$error":"#DIV/0!"},null,{"$error":"#DIV/0!"}]
[null,null,null,null,null,null,{"$error":"#DIV/0!"},"no",null,{"$error":"#DIV/0!"},null,{"$error":"#DIV/0!"}]
[null,null,null,null,null,null,{"$f":"ROUND(AVERAGE(E279:F279),2)","v":{"$error":"#DIV/0!"}},"no",null,{"$f":"IF(I279=\"SI\",IF(H279=\"yes\",\"Excluded Area\",IF(G279<0.55,250,IF(G279<0.71,150,IF(G279<1.01,0,IF(G279<1.51,(800-900*G279),-600))))),IF(I279=\"SII\",IF(H279=\"yes\",\"Excluded Area\",IF(G279<0.55,250,IF(G279<0.81,150, IF(G279<1.16,0, IF(G279<1.51,(1380-1230*G279),-600))))),IF(H279=\"yes\",\"Excluded Area\",IF(G279<0.55,250,IF(G279<0.81,150, IF(G279<1.51,0, IF(G279<=1.8,(730-540*G279),-600)))))))","v":{"$error":"#DIV/0!"}},null,{"$error":"#DIV/0!"}]
[null,null,null,null,null,null,{"$error":"#DIV/0!"},"no",null,{"$error":"#DIV/0!"},null,{"$error":"#DIV/0!"}]
[null,null,null,null,null,null,{"$error":"#DIV/0!"},"no",null,{"$error":"#DIV/0!"},null,{"$error":"#DIV/0!"}]
[null,null,null,null,null,null,{"$error":"#DIV/0!"},"no",null,{"$error":"#DIV/0!"},null,{"$error":"#DIV/0!"}]
[null,null,null,null,null,null,{"$error":"#DIV/0!"},"no",null,{"$error":"#DIV/0!"},null,{"$error":"#DIV/0!"}]
[null,null,null,null,null,null,{"$error":"#DIV/0!"},"no",null,{"$error":"#DIV/0!"},null,{"$error":"#DIV/0!"}]
[null,null,null,null,null,null,{"$error":"#DIV/0!"},"no",null,{"$error":"#DIV/0!"},null,{"$error":"#DIV/0!"}]
[null,null,null,null,null,null,{"$error":"#DIV/0!"},"no",null,{"$error":"#DIV/0!"},null,{"$error":"#DIV/0!"}]
[null,null,null,null,null,null,{"$error":"#DIV/0!"},"no",null,{"$error":"#DIV/0!"},null,{"$error":"#DIV/0!"}]
[null,null,null,null,null,null,{"$error":"#DIV/0!"},"no",null,{"$error":"#DIV/0!"},null,{"$error":"#DIV/0!"}]
[null,null,null,null,null,null,{"$error":"#DIV/0!"},"no",null,{"$error":"#DIV/0!"},null,{"$error":"#DIV/0!"}]
[null,null,null,null,null,null,{"$error":"#DIV/0!"},"no",null,{"$error":"#DIV/0!"},null,{"$error":"#DIV/0!"}]
[null,null,null,null,null,null,{"$error":"#DIV/0!"},"no",null,{"$error":"#DIV/0!"},null,{"$error":"#DIV/0!"}]
[null,null,null,null,null,null,{"$error":"#DIV/0!"},"no",null,{"$error":"#DIV/0!"},null,{"$error":"#DIV/0!"}]
[null,null,null,null,null,null,{"$error":"#DIV/0!"},"no",null,{"$error":"#DIV/0!"},null,{"$error":"#DIV/0!"}]
[null,null,null,null,null,null,{"$error":"#DIV/0!"},"no",null,{"$error":"#DIV/0!"},null,{"$error":"#DIV/0!"}]
[null,null,null,null,null,null,{"$error":"#DIV/0!"},"no",null,{"$error":"#DIV/0!"},null,{"$error":"#DIV/0!"}]
[null,null,null,null,null,null,{"$error":"#DIV/0!"},"no",null,{"$error":"#DIV/0!"},null,{"$error":"#DIV/0!"}]
[null,null,null,null,null,null,{"$error":"#DIV/0!"},"no",null,{"$error":"#DIV/0!"},null,{"$error":"#DIV/0!"}]
[null,null,null,null,null,null,{"$error":"#DIV/0!"},"no",null,{"$error":"#DIV/0!"},null,{"$error":"#DIV/0!"}]
[null,null,null,null,null,null,{"$error":"#DIV/0!"},"no",null,{"$error":"#DIV/0!"},null,{"$error":"#DIV/0!"}]
[null,null,null,null,null,null,{"$error":"#DIV/0!"},"no",null,{"$error":"#DIV/0!"},null,{"$error":"#DIV/0!"}]
[null,null,null,null,null,null,{"$error":"#DIV/0!"},"no",null,{"$error":"#DIV/0!"},null,{"$error":"#DIV/0!"}]
[null,null,null,null,null,null,{"$error":"#DIV/0!"},"no",null,{"$error":"#DIV/0!"},null,{"$error":"#DIV/0!"}]
[null,null,null,null,null,null,{"$error":"#DIV/0!"},"no",null,{"$error":"#DIV/0!"},null,{"$error":"#DIV/0!"}]
[null,null,null,null,null,null,{"$error":"#DIV/0!"},"no",null,{"$error":"#DIV/0!"},null,{"$error":"#DIV/0!"}]
[null,null,null,null,null,null,{"$error":"#DIV/0!"},"no",null,{"$error":"#DIV/0!"},null,{"$error":"#DIV/0!"}]
[null,null,null,null,null,null,{"$error":"#DIV/0!"},"no",null,{"$error":"#DIV/0!"},null,{"$error":"#DIV/0!"}]
[null,null,null,null,null,null,{"$error":"#DIV/0!"},"no",null,{"$error":"#DIV/0!"},null,{"$error":"#DIV/0!"}]
[null,null,null,null,null,null,{"$error":"#DIV/0!"},"no",null,{"$error":"#DIV/0!"},null,{"$error":"#DIV/0!"}]
[null,null,null,null,null,null,{"$error":"#DIV/0!"},"no",null,{"$error":"#DIV/0!"},null,{"$error":"#DIV/0!"}]
[null,null,null,null,null,null,{"$error":"#DIV/0!"},"no",null,{"$error":"#DIV/0!"},null,{"$error":"#DIV/0!"}]
[null,null,null,null,null,null,{"$error":"#DIV/0!"},"no",null,{"$error":"#DIV/0!"},null,{"$error":"#DIV/0!"}]
[null,null,null,null,null,null,{"$error":"#DIV/0!"},"no",null,{"$error":"#DIV/0!"},null,{"$error":"#DIV/0!"}]
[null,null,null,null,null,null,{"$error":"#DIV/0!"},"no",null,{"$error":"#DIV/0!"},null,{"$error":"#DIV/0!"}]
[null,null,null,null,null,null,{"$error":"#DIV/0!"},"no",null,{"$error":"#DIV/0!"},null,{"$error":"#DIV/0!"}]
[null,null,null,null,null,null,{"$error":"#DIV/0!"},"no",null,{"$error":"#DIV/0!"},null,{"$error":"#DIV/0!"}]
[null,null,null,null,null,null,{"$error":"#DIV/0!"},"no",null,{"$error":"#DIV/0!"},null,{"$error":"#DIV/0!"}]
[null,null,null,null,null,null,{"$error":"#DIV/0!"},"no",null,{"$error":"#DIV/0!"},null,{"$error":"#DIV/0!"}]
[null,null,null,null,null,null,{"$error":"#DIV/0!"},"no",null,{"$error":"#DIV/0!"},null,{"$error":"#DIV/0!"}]
[null,null,null,null,null,null,{"$error":"#DIV/0!"},"no",null,{"$error":"#DIV/0!"},null,{"$error":"#DIV/0!"}]
[null,null,null,null,null,null,{"$error":"#DIV/0!"},"no",null,{"$error":"#DIV/0!"},null,{"$error":"#DIV/0!"}]
[null,null,null,null,null,null,{"$error":"#DIV/0!"},"no",null,{"$error":"#DIV/0!"},null,{"$error":"#DIV/0!"}]
[null,null,null,null,null,null,{"$error":"#DIV/0!"},"no",null,{"$error":"#DIV/0!"},null,{"$error":"#DIV/0!"}]
[null,null,null,null,null,null,{"$error":"#DIV/0!"},"no",null,{"$error":"#DIV/0!"},null,{"$error":"#DIV/0!"}]
[null,null,null,null,null,null,{"$error":"#DIV/0!"},"no",null,{"$error":"#DIV/0!"},null,{"$error":"#DIV/0!"}]
[null,null,null,null,null,null,{"$error":"#DIV/0!"},"no",null,{"$error":"#DIV/0!"},null,{"$error":"#DIV/0!"}]
[null,null,null,null,null,null,{"$error":"#DIV/0!"},"no",null,{"$error":"#DIV/0!"},null,{"$error":"#DIV/0!"}]
[null,null,null,null,null,null,{"$error":"#DIV/0!"},"no",null,{"$error":"#DIV/0!"},null,{"$error":"#DIV/0!"}]
[null,null,null,null,null,null,{"$error":"#DIV/0!"},"no",null,{"$error":"#DIV/0!"},null,{"$error":"#DIV/0!"}]
[null,null,null,null,null,null,{"$error":"#DIV/0!"},"no",null,{"$error":"#DIV/0!"},null,{"$error":"#DIV/0!"}]
[null,null,null,null,null,null,{"$error":"#DIV/0!"},"no",null,{"$error":"#DIV/0!"},null,{"$error":"#DIV/0!"}]
[null,null,null,null,null,null,{"$error":"#DIV/0!"},"no",null,{"$error":"#DIV/0!"},null,{"$f":"IF(J331=-600,\"Refer to Note (1) of Table 3.50 C1 or 3.53 C1\",\" \")","v":{"$error":"#DIV/0!"}}]
[null,null,null,null,null,null,{"$error":"#DIV/0!"},"no",null,{"$error":"#DIV/0!"},null,{"$error":"#DIV/0!"}]
[null,null,null,null,null,null,{"$error":"#DIV/0!"},"no",null,{"$error":"#DIV/0!"},null,{"$error":"#DIV/0!"}]
[null,null,null,null,null,null,{"$error":"#DIV/0!"},"no",null,{"$error":"#DIV/0!"},null,{"$error":"#DIV/0!"}]
[null,null,null,null,null,null,{"$error":"#DIV/0!"},"no",null,{"$error":"#DIV/0!"},null,{"$error":"#DIV/0!"}]
[null,null,null,null,null,null,{"$error":"#DIV/0!"},"no",null,{"$error":"#DIV/0!"},null,{"$error":"#DIV/0!"}]
[null,null,null,null,null,null,{"$error":"#DIV/0!"},"no",null,{"$error":"#DIV/0!"},null,{"$error":"#DIV/0!"}]
[null,null,null,null,null,null,{"$error":"#DIV/0!"},"no",null,{"$error":"#DIV/0!"},null,{"$error":"#DIV/0!"}]
[null,null,null,null,null,null,{"$error":"#DIV/0!"},"no",null,{"$error":"#DIV/0!"},null,{"$error":"#DIV/0!"}]
[null,null,null,null,null,null,{"$error":"#DIV/0!"},"no",null,{"$error":"#DIV/0!"},null,{"$error":"#DIV/0!"}]
[null,null,null,null,null,null,{"$error":"#DIV/0!"},"no",null,{"$error":"#DIV/0!"},null,{"$error":"#DIV/0!"}]
[null,null,null,null,null,null,{"$error":"#DIV/0!"},"no",null,{"$error":"#DIV/0!"},null,{"$error":"#DIV/0!"}]
[null,null,null,null,null,null,{"$f":"ROUND(AVERAGE(E343:F343),2)","v":{"$error":"#DIV/0!"}},"no",null,{"$f":"IF(I343=\"SI\",IF(H343=\"yes\",\"Excluded Area\",IF(G343<0.55,250,IF(G343<0.71,150,IF(G343<1.01,0,IF(G343<1.51,(800-900*G343),-600))))),IF(I343=\"SII\",IF(H343=\"yes\",\"Excluded Area\",IF(G343<0.55,250,IF(G343<0.81,150, IF(G343<1.16,0, IF(G343<1.51,(1380-1230*G343),-600))))),IF(H343=\"yes\",\"Excluded Area\",IF(G343<0.55,250,IF(G343<0.81,150, IF(G343<1.51,0, IF(G343<=1.8,(730-540*G343),-600)))))))","v":{"$error":"#DIV/0!"}},null,{"$error":"#DIV/0!"}]
[null,null,null,null,null,null,{"$error":"#DIV/0!"},"no",null,{"$error":"#DIV/0!"},null,{"$error":"#DIV/0!"}]
[null,null,null,null,null,null,{"$error":"#DIV/0!"},"no",null,{"$error":"#DIV/0!"},null,{"$error":"#DIV/0!"}]
[null,null,null,null,null,null,{"$error":"#DIV/0!"},"no",null,{"$error":"#DIV/0!"},null,{"$error":"#DIV/0!"}]
[null,null,null,null,null,null,{"$error":"#DIV/0!"},"no",null,{"$error":"#DIV/0!"},null,{"$error":"#DIV/0!"}]
[null,null,null,null,null,null,{"$error":"#DIV/0!"},"no",null,{"$error":"#DIV/0!"},null,{"$error":"#DIV/0!"}]
[null,null,null,null,null,null,{"$error":"#DIV/0!"},"no",null,{"$error":"#DIV/0!"},null,{"$error":"#DIV/0!"}]
[null,null,null,null,null,null,{"$error":"#DIV/0!"},"no",null,{"$error":"#DIV/0!"},null,{"$error":"#DIV/0!"}]
[null,null,null,null,null,null,{"$error":"#DIV/0!"},"no",null,{"$error":"#DIV/0!"},null,{"$error":"#DIV/0!"}]
[null,null,null,null,null,null,{"$error":"#DIV/0!"},"no",null,{"$error":"#DIV/0!"},null,{"$error":"#DIV/0!"}]
[null,null,null,null,null,null,{"$error":"#DIV/0!"},"no",null,{"$error":"#DIV/0!"},null,{"$error":"#DIV/0!"}]
[null,null,null,null,null,null,{"$error":"#DIV/0!"},"no",null,{"$error":"#DIV/0!"},null,{"$error":"#DIV/0!"}]
[null,null,null,null,null,null,{"$error":"#DIV/0!"},"no",null,{"$error":"#DIV/0!"},null,{"$error":"#DIV/0!"}]
[null,null,null,null,null,null,{"$error":"#DIV/0!"},"no",null,{"$error":"#DIV/0!"},null,{"$error":"#DIV/0!"}]
[null,null,null,null,null,null,{"$error":"#DIV/0!"},"no",null,{"$error":"#DIV/0!"},null,{"$error":"#DIV/0!"}]
[null,null,null,null,null,null,{"$error":"#DIV/0!"},"no",null,{"$error":"#DIV/0!"},null,{"$error":"#DIV/0!"}]
[null,null,null,null,null,null,{"$error":"#DIV/0!"},"no",null,{"$error":"#DIV/0!"},null,{"$error":"#DIV/0!"}]
[null,null,null,null,null,null,{"$error":"#DIV/0!"},"no",null,{"$error":"#DIV/0!"},null,{"$error":"#DIV/0!"}]
[null,null,null,null,null,null,{"$error":"#DIV/0!"},"no",null,{"$error":"#DIV/0!"},null,{"$error":"#DIV/0!"}]
[null,null,null,null,null,null,{"$error":"#DIV/0!"},"no",null,{"$error":"#DIV/0!"},null,{"$error":"#DIV/0!"}]
[null,null,null,null,null,null,{"$error":"#DIV/0!"},"no",null,{"$error":"#DIV/0!"},null,{"$error":"#DIV/0!"}]
[null,null,null,null,null,null,{"$error":"#DIV/0!"},"no",null,{"$error":"#DIV/0!"},null,{"$error":"#DIV/0!"}]
[null,null,null,null,null,null,{"$error":"#DIV/0!"},"no",null,{"$error":"#DIV/0!"},null,{"$error":"#DIV/0!"}]
[null,null,null,null,null,null,{"$error":"#DIV/0!"},"no",null,{"$error":"#DIV/0!"},null,{"$error":"#DIV/0!"}]
[null,null,null,null,null,null,{"$error":"#DIV/0!"},"no",null,{"$error":"#DIV/0!"},null,{"$error":"#DIV/0!"}]
[null,null,null,null,null,null,{"$error":"#DIV/0!"},"no",null,{"$error":"#DIV/0!"},null,{"$error":"#DIV/0!"}]
[null,null,null,null,null,null,{"$error":"#DIV/0!"},"no",null,{"$error":"#DIV/0!"},null,{"$error":"#DIV/0!"}]
[null,null,null,null,null,null,{"$error":"#DIV/0!"},"no",null,{"$error":"#DIV/0!"},null,{"$error":"#DIV/0!"}]
[null,null,null,null,null,null,{"$error":"#DIV/0!"},"no",null,{"$error":"#DIV/0!"},null,{"$error":"#DIV/0!"}]
[null,null,null,null,null,null,{"$error":"#DIV/0!"},"no",null,{"$error":"#DIV/0!"},null,{"$error":"#DIV/0!"}]
[null,null,null,null,null,null,{"$error":"#DIV/0!"},"no",null,{"$error":"#DIV/0!"},null,{"$error":"#DIV/0!"}]
[null,null,null,null,null,null,{"$error":"#DIV/0!"},"no",null,{"$error":"#DIV/0!"},null,{"$error":"#DIV/0!"}]
[null,null,null,null,null,null,{"$error":"#DIV/0!"},"no",null,{"$error":"#DIV/0!"},null,{"$error":"#DIV/0!"}]
[null,null,null,null,null,null,{"$error":"#DIV/0!"},"no",null,{"$error":"#DIV/0!"},null,{"$error":"#DIV/0!"}]
[null,null,null,null,null,null,{"$error":"#DIV/0!"},"no",null,{"$error":"#DIV/0!"},null,{"$error":"#DIV/0!"}]
[null,null,null,null,null,null,{"$error":"#DIV/0!"},"no",null,{"$error":"#DIV/0!"},null,{"$error":"#DIV/0!"}]
[null,null,null,null,null,null,{"$error":"#DIV/0!"},"no",null,{"$error":"#DIV/0!"},null,{"$error":"#DIV/0!"}]
[null,null,null,null,null,null,{"$error":"#DIV/0!"},"no",null,{"$error":"#DIV/0!"},null,{"$error":"#DIV/0!"}]
[null,null,null,null,null,null,{"$error":"#DIV/0!"},"no",null,{"$error":"#DIV/0!"},null,{"$error":"#DIV/0!"}]
[null,null,null,null,null,null,{"$error":"#DIV/0!"},"no",null,{"$error":"#DIV/0!"},null,{"$error":"#DIV/0!"}]
[null,null,null,null,null,null,{"$error":"#DIV/0!"},"no",null,{"$error":"#DIV/0!"},null,{"$error":"#DIV/0!"}]
[null,null,null,null,null,null,{"$error":"#DIV/0!"},"no",null,{"$error":"#DIV/0!"},null,{"$error":"#DIV/0!"}]
[null,null,null,null,null,null,{"$error":"#DIV/0!"},"no",null,{"$error":"#DIV/0!"},null,{"$error":"#DIV/0!"}]
[null,null,null,null,null,null,{"$error":"#DIV/0!"},"no",null,{"$error":"#DIV/0!"},null,{"$error":"#DIV/0!"}]
[null,null,null,null,null,null,{"$error":"#DIV/0!"},"no",null,{"$error":"#DIV/0!"},null,{"$error":"#DIV/0!"}]
[null,null,null,null,null,null,{"$error":"#DIV/0!"},"no",null,{"$error":"#DIV/0!"},null,{"$error":"#DIV/0!"}]
[null,null,null,null,null,null,{"$error":"#DIV/0!"},"no",null,{"$error":"#DIV/0!"},null,{"$error":"#DIV/0!"}]
[null,null,null,null,null,null,{"$error":"#DIV/0!"},"no",null,{"$error":"#DIV/0!"},null,{"$error":"#DIV/0!"}]
[null,null,null,null,null,null,{"$error":"#DIV/0!"},"no",null,{"$error":"#DIV/0!"},null,{"$error":"#DIV/0!"}]
[null,null,null,null,null,null,{"$error":"#DIV/0!"},"no",null,{"$error":"#DIV/0!"},null,{"$error":"#DIV/0!"}]
[null,null,null,null,null,null,{"$error":"#DIV/0!"},"no",null,{"$error":"#DIV/0!"},null,{"$error":"#DIV/0!"}]
[null,null,null,null,null,null,{"$error":"#DIV/0!"},"no",null,{"$error":"#DIV/0!"},null,{"$error":"#DIV/0!"}]
[null,null,null,null,null,null,{"$error":"#DIV/0!"},"no",null,{"$error":"#DIV/0!"},null,{"$f":"IF(J395=-600,\"Refer to Note (1) of Table 3.50 C1 or 3.53 C1\",\" \")","v":{"$error":"#DIV/0!"}}]
[null,null,null,null,null,null,{"$error":"#DIV/0!"},"no",null,{"$error":"#DIV/0!"},null,{"$error":"#DIV/0!"}]
[null,null,null,null,null,null,{"$error":"#DIV/0!"},"no",null,{"$error":"#DIV/0!"},null,{"$error":"#DIV/0!"}]
[null,null,null,null,null,null,{"$error":"#DIV/0!"},"no",null,{"$error":"#DIV/0!"},null,{"$error":"#DIV/0!"}]
[null,null,null,null,null,null,{"$error":"#DIV/0!"},"no",null,{"$error":"#DIV/0!"},null,{"$error":"#DIV/0!"}]
[null,null,null,null,null,null,{"$error":"#DIV/0!"},"no",null,{"$error":"#DIV/0!"},null,{"$error":"#DIV/0!"}]
[null,null,null,null,null,null,{"$error":"#DIV/0!"},"no",null,{"$error":"#DIV/0!"},null,{"$error":"#DIV/0!"}]
[null,null,null,null,null,null,{"$error":"#DIV/0!"},"no",null,{"$error":"#DIV/0!"},null,{"$error":"#DIV/0!"}]
[null,null,null,null,null,null,{"$error":"#DIV/0!"},"no",null,{"$error":"#DIV/0!"},null,{"$error":"#DIV/0!"}]
[null,null,null,null,null,null,{"$error":"#DIV/0!"},"no",null,{"$error":"#DIV/0!"},null,{"$error":"#DIV/0!"}]
[null,null,null,null,null,null,{"$error":"#DIV/0!"},"no",null,{"$error":"#DIV/0!"},null,{"$error":"#DIV/0!"}]
[null,null,null,null,null,null,{"$error":"#DIV/0!"},"no",null,{"$error":"#DIV/0!"},null,{"$error":"#DIV/0!"}]
[null,null,null,null,null,null,{"$f":"ROUND(AVERAGE(E407:F407),2)","v":{"$error":"#DIV/0!"}},"no",null,{"$f":"IF(I407=\"SI\",IF(H407=\"yes\",\"Excluded Area\",IF(G407<0.55,250,IF(G407<0.71,150,IF(G407<1.01,0,IF(G407<1.51,(800-900*G407),-600))))),IF(I407=\"SII\",IF(H407=\"yes\",\"Excluded Area\",IF(G407<0.55,250,IF(G407<0.81,150, IF(G407<1.16,0, IF(G407<1.51,(1380-1230*G407),-600))))),IF(H407=\"yes\",\"Excluded Area\",IF(G407<0.55,250,IF(G407<0.81,150, IF(G407<1.51,0, IF(G407<=1.8,(730-540*G407),-600)))))))","v":{"$error":"#DIV/0!"}},null,{"$error":"#DIV/0!"}]
[null,null,null,null,null,null,{"$error":"#DIV/0!"},"no",null,{"$error":"#DIV/0!"},null,{"$error":"#DIV/0!"}]
[null,null,null,null,null,null,{"$error":"#DIV/0!"},"no",null,{"$error":"#DIV/0!"},null,{"$error":"#DIV/0!"}]
[null,null,null,null,null,null,{"$error":"#DIV/0!"},"no",null,{"$error":"#DIV/0!"},null,{"$error":"#DIV/0!"}]
[null,null,null,null,null,null,{"$error":"#DIV/0!"},"no",null,{"$error":"#DIV/0!"},null,{"$error":"#DIV/0!"}]
[null,null,null,null,null,null,{"$error":"#DIV/0!"},"no",null,{"$error":"#DIV/0!"},null,{"$error":"#DIV/0!"}]
[null,null,null,null,null,null,{"$error":"#DIV/0!"},"no",null,{"$error":"#DIV/0!"},null,{"$error":"#DIV/0!"}]
[null,null,null,null,null,null,{"$error":"#DIV/0!"},"no",null,{"$error":"#DIV/0!"},null,{"$error":"#DIV/0!"}]
[null,null,null,null,null,null,{"$error":"#DIV/0!"},"no",null,{"$error":"#DIV/0!"},null,{"$error":"#DIV/0!"}]
[null,null,null,null,null,null,{"$error":"#DIV/0!"},"no",null,{"$error":"#DIV/0!"},null,{"$error":"#DIV/0!"}]
[null,null,null,null,null,null,{"$error":"#DIV/0!"},"no",null,{"$error":"#DIV/0!"},null,{"$error":"#DIV/0!"}]
[null,null,null,null,null,null,{"$error":"#DIV/0!"},"no",null,{"$error":"#DIV/0!"},null,{"$error":"#DIV/0!"}]
[null,null,null,null,null,null,{"$error":"#DIV/0!"},"no",null,{"$error":"#DIV/0!"},null,{"$error":"#DIV/0!"}]
[null,null,null,null,null,null,{"$error":"#DIV/0!"},"no",null,{"$error":"#DIV/0!"},null,{"$error":"#DIV/0!"}]
[null,null,null,null,null,null,{"$error":"#DIV/0!"},"no",null,{"$error":"#DIV/0!"},null,{"$error":"#DIV/0!"}]
[null,null,null,null,null,null,{"$error":"#DIV/0!"},"no",null,{"$error":"#DIV/0!"},null,{"$error":"#DIV/0!"}]
[null,null,null,null,null,null,{"$error":"#DIV/0!"},"no",null,{"$error":"#DIV/0!"},null,{"$error":"#DIV/0!"}]
[null,null,null,null,null,null,{"$error":"#DIV/0!"},"no",null,{"$error":"#DIV/0!"},null,{"$error":"#DIV/0!"}]
[null,null,null,null,null,null,{"$error":"#DIV/0!"},"no",null,{"$error":"#DIV/0!"},null,{"$error":"#DIV/0!"}]
[null,null,null,null,null,null,{"$error":"#DIV/0!"},"no",null,{"$error":"#DIV/0!"},null,{"$error":"#DIV/0!"}]
[null,null,null,null,null,null,{"$error":"#DIV/0!"},"no",null,{"$error":"#DIV/0!"},null,{"$error":"#DIV/0!"}]
[null,null,null,null,null,null,{"$error":"#DIV/0!"},"no",null,{"$error":"#DIV/0!"},null,{"$error":"#DIV/0!"}]
[null,null,null,null,null,null,{"$error":"#DIV/0!"},"no",null,{"$error":"#DIV/0!"},null,{"$error":"#DIV/0!"}]
[null,null,null,null,null,null,{"$error":"#DIV/0!"},"no",null,{"$error":"#DIV/0!"},null,{"$error":"#DIV/0!"}]
[null,null,null,null,null,null,{"$error":"#DIV/0!"},"no",null,{"$error":"#DIV/0!"},null,{"$error":"#DIV/0!"}]
[null,null,null,null,null,null,{"$error":"#DIV/0!"},"no",null,{"$error":"#DIV/0!"},null,{"$error":"#DIV/0!"}]
[null,null,null,null,null,null,{"$error":"#DIV/0!"},"no",null,{"$error":"#DIV/0!"},null,{"$error":"#DIV/0!"}]
[null,null,null,null,null,null,{"$error":"#DIV/0!"},"no",null,{"$error":"#DIV/0!"},null,{"$error":"#DIV/0!"}]
[null,null,null,null,null,null,{"$error":"#DIV/0!"},"no",null,{"$error":"#DIV/0!"},null,{"$error":"#DIV/0!"}]
[null,null,null,null,null,null,{"$error":"#DIV/0!"},"no",null,{"$error":"#DIV/0!"},null,{"$error":"#DIV/0!"}]
[null,null,null,null,null,null,{"$error":"#DIV/0!"},"no",null,{"$error":"#DIV/0!"},null,{"$error":"#DIV/0!"}]
[null,null,null,null,null,null,{"$error":"#DIV/0!"},"no",null,{"$error":"#DIV/0!"},null,{"$error":"#DIV/0!"}]
[null,null,null,null,null,null,{"$error":"#DIV/0!"},"no",null,{"$error":"#DIV/0!"},null,{"$error":"#DIV/0!"}]
[null,null,null,null,null,null,{"$error":"#DIV/0!"},"no",null,{"$error":"#DIV/0!"},null,{"$error":"#DIV/0!"}]
[null,null,null,null,null,null,{"$error":"#DIV/0!"},"no",null,{"$error":"#DIV/0!"},null,{"$error":"#DIV/0!"}]
[null,null,null,null,null,null,{"$error":"#DIV/0!"},"no",null,{"$error":"#DIV/0!"},null,{"$error":"#DIV/0!"}]
[null,null,null,null,null,null,{"$error":"#DIV/0!"},"no",null,{"$error":"#DIV/0!"},null,{"$error":"#DIV/0!"}]
[null,null,null,null,null,null,{"$error":"#DIV/0!"},"no",null,{"$error":"#DIV/0!"},null,{"$error":"#DIV/0!"}]
[null,null,null,null,null,null,{"$error":"#DIV/0!"},"no",null,{"$error":"#DIV/0!"},null,{"$error":"#DIV/0!"}]
[null,null,null,null,null,null,{"$error":"#DIV/0!"},"no",null,{"$error":"#DIV/0!"},null,{"$error":"#DIV/0!"}]
[null,null,null,null,null,null,{"$error":"#DIV/0!"},"no",null,{"$error":"#DIV/0!"},null,{"$error":"#DIV/0!"}]
[null,null,null,null,null,null,{"$error":"#DIV/0!"},"no",null,{"$error":"#DIV/0!"},null,{"$error":"#DIV/0!"}]
[null,null,null,null,null,null,{"$error":"#DIV/0!"},"no",null,{"$error":"#DIV/0!"},null,{"$error":"#DIV/0!"}]
[null,null,null,null,null,null,{"$error":"#DIV/0!"},"no",null,{"$error":"#DIV/0!"},null,{"$error":"#DIV/0!"}]
[null,null,null,null,null,null,{"$error":"#DIV/0!"},"no",null,{"$error":"#DIV/0!"},null,{"$error":"#DIV/0!"}]
[null,null,null,null,null,null,{"$error":"#DIV/0!"},"no",null,{"$error":"#DIV/0!"},null,{"$error":"#DIV/0!"}]
[null,null,null,null,null,null,{"$error":"#DIV/0!"},"no",null,{"$error":"#DIV/0!"},null,{"$error":"#DIV/0!"}]
[null,null,null,null,null,null,{"$error":"#DIV/0!"},"no",null,{"$error":"#DIV/0!"},null,{"$error":"#DIV/0!"}]
[null,null,null,null,null,null,{"$error":"#DIV/0!"},"no",null,{"$error":"#DIV/0!"},null,{"$error":"#DIV/0!"}]
[null,null,null,null,null,null,{"$error":"#DIV/0!"},"no",null,{"$error":"#DIV/0!"},null,{"$error":"#DIV/0!"}]
[null,null,null,null,null,null,{"$error":"#DIV/0!"},"no",null,{"$error":"#DIV/0!"},null,{"$error":"#DIV/0!"}]
[null,null,null,null,null,null,{"$error":"#DIV/0!"},"no",null,{"$error":"#DIV/0!"},null,{"$error":"#DIV/0!"}]
[null,null,null,null,null,null,{"$error":"#DIV/0!"},"no",null,{"$error":"#DIV/0!"},null,{"$f":"IF(J459=-600,\"Refer to Note (1) of Table 3.50 C1 or 3.53 C1\",\" \")","v":{"$error":"#DIV/0!"}}]
[null,null,null,null,null,null,{"$error":"#DIV/0!"},"no",null,{"$error":"#DIV/0!"},null,{"$error":"#DIV/0!"}]
[null,null,null,null,null,null,{"$error":"#DIV/0!"},"no",null,{"$error":"#DIV/0!"},null,{"$error":"#DIV/0!"}]
[null,null,null,null,null,null,{"$error":"#DIV/0!"},"no",null,{"$error":"#DIV/0!"},null,{"$error":"#DIV/0!"}]
[null,null,null,null,null,null,{"$error":"#DIV/0!"},"no",null,{"$error":"#DIV/0!"},null,{"$error":"#DIV/0!"}]
[null,null,null,null,null,null,{"$error":"#DIV/0!"},"no",null,{"$error":"#DIV/0!"},null,{"$error":"#DIV/0!"}]
[null,null,null,null,null,null,{"$error":"#DIV/0!"},"no",null,{"$error":"#DIV/0!"},null,{"$error":"#DIV/0!"}]
[null,null,null,null,null,null,{"$error":"#DIV/0!"},"no",null,{"$error":"#DIV/0!"},null,{"$error":"#DIV/0!"}]
[null,null,null,null,null,null,{"$error":"#DIV/0!"},"no",null,{"$error":"#DIV/0!"},null,{"$error":"#DIV/0!"}]
[null,null,null,null,null,null,{"$error":"#DIV/0!"},"no",null,{"$error":"#DIV/0!"},null,{"$error":"#DIV/0!"}]
[null,null,null,null,null,null,{"$error":"#DIV/0!"},"no",null,{"$error":"#DIV/0!"},null,{"$error":"#DIV/0!"}]
[null,null,null,null,null,null,{"$error":"#DIV/0!"},"no",null,{"$error":"#DIV/0!"},null,{"$error":"#DIV/0!"}]
[null,null,null,null,null,null,{"$f":"ROUND(AVERAGE(E471:F471),2)","v":{"$error":"#DIV/0!"}},"no",null,{"$f":"IF(I471=\"SI\",IF(H471=\"yes\",\"Excluded Area\",IF(G471<0.55,250,IF(G471<0.71,150,IF(G471<1.01,0,IF(G471<1.51,(800-900*G471),-600))))),IF(I471=\"SII\",IF(H471=\"yes\",\"Excluded Area\",IF(G471<0.55,250,IF(G471<0.81,150, IF(G471<1.16,0, IF(G471<1.51,(1380-1230*G471),-600))))),IF(H471=\"yes\",\"Excluded Area\",IF(G471<0.55,250,IF(G471<0.81,150, IF(G471<1.51,0, IF(G471<=1.8,(730-540*G471),-600)))))))","v":{"$error":"#DIV/0!"}},null,{"$error":"#DIV/0!"}]
[null,null,null,null,null,null,{"$error":"#DIV/0!"},"no",null,{"$error":"#DIV/0!"},null,{"$error":"#DIV/0!"}]
[null,null,null,null,null,null,{"$error":"#DIV/0!"},"no",null,{"$error":"#DIV/0!"},null,{"$error":"#DIV/0!"}]
[null,null,null,null,null,null,{"$error":"#DIV/0!"},"no",null,{"$error":"#DIV/0!"},null,{"$error":"#DIV/0!"}]
[null,null,null,null,null,null,{"$error":"#DIV/0!"},"no",null,{"$error":"#DIV/0!"},null,{"$error":"#DIV/0!"}]
[null,null,null,null,null,null,{"$error":"#DIV/0!"},"no",null,{"$error":"#DIV/0!"},null,{"$error":"#DIV/0!"}]
[null,null,null,null,null,null,{"$error":"#DIV/0!"},"no",null,{"$error":"#DIV/0!"},null,{"$error":"#DIV/0!"}]
[null,null,null,null,null,null,{"$error":"#DIV/0!"},"no",null,{"$error":"#DIV/0!"},null,{"$error":"#DIV/0!"}]
[null,null,null,null,null,null,{"$error":"#DIV/0!"},"no",null,{"$error":"#DIV/0!"},null,{"$error":"#DIV/0!"}]
[null,null,null,null,null,null,{"$error":"#DIV/0!"},"no",null,{"$error":"#DIV/0!"},null,{"$error":"#DIV/0!"}]
[null,null,null,null,null,null,{"$error":"#DIV/0!"},"no",null,{"$error":"#DIV/0!"},null,{"$error":"#DIV/0!"}]
[null,null,null,null,null,null,{"$error":"#DIV/0!"},"no",null,{"$error":"#DIV/0!"},null,{"$error":"#DIV/0!"}]
[null,null,null,null,null,null,{"$error":"#DIV/0!"},"no",null,{"$error":"#DIV/0!"},null,{"$error":"#DIV/0!"}]
[null,null,null,null,null,null,{"$error":"#DIV/0!"},"no",null,{"$error":"#DIV/0!"},null,{"$error":"#DIV/0!"}]
[null,null,null,null,null,null,{"$error":"#DIV/0!"},"no",null,{"$error":"#DIV/0!"},null,{"$error":"#DIV/0!"}]
[null,null,null,null,null,null,{"$error":"#DIV/0!"},"no",null,{"$error":"#DIV/0!"},null,{"$error":"#DIV/0!"}]
[null,null,null,null,null,null,{"$error":"#DIV/0!"},"no",null,{"$error":"#DIV/0!"},null,{"$error":"#DIV/0!"}]
[null,null,null,null,null,null,{"$error":"#DIV/0!"},"no",null,{"$error":"#DIV/0!"},null,{"$error":"#DIV/0!"}]
[null,null,null,null,null,null,{"$error":"#DIV/0!"},"no",null,{"$error":"#DIV/0!"},null,{"$error":"#DIV/0!"}]
[null,null,null,null,null,null,{"$error":"#DIV/0!"},"no",null,{"$error":"#DIV/0!"},null,{"$error":"#DIV/0!"}]
[null,null,null,null,null,null,{"$error":"#DIV/0!"},"no",null,{"$error":"#DIV/0!"},null,{"$error":"#DIV/0!"}]
[null,null,null,null,null,null,{"$error":"#DIV/0!"},"no",null,{"$error":"#DIV/0!"},null,{"$error":"#DIV/0!"}]
[null,null,null,null,null,null,{"$error":"#DIV/0!"},"no",null,{"$error":"#DIV/0!"},null,{"$error":"#DIV/0!"}]
[null,null,null,null,null,null,{"$error":"#DIV/0!"},"no",null,{"$error":"#DIV/0!"},null,{"$error":"#DIV/0!"}]
[null,null,null,null,null,null,{"$error":"#DIV/0!"},"no",null,{"$error":"#DIV/0!"},null,{"$error":"#DIV/0!"}]
[null,null,null,null,null,null,{"$error":"#DIV/0!"},"no",null,{"$error":"#DIV/0!"},null,{"$error":"#DIV/0!"}]
[null,null,null,null,null,null,{"$error":"#DIV/0!"},"no",null,{"$error":"#DIV/0!"},null,{"$error":"#DIV/0!"}]
[null,null,null,null,null,null,{"$error":"#DIV/0!"},"no",null,{"$error":"#DIV/0!"},null,{"$error":"#DIV/0!"}]
[null,null,null,null,null,null,{"$error":"#DIV/0!"},"no",null,{"$error":"#DIV/0!"},null,{"$error":"#DIV/0!"}]
[null,null,null,null,null,null,{"$error":"#DIV/0!"},"no",null,{"$error":"#DIV/0!"},null,{"$error":"#DIV/0!"}]
[null,null,null,null,null,null,{"$error":"#DIV/0!"},"no",null,{"$error":"#DIV/0!"},null,{"$error":"#DIV/0!"}]
[null,null,null,null,null,null,{"$error":"#DIV/0!"},"no",null,{"$error":"#DIV/0!"},null,{"$error":"#DIV/0!"}]
[null,null,null,null,null,null,{"$error":"#DIV/0!"},"no",null,{"$error":"#DIV/0!"},null,{"$error":"#DIV/0!"}]
[null,null,null,null,null,null,{"$error":"#DIV/0!"},"no",null,{"$error":"#DIV/0!"},null,{"$error":"#DIV/0!"}]
[null,null,null,null,null,null,{"$error":"#DIV/0!"},"no",null,{"$error":"#DIV/0!"},null,{"$error":"#DIV/0!"}]
[null,null,null,null,null,null,{"$error":"#DIV/0!"},"no",null,{"$error":"#DIV/0!"},null,{"$error":"#DIV/0!"}]
[null,null,null,null,null,null,{"$error":"#DIV/0!"},"no",null,{"$error":"#DIV/0!"},null,{"$error":"#DIV/0!"}]
[null,null,null,null,null,null,{"$error":"#DIV/0!"},"no",null,{"$error":"#DIV/0!"},null,{"$error":"#DIV/0!"}]
[null,null,null,null,null,null,{"$error":"#DIV/0!"},"no",null,{"$error":"#DIV/0!"},null,{"$error":"#DIV/0!"}]
[null,null,null,null,null,null,{"$error":"#DIV/0!"},"no",null,{"$error":"#DIV/0!"},null,{"$error":"#DIV/0!"}]
[null,null,null,null,null,null,{"$error":"#DIV/0!"},"no",null,{"$error":"#DIV/0!"},null,{"$error":"#DIV/0!"}]
[null,null,null,null,null,null,{"$error":"#DIV/0!"},"no",null,{"$error":"#DIV/0!"},null,{"$error":"#DIV/0!"}]
[null,null,null,null,null,null,{"$error":"#DIV/0!"},"no",null,{"$error":"#DIV/0!"},null,{"$error":"#DIV/0!"}]
[null,null,null,null,null,null,{"$error":"#DIV/0!"},"no",null,{"$error":"#DIV/0!"},null,{"$error":"#DIV/0!"}]
[null,null,null,null,null,null,{"$error":"#DIV/0!"},"no",null,{"$error":"#DIV/0!"},null,{"$error":"#DIV/0!"}]
[null,null,null,null,null,null,{"$error":"#DIV/0!"},"no",null,{"$error":"#DIV/0!"},null,{"$error":"#DIV/0!"}]
[null,null,null,null,null,null,{"$error":"#DIV/0!"},"no",null,{"$error":"#DIV/0!"},null,{"$error":"#DIV/0!"}]
[null,null,null,null,null,null,{"$error":"#DIV/0!"},"no",null,{"$error":"#DIV/0!"},null,{"$error":"#DIV/0!"}]
[null,null,null,null,null,null,{"$error":"#DIV/0!"},"no",null,{"$error":"#DIV/0!"},null,{"$error":"#DIV/0!"}]
[null,null,null,null,null,null,{"$error":"#DIV/0!"},"no",null,{"$error":"#DIV/0!"},null,{"$error":"#DIV/0!"}]
[null,null,null,null,null,null,{"$error":"#DIV/0!"},"no",null,{"$error":"#DIV/0!"},null,{"$error":"#DIV/0!"}]
[null,null,null,null,null,null,{"$error":"#DIV/0!"},"no",null,{"$error":"#DIV/0!"},null,{"$error":"#DIV/0!"}]
[null,null,null,null,null,null,{"$error":"#DIV/0!"},"no",null,{"$error":"#DIV/0!"},null,{"$f":"IF(J523=-600,\"Refer to Note (1) of Table 3.50 C1 or 3.53 C1\",\" \")","v":{"$error":"#DIV/0!"}}]
[null,null,null,null,null,null,{"$error":"#DIV/0!"},"no",null,{"$error":"#DIV/0!"},null,{"$error":"#DIV/0!"}]
[null,null,null,null,null,null,{"$error":"#DIV/0!"},"no",null,{"$error":"#DIV/0!"},null,{"$error":"#DIV/0!"}]
[null,null,null,null,null,null,{"$error":"#DIV/0!"},"no",null,{"$error":"#DIV/0!"},null,{"$error":"#DIV/0!"}]
[null,null,null,null,null,null,{"$error":"#DIV/0!"},"no",null,{"$error":"#DIV/0!"},null,{"$error":"#DIV/0!"}]
[null,null,null,null,null,null,{"$error":"#DIV/0!"},"no",null,{"$error":"#DIV/0!"},null,{"$error":"#DIV/0!"}]
[null,null,null,null,null,null,{"$error":"#DIV/0!"},"no",null,{"$error":"#DIV/0!"},null,{"$error":"#DIV/0!"}]
[null,null,null,null,null,null,{"$error":"#DIV/0!"},"no",null,{"$error":"#DIV/0!"},null,{"$error":"#DIV/0!"}]
[null,null,null,null,null,null,{"$error":"#DIV/0!"},"no",null,{"$error":"#DIV/0!"},null,{"$error":"#DIV/0!"}]
[null,null,null,null,null,null,{"$error":"#DIV/0!"},"no",null,{"$error":"#DIV/0!"},null,{"$error":"#DIV/0!"}]
[null,null,null,null,null,null,{"$error":"#DIV/0!"},"no",null,{"$error":"#DIV/0!"},null,{"$error":"#DIV/0!"}]
[null,null,null,null,null,null,{"$error":"#DIV/0!"},"no",null,{"$error":"#DIV/0!"},null,{"$error":"#DIV/0!"}]
[null,null,null,null,null,null,{"$f":"ROUND(AVERAGE(E535:F535),2)","v":{"$error":"#DIV/0!"}},"no",null,{"$f":"IF(I535=\"SI\",IF(H535=\"yes\",\"Excluded Area\",IF(G535<0.55,250,IF(G535<0.71,150,IF(G535<1.01,0,IF(G535<1.51,(800-900*G535),-600))))),IF(I535=\"SII\",IF(H535=\"yes\",\"Excluded Area\",IF(G535<0.55,250,IF(G535<0.81,150, IF(G535<1.16,0, IF(G535<1.51,(1380-1230*G535),-600))))),IF(H535=\"yes\",\"Excluded Area\",IF(G535<0.55,250,IF(G535<0.81,150, IF(G535<1.51,0, IF(G535<=1.8,(730-540*G535),-600)))))))","v":{"$error":"#DIV/0!"}},null,{"$error":"#DIV/0!"}]
[null,null,null,null,null,null,{"$error":"#DIV/0!"},"no",null,{"$error":"#DIV/0!"},null,{"$error":"#DIV/0!"}]
[null,null,null,null,null,null,{"$error":"#DIV/0!"},"no",null,{"$error":"#DIV/0!"},null,{"$error":"#DIV/0!"}]
[null,null,null,null,null,null,{"$error":"#DIV/0!"},"no",null,{"$error":"#DIV/0!"},null,{"$error":"#DIV/0!"}]
[null,null,null,null,null,null,{"$error":"#DIV/0!"},"no",null,{"$error":"#DIV/0!"},null,{"$error":"#DIV/0!"}]
[null,null,null,null,null,null,{"$error":"#DIV/0!"},"no",null,{"$error":"#DIV/0!"},null,{"$error":"#DIV/0!"}]
[null,null,null,null,null,null,{"$error":"#DIV/0!"},"no",null,{"$error":"#DIV/0!"},null,{"$error":"#DIV/0!"}]
[null,null,null,null,null,null,{"$error":"#DIV/0!"},"no",null,{"$error":"#DIV/0!"},null,{"$error":"#DIV/0!"}]
[null,null,null,null,null,null,{"$error":"#DIV/0!"},"no",null,{"$error":"#DIV/0!"},null,{"$error":"#DIV/0!"}]
[null,null,null,null,null,null,{"$error":"#DIV/0!"},"no",null,{"$error":"#DIV/0!"},null,{"$error":"#DIV/0!"}]
[null,null,null,null,null,null,{"$error":"#DIV/0!"},"no",null,{"$error":"#DIV/0!"},null,{"$error":"#DIV/0!"}]
[null,null,null,null,null,null,{"$error":"#DIV/0!"},"no",null,{"$error":"#DIV/0!"},null,{"$error":"#DIV/0!"}]
[null,null,null,null,null,null,{"$error":"#DIV/0!"},"no",null,{"$error":"#DIV/0!"},null,{"$error":"#DIV/0!"}]
[null,null,null,null,null,null,{"$error":"#DIV/0!"},"no",null,{"$error":"#DIV/0!"},null,{"$error":"#DIV/0!"}]
[null,null,null,null,null,null,{"$error":"#DIV/0!"},"no",null,{"$error":"#DIV/0!"},null,{"$error":"#DIV/0!"}]
[null,null,null,null,null,null,{"$error":"#DIV/0!"},"no",null,{"$error":"#DIV/0!"},null,{"$error":"#DIV/0!"}]
[null,null,null,null,null,null,{"$error":"#DIV/0!"},"no",null,{"$error":"#DIV/0!"},null,{"$error":"#DIV/0!"}]
[null,null,null,null,null,null,{"$error":"#DIV/0!"},"no",null,{"$error":"#DIV/0!"},null,{"$error":"#DIV/0!"}]
[null,null,null,null,null,null,{"$error":"#DIV/0!"},"no",null,{"$error":"#DIV/0!"},null,{"$error":"#DIV/0!"}]
[null,null,null,null,null,null,{"$error":"#DIV/0!"},"no",null,{"$error":"#DIV/0!"},null,{"$error":"#DIV/0!"}]
[null,null,null,null,null,null,{"$error":"#DIV/0!"},"no",null,{"$error":"#DIV/0!"},null,{"$error":"#DIV/0!"}]
[null,null,null,null,null,null,{"$error":"#DIV/0!"},"no",null,{"$error":"#DIV/0!"},null,{"$error":"#DIV/0!"}]
[null,null,null,null,null,null,{"$error":"#DIV/0!"},"no",null,{"$error":"#DIV/0!"},null,{"$error":"#DIV/0!"}]
[null,null,null,null,null,null,{"$error":"#DIV/0!"},"no",null,{"$error":"#DIV/0!"},null,{"$error":"#DIV/0!"}]
[null,null,null,null,null,null,{"$error":"#DIV/0!"},"no",null,{"$error":"#DIV/0!"},null,{"$error":"#DIV/0!"}]
[null,null,null,null,null,null,{"$error":"#DIV/0!"},"no",null,{"$error":"#DIV/0!"},null,{"$error":"#DIV/0!"}]
[null,null,null,null,null,null,{"$error":"#DIV/0!"},"no",null,{"$error":"#DIV/0!"},null,{"$error":"#DIV/0!"}]
[null,null,null,null,null,null,{"$error":"#DIV/0!"},"no",null,{"$error":"#DIV/0!"},null,{"$error":"#DIV/0!"}]
[null,null,null,null,null,null,{"$error":"#DIV/0!"},"no",null,{"$error":"#DIV/0!"},null,{"$error":"#DIV/0!"}]
[null,null,null,null,null,null,{"$error":"#DIV/0!"},"no",null,{"$error":"#DIV/0!"},null,{"$error":"#DIV/0!"}]
[null,null,null,null,null,null,{"$error":"#DIV/0!"},"no",null,{"$error":"#DIV/0!"},null,{"$error":"#DIV/0!"}]
[null,null,null,null,null,null,{"$error":"#DIV/0!"},"no",null,{"$error":"#DIV/0!"},null,{"$error":"#DIV/0!"}]
[null,null,null,null,null,null,{"$error":"#DIV/0!"},"no",null,{"$error":"#DIV/0!"},null,{"$error":"#DIV/0!"}]
[null,null,null,null,null,null,{"$error":"#DIV/0!"},"no",null,{"$error":"#DIV/0!"},null,{"$error":"#DIV/0!"}]
[null,null,null,null,null,null,{"$error":"#DIV/0!"},"no",null,{"$error":"#DIV/0!"},null,{"$error":"#DIV/0!"}]
[null,null,null,null,null,null,{"$error":"#DIV/0!"},"no",null,{"$error":"#DIV/0!"},null,{"$error":"#DIV/0!"}]
[null,null,null,null,null,null,{"$error":"#DIV/0!"},"no",null,{"$error":"#DIV/0!"},null,{"$error":"#DIV/0!"}]
[null,null,null,null,null,null,{"$error":"#DIV/0!"},"no",null,{"$error":"#DIV/0!"},null,{"$error":"#DIV/0!"}]
[null,null,null,null,null,null,{"$error":"#DIV/0!"},"no",null,{"$error":"#DIV/0!"},null,{"$error":"#DIV/0!"}]
[null,null,null,null,null,null,{"$error":"#DIV/0!"},"no",null,{"$error":"#DIV/0!"},null,{"$error":"#DIV/0!"}]
[null,null,null,null,null,null,{"$error":"#DIV/0!"},"no",null,{"$error":"#DIV/0!"},null,{"$error":"#DIV/0!"}]
[null,null,null,null,null,null,{"$error":"#DIV/0!"},"no",null,{"$error":"#DIV/0!"},null,{"$error":"#DIV/0!"}]
[null,null,null,null,null,null,{"$error":"#DIV/0!"},"no",null,{"$error":"#DIV/0!"},null,{"$error":"#DIV/0!"}]
[null,null,null,null,null,null,{"$error":"#DIV/0!"},"no",null,{"$error":"#DIV/0!"},null,{"$error":"#DIV/0!"}]
[null,null,null,null,null,null,{"$error":"#DIV/0!"},"no",null,{"$error":"#DIV/0!"},null,{"$error":"#DIV/0!"}]
[null,null,null,null,null,null,{"$error":"#DIV/0!"},"no",null,{"$error":"#DIV/0!"},null,{"$error":"#DIV/0!"}]
[null,null,null,null,null,null,{"$error":"#DIV/0!"},"no",null,{"$error":"#DIV/0!"},null,{"$error":"#DIV/0!"}]
[null,null,null,null,null,null,{"$error":"#DIV/0!"},"no",null,{"$error":"#DIV/0!"},null,{"$error":"#DIV/0!"}]
[null,null,null,null,null,null,{"$error":"#DIV/0!"},"no",null,{"$error":"#DIV/0!"},null,{"$error":"#DIV/0!"}]
[null,null,null,null,null,null,{"$error":"#DIV/0!"},"no",null,{"$error":"#DIV/0!"},null,{"$error":"#DIV/0!"}]
[null,null,null,null,null,null,{"$error":"#DIV/0!"},"no",null,{"$error":"#DIV/0!"},null,{"$error":"#DIV/0!"}]
[null,null,null,null,null,null,{"$error":"#DIV/0!"},"no",null,{"$error":"#DIV/0!"},null,{"$error":"#DIV/0!"}]
[null,null,null,null,null,null,{"$error":"#DIV/0!"},"no",null,{"$error":"#DIV/0!"},null,{"$f":"IF(J587=-600,\"Refer to Note (1) of Table 3.50 C1 or 3.53 C1\",\" \")","v":{"$error":"#DIV/0!"}}]
[null,null,null,null,null,null,{"$error":"#DIV/0!"},"no",null,{"$error":"#DIV/0!"},null,{"$error":"#DIV/0!"}]
[null,null,null,null,null,null,{"$error":"#DIV/0!"},"no",null,{"$error":"#DIV/0!"},null,{"$error":"#DIV/0!"}]
[null,null,null,null,null,null,{"$error":"#DIV/0!"},"no",null,{"$error":"#DIV/0!"},null,{"$error":"#DIV/0!"}]
[null,null,null,null,null,null,{"$error":"#DIV/0!"},"no",null,{"$error":"#DIV/0!"},null,{"$error":"#DIV/0!"}]
[null,null,null,null,null,null,{"$error":"#DIV/0!"},"no",null,{"$error":"#DIV/0!"},null,{"$error":"#DIV/0!"}]
[null,null,null,null,null,null,{"$error":"#DIV/0!"},"no",null,{"$error":"#DIV/0!"},null,{"$error":"#DIV/0!"}]
[null,null,null,null,null,null,{"$error":"#DIV/0!"},"no",null,{"$error":"#DIV/0!"},null,{"$error":"#DIV/0!"}]
[null,null,null,null,null,null,{"$error":"#DIV/0!"},"no",null,{"$error":"#DIV/0!"},null,{"$error":"#DIV/0!"}]
[null,null,null,null,null,null,{"$error":"#DIV/0!"},"no",null,{"$error":"#DIV/0!"},null,{"$error":"#DIV/0!"}]
[null,null,null,null,null,null,{"$error":"#DIV/0!"},"no",null,{"$error":"#DIV/0!"},null,{"$error":"#DIV/0!"}]
[null,null,null,null,null,null,{"$error":"#DIV/0!"},"no",null,{"$error":"#DIV/0!"},null,{"$error":"#DIV/0!"}]
[null,null,null,null,null,null,{"$f":"ROUND(AVERAGE(E599:F599),2)","v":{"$error":"#DIV/0!"}},"no",null,{"$f":"IF(I599=\"SI\",IF(H599=\"yes\",\"Excluded Area\",IF(G599<0.55,250,IF(G599<0.71,150,IF(G599<1.01,0,IF(G599<1.51,(800-900*G599),-600))))),IF(I599=\"SII\",IF(H599=\"yes\",\"Excluded Area\",IF(G599<0.55,250,IF(G599<0.81,150, IF(G599<1.16,0, IF(G599<1.51,(1380-1230*G599),-600))))),IF(H599=\"yes\",\"Excluded Area\",IF(G599<0.55,250,IF(G599<0.81,150, IF(G599<1.51,0, IF(G599<=1.8,(730-540*G599),-600)))))))","v":{"$error":"#DIV/0!"}},null,{"$error":"#DIV/0!"}]
[null,null,null,null,null,null,{"$error":"#DIV/0!"},"no",null,{"$error":"#DIV/0!"},null,{"$error":"#DIV/0!"}]
[null,null,null,null,null,null,{"$error":"#DIV/0!"},"no",null,{"$error":"#DIV/0!"},null,{"$error":"#DIV/0!"}]
[null,null,null,null,null,null,{"$error":"#DIV/0!"},"no",null,{"$error":"#DIV/0!"},null,{"$error":"#DIV/0!"}]
[null,null,null,null,null,null,{"$error":"#DIV/0!"},"no",null,{"$error":"#DIV/0!"},null,{"$error":"#DIV/0!"}]
[null,null,null,null,null,null,{"$error":"#DIV/0!"},"no",null,{"$error":"#DIV/0!"},null,{"$error":"#DIV/0!"}]
[null,null,null,null,null,null,{"$error":"#DIV/0!"},"no",null,{"$error":"#DIV/0!"},null,{"$error":"#DIV/0!"}]
[null,null,null,null,null,null,{"$error":"#DIV/0!"},"no",null,{"$error":"#DIV/0!"},null,{"$error":"#DIV/0!"}]
[null,null,null,null,null,null,{"$error":"#DIV/0!"},"no",null,{"$error":"#DIV/0!"},null,{"$error":"#DIV/0!"}]
[null,null,null,null,null,null,{"$error":"#DIV/0!"},"no",null,{"$error":"#DIV/0!"},null,{"$error":"#DIV/0!"}]
[null,null,null,null,null,null,{"$error":"#DIV/0!"},"no",null,{"$error":"#DIV/0!"},null,{"$error":"#DIV/0!"}]
[null,null,null,null,null,null,{"$error":"#DIV/0!"},"no",null,{"$error":"#DIV/0!"},null,{"$error":"#DIV/0!"}]
[null,null,null,null,null,null,{"$error":"#DIV/0!"},"no",null,{"$error":"#DIV/0!"},null,{"$error":"#DIV/0!"}]
[null,null,null,null,null,null,{"$error":"#DIV/0!"},"no",null,{"$error":"#DIV/0!"},null,{"$error":"#DIV/0!"}]
[null,null,null,null,null,null,{"$error":"#DIV/0!"},"no",null,{"$error":"#DIV/0!"},null,{"$error":"#DIV/0!"}]
[null,null,null,null,null,null,{"$error":"#DIV/0!"},"no",null,{"$error":"#DIV/0!"},null,{"$error":"#DIV/0!"}]
[null,null,null,null,null,null,{"$error":"#DIV/0!"},"no",null,{"$error":"#DIV/0!"},null,{"$error":"#DIV/0!"}]
[null,null,null,null,null,null,{"$error":"#DIV/0!"},"no",null,{"$error":"#DIV/0!"},null,{"$error":"#DIV/0!"}]
[null,null,null,null,null,null,{"$error":"#DIV/0!"},"no",null,{"$error":"#DIV/0!"},null,{"$error":"#DIV/0!"}]
[null,null,null,null,null,null,{"$error":"#DIV/0!"},"no",null,{"$error":"#DIV/0!"},null,{"$error":"#DIV/0!"}]
[null,null,null,null,null,null,{"$error":"#DIV/0!"},"no",null,{"$error":"#DIV/0!"},null,{"$error":"#DIV/0!"}]
[null,null,null,null,null,null,{"$error":"#DIV/0!"},"no",null,{"$error":"#DIV/0!"},null,{"$error":"#DIV/0!"}]
[null,null,null,null,null,null,{"$error":"#DIV/0!"},"no",null,{"$error":"#DIV/0!"},null,{"$error":"#DIV/0!"}]
[null,null,null,null,null,null,{"$error":"#DIV/0!"},"no",null,{"$error":"#DIV/0!"},null,{"$error":"#DIV/0!"}]
[null,null,null,null,null,null,{"$error":"#DIV/0!"},"no",null,{"$error":"#DIV/0!"},null,{"$error":"#DIV/0!"}]
[null,null,null,null,null,null,{"$error":"#DIV/0!"},"no",null,{"$error":"#DIV/0!"},null,{"$error":"#DIV/0!"}]
[null,null,null,null,null,null,{"$error":"#DIV/0!"},"no",null,{"$error":"#DIV/0!"},null,{"$error":"#DIV/0!"}]
[null,null,null,null,null,null,{"$error":"#DIV/0!"},"no",null,{"$error":"#DIV/0!"},null,{"$error":"#DIV/0!"}]
[null,null,null,null,null,null,{"$error":"#DIV/0!"},"no",null,{"$error":"#DIV/0!"},null,{"$error":"#DIV/0!"}]
[null,null,null,null,null,null,{"$error":"#DIV/0!"},"no",null,{"$error":"#DIV/0!"},null,{"$error":"#DIV/0!"}]
[null,null,null,null,null,null,{"$error":"#DIV/0!"},"no",null,{"$error":"#DIV/0!"},null,{"$error":"#DIV/0!"}]
[null,null,null,null,null,null,{"$error":"#DIV/0!"},"no",null,{"$error":"#DIV/0!"},null,{"$error":"#DIV/0!"}]
[null,null,null,null,null,null,{"$error":"#DIV/0!"},"no",null,{"$error":"#DIV/0!"},null,{"$error":"#DIV/0!"}]
[null,null,null,null,null,null,{"$error":"#DIV/0!"},"no",null,{"$error":"#DIV/0!"},null,{"$error":"#DIV/0!"}]
[null,null,null,null,null,null,{"$error":"#DIV/0!"},"no",null,{"$error":"#DIV/0!"},null,{"$error":"#DIV/0!"}]
[null,null,null,null,null,null,{"$error":"#DIV/0!"},"no",null,{"$error":"#DIV/0!"},null,{"$error":"#DIV/0!"}]
[null,null,null,null,null,null,{"$error":"#DIV/0!"},"no",null,{"$error":"#DIV/0!"},null,{"$error":"#DIV/0!"}]
[null,null,null,null,null,null,{"$error":"#DIV/0!"},"no",null,{"$error":"#DIV/0!"},null,{"$error":"#DIV/0!"}]
[null,null,null,null,null,null,{"$error":"#DIV/0!"},"no",null,{"$error":"#DIV/0!"},null,{"$error":"#DIV/0!"}]
[null,null,null,null,null,null,{"$error":"#DIV/0!"},"no",null,{"$error":"#DIV/0!"},null,{"$error":"#DIV/0!"}]
[null,null,null,null,null,null,{"$error":"#DIV/0!"},"no",null,{"$error":"#DIV/0!"},null,{"$error":"#DIV/0!"}]
[null,null,null,null,null,null,{"$error":"#DIV/0!"},"no",null,{"$error":"#DIV/0!"},null,{"$error":"#DIV/0!"}]
[null,null,null,null,null,null,{"$error":"#DIV/0!"},"no",null,{"$error":"#DIV/0!"},null,{"$error":"#DIV/0!"}]
[null,null,null,null,null,null,{"$error":"#DIV/0!"},"no",null,{"$error":"#DIV/0!"},null,{"$error":"#DIV/0!"}]
[null,null,null,null,null,null,{"$error":"#DIV/0!"},"no",null,{"$error":"#DIV/0!"},null,{"$error":"#DIV/0!"}]
[null,null,null,null,null,null,{"$error":"#DIV/0!"},"no",null,{"$error":"#DIV/0!"},null,{"$error":"#DIV/0!"}]
[null,null,null,null,null,null,{"$error":"#DIV/0!"},"no",null,{"$error":"#DIV/0!"},null,{"$error":"#DIV/0!"}]
[null,null,null,null,null,null,{"$error":"#DIV/0!"},"no",null,{"$error":"#DIV/0!"},null,{"$error":"#DIV/0!"}]
[null,null,null,null,null,null,{"$error":"#DIV/0!"},"no",null,{"$error":"#DIV/0!"},null,{"$error":"#DIV/0!"}]
[null,null,null,null,null,null,{"$error":"#DIV/0!"},"no",null,{"$error":"#DIV/0!"},null,{"$error":"#DIV/0!"}]
[null,null,null,null,null,null,{"$error":"#DIV/0!"},"no",null,{"$error":"#DIV/0!"},null,{"$error":"#DIV/0!"}]
[null,null,null,null,null,null,{"$error":"#DIV/0!"},"no",null,{"$error":"#DIV/0!"},null,{"$error":"#DIV/0!"}]
[null,null,null,null,null,null,{"$error":"#DIV/0!"},"no",null,{"$error":"#DIV/0!"},null,{"$f":"IF(J651=-600,\"Refer to Note (1) of Table 3.50 C1 or 3.53 C1\",\" \")","v":{"$error":"#DIV/0!"}}]
[null,null,null,null,null,null,{"$error":"#DIV/0!"},"no",null,{"$error":"#DIV/0!"},null,{"$error":"#DIV/0!"}]
[null,null,null,null,null,null,{"$error":"#DIV/0!"},"no",null,{"$error":"#DIV/0!"},null,{"$error":"#DIV/0!"}]
[null,null,null,null,null,null,{"$error":"#DIV/0!"},"no",null,{"$error":"#DIV/0!"},null,{"$error":"#DIV/0!"}]
[null,null,null,null,null,null,{"$error":"#DIV/0!"},"no",null,{"$error":"#DIV/0!"},null,{"$error":"#DIV/0!"}]
[null,null,null,null,null,null,{"$error":"#DIV/0!"},"no",null,{"$error":"#DIV/0!"},null,{"$error":"#DIV/0!"}]
[null,null,null,null,null,null,{"$error":"#DIV/0!"},"no",null,{"$error":"#DIV/0!"},null,{"$error":"#DIV/0!"}]
[null,null,null,null,null,null,{"$error":"#DIV/0!"},"no",null,{"$error":"#DIV/0!"},null,{"$error":"#DIV/0!"}]
[null,null,null,null,null,null,{"$error":"#DIV/0!"},"no",null,{"$error":"#DIV/0!"},null,{"$error":"#DIV/0!"}]
[null,null,null,null,null,null,{"$error":"#DIV/0!"},"no",null,{"$error":"#DIV/0!"},null,{"$error":"#DIV/0!"}]
[null,null,null,null,null,null,{"$error":"#DIV/0!"},"no",null,{"$error":"#DIV/0!"},null,{"$error":"#DIV/0!"}]
[null,null,null,null,null,null,{"$error":"#DIV/0!"},"no",null,{"$error":"#DIV/0!"},null,{"$error":"#DIV/0!"}]
[null,null,null,null,null,null,{"$f":"ROUND(AVERAGE(E663:F663),2)","v":{"$error":"#DIV/0!"}},"no",null,{"$f":"IF(I663=\"SI\",IF(H663=\"yes\",\"Excluded Area\",IF(G663<0.55,250,IF(G663<0.71,150,IF(G663<1.01,0,IF(G663<1.51,(800-900*G663),-600))))),IF(I663=\"SII\",IF(H663=\"yes\",\"Excluded Area\",IF(G663<0.55,250,IF(G663<0.81,150, IF(G663<1.16,0, IF(G663<1.51,(1380-1230*G663),-600))))),IF(H663=\"yes\",\"Excluded Area\",IF(G663<0.55,250,IF(G663<0.81,150, IF(G663<1.51,0, IF(G663<=1.8,(730-540*G663),-600)))))))","v":{"$error":"#DIV/0!"}},null,{"$error":"#DIV/0!"}]
[null,null,null,null,null,null,{"$error":"#DIV/0!"},"no",null,{"$error":"#DIV/0!"},null,{"$error":"#DIV/0!"}]
[null,null,null,null,null,null,{"$error":"#DIV/0!"},"no",null,{"$error":"#DIV/0!"},null,{"$error":"#DIV/0!"}]
[null,null,null,null,null,null,{"$error":"#DIV/0!"},"no",null,{"$error":"#DIV/0!"},null,{"$error":"#DIV/0!"}]
[null,null,null,null,null,null,{"$error":"#DIV/0!"},"no",null,{"$error":"#DIV/0!"},null,{"$error":"#DIV/0!"}]
[null,null,null,null,null,null,{"$error":"#DIV/0!"},"no",null,{"$error":"#DIV/0!"},null,{"$error":"#DIV/0!"}]
[null,null,null,null,null,null,{"$error":"#DIV/0!"},"no",null,{"$error":"#DIV/0!"},null,{"$error":"#DIV/0!"}]
[null,null,null,null,null,null,{"$error":"#DIV/0!"},"no",null,{"$error":"#DIV/0!"},null,{"$error":"#DIV/0!"}]
[null,null,null,null,null,null,{"$error":"#DIV/0!"},"no",null,{"$error":"#DIV/0!"},null,{"$error":"#DIV/0!"}]
[null,null,null,null,null,null,{"$error":"#DIV/0!"},"no",null,{"$error":"#DIV/0!"},null,{"$error":"#DIV/0!"}]
[null,null,null,null,null,null,{"$error":"#DIV/0!"},"no",null,{"$error":"#DIV/0!"},null,{"$error":"#DIV/0!"}]
[null,null,null,null,null,null,{"$error":"#DIV/0!"},"no",null,{"$error":"#DIV/0!"},null,{"$error":"#DIV/0!"}]
[null,null,null,null,null,null,{"$error":"#DIV/0!"},"no",null,{"$error":"#DIV/0!"},null,{"$error":"#DIV/0!"}]
[null,null,null,null,null,null,{"$error":"#DIV/0!"},"no",null,{"$error":"#DIV/0!"},null,{"$error":"#DIV/0!"}]
[null,null,null,null,null,null,{"$error":"#DIV/0!"},"no",null,{"$error":"#DIV/0!"},null,{"$error":"#DIV/0!"}]
[null,null,null,null,null,null,{"$error":"#DIV/0!"},"no",null,{"$error":"#DIV/0!"},null,{"$error":"#DIV/0!"}]
[null,null,null,null,null,null,{"$error":"#DIV/0!"},"no",null,{"$error":"#DIV/0!"},null,{"$error":"#DIV/0!"}]
[null,null,null,null,null,null,{"$error":"#DIV/0!"},"no",null,{"$error":"#DIV/0!"},null,{"$error":"#DIV/0!"}]
[null,null,null,null,null,null,{"$error":"#DIV/0!"},"no",null,{"$error":"#DIV/0!"},null,{"$error":"#DIV/0!"}]
[null,null,null,null,null,null,{"$error":"#DIV/0!"},"no",null,{"$error":"#DIV/0!"},null,{"$error":"#DIV/0!"}]
[null,null,null,null,null,null,{"$error":"#DIV/0!"},"no",null,{"$error":"#DIV/0!"},null,{"$error":"#DIV/0!"}]
[null,null,null,null,null,null,{"$error":"#DIV/0!"},"no",null,{"$error":"#DIV/0!"},null,{"$error":"#DIV/0!"}]
[null,null,null,null,null,null,{"$error":"#DIV/0!"},"no",null,{"$error":"#DIV/0!"},null,{"$error":"#DIV/0!"}]
[null,null,null,null,null,null,{"$error":"#DIV/0!"},"no",null,{"$error":"#DIV/0!"},null,{"$error":"#DIV/0!"}]
[null,null,null,null,null,null,{"$error":"#DIV/0!"},"no",null,{"$error":"#DIV/0!"},null,{"$error":"#DIV/0!"}]
[null,null,null,null,null,null,{"$error":"#DIV/0!"},"no",null,{"$error":"#DIV/0!"},null,{"$error":"#DIV/0!"}]
[null,null,null,null,null,null,{"$error":"#DIV/0!"},"no",null,{"$error":"#DIV/0!"},null,{"$error":"#DIV/0!"}]
[null,null,null,null,null,null,{"$error":"#DIV/0!"},"no",null,{"$error":"#DIV/0!"},null,{"$error":"#DIV/0!"}]
[null,null,null,null,null,null,{"$error":"#DIV/0!"},"no",null,{"$error":"#DIV/0!"},null,{"$error":"#DIV/0!"}]
[null,null,null,null,null,null,{"$error":"#DIV/0!"},"no",null,{"$error":"#DIV/0!"},null,{"$error":"#DIV/0!"}]
[null,null,null,null,null,null,{"$error":"#DIV/0!"},"no",null,{"$error":"#DIV/0!"},null,{"$error":"#DIV/0!"}]
[null,null,null,null,null,null,{"$error":"#DIV/0!"},"no",null,{"$error":"#DIV/0!"},null,{"$error":"#DIV/0!"}]
[null,null,null,null,null,null,{"$error":"#DIV/0!"},"no",null,{"$error":"#DIV/0!"},null,{"$error":"#DIV/0!"}]
[null,null,null,null,null,null,{"$error":"#DIV/0!"},"no",null,{"$error":"#DIV/0!"},null,{"$error":"#DIV/0!"}]
[null,null,null,null,null,null,{"$error":"#DIV/0!"},"no",null,{"$error":"#DIV/0!"},null,{"$error":"#DIV/0!"}]
[null,null,null,null,null,null,{"$error":"#DIV/0!"},"no",null,{"$error":"#DIV/0!"},null,{"$error":"#DIV/0!"}]
[null,null,null,null,null,null,{"$error":"#DIV/0!"},"no",null,{"$error":"#DIV/0!"},null,{"$error":"#DIV/0!"}]
[null,null,null,null,null,null,{"$error":"#DIV/0!"},"no",null,{"$error":"#DIV/0!"},null,{"$error":"#DIV/0!"}]
[null,null,null,null,null,null,{"$error":"#DIV/0!"},"no",null,{"$error":"#DIV/0!"},null,{"$error":"#DIV/0!"}]
[null,null,null,null,null,null,{"$error":"#DIV/0!"},"no",null,{"$error":"#DIV/0!"},null,{"$error":"#DIV/0!"}]
[null,null,null,null,null,null,{"$error":"#DIV/0!"},"no",null,{"$error":"#DIV/0!"},null,{"$error":"#DIV/0!"}]
[null,null,null,null,null,null,{"$error":"#DIV/0!"},"no",null,{"$error":"#DIV/0!"},null,{"$error":"#DIV/0!"}]
[null,null,null,null,null,null,{"$error":"#DIV/0!"},"no",null,{"$error":"#DIV/0!"},null,{"$error":"#DIV/0!"}]
[null,null,null,null,null,null,{"$error":"#DIV/0!"},"no",null,{"$error":"#DIV/0!"},null,{"$error":"#DIV/0!"}]
[null,null,null,null,null,null,{"$error":"#DIV/0!"},"no",null,{"$error":"#DIV/0!"},null,{"$error":"#DIV/0!"}]
[null,null,null,null,null,null,{"$error":"#DIV/0!"},"no",null,{"$error":"#DIV/0!"},null,{"$error":"#DIV/0!"}]
[null,null,null,null,null,null,{"$error":"#DIV/0!"},"no",null,{"$error":"#DIV/0!"},null,{"$error":"#DIV/0!"}]
[null,null,null,null,null,null,{"$error":"#DIV/0!"},"no",null,{"$error":"#DIV/0!"},null,{"$error":"#DIV/0!"}]
[null,null,null,null,null,null,{"$error":"#DIV/0!"},"no",null,{"$error":"#DIV/0!"},null,{"$error":"#DIV/0!"}]
[null,null,null,null,null,null,{"$error":"#DIV/0!"},"no",null,{"$error":"#DIV/0!"},null,{"$error":"#DIV/0!"}]
[null,null,null,null,null,null,{"$error":"#DIV/0!"},"no",null,{"$error":"#DIV/0!"},null,{"$error":"#DIV/0!"}]
[null,null,null,null,null,null,{"$error":"#DIV/0!"},"no",null,{"$error":"#DIV/0!"},null,{"$error":"#DIV/0!"}]
[null,null,null,null,null,null,{"$error":"#DIV/0!"},"no",null,{"$error":"#DIV/0!"},null,{"$f":"IF(J715=-600,\"Refer to Note (1) of Table 3.50 C1 or 3.53 C1\",\" \")","v":{"$error":"#DIV/0!"}}]
[null,null,null,null,null,null,{"$error":"#DIV/0!"},"no",null,{"$error":"#DIV/0!"},null,{"$error":"#DIV/0!"}]
[null,null,null,null,null,null,{"$error":"#DIV/0!"},"no",null,{"$error":"#DIV/0!"},null,{"$error":"#DIV/0!"}]
[null,null,null,null,null,null,{"$error":"#DIV/0!"},"no",null,{"$error":"#DIV/0!"},null,{"$error":"#DIV/0!"}]
[null,null,null,null,null,null,{"$error":"#DIV/0!"},"no",null,{"$error":"#DIV/0!"},null,{"$error":"#DIV/0!"}]
[null,null,null,null,null,null,{"$error":"#DIV/0!"},"no",null,{"$error":"#DIV/0!"},null,{"$error":"#DIV/0!"}]
[null,null,null,null,null,null,{"$error":"#DIV/0!"},"no",null,{"$error":"#DIV/0!"},null,{"$error":"#DIV/0!"}]
[null,null,null,null,null,null,{"$error":"#DIV/0!"},"no",null,{"$error":"#DIV/0!"},null,{"$error":"#DIV/0!"}]
[null,null,null,null,null,null,{"$error":"#DIV/0!"},"no",null,{"$error":"#DIV/0!"},null,{"$error":"#DIV/0!"}]
[null,null,null,null,null,null,{"$error":"#DIV/0!"},"no",null,{"$error":"#DIV/0!"},null,{"$error":"#DIV/0!"}]
[null,null,null,null,null,null,{"$error":"#DIV/0!"},"no",null,{"$error":"#DIV/0!"},null,{"$error":"#DIV/0!"}]
[null,null,null,null,null,null,{"$error":"#DIV/0!"},"no",null,{"$error":"#DIV/0!"},null,{"$error":"#DIV/0!"}]
[null,null,null,null,null,null,{"$f":"ROUND(AVERAGE(E727:F727),2)","v":{"$error":"#DIV/0!"}},"no",null,{"$f":"IF(I727=\"SI\",IF(H727=\"yes\",\"Excluded Area\",IF(G727<0.55,250,IF(G727<0.71,150,IF(G727<1.01,0,IF(G727<1.51,(800-900*G727),-600))))),IF(I727=\"SII\",IF(H727=\"yes\",\"Excluded Area\",IF(G727<0.55,250,IF(G727<0.81,150, IF(G727<1.16,0, IF(G727<1.51,(1380-1230*G727),-600))))),IF(H727=\"yes\",\"Excluded Area\",IF(G727<0.55,250,IF(G727<0.81,150, IF(G727<1.51,0, IF(G727<=1.8,(730-540*G727),-600)))))))","v":{"$error":"#DIV/0!"}},null,{"$error":"#DIV/0!"}]
[null,null,null,null,null,null,{"$error":"#DIV/0!"},"no",null,{"$error":"#DIV/0!"},null,{"$error":"#DIV/0!"}]
[null,null,null,null,null,null,{"$error":"#DIV/0!"},"no",null,{"$error":"#DIV/0!"},null,{"$error":"#DIV/0!"}]
[null,null,null,null,null,null,{"$error":"#DIV/0!"},"no",null,{"$error":"#DIV/0!"},null,{"$error":"#DIV/0!"}]
[null,null,null,null,null,null,{"$error":"#DIV/0!"},"no",null,{"$error":"#DIV/0!"},null,{"$error":"#DIV/0!"}]
[null,null,null,null,null,null,{"$error":"#DIV/0!"},"no",null,{"$error":"#DIV/0!"},null,{"$error":"#DIV/0!"}]
[null,null,null,null,null,null,{"$error":"#DIV/0!"},"no",null,{"$error":"#DIV/0!"},null,{"$error":"#DIV/0!"}]
[null,null,null,null,null,null,{"$error":"#DIV/0!"},"no",null,{"$error":"#DIV/0!"},null,{"$error":"#DIV/0!"}]
[null,null,null,null,null,null,{"$error":"#DIV/0!"},"no",null,{"$error":"#DIV/0!"},null,{"$error":"#DIV/0!"}]
[null,null,null,null,null,null,{"$error":"#DIV/0!"},"no",null,{"$error":"#DIV/0!"},null,{"$error":"#DIV/0!"}]
[null,null,null,null,null,null,{"$error":"#DIV/0!"},"no",null,{"$error":"#DIV/0!"},null,{"$error":"#DIV/0!"}]
[null,null,null,null,null,null,{"$error":"#DIV/0!"},"no",null,{"$error":"#DIV/0!"},null,{"$error":"#DIV/0!"}]
[null,null,null,null,null,null,{"$error":"#DIV/0!"},"no",null,{"$error":"#DIV/0!"},null,{"$error":"#DIV/0!"}]
[null,null,null,null,null,null,{"$error":"#DIV/0!"},"no",null,{"$error":"#DIV/0!"},null,{"$error":"#DIV/0!"}]
[null,null,null,null,null,null,{"$error":"#DIV/0!"},"no",null,{"$error":"#DIV/0!"},null,{"$error":"#DIV/0!"}]
[null,null,null,null,null,null,{"$error":"#DIV/0!"},"no",null,{"$error":"#DIV/0!"},null,{"$error":"#DIV/0!"}]
[null,null,null,null,null,null,{"$error":"#DIV/0!"},"no",null,{"$error":"#DIV/0!"},null,{"$error":"#DIV/0!"}]
[null,null,null,null,null,null,{"$error":"#DIV/0!"},"no",null,{"$error":"#DIV/0!"},null,{"$error":"#DIV/0!"}]
[null,null,null,null,null,null,{"$error":"#DIV/0!"},"no",null,{"$error":"#DIV/0!"},null,{"$error":"#DIV/0!"}]
[null,null,null,null,null,null,{"$error":"#DIV/0!"},"no",null,{"$error":"#DIV/0!"},null,{"$error":"#DIV/0!"}]
[null,null,null,null,null,null,{"$error":"#DIV/0!"},"no",null,{"$error":"#DIV/0!"},null,{"$error":"#DIV/0!"}]
[null,null,null,null,null,null,{"$error":"#DIV/0!"},"no",null,{"$error":"#DIV/0!"},null,{"$error":"#DIV/0!"}]
[null,null,null,null,null,null,{"$error":"#DIV/0!"},"no",null,{"$error":"#DIV/0!"},null,{"$error":"#DIV/0!"}]
[null,null,null,null,null,null,{"$error":"#DIV/0!"},"no",null,{"$error":"#DIV/0!"},null,{"$error":"#DIV/0!"}]
[null,null,null,null,null,null,{"$error":"#DIV/0!"},"no",null,{"$error":"#DIV/0!"},null,{"$error":"#DIV/0!"}]
[null,null,null,null,null,null,{"$error":"#DIV/0!"},"no",null,{"$error":"#DIV/0!"},null,{"$error":"#DIV/0!"}]
[null,null,null,null,null,null,{"$error":"#DIV/0!"},"no",null,{"$error":"#DIV/0!"},null,{"$error":"#DIV/0!"}]
[null,null,null,null,null,null,{"$error":"#DIV/0!"},"no",null,{"$error":"#DIV/0!"},null,{"$error":"#DIV/0!"}]
[null,null,null,null,null,null,{"$error":"#DIV/0!"},"no",null,{"$error":"#DIV/0!"},null,{"$error":"#DIV/0!"}]
[null,null,null,null,null,null,{"$error":"#DIV/0!"},"no",null,{"$error":"#DIV/0!"},null,{"$error":"#DIV/0!"}]
[null,null,null,null,null,null,{"$error":"#DIV/0!"},"no",null,{"$error":"#DIV/0!"},null,{"$error":"#DIV/0!"}]
[null,null,null,null,null,null,{"$error":"#DIV/0!"},"no",null,{"$error":"#DIV/0!"},null,{"$error":"#DIV/0!"}]
[null,null,null,null,null,null,{"$error":"#DIV/0!"},"no",null,{"$error":"#DIV/0!"},null,{"$error":"#DIV/0!"}]
[null,null,null,null,null,null,{"$error":"#DIV/0!"},"no",null,{"$error":"#DIV/0!"},null,{"$error":"#DIV/0!"}]
[null,null,null,null,null,null,{"$error":"#DIV/0!"},"no",null,{"$error":"#DIV/0!"},null,{"$error":"#DIV/0!"}]
[null,null,null,null,null,null,{"$error":"#DIV/0!"},"no",null,{"$error":"#DIV/0!"},null,{"$error":"#DIV/0!"}]
[null,null,null,null,null,null,{"$error":"#DIV/0!"},"no",null,{"$error":"#DIV/0!"},null,{"$error":"#DIV/0!"}]
[null,null,null,null,null,null,{"$error":"#DIV/0!"},"no",null,{"$error":"#DIV/0!"},null,{"$error":"#DIV/0!"}]
[null,null,null,null,null,null,{"$error":"#DIV/0!"},"no",null,{"$error":"#DIV/0!"},null,{"$error":"#DIV/0!"}]
[null,null,null,null,null,null,{"$error":"#DIV/0!"},"no",null,{"$error":"#DIV/0!"},null,{"$error":"#DIV/0!"}]
[null,null,null,null,null,null,{"$error":"#DIV/0!"},"no",null,{"$error":"#DIV/0!"},null,{"$error":"#DIV/0!"}]
[null,null,null,null,null,null,{"$error":"#DIV/0!"},"no",null,{"$error":"#DIV/0!"},null,{"$error":"#DIV/0!"}]
[null,null,null,null,null,null,{"$error":"#DIV/0!"},"no",null,{"$error":"#DIV/0!"},null,{"$error":"#DIV/0!"}]
[null,null,null,null,null,null,{"$error":"#DIV/0!"},"no",null,{"$error":"#DIV/0!"},null,{"$error":"#DIV/0!"}]
[null,null,null,null,null,null,{"$error":"#DIV/0!"},"no",null,{"$error":"#DIV/0!"},null,{"$error":"#DIV/0!"}]
[null,null,null,null,null,null,{"$error":"#DIV/0!"},"no",null,{"$error":"#DIV/0!"},null,{"$error":"#DIV/0!"}]
[null,null,null,null,null,null,{"$error":"#DIV/0!"},"no",null,{"$error":"#DIV/0!"},null,{"$error":"#DIV/0!"}]
[null,null,null,null,null,null,{"$error":"#DIV/0!"},"no",null,{"$error":"#DIV/0!"},null,{"$error":"#DIV/0!"}]
[null,null,null,null,null,null,{"$error":"#DIV/0!"},"no",null,{"$error":"#DIV/0!"},null,{"$error":"#DIV/0!"}]
[null,null,null,null,null,null,{"$error":"#DIV/0!"},"no",null,{"$error":"#DIV/0!"},null,{"$error":"#DIV/0!"}]
[null,null,null,null,null,null,{"$error":"#DIV/0!"},"no",null,{"$error":"#DIV/0!"},null,{"$error":"#DIV/0!"}]
[null,null,null,null,null,null,{"$error":"#DIV/0!"},"no",null,{"$error":"#DIV/0!"},null,{"$error":"#DIV/0!"}]
[null,null,null,null,null,null,{"$error":"#DIV/0!"},"no",null,{"$error":"#DIV/0!"},null,{"$f":"IF(J779=-600,\"Refer to Note (1) of Table 3.50 C1 or 3.53 C1\",\" \")","v":{"$error":"#DIV/0!"}}]
[null,null,null,null,null,null,{"$error":"#DIV/0!"},"no",null,{"$error":"#DIV/0!"},null,{"$error":"#DIV/0!"}]
[null,null,null,null,null,null,{"$error":"#DIV/0!"},"no",null,{"$error":"#DIV/0!"},null,{"$error":"#DIV/0!"}]
[null,null,null,null,null,null,{"$error":"#DIV/0!"},"no",null,{"$error":"#DIV/0!"},null,{"$error":"#DIV/0!"}]
[null,null,null,null,null,null,{"$error":"#DIV/0!"},"no",null,{"$error":"#DIV/0!"},null,{"$error":"#DIV/0!"}]
[null,null,null,null,null,null,{"$error":"#DIV/0!"},"no",null,{"$error":"#DIV/0!"},null,{"$error":"#DIV/0!"}]
[null,null,null,null,null,null,{"$error":"#DIV/0!"},"no",null,{"$error":"#DIV/0!"},null,{"$error":"#DIV/0!"}]
[null,null,null,null,null,null,{"$error":"#DIV/0!"},"no",null,{"$error":"#DIV/0!"},null,{"$error":"#DIV/0!"}]
[null,null,null,null,null,null,{"$error":"#DIV/0!"},"no",null,{"$error":"#DIV/0!"},null,{"$error":"#DIV/0!"}]
[null,null,null,null,null,null,{"$error":"#DIV/0!"},"no",null,{"$error":"#DIV/0!"},null,{"$error":"#DIV/0!"}]
[null,null,null,null,null,null,{"$error":"#DIV/0!"},"no",null,{"$error":"#DIV/0!"},null,{"$error":"#DIV/0!"}]
[null,null,null,null,null,null,{"$error":"#DIV/0!"},"no",null,{"$error":"#DIV/0!"},null,{"$error":"#DIV/0!"}]
[null,null,null,null,null,null,{"$f":"ROUND(AVERAGE(E791:F791),2)","v":{"$error":"#DIV/0!"}},"no",null,{"$f":"IF(I791=\"SI\",IF(H791=\"yes\",\"Excluded Area\",IF(G791<0.55,250,IF(G791<0.71,150,IF(G791<1.01,0,IF(G791<1.51,(800-900*G791),-600))))),IF(I791=\"SII\",IF(H791=\"yes\",\"Excluded Area\",IF(G791<0.55,250,IF(G791<0.81,150, IF(G791<1.16,0, IF(G791<1.51,(1380-1230*G791),-600))))),IF(H791=\"yes\",\"Excluded Area\",IF(G791<0.55,250,IF(G791<0.81,150, IF(G791<1.51,0, IF(G791<=1.8,(730-540*G791),-600)))))))","v":{"$error":"#DIV/0!"}},null,{"$error":"#DIV/0!"}]
[null,null,null,null,null,null,{"$error":"#DIV/0!"},"no",null,{"$error":"#DIV/0!"},null,{"$error":"#DIV/0!"}]
[null,null,null,null,null,null,{"$error":"#DIV/0!"},"no",null,{"$error":"#DIV/0!"},null,{"$error":"#DIV/0!"}]
[null,null,null,null,null,null,{"$error":"#DIV/0!"},"no",null,{"$error":"#DIV/0!"},null,{"$error":"#DIV/0!"}]
[null,null,null,null,null,null,{"$error":"#DIV/0!"},"no",null,{"$error":"#DIV/0!"},null,{"$error":"#DIV/0!"}]
[null,null,null,null,null,null,{"$error":"#DIV/0!"},"no",null,{"$error":"#DIV/0!"},null,{"$error":"#DIV/0!"}]
[null,null,null,null,null,null,{"$error":"#DIV/0!"},"no",null,{"$error":"#DIV/0!"},null,{"$error":"#DIV/0!"}]
[null,null,null,null,null,null,{"$error":"#DIV/0!"},"no",null,{"$error":"#DIV/0!"},null,{"$error":"#DIV/0!"}]
[null,null,null,null,null,null,{"$error":"#DIV/0!"},"no",null,{"$error":"#DIV/0!"},null,{"$error":"#DIV/0!"}]
[null,null,null,null,null,null,{"$error":"#DIV/0!"},"no",null,{"$error":"#DIV/0!"},null,{"$error":"#DIV/0!"}]
[null,null,null,null,null,null,{"$error":"#DIV/0!"},"no",null,{"$error":"#DIV/0!"},null,{"$error":"#DIV/0!"}]
[null,null,null,null,null,null,{"$error":"#DIV/0!"},"no",null,{"$error":"#DIV/0!"},null,{"$error":"#DIV/0!"}]
[null,null,null,null,null,null,{"$error":"#DIV/0!"},"no",null,{"$error":"#DIV/0!"},null,{"$error":"#DIV/0!"}]
[null,null,null,null,null,null,{"$error":"#DIV/0!"},"no",null,{"$error":"#DIV/0!"},null,{"$error":"#DIV/0!"}]
[null,null,null,null,null,null,{"$error":"#DIV/0!"},"no",null,{"$error":"#DIV/0!"},null,{"$error":"#DIV/0!"}]
[null,null,null,null,null,null,{"$error":"#DIV/0!"},"no",null,{"$error":"#DIV/0!"},null,{"$error":"#DIV/0!"}]
[null,null,null,null,null,null,{"$error":"#DIV/0!"},"no",null,{"$error":"#DIV/0!"},null,{"$error":"#DIV/0!"}]
[null,null,null,null,null,null,{"$error":"#DIV/0!"},"no",null,{"$error":"#DIV/0!"},null,{"$error":"#DIV/0!"}]
[null,null,null,null,null,null,{"$error":"#DIV/0!"},"no",null,{"$error":"#DIV/0!"},null,{"$error":"#DIV/0!"}]
[null,null,null,null,null,null,{"$error":"#DIV/0!"},"no",null,{"$error":"#DIV/0!"},null,{"$error":"#DIV/0!"}]
[null,null,null,null,null,null,{"$error":"#DIV/0!"},"no",null,{"$error":"#DIV/0!"},null,{"$error":"#DIV/0!"}]
[null,null,null,null,null,null,{"$error":"#DIV/0!"},"no",null,{"$error":"#DIV/0!"},null,{"$error":"#DIV/0!"}]
[null,null,null,null,null,null,{"$error":"#DIV/0!"},"no",null,{"$error":"#DIV/0!"},null,{"$error":"#DIV/0!"}]
[null,null,null,null,null,null,{"$error":"#DIV/0!"},"no",null,{"$error":"#DIV/0!"},null,{"$error":"#DIV/0!"}]
[null,null,null,null,null,null,{"$error":"#DIV/0!"},"no",null,{"$error":"#DIV/0!"},null,{"$error":"#DIV/0!"}]
[null,null,null,null,null,null,{"$error":"#DIV/0!"},"no",null,{"$error":"#DIV/0!"},null,{"$error":"#DIV/0!"}]
[null,null,null,null,null,null,{"$error":"#DIV/0!"},"no",null,{"$error":"#DIV/0!"},null,{"$error":"#DIV/0!"}]
[null,null,null,null,null,null,{"$error":"#DIV/0!"},"no",null,{"$error":"#DIV/0!"},null,{"$error":"#DIV/0!"}]
[null,null,null,null,null,null,{"$error":"#DIV/0!"},"no",null,{"$error":"#DIV/0!"},null,{"$error":"#DIV/0!"}]
[null,null,null,null,null,null,{"$error":"#DIV/0!"},"no",null,{"$error":"#DIV/0!"},null,{"$error":"#DIV/0!"}]
[null,null,null,null,null,null,{"$error":"#DIV/0!"},"no",null,{"$error":"#DIV/0!"},null,{"$error":"#DIV/0!"}]
[null,null,null,null,null,null,{"$error":"#DIV/0!"},"no",null,{"$error":"#DIV/0!"},null,{"$error":"#DIV/0!"}]
[null,null,null,null,null,null,{"$error":"#DIV/0!"},"no",null,{"$error":"#DIV/0!"},null,{"$error":"#DIV/0!"}]
[null,null,null,null,null,null,{"$error":"#DIV/0!"},"no",null,{"$error":"#DIV/0!"},null,{"$error":"#DIV/0!"}]
[null,null,null,null,null,null,{"$error":"#DIV/0!"},"no",null,{"$error":"#DIV/0!"},null,{"$error":"#DIV/0!"}]
[null,null,null,null,null,null,{"$error":"#DIV/0!"},"no",null,{"$error":"#DIV/0!"},null,{"$error":"#DIV/0!"}]
[null,null,null,null,null,null,{"$error":"#DIV/0!"},"no",null,{"$error":"#DIV/0!"},null,{"$error":"#DIV/0!"}]
[null,null,null,null,null,null,{"$error":"#DIV/0!"},"no",null,{"$error":"#DIV/0!"},null,{"$error":"#DIV/0!"}]
[null,null,null,null,null,null,{"$error":"#DIV/0!"},"no",null,{"$error":"#DIV/0!"},null,{"$error":"#DIV/0!"}]
[null,null,null,null,null,null,{"$error":"#DIV/0!"},"no",null,{"$error":"#DIV/0!"},null,{"$error":"#DIV/0!"}]
[null,null,null,null,null,null,{"$error":"#DIV/0!"},"no",null,{"$error":"#DIV/0!"},null,{"$error":"#DIV/0!"}]
[null,null,null,null,null,null,{"$error":"#DIV/0!"},"no",null,{"$error":"#DIV/0!"},null,{"$error":"#DIV/0!"}]
[null,null,null,null,null,null,{"$error":"#DIV/0!"},"no",null,{"$error":"#DIV/0!"},null,{"$error":"#DIV/0!"}]
[null,null,null,null,null,null,{"$error":"#DIV/0!"},"no",null,{"$error":"#DIV/0!"},null,{"$error":"#DIV/0!"}]
[null,null,null,null,null,null,{"$error":"#DIV/0!"},"no",null,{"$error":"#DIV/0!"},null,{"$error":"#DIV/0!"}]
[null,null,null,null,null,null,{"$error":"#DIV/0!"},"no",null,{"$error":"#DIV/0!"},null,{"$error":"#DIV/0!"}]
[null,null,null,null,null,null,{"$error":"#DIV/0!"},"no",null,{"$error":"#DIV/0!"},null,{"$error":"#DIV/0!"}]
[null,null,null,null,null,null,{"$error":"#DIV/0!"},"no",null,{"$error":"#DIV/0!"},null,{"$error":"#DIV/0!"}]
[null,null,null,null,null,null,{"$error":"#DIV/0!"},"no",null,{"$error":"#DIV/0!"},null,{"$error":"#DIV/0!"}]
[null,null,null,null,null,null,{"$error":"#DIV/0!"},"no",null,{"$error":"#DIV/0!"},null,{"$error":"#DIV/0!"}]
[null,null,null,null,null,null,{"$error":"#DIV/0!"},"no",null,{"$error":"#DIV/0!"},null,{"$error":"#DIV/0!"}]
[null,null,null,null,null,null,{"$error":"#DIV/0!"},"no",null,{"$error":"#DIV/0!"},null,{"$error":"#DIV/0!"}]
[null,null,null,null,null,null,{"$error":"#DIV/0!"},"no",null,{"$error":"#DIV/0!"},null,{"$f":"IF(J843=-600,\"Refer to Note (1) of Table 3.50 C1 or 3.53 C1\",\" \")","v":{"$error":"#DIV/0!"}}]
[null,null,null,null,null,null,{"$error":"#DIV/0!"},"no",null,{"$error":"#DIV/0!"},null,{"$error":"#DIV/0!"}]
[null,null,null,null,null,null,{"$error":"#DIV/0!"},"no",null,{"$error":"#DIV/0!"},null,{"$error":"#DIV/0!"}]
[null,null,null,null,null,null,{"$error":"#DIV/0!"},"no",null,{"$error":"#DIV/0!"},null,{"$error":"#DIV/0!"}]
[null,null,null,null,null,null,{"$error":"#DIV/0!"},"no",null,{"$error":"#DIV/0!"},null,{"$error":"#DIV/0!"}]
[null,null,null,null,null,null,{"$error":"#DIV/0!"},"no",null,{"$error":"#DIV/0!"},null,{"$error":"#DIV/0!"}]
[null,null,null,null,null,null,{"$error":"#DIV/0!"},"no",null,{"$error":"#DIV/0!"},null,{"$error":"#DIV/0!"}]
[null,null,null,null,null,null,{"$error":"#DIV/0!"},"no",null,{"$error":"#DIV/0!"},null,{"$error":"#DIV/0!"}]
[null,null,null,null,null,null,{"$error":"#DIV/0!"},"no",null,{"$error":"#DIV/0!"},null,{"$error":"#DIV/0!"}]
[null,null,null,null,null,null,{"$error":"#DIV/0!"},"no",null,{"$error":"#DIV/0!"},null,{"$error":"#DIV/0!"}]
[null,null,null,null,null,null,{"$error":"#DIV/0!"},"no",null,{"$error":"#DIV/0!"},null,{"$error":"#DIV/0!"}]
[null,null,null,null,null,null,{"$error":"#DIV/0!"},"no",null,{"$error":"#DIV/0!"},null,{"$error":"#DIV/0!"}]
[null,null,null,null,null,null,{"$f":"ROUND(AVERAGE(E855:F855),2)","v":{"$error":"#DIV/0!"}},"no",null,{"$f":"IF(I855=\"SI\",IF(H855=\"yes\",\"Excluded Area\",IF(G855<0.55,250,IF(G855<0.71,150,IF(G855<1.01,0,IF(G855<1.51,(800-900*G855),-600))))),IF(I855=\"SII\",IF(H855=\"yes\",\"Excluded Area\",IF(G855<0.55,250,IF(G855<0.81,150, IF(G855<1.16,0, IF(G855<1.51,(1380-1230*G855),-600))))),IF(H855=\"yes\",\"Excluded Area\",IF(G855<0.55,250,IF(G855<0.81,150, IF(G855<1.51,0, IF(G855<=1.8,(730-540*G855),-600)))))))","v":{"$error":"#DIV/0!"}},null,{"$error":"#DIV/0!"}]
[null,null,null,null,null,null,{"$error":"#DIV/0!"},"no",null,{"$error":"#DIV/0!"},null,{"$error":"#DIV/0!"}]
[null,null,null,null,null,null,{"$error":"#DIV/0!"},"no",null,{"$error":"#DIV/0!"},null,{"$error":"#DIV/0!"}]
[null,null,null,null,null,null,{"$error":"#DIV/0!"},"no",null,{"$error":"#DIV/0!"},null,{"$error":"#DIV/0!"}]
[null,null,null,null,null,null,{"$error":"#DIV/0!"},"no",null,{"$error":"#DIV/0!"},null,{"$error":"#DIV/0!"}]
[null,null,null,null,null,null,{"$error":"#DIV/0!"},"no",null,{"$error":"#DIV/0!"},null,{"$error":"#DIV/0!"}]
[null,null,null,null,null,null,{"$error":"#DIV/0!"},"no",null,{"$error":"#DIV/0!"},null,{"$error":"#DIV/0!"}]
[null,null,null,null,null,null,{"$error":"#DIV/0!"},"no",null,{"$error":"#DIV/0!"},null,{"$error":"#DIV/0!"}]
[null,null,null,null,null,null,{"$error":"#DIV/0!"},"no",null,{"$error":"#DIV/0!"},null,{"$error":"#DIV/0!"}]
[null,null,null,null,null,null,{"$error":"#DIV/0!"},"no",null,{"$error":"#DIV/0!"},null,{"$error":"#DIV/0!"}]
[null,null,null,null,null,null,{"$error":"#DIV/0!"},"no",null,{"$error":"#DIV/0!"},null,{"$error":"#DIV/0!"}]
[null,null,null,null,null,null,{"$error":"#DIV/0!"},"no",null,{"$error":"#DIV/0!"},null,{"$error":"#DIV/0!"}]
[null,null,null,null,null,null,{"$error":"#DIV/0!"},"no",null,{"$error":"#DIV/0!"},null,{"$error":"#DIV/0!"}]
[null,null,null,null,null,null,{"$error":"#DIV/0!"},"no",null,{"$error":"#DIV/0!"},null,{"$error":"#DIV/0!"}]
[null,null,null,null,null,null,{"$error":"#DIV/0!"},"no",null,{"$error":"#DIV/0!"},null,{"$error":"#DIV/0!"}]
[null,null,null,null,null,null,{"$error":"#DIV/0!"},"no",null,{"$error":"#DIV/0!"},null,{"$error":"#DIV/0!"}]
[null,null,null,null,null,null,{"$error":"#DIV/0!"},"no",null,{"$error":"#DIV/0!"},null,{"$error":"#DIV/0!"}]
[null,null,null,null,null,null,{"$error":"#DIV/0!"},"no",null,{"$error":"#DIV/0!"},null,{"$error":"#DIV/0!"}]
[null,null,null,null,null,null,{"$error":"#DIV/0!"},"no",null,{"$error":"#DIV/0!"},null,{"$error":"#DIV/0!"}]
[null,null,null,null,null,null,{"$error":"#DIV/0!"},"no",null,{"$error":"#DIV/0!"},null,{"$error":"#DIV/0!"}]
[null,null,null,null,null,null,{"$error":"#DIV/0!"},"no",null,{"$error":"#DIV/0!"},null,{"$error":"#DIV/0!"}]
[null,null,null,null,null,null,{"$error":"#DIV/0!"},"no",null,{"$error":"#DIV/0!"},null,{"$error":"#DIV/0!"}]
[null,null,null,null,null,null,{"$error":"#DIV/0!"},"no",null,{"$error":"#DIV/0!"},null,{"$error":"#DIV/0!"}]
[null,null,null,null,null,null,{"$error":"#DIV/0!"},"no",null,{"$error":"#DIV/0!"},null,{"$error":"#DIV/0!"}]
[null,null,null,null,null,null,{"$error":"#DIV/0!"},"no",null,{"$error":"#DIV/0!"},null,{"$error":"#DIV/0!"}]
[null,null,null,null,null,null,{"$error":"#DIV/0!"},"no",null,{"$error":"#DIV/0!"},null,{"$error":"#DIV/0!"}]
[null,null,null,null,null,null,{"$error":"#DIV/0!"},"no",null,{"$error":"#DIV/0!"},null,{"$error":"#DIV/0!"}]
[null,null,null,null,null,null,{"$error":"#DIV/0!"},"no",null,{"$error":"#DIV/0!"},null,{"$error":"#DIV/0!"}]
[null,null,null,null,null,null,{"$error":"#DIV/0!"},"no",null,{"$error":"#DIV/0!"},null,{"$error":"#DIV/0!"}]
[null,null,null,null,null,null,{"$error":"#DIV/0!"},"no",null,{"$error":"#DIV/0!"},null,{"$error":"#DIV/0!"}]
[null,null,null,null,null,null,{"$error":"#DIV/0!"},"no",null,{"$error":"#DIV/0!"},null,{"$error":"#DIV/0!"}]
[null,null,null,null,null,null,{"$error":"#DIV/0!"},"no",null,{"$error":"#DIV/0!"},null,{"$error":"#DIV/0!"}]
[null,null,null,null,null,null,{"$error":"#DIV/0!"},"no",null,{"$error":"#DIV/0!"},null,{"$error":"#DIV/0!"}]
[null,null,null,null,null,null,{"$error":"#DIV/0!"},"no",null,{"$error":"#DIV/0!"},null,{"$error":"#DIV/0!"}]
[null,null,null,null,null,null,{"$error":"#DIV/0!"},"no",null,{"$error":"#DIV/0!"},null,{"$error":"#DIV/0!"}]
[null,null,null,null,null,null,{"$error":"#DIV/0!"},"no",null,{"$error":"#DIV/0!"},null,{"$error":"#DIV/0!"}]
[null,null,null,null,null,null,{"$error":"#DIV/0!"},"no",null,{"$error":"#DIV/0!"},null,{"$error":"#DIV/0!"}]
[null,null,null,null,null,null,{"$error":"#DIV/0!"},"no",null,{"$error":"#DIV/0!"},null,{"$error":"#DIV/0!"}]
[null,null,null,null,null,null,{"$error":"#DIV/0!"},"no",null,{"$error":"#DIV/0!"},null,{"$error":"#DIV/0!"}]
[null,null,null,null,null,null,{"$error":"#DIV/0!"},"no",null,{"$error":"#DIV/0!"},null,{"$error":"#DIV/0!"}]
[null,null,null,null,null,null,{"$error":"#DIV/0!"},"no",null,{"$error":"#DIV/0!"},null,{"$error":"#DIV/0!"}]
[null,null,null,null,null,null,{"$error":"#DIV/0!"},"no",null,{"$error":"#DIV/0!"},null,{"$error":"#DIV/0!"}]
[null,null,null,null,null,null,{"$error":"#DIV/0!"},"no",null,{"$error":"#DIV/0!"},null,{"$error":"#DIV/0!"}]
[null,null,null,null,null,null,{"$error":"#DIV/0!"},"no",null,{"$error":"#DIV/0!"},null,{"$error":"#DIV/0!"}]
[null,null,null,null,null,null,{"$error":"#DIV/0!"},"no",null,{"$error":"#DIV/0!"},null,{"$error":"#DIV/0!"}]
[null,null,null,null,null,null,{"$error":"#DIV/0!"},"no",null,{"$error":"#DIV/0!"},null,{"$error":"#DIV/0!"}]
[null,null,null,null,null,null,{"$error":"#DIV/0!"},"no",null,{"$error":"#DIV/0!"},null,{"$error":"#DIV/0!"}]
[null,null,null,null,null,null,{"$error":"#DIV/0!"},"no",null,{"$error":"#DIV/0!"},null,{"$error":"#DIV/0!"}]
[null,null,null,null,null,null,{"$error":"#DIV/0!"},"no",null,{"$error":"#DIV/0!"},null,{"$error":"#DIV/0!"}]
[null,null,null,null,null,null,{"$error":"#DIV/0!"},"no",null,{"$error":"#DIV/0!"},null,{"$error":"#DIV/0!"}]
[null,null,null,null,null,null,{"$error":"#DIV/0!"},"no",null,{"$error":"#DIV/0!"},null,{"$error":"#DIV/0!"}]
[null,null,null,null,null,null,{"$error":"#DIV/0!"},"no",null,{"$error":"#DIV/0!"},null,{"$error":"#DIV/0!"}]
[null,null,null,null,null,null,{"$error":"#DIV/0!"},"no",null,{"$error":"#DIV/0!"},null,{"$f":"IF(J907=-600,\"Refer to Note (1) of Table 3.50 C1 or 3.53 C1\",\" \")","v":{"$error":"#DIV/0!"}}]
[null,null,null,null,null,null,{"$error":"#DIV/0!"},"no",null,{"$error":"#DIV/0!"},null,{"$error":"#DIV/0!"}]
[null,null,null,null,null,null,{"$error":"#DIV/0!"},"no",null,{"$error":"#DIV/0!"},null,{"$error":"#DIV/0!"}]
[null,null,null,null,null,null,{"$error":"#DIV/0!"},"no",null,{"$error":"#DIV/0!"},null,{"$error":"#DIV/0!"}]
[null,null,null,null,null,null,{"$error":"#DIV/0!"},"no",null,{"$error":"#DIV/0!"},null,{"$error":"#DIV/0!"}]
[null,null,null,null,null,null,{"$error":"#DIV/0!"},"no",null,{"$error":"#DIV/0!"},null,{"$error":"#DIV/0!"}]
[null,null,null,null,null,null,{"$error":"#DIV/0!"},"no",null,{"$error":"#DIV/0!"},null,{"$error":"#DIV/0!"}]
[null,null,null,null,null,null,{"$error":"#DIV/0!"},"no",null,{"$error":"#DIV/0!"},null,{"$error":"#DIV/0!"}]
[null,null,null,null,null,null,{"$error":"#DIV/0!"},"no",null,{"$error":"#DIV/0!"},null,{"$error":"#DIV/0!"}]
[null,null,null,null,null,null,{"$error":"#DIV/0!"},"no",null,{"$error":"#DIV/0!"},null,{"$error":"#DIV/0!"}]
[null,null,null,null,null,null,{"$error":"#DIV/0!"},"no",null,{"$error":"#DIV/0!"},null,{"$error":"#DIV/0!"}]
[null,null,null,null,null,null,{"$error":"#DIV/0!"},"no",null,{"$error":"#DIV/0!"},null,{"$error":"#DIV/0!"}]
[null,null,null,null,null,null,{"$f":"ROUND(AVERAGE(E919:F919),2)","v":{"$error":"#DIV/0!"}},"no",null,{"$f":"IF(I919=\"SI\",IF(H919=\"yes\",\"Excluded Area\",IF(G919<0.55,250,IF(G919<0.71,150,IF(G919<1.01,0,IF(G919<1.51,(800-900*G919),-600))))),IF(I919=\"SII\",IF(H919=\"yes\",\"Excluded Area\",IF(G919<0.55,250,IF(G919<0.81,150, IF(G919<1.16,0, IF(G919<1.51,(1380-1230*G919),-600))))),IF(H919=\"yes\",\"Excluded Area\",IF(G919<0.55,250,IF(G919<0.81,150, IF(G919<1.51,0, IF(G919<=1.8,(730-540*G919),-600)))))))","v":{"$error":"#DIV/0!"}},null,{"$error":"#DIV/0!"}]
[null,null,null,null,null,null,{"$error":"#DIV/0!"},"no",null,{"$error":"#DIV/0!"},null,{"$error":"#DIV/0!"}]
[null,null,null,null,null,null,{"$error":"#DIV/0!"},"no",null,{"$error":"#DIV/0!"},null,{"$error":"#DIV/0!"}]
[null,null,null,null,null,null,{"$error":"#DIV/0!"},"no",null,{"$error":"#DIV/0!"},null,{"$error":"#DIV/0!"}]
[null,null,null,null,null,null,{"$error":"#DIV/0!"},"no",null,{"$error":"#DIV/0!"},null,{"$error":"#DIV/0!"}]
[null,null,null,null,null,null,{"$error":"#DIV/0!"},"no",null,{"$error":"#DIV/0!"},null,{"$error":"#DIV/0!"}]
[null,null,null,null,null,null,{"$error":"#DIV/0!"},"no",null,{"$error":"#DIV/0!"},null,{"$error":"#DIV/0!"}]
[null,null,null,null,null,null,{"$error":"#DIV/0!"},"no",null,{"$error":"#DIV/0!"},null,{"$error":"#DIV/0!"}]
[null,null,null,null,null,null,{"$error":"#DIV/0!"},"no",null,{"$error":"#DIV/0!"},null,{"$error":"#DIV/0!"}]
[null,null,null,null,null,null,{"$error":"#DIV/0!"},"no",null,{"$error":"#DIV/0!"},null,{"$error":"#DIV/0!"}]
[null,null,null,null,null,null,{"$error":"#DIV/0!"},"no",null,{"$error":"#DIV/0!"},null,{"$error":"#DIV/0!"}]
[null,null,null,null,null,null,{"$error":"#DIV/0!"},"no",null,{"$error":"#DIV/0!"},null,{"$error":"#DIV/0!"}]
[null,null,null,null,null,null,{"$error":"#DIV/0!"},"no",null,{"$error":"#DIV/0!"},null,{"$error":"#DIV/0!"}]
[null,null,null,null,null,null,{"$error":"#DIV/0!"},"no",null,{"$error":"#DIV/0!"},null,{"$error":"#DIV/0!"}]
[null,null,null,null,null,null,{"$error":"#DIV/0!"},"no",null,{"$error":"#DIV/0!"},null,{"$error":"#DIV/0!"}]
[null,null,null,null,null,null,{"$error":"#DIV/0!"},"no",null,{"$error":"#DIV/0!"},null,{"$error":"#DIV/0!"}]
[null,null,null,null,null,null,{"$error":"#DIV/0!"},"no",null,{"$error":"#DIV/0!"},null,{"$error":"#DIV/0!"}]
[null,null,null,null,null,null,{"$error":"#DIV/0!"},"no",null,{"$error":"#DIV/0!"},null,{"$error":"#DIV/0!"}]
[null,null,null,null,null,null,{"$error":"#DIV/0!"},"no",null,{"$error":"#DIV/0!"},null,{"$error":"#DIV/0!"}]
[null,null,null,null,null,null,{"$error":"#DIV/0!"},"no",null,{"$error":"#DIV/0!"},null,{"$error":"#DIV/0!"}]
[null,null,null,null,null,null,{"$error":"#DIV/0!"},"no",null,{"$error":"#DIV/0!"},null,{"$error":"#DIV/0!"}]
[null,null,null,null,null,null,{"$error":"#DIV/0!"},"no",null,{"$error":"#DIV/0!"},null,{"$error":"#DIV/0!"}]
[null,null,null,null,null,null,{"$error":"#DIV/0!"},"no",null,{"$error":"#DIV/0!"},null,{"$error":"#DIV/0!"}]
[null,null,null,null,null,null,{"$error":"#DIV/0!"},"no",null,{"$error":"#DIV/0!"},null,{"$error":"#DIV/0!"}]
[null,null,null,null,null,null,{"$error":"#DIV/0!"},"no",null,{"$error":"#DIV/0!"},null,{"$error":"#DIV/0!"}]
[null,null,null,null,null,null,{"$error":"#DIV/0!"},"no",null,{"$error":"#DIV/0!"},null,{"$error":"#DIV/0!"}]
[null,null,null,null,null,null,{"$error":"#DIV/0!"},"no",null,{"$error":"#DIV/0!"},null,{"$error":"#DIV/0!"}]
[null,null,null,null,null,null,{"$error":"#DIV/0!"},"no",null,{"$error":"#DIV/0!"},null,{"$error":"#DIV/0!"}]
[null,null,null,null,null,null,{"$error":"#DIV/0!"},"no",null,{"$error":"#DIV/0!"},null,{"$error":"#DIV/0!"}]
[null,null,null,null,null,null,{"$error":"#DIV/0!"},"no",null,{"$error":"#DIV/0!"},null,{"$error":"#DIV/0!"}]
[null,null,null,null,null,null,{"$error":"#DIV/0!"},"no",null,{"$error":"#DIV/0!"},null,{"$error":"#DIV/0!"}]
[null,null,null,null,null,null,{"$error":"#DIV/0!"},"no",null,{"$error":"#DIV/0!"},null,{"$error":"#DIV/0!"}]
[null,null,null,null,null,null,{"$error":"#DIV/0!"},"no",null,{"$error":"#DIV/0!"},null,{"$error":"#DIV/0!"}]
[null,null,null,null,null,null,{"$error":"#DIV/0!"},"no",null,{"$error":"#DIV/0!"},null,{"$error":"#DIV/0!"}]
[null,null,null,null,null,null,{"$error":"#DIV/0!"},"no",null,{"$error":"#DIV/0!"},null,{"$error":"#DIV/0!"}]
[null,null,null,null,null,null,{"$error":"#DIV/0!"},"no",null,{"$error":"#DIV/0!"},null,{"$error":"#DIV/0!"}]
[null,null,null,null,null,null,{"$error":"#DIV/0!"},"no",null,{"$error":"#DIV/0!"},null,{"$error":"#DIV/0!"}]
[null,null,null,null,null,null,{"$error":"#DIV/0!"},"no",null,{"$error":"#DIV/0!"},null,{"$error":"#DIV/0!"}]
[null,null,null,null,null,null,{"$error":"#DIV/0!"},"no",null,{"$error":"#DIV/0!"},null,{"$error":"#DIV/0!"}]
[null,null,null,null,null,null,{"$error":"#DIV/0!"},"no",null,{"$error":"#DIV/0!"},null,{"$error":"#DIV/0!"}]
[null,null,null,null,null,null,{"$error":"#DIV/0!"},"no",null,{"$error":"#DIV/0!"},null,{"$error":"#DIV/0!"}]
[null,null,null,null,null,null,{"$error":"#DIV/0!"},"no",null,{"$error":"#DIV/0!"},null,{"$error":"#DIV/0!"}]
[null,null,null,null,null,null,{"$error":"#DIV/0!"},"no",null,{"$error":"#DIV/0!"},null,{"$error":"#DIV/0!"}]
[null,null,null,null,null,null,{"$error":"#DIV/0!"},"no",null,{"$error":"#DIV/0!"},null,{"$error":"#DIV/0!"}]
[null,null,null,null,null,null,{"$error":"#DIV/0!"},"no",null,{"$error":"#DIV/0!"},null,{"$error":"#DIV/0!"}]
[null,null,null,null,null,null,{"$error":"#DIV/0!"},"no",null,{"$error":"#DIV/0!"},null,{"$error":"#DIV/0!"}]
[null,null,null,null,null,null,{"$error":"#DIV/0!"},"no",null,{"$error":"#DIV/0!"},null,{"$error":"#DIV/0!"}]
[null,null,null,null,null,null,{"$error":"#DIV/0!"},"no",null,{"$error":"#DIV/0!"},null,{"$error":"#DIV/0!"}]
[null,null,null,null,null,null,{"$error":"#DIV/0!"},"no",null,{"$error":"#DIV/0!"},null,{"$error":"#DIV/0!"}]
[null,null,null,null,null,null,{"$error":"#DIV/0!"},"no",null,{"$error":"#DIV/0!"},null,{"$error":"#DIV/0!"}]
[null,null,null,null,null,null,{"$error":"#DIV/0!"},"no",null,{"$error":"#DIV/0!"},null,{"$error":"#DIV/0!"}]
[null,null,null,null,null,null,{"$error":"#DIV/0!"},"no",null,{"$error":"#DIV/0!"},null,{"$error":"#DIV/0!"}]
[null,null,null,null,null,null,{"$error":"#DIV/0!"},"no",null,{"$error":"#DIV/0!"},null,{"$f":"IF(J971=-600,\"Refer to Note (1) of Table 3.50 C1 or 3.53 C1\",\" \")","v":{"$error":"#DIV/0!"}}]
[null,null,null,null,null,null,{"$error":"#DIV/0!"},"no",null,{"$error":"#DIV/0!"},null,{"$error":"#DIV/0!"}]
[null,null,null,null,null,null,{"$error":"#DIV/0!"},"no",null,{"$error":"#DIV/0!"},null,{"$error":"#DIV/0!"}]
[null,null,null,null,null,null,{"$error":"#DIV/0!"},"no",null,{"$error":"#DIV/0!"},null,{"$error":"#DIV/0!"}]
[null,null,null,null,null,null,{"$error":"#DIV/0!"},"no",null,{"$error":"#DIV/0!"},null,{"$error":"#DIV/0!"}]
[null,null,null,null,null,null,{"$error":"#DIV/0!"},"no",null,{"$error":"#DIV/0!"},null,{"$error":"#DIV/0!"}]
[null,null,null,null,null,null,{"$error":"#DIV/0!"},"no",null,{"$error":"#DIV/0!"},null,{"$error":"#DIV/0!"}]
[null,null,null,null,null,null,{"$error":"#DIV/0!"},"no",null,{"$error":"#DIV/0!"},null,{"$error":"#DIV/0!"}]
[null,null,null,null,null,null,{"$error":"#DIV/0!"},"no",null,{"$error":"#DIV/0!"},null,{"$error":"#DIV/0!"}]
[null,null,null,null,null,null,{"$error":"#DIV/0!"},"no",null,{"$error":"#DIV/0!"},null,{"$error":"#DIV/0!"}]
[null,null,null,null,null,null,{"$error":"#DIV/0!"},"no",null,{"$error":"#DIV/0!"},null,{"$error":"#DIV/0!"}]
[null,null,null,null,null,null,{"$error":"#DIV/0!"},"no",null,{"$error":"#DIV/0!"},null,{"$error":"#DIV/0!"}]
[null,null,null,null,null,null,{"$f":"ROUND(AVERAGE(E983:F983),2)","v":{"$error":"#DIV/0!"}},"no",null,{"$f":"IF(I983=\"SI\",IF(H983=\"yes\",\"Excluded Area\",IF(G983<0.55,250,IF(G983<0.71,150,IF(G983<1.01,0,IF(G983<1.51,(800-900*G983),-600))))),IF(I983=\"SII\",IF(H983=\"yes\",\"Excluded Area\",IF(G983<0.55,250,IF(G983<0.81,150, IF(G983<1.16,0, IF(G983<1.51,(1380-1230*G983),-600))))),IF(H983=\"yes\",\"Excluded Area\",IF(G983<0.55,250,IF(G983<0.81,150, IF(G983<1.51,0, IF(G983<=1.8,(730-540*G983),-600)))))))","v":{"$error":"#DIV/0!"}},null,{"$error":"#DIV/0!"}]
[null,null,null,null,null,null,{"$error":"#DIV/0!"},"no",null,{"$error":"#DIV/0!"},null,{"$error":"#DIV/0!"}]
[null,null,null,null,null,null,{"$error":"#DIV/0!"},"no",null,{"$error":"#DIV/0!"},null,{"$error":"#DIV/0!"}]
[null,null,null,null,null,null,{"$error":"#DIV/0!"},"no",null,{"$error":"#DIV/0!"},null,{"$error":"#DIV/0!"}]
[null,null,null,null,null,null,{"$error":"#DIV/0!"},"no",null,{"$error":"#DIV/0!"},null,{"$error":"#DIV/0!"}]
[null,null,null,null,null,null,{"$error":"#DIV/0!"},"no",null,{"$error":"#DIV/0!"},null,{"$error":"#DIV/0!"}]
[null,null,null,null,null,null,{"$error":"#DIV/0!"},"no",null,{"$error":"#DIV/0!"},null,{"$error":"#DIV/0!"}]
[null,null,null,null,null,null,{"$error":"#DIV/0!"},"no",null,{"$error":"#DIV/0!"},null,{"$error":"#DIV/0!"}]
[null,null,null,null,null,null,{"$error":"#DIV/0!"},"no",null,{"$error":"#DIV/0!"},null,{"$error":"#DIV/0!"}]
[null,null,null,null,null,null,{"$error":"#DIV/0!"},"no",null,{"$error":"#DIV/0!"},null,{"$error":"#DIV/0!"}]
[null,null,null,null,null,null,{"$error":"#DIV/0!"},"no",null,{"$error":"#DIV/0!"},null,{"$error":"#DIV/0!"}]
[null,null,null,null,null,null,{"$error":"#DIV/0!"},"no",null,{"$error":"#DIV/0!"},null,{"$error":"#DIV/0!"}]
[null,null,null,null,null,null,{"$error":"#DIV/0!"},"no",null,{"$error":"#DIV/0!"},null,{"$error":"#DIV/0!"}]
[null,null,null,null,null,null,{"$error":"#DIV/0!"},"no",null,{"$error":"#DIV/0!"},null,{"$error":"#DIV/0!"}]
[null,null,null,null,null,null,{"$error":"#DIV/0!"},"no",null,{"$error":"#DIV/0!"},null,{"$error":"#DIV/0!"}]
[null,null,null,null,null,null,{"$error":"#DIV/0!"},"no",null,{"$error":"#DIV/0!"},null,{"$error":"#DIV/0!"}]
[null,null,null,null,null,null,{"$error":"#DIV/0!"},"no",null,{"$error":"#DIV/0!"},null,{"$error":"#DIV/0!"}]
[null,null,null,null,null,null,null,"no",null,250,null," "]

{"sheet":"ALR Example","index":6,"n_rows":14,"n_cols":7,"rows_kept":14,"cut":false,"hidden":false,"merged":[[12,0,12,5],[13,0,13,6]]}
[null,null,null,"Contract No:",12498,"Type of Test:","Acceptance"]
[null,null,null,"Hwy Number","877","Contractor:","ABC"]
[null,null,null,"Control Section",16,"IP Operator:","John Turner"]
[null,null,null,"Lane:","R1","Test Date:\n(mm/dd/yyyy)","2024-06-06"]
[null,null,null,"Direction:","NB"]
["Appendix B20.b"]
["Areas of Localized Roughness Summary"]
["             Station (km)",null,"IRI (m/km)","Length","Excluded Area?","Type of Cons.","Penalty"]
["Start","End","Right","(m)","Yes or No","SI,SII,or SIII","Assessment $"]
[27.563870000000001,27.56671,2.7102620000000002,{"$f":"+ROUND(B10*1000,0)-ROUND(A10*1000,0)","v":3},"no","SI",-120]
[27.584669999999999,27.593879999999999,3.6405539999999998,{"$f":"+ROUND(B11*1000,0)-ROUND(A11*1000,0)","v":9},"yes","SI",{"$f":"IF(E11=\"yes\",\"Excluded Area\",IF(F11=\"SI\",-$O$7*D11,IF(OR(F11=\"SII\",F11=\"SIII\"),-$O$8*D11)))","v":"Excluded Area"}]
[27.685449999999999,27.692419999999998,3.1817549999999999,7,"no","SI",-280]
["Total Assessment",null,null,null,null,null,{"$f":"SUM(G10:G12)","v":-400}]
["Comments: Excluded area beginning at km 27.585 was due to railway tracks.  Other Areas of Localized Roughness were judged not to require repair as ride quality was not excessively effected."]